Workbook

Sheet Portada

Sheet Indice
A4: Consejo Monetario Centroamericano
A5: Secretaría Ejecutiva
A20: Reporte Mensual de Actividad Económica
E24: FEBRERO
D25: Mes de Vigencia: | E25: Octubre
D26: Año: | E26: 2020
C29: Contenido
C32: IMAE, Variación Interanual y aceleración de la Tendencia-Ciclo
C33: Gráfico Reloj del Ciclo Económico
C34: Gráfico Dispersión Ciclo del IMAE
C35: Gráfico Dispersión del Ciclo del Producto Interno Bruto Trimestral
C36: Cuadro del IMAE por Ramas de Actividad
C37: Contribución de las Ramas de Actividad al IMAE
C38: Cuadros de Actividad Económica, IMAE y PIB
C39: Evolución del PIB real Trimestral
C40: Glosario y Nota Técnica
B44: ADVERTENCIA El Consejo Monetario Centroamericano y su Secretaría Ejecutiva autorizan la reproducción total y parcial del texto, gráficos y cifras de esta publicación, siempre que se mencione la fuente. No obstante, no asumen responsabilidad legal alguna o de cualquier otra índole, por la manipulación, interpretación personal y uso de dicha información. Derechos Reservados © 2018

Sheet Datos mensuales (hidden)
A1: ID | C1: 1 | D1: 2 | E1: 3 | F1: 4 | G1: 5 | H1: 6 | I1: 7 | J1: 8 | K1: 9 | L1: 1 | M1: 2 | N1: 3 | O1: 4 | P1: 5 | Q1: 6 | R1: 7 | S1: 8 | T1: 9 | U1: 1 | V1: 2 | W1: 3 | X1: 4 | Y1: 5 | Z1: 6 | AA1: 7 | AB1: 8 | AC1: 9 | AE1: Gráfico Dinámico | AH1: Business Cycle Tracer | AP1: Tendencia de los países | AW1: Business Cycle Tracer Países | BD1: Ciclo Normalizado Países | BK1: Variación Mensual Ciclo Países | BR1: Variación Interanual Ciclo Países
A2: Año | B2: Mes | C2: Variación Interanual | L2: Variación Media | U2: Aceleración
C3: IMAE TENDENCIA CICLO | L3: IMAE TENDENCIA CICLO | U3: IMAE TENDENCIA CICLO | AE3: =IF('Gráfico Dinámico IMAE'!$L$13="Costa Rica",LOOKUP(1,'Datos mensuales'!$C$1:$K$1,'Datos mensuales'!$C4:$K4),IF('Gráfico Dinámico IMAE'!$L$13="El Salvador",LOOKUP(2,'Datos mensuales'!$C$1:$K$1,'Datos mensuales'!$C4:$K4),IF('Gráfico Dinámico IMAE'!$L$13="Guatemala",LOOKUP(3,'Datos mensuales'!$C$1:$K1,'Datos mensuales'!$C4:$K4),IF('Gráfico Dinámico IMAE'!$L$13="Honduras",LOOKUP(4,'Datos mensuales'!$C$1:$K$1,'Datos mensuales'!$C4:$K4),IF('Gráfico Dinámico IMAE'!$L$13="Nicaragua",LOOKUP(5,'Datos mensuales'!$C$1:$K$1,'Datos mensuales'!$C4:$K4),IF('Gráfico Dinámico IMAE'!$L$13="República Dominicana",LOOKUP(6,'Datos mensuales'!$C$1:$K$1,'Datos mensuales'!$C4:$K4),IF('Gráfico Dinámico IMAE'!$L$13="Panamá",LOOKUP(7,'Datos mensuales'!$C$1:$K$1,'Datos mensuales'!$C4:$K4),IF('Gráfico Dinámico IMAE'!$L$13="Región CARD",LOOKUP(8,'Datos mensuales'!$C$1:$K$1,'Datos mensuales'!$C4:$K4),IF('Gráfico Dinámico IMAE'!$L$13="Región CAPARD",LOOKUP(9,'Datos mensuales'!$C$1:$K$1,'Datos mensuales'!$C4:$K4)))))))))) -> Región CARD | AF3: =IF('Gráfico Dinámico IMAE'!$L$13="Costa Rica",LOOKUP(1,'Datos mensuales'!$C$1:$K$1,'Datos mensuales'!$C4:$K4),IF('Gráfico Dinámico IMAE'!$L$13="El Salvador",LOOKUP(2,'Datos mensuales'!$C$1:$K$1,'Datos mensuales'!$C4:$K4),IF('Gráfico Dinámico IMAE'!$L$13="Guatemala",LOOKUP(3,'Datos mensuales'!$C$1:$K1,'Datos mensuales'!$C4:$K4),IF('Gráfico Dinámico IMAE'!$L$13="Honduras",LOOKUP(4,'Datos mensuales'!$C$1:$K$1,'Datos mensuales'!$C4:$K4),IF('Gráfico Dinámico IMAE'!$L$13="Nicaragua",LOOKUP(5,'Datos mensuales'!$C$1:$K$1,'Datos mensuales'!$C4:$K4),IF('Gráfico Dinámico IMAE'!$L$13="República Dominicana",LOOKUP(6,'Datos mensuales'!$C$1:$K$1,'Datos mensuales'!$C4:$K4),IF('Gráfico Dinámico IMAE'!$L$13="Panamá",LOOKUP(7,'Datos mensuales'!$C$1:$K$1,'Datos mensuales'!$C4:$K4),IF('Gráfico Dinámico IMAE'!$L$13="Región CARD",LOOKUP(8,'Datos mensuales'!$C$1:$K$1,'Datos mensuales'!$C4:$K4),IF('Gráfico Dinámico IMAE'!$L$13="Región CAPARD",LOOKUP(9,'Datos mensuales'!$C$1:$K$1,'Datos mensuales'!$C4:$K4)))))))))) -> Región CARD | AH3: Ciclo IMAER | AI3: Ciclo IMAER* | AJ3: Variación Ciclo IMAER* | AK3: Ciclo IPI | AL3: Ciclo IPI* | AM3: Variación Ciclo IPI* | AP3: Trend IMAE CR | AQ3: Trend IMAE SV | AR3: Trend IMAE GT | AS3: Trend IMAE HN | AT3: Trend IMAE NI | AU3: Trend IMAE DO | AV3: Trend IMAE PA | AW3: CR | AX3: SV | AY3: GT | AZ3: HN | BA3: NI | BB3: DO | BC3: PA | BD3: Ciclo Normalizado CR | BE3: Ciclo Normalizado SV | BF3: Ciclo Normalizado GT | BG3: Ciclo Normalizado HN | BH3: Ciclo Normalizado NI | BI3: Ciclo Normalizado DO | BJ3: Ciclo Normalizado PA | BK3: Variación Mensual Ciclo IMAE CR | BL3: Variación Mensual Ciclo IMAE SV | BM3: Variación Mensual Ciclo IMAE GT | BN3: Variación Mensual Ciclo IMAE HN | BO3: Variación Mensual Ciclo IMAE NI | BP3: Variación Mensual Ciclo IMAE DO | BQ3: Variación Mensual Ciclo IMAE PA | BR3: Variación Interanual Ciclo IMAE CR | BS3: Variación Interanual Ciclo IMAE SV | BT3: Variación Interanual Ciclo IMAE GT | BU3: Variación Interanual Ciclo IMAE HN | BV3: Variación Interanual Ciclo IMAE NI | BW3: Variación Interanual Ciclo IMAE DO | BX3: Variación Interanual Ciclo IMAE PA
C4: Costa Rica | D4: El Salvador | E4: Guatemala | F4: Honduras | G4: Nicaragua | H4: República Dominicana | I4: Panamá | J4: Región CARD | K4: Región CAPARD | L4: Costa Rica | M4: El Salvador | N4: Guatemala | O4: Honduras | P4: Nicaragua | Q4: República Dominicana | R4: Panamá | S4: Región CARD | T4: Región CAPARD | U4: Costa Rica | V4: El Salvador | W4: Guatemala | X4: Honduras | Y4: Nicaragua | Z4: República Dominicana | AA4: Panamá | AB4: Región CARD | AC4: Región CAPARD | AE4: Variación Interanual | AF4: Aceleración
A5: 1990 | B5: Ene | U5: - | V5: - | W5: - | X5: - | Y5: - | Z5: - | AB5: - | AC5: =IF(OR(K5="",K5="n.d.",K4="",K4="n.d."),"",K5-K4) ->  | AH5: n.d. | AI5: =IF(ISERROR(STANDARDIZE($AH5,AVERAGE($AH:$AH),STDEV($AH:$AH))),"n.d.",STANDARDIZE($AH5,AVERAGE($AH:$AH),STDEV($AH:$AH))) -> n.d. | AJ5: =IF(OR(AI5="",AI4=""),"",IF(OR(AI5="n.d.",AI4="n.d."),"n.d.",((AI5/AI4)-1))) ->  | AK5: 0.2446243605 | AL5: =IF(ISERROR(STANDARDIZE($AK5,AVERAGE($AK:$AK),STDEV($AK:$AK))),"n.d.",STANDARDIZE($AK5,AVERAGE($AK:$AK),STDEV($AK:$AK))) -> 0.1449811282 | AM5: =IF(OR(AL5="",AL4=""),"",IF(OR(AL5="n.d.",AL4="n.d."),"n.d.",((AL5/AL4)-1))) ->  | AW5: n.d. | AX5: n.d. | AY5: n.d. | AZ5: n.d. | BA5: n.d. | BB5: n.d. | BC5: n.d. | BD5: =IF(ISERROR(STANDARDIZE($AW5,AVERAGE($AW:$AW),STDEV('Datos mensuales'!$AH:$AH))),"n.d.",STANDARDIZE($AW5,AVERAGE('Datos mensuales'!$AH:$AH),STDEV('Datos mensuales'!$AH:$AH))) -> n.d. | BE5: =IF(ISERROR(STANDARDIZE($AX5,AVERAGE($AX:$AX),STDEV('Datos mensuales'!$AH:$AH))),"n.d.",STANDARDIZE($AX5,AVERAGE('Datos mensuales'!$AH:$AH),STDEV('Datos mensuales'!$AH:$AH))) -> n.d. | BF5: =IF(ISERROR(STANDARDIZE($AY5,AVERAGE($AY:$AY),STDEV('Datos mensuales'!$AH:$AH))),"n.d.",STANDARDIZE($AY5,AVERAGE('Datos mensuales'!$AH:$AH),STDEV('Datos mensuales'!$AH:$AH))) -> n.d. | BG5: =IF(ISERROR(STANDARDIZE($AZ5,AVERAGE($AZ:$AZ),STDEV('Datos mensuales'!$AH:$AH))),"n.d.",STANDARDIZE($AZ5,AVERAGE('Datos mensuales'!$AH:$AH),STDEV('Datos mensuales'!$AH:$AH))) -> n.d. | BH5: =IF(ISERROR(STANDARDIZE($BA5,AVERAGE($BA:$BA),STDEV('Datos mensuales'!$AH:$AH))),"n.d.",STANDARDIZE($BA5,AVERAGE('Datos mensuales'!$AH:$AH),STDEV('Datos mensuales'!$AH:$AH))) -> n.d. | BI5: =IF(ISERROR(STANDARDIZE($BB5,AVERAGE($BB:$BB),STDEV('Datos mensuales'!$AH:$AH))),"n.d.",STANDARDIZE($BB5,AVERAGE('Datos mensuales'!$AH:$AH),STDEV('Datos mensuales'!$AH:$AH))) -> n.d. | BJ5: =IF(ISERROR(STANDARDIZE($BC5,AVERAGE($BC:$BC),STDEV('Datos mensuales'!$AH:$AH))),"n.d.",STANDARDIZE($BC5,AVERAGE('Datos mensuales'!$AH:$AH),STDEV('Datos mensuales'!$AH:$AH))) -> n.d.
B6: Feb | U6: =IF(OR(C6="",C6="n.d.",C5="",C5="n.d."),"",C6-C5) ->  | AB6: =IF(OR(I6="",I6="n.d.",I5="",I5="n.d."),"",I6-I5) ->  | AH6: n.d. | AI6: n.d. | AJ6: n.d. | AK6: 0.6083209518 | AL6: 0.3606014067 | AM6: =IF(OR(AL6="",AL5=""),"",IF(OR(AL6="n.d.",AL5="n.d."),"n.d.",AL6-AL5)) -> 0.2156202785 | AW6: n.d. | AX6: n.d. | AY6: n.d. | AZ6: n.d. | BA6: n.d. | BB6: n.d. | BC6: n.d. | BD6: =IF(ISERROR(STANDARDIZE($AW6,AVERAGE($AW:$AW),STDEV('Datos mensuales'!$AH:$AH))),"n.d.",STANDARDIZE($AW6,AVERAGE('Datos mensuales'!$AH:$AH),STDEV('Datos mensuales'!$AH:$AH))) -> n.d. | BE6: =IF(ISERROR(STANDARDIZE($AX6,AVERAGE($AX:$AX),STDEV('Datos mensuales'!$AH:$AH))),"n.d.",STANDARDIZE($AX6,AVERAGE('Datos mensuales'!$AH:$AH),STDEV('Datos mensuales'!$AH:$AH))) -> n.d. | BF6: =IF(ISERROR(STANDARDIZE($AY6,AVERAGE($AY:$AY),STDEV('Datos mensuales'!$AH:$AH))),"n.d.",STANDARDIZE($AY6,AVERAGE('Datos mensuales'!$AH:$AH),STDEV('Datos mensuales'!$AH:$AH))) -> n.d. | BG6: =IF(ISERROR(STANDARDIZE($AZ6,AVERAGE($AZ:$AZ),STDEV('Datos mensuales'!$AH:$AH))),"n.d.",STANDARDIZE($AZ6,AVERAGE('Datos mensuales'!$AH:$AH),STDEV('Datos mensuales'!$AH:$AH))) -> n.d. | BH6: =IF(ISERROR(STANDARDIZE($BA6,AVERAGE($BA:$BA),STDEV('Datos mensuales'!$AH:$AH))),"n.d.",STANDARDIZE($BA6,AVERAGE('Datos mensuales'!$AH:$AH),STDEV('Datos mensuales'!$AH:$AH))) -> n.d. | BI6: =IF(ISERROR(STANDARDIZE($BB6,AVERAGE($BB:$BB),STDEV('Datos mensuales'!$AH:$AH))),"n.d.",STANDARDIZE($BB6,AVERAGE('Datos mensuales'!$AH:$AH),STDEV('Datos mensuales'!$AH:$AH))) -> n.d. | BJ6: =IF(ISERROR(STANDARDIZE($BC6,AVERAGE($BC:$BC),STDEV('Datos mensuales'!$AH:$AH))),"n.d.",STANDARDIZE($BC6,AVERAGE('Datos mensuales'!$AH:$AH),STDEV('Datos mensuales'!$AH:$AH))) -> n.d. | BK6: =IF(OR(BD6="",BD5=""),"",IF(OR(BD6="n.d.",BD5="n.d."),"n.d.",IF(OR(AND(BD6>0,BD5>0),AND(BD6<0,BD5>0)),BD6/BD5 -1,IF(OR(AND(BD6>0,BD5<0),AND(BD6<0,BD5<0)),-(BD6/BD5 -1),"n.a.")))) -> n.d. | BL6: n.d. | BM6: n.d. | BN6: n.d. | BO6: n.d. | BP6: n.d. | BQ6: n.d. | BR6: =IF(OR(BK6="",BK5=""),"",IF(OR(BK6="n.d.",BK5="n.d."),"n.d.",((BK6/BK5)-1))) -> 
B7: Mar | U7: =IF(OR(C7="",C7="n.d.",C6="",C6="n.d."),"",C7-C6) ->  | V7: =IF(OR(D7="",D7="n.d.",D6="",D6="n.d."),"",D7-D6) ->  | W7: =IF(OR(E7="",E7="n.d.",E6="",E6="n.d."),"",E7-E6) ->  | X7: =IF(OR(F7="",F7="n.d.",F6="",F6="n.d."),"",F7-F6) ->  | Y7: =IF(OR(G7="",G7="n.d.",G6="",G6="n.d."),"",G7-G6) ->  | Z7: =IF(OR(H7="",H7="n.d.",H6="",H6="n.d."),"",H7-H6) ->  | AB7: =IF(OR(I7="",I7="n.d.",I6="",I6="n.d."),"",I7-I6) ->  | AH7: n.d. | AI7: n.d. | AJ7: n.d. | AK7: 0.8527817686 | AL7: 0.5055318534 | AM7: 0.1449304466 | AW7: n.d. | AX7: n.d. | AY7: n.d. | AZ7: n.d. | BA7: n.d. | BB7: n.d. | BC7: n.d. | BD7: =IF(ISERROR(STANDARDIZE($AW7,AVERAGE($AW:$AW),STDEV('Datos mensuales'!$AH:$AH))),"n.d.",STANDARDIZE($AW7,AVERAGE('Datos mensuales'!$AH:$AH),STDEV('Datos mensuales'!$AH:$AH))) -> n.d. | BE7: =IF(ISERROR(STANDARDIZE($AX7,AVERAGE($AX:$AX),STDEV('Datos mensuales'!$AH:$AH))),"n.d.",STANDARDIZE($AX7,AVERAGE('Datos mensuales'!$AH:$AH),STDEV('Datos mensuales'!$AH:$AH))) -> n.d. | BF7: =IF(ISERROR(STANDARDIZE($AY7,AVERAGE($AY:$AY),STDEV('Datos mensuales'!$AH:$AH))),"n.d.",STANDARDIZE($AY7,AVERAGE('Datos mensuales'!$AH:$AH),STDEV('Datos mensuales'!$AH:$AH))) -> n.d. | BG7: =IF(ISERROR(STANDARDIZE($AZ7,AVERAGE($AZ:$AZ),STDEV('Datos mensuales'!$AH:$AH))),"n.d.",STANDARDIZE($AZ7,AVERAGE('Datos mensuales'!$AH:$AH),STDEV('Datos mensuales'!$AH:$AH))) -> n.d. | BH7: =IF(ISERROR(STANDARDIZE($BA7,AVERAGE($BA:$BA),STDEV('Datos mensuales'!$AH:$AH))),"n.d.",STANDARDIZE($BA7,AVERAGE('Datos mensuales'!$AH:$AH),STDEV('Datos mensuales'!$AH:$AH))) -> n.d. | BI7: =IF(ISERROR(STANDARDIZE($BB7,AVERAGE($BB:$BB),STDEV('Datos mensuales'!$AH:$AH))),"n.d.",STANDARDIZE($BB7,AVERAGE('Datos mensuales'!$AH:$AH),STDEV('Datos mensuales'!$AH:$AH))) -> n.d. | BJ7: =IF(ISERROR(STANDARDIZE($BC7,AVERAGE($BC:$BC),STDEV('Datos mensuales'!$AH:$AH))),"n.d.",STANDARDIZE($BC7,AVERAGE('Datos mensuales'!$AH:$AH),STDEV('Datos mensuales'!$AH:$AH))) -> n.d. | BK7: =IF(OR(BD7="",BD6=""),"",IF(OR(BD7="n.d.",BD6="n.d."),"n.d.",BD7-BD6)) -> n.d. | BL7: =IF(OR(BE7="",BE6=""),"",IF(OR(BE7="n.d.",BE6="n.d."),"n.d.",BE7-BE6)) -> n.d. | BM7: =IF(OR(BF7="",BF6=""),"",IF(OR(BF7="n.d.",BF6="n.d."),"n.d.",BF7-BF6)) -> n.d. | BN7: =IF(OR(BG7="",BG6=""),"",IF(OR(BG7="n.d.",BG6="n.d."),"n.d.",BG7-BG6)) -> n.d. | BO7: =IF(OR(BH7="",BH6=""),"",IF(OR(BH7="n.d.",BH6="n.d."),"n.d.",BH7-BH6)) -> n.d. | BP7: =IF(OR(BI7="",BI6=""),"",IF(OR(BI7="n.d.",BI6="n.d."),"n.d.",BI7-BI6)) -> n.d. | BQ7: =IF(OR(BJ7="",BJ6=""),"",IF(OR(BJ7="n.d.",BJ6="n.d."),"n.d.",BJ7-BJ6)) -> n.d.
B8: Abr | AB8: =IF(OR(I8="",I8="n.d.",I7="",I7="n.d."),"",I8-I7) ->  | AH8: n.d. | AI8: n.d. | AJ8: n.d. | AK8: 0.9442608921 | AL8: 0.5597659445 | AM8: 0.05423409116 | AW8: n.d. | AX8: n.d. | AY8: n.d. | AZ8: n.d. | BA8: n.d. | BB8: n.d. | BC8: n.d. | BD8: =IF(ISERROR(STANDARDIZE($AW8,AVERAGE($AW:$AW),STDEV('Datos mensuales'!$AH:$AH))),"n.d.",STANDARDIZE($AW8,AVERAGE('Datos mensuales'!$AH:$AH),STDEV('Datos mensuales'!$AH:$AH))) -> n.d. | BE8: =IF(ISERROR(STANDARDIZE($AX8,AVERAGE($AX:$AX),STDEV('Datos mensuales'!$AH:$AH))),"n.d.",STANDARDIZE($AX8,AVERAGE('Datos mensuales'!$AH:$AH),STDEV('Datos mensuales'!$AH:$AH))) -> n.d. | BF8: =IF(ISERROR(STANDARDIZE($AY8,AVERAGE($AY:$AY),STDEV('Datos mensuales'!$AH:$AH))),"n.d.",STANDARDIZE($AY8,AVERAGE('Datos mensuales'!$AH:$AH),STDEV('Datos mensuales'!$AH:$AH))) -> n.d. | BG8: =IF(ISERROR(STANDARDIZE($AZ8,AVERAGE($AZ:$AZ),STDEV('Datos mensuales'!$AH:$AH))),"n.d.",STANDARDIZE($AZ8,AVERAGE('Datos mensuales'!$AH:$AH),STDEV('Datos mensuales'!$AH:$AH))) -> n.d. | BH8: =IF(ISERROR(STANDARDIZE($BA8,AVERAGE($BA:$BA),STDEV('Datos mensuales'!$AH:$AH))),"n.d.",STANDARDIZE($BA8,AVERAGE('Datos mensuales'!$AH:$AH),STDEV('Datos mensuales'!$AH:$AH))) -> n.d. | BI8: =IF(ISERROR(STANDARDIZE($BB8,AVERAGE($BB:$BB),STDEV('Datos mensuales'!$AH:$AH))),"n.d.",STANDARDIZE($BB8,AVERAGE('Datos mensuales'!$AH:$AH),STDEV('Datos mensuales'!$AH:$AH))) -> n.d. | BJ8: =IF(ISERROR(STANDARDIZE($BC8,AVERAGE($BC:$BC),STDEV('Datos mensuales'!$AH:$AH))),"n.d.",STANDARDIZE($BC8,AVERAGE('Datos mensuales'!$AH:$AH),STDEV('Datos mensuales'!$AH:$AH))) -> n.d. | BK8: n.d. | BL8: n.d. | BM8: n.d. | BN8: n.d. | BO8: n.d. | BP8: n.d. | BQ8: n.d.
B9: May | AB9: =IF(OR(I9="",I9="n.d.",I8="",I8="n.d."),"",I9-I8) ->  | AH9: n.d. | AI9: n.d. | AJ9: n.d. | AK9: 1.033125418 | AL9: 0.6124499516 | AM9: 0.05268400708 | AW9: n.d. | AX9: n.d. | AY9: n.d. | AZ9: n.d. | BA9: n.d. | BB9: n.d. | BC9: n.d. | BD9: =IF(ISERROR(STANDARDIZE($AW9,AVERAGE($AW:$AW),STDEV('Datos mensuales'!$AH:$AH))),"n.d.",STANDARDIZE($AW9,AVERAGE('Datos mensuales'!$AH:$AH),STDEV('Datos mensuales'!$AH:$AH))) -> n.d. | BE9: =IF(ISERROR(STANDARDIZE($AX9,AVERAGE($AX:$AX),STDEV('Datos mensuales'!$AH:$AH))),"n.d.",STANDARDIZE($AX9,AVERAGE('Datos mensuales'!$AH:$AH),STDEV('Datos mensuales'!$AH:$AH))) -> n.d. | BF9: =IF(ISERROR(STANDARDIZE($AY9,AVERAGE($AY:$AY),STDEV('Datos mensuales'!$AH:$AH))),"n.d.",STANDARDIZE($AY9,AVERAGE('Datos mensuales'!$AH:$AH),STDEV('Datos mensuales'!$AH:$AH))) -> n.d. | BG9: =IF(ISERROR(STANDARDIZE($AZ9,AVERAGE($AZ:$AZ),STDEV('Datos mensuales'!$AH:$AH))),"n.d.",STANDARDIZE($AZ9,AVERAGE('Datos mensuales'!$AH:$AH),STDEV('Datos mensuales'!$AH:$AH))) -> n.d. | BH9: =IF(ISERROR(STANDARDIZE($BA9,AVERAGE($BA:$BA),STDEV('Datos mensuales'!$AH:$AH))),"n.d.",STANDARDIZE($BA9,AVERAGE('Datos mensuales'!$AH:$AH),STDEV('Datos mensuales'!$AH:$AH))) -> n.d. | BI9: =IF(ISERROR(STANDARDIZE($BB9,AVERAGE($BB:$BB),STDEV('Datos mensuales'!$AH:$AH))),"n.d.",STANDARDIZE($BB9,AVERAGE('Datos mensuales'!$AH:$AH),STDEV('Datos mensuales'!$AH:$AH))) -> n.d. | BJ9: =IF(ISERROR(STANDARDIZE($BC9,AVERAGE($BC:$BC),STDEV('Datos mensuales'!$AH:$AH))),"n.d.",STANDARDIZE($BC9,AVERAGE('Datos mensuales'!$AH:$AH),STDEV('Datos mensuales'!$AH:$AH))) -> n.d. | BK9: n.d. | BL9: n.d. | BM9: n.d. | BN9: n.d. | BO9: n.d. | BP9: n.d. | BQ9: n.d.
B10: Jun | AA10: =IF(OR(I10="",I10="n.d.",I9="",I9="n.d."),"",I10-I9) ->  | AB10: =IF(OR(J10="",J10="n.d.",J9="",J9="n.d."),"",J10-J9) ->  | AH10: n.d. | AI10: n.d. | AJ10: n.d. | AK10: 1.114519537 | AL10: 0.6607050714 | AM10: 0.04825511978 | AW10: n.d. | AX10: n.d. | AY10: n.d. | AZ10: n.d. | BA10: n.d. | BB10: n.d. | BC10: n.d. | BD10: =IF(ISERROR(STANDARDIZE($AW10,AVERAGE($AW:$AW),STDEV('Datos mensuales'!$AH:$AH))),"n.d.",STANDARDIZE($AW10,AVERAGE('Datos mensuales'!$AH:$AH),STDEV('Datos mensuales'!$AH:$AH))) -> n.d. | BE10: =IF(ISERROR(STANDARDIZE($AX10,AVERAGE($AX:$AX),STDEV('Datos mensuales'!$AH:$AH))),"n.d.",STANDARDIZE($AX10,AVERAGE('Datos mensuales'!$AH:$AH),STDEV('Datos mensuales'!$AH:$AH))) -> n.d. | BF10: =IF(ISERROR(STANDARDIZE($AY10,AVERAGE($AY:$AY),STDEV('Datos mensuales'!$AH:$AH))),"n.d.",STANDARDIZE($AY10,AVERAGE('Datos mensuales'!$AH:$AH),STDEV('Datos mensuales'!$AH:$AH))) -> n.d. | BG10: =IF(ISERROR(STANDARDIZE($AZ10,AVERAGE($AZ:$AZ),STDEV('Datos mensuales'!$AH:$AH))),"n.d.",STANDARDIZE($AZ10,AVERAGE('Datos mensuales'!$AH:$AH),STDEV('Datos mensuales'!$AH:$AH))) -> n.d. | BH10: =IF(ISERROR(STANDARDIZE($BA10,AVERAGE($BA:$BA),STDEV('Datos mensuales'!$AH:$AH))),"n.d.",STANDARDIZE($BA10,AVERAGE('Datos mensuales'!$AH:$AH),STDEV('Datos mensuales'!$AH:$AH))) -> n.d. | BI10: =IF(ISERROR(STANDARDIZE($BB10,AVERAGE($BB:$BB),STDEV('Datos mensuales'!$AH:$AH))),"n.d.",STANDARDIZE($BB10,AVERAGE('Datos mensuales'!$AH:$AH),STDEV('Datos mensuales'!$AH:$AH))) -> n.d. | BJ10: =IF(ISERROR(STANDARDIZE($BC10,AVERAGE($BC:$BC),STDEV('Datos mensuales'!$AH:$AH))),"n.d.",STANDARDIZE($BC10,AVERAGE('Datos mensuales'!$AH:$AH),STDEV('Datos mensuales'!$AH:$AH))) -> n.d. | BK10: n.d. | BL10: n.d. | BM10: n.d. | BN10: n.d. | BO10: n.d. | BP10: n.d. | BQ10: n.d.
B11: Jul | AH11: n.d. | AI11: n.d. | AJ11: n.d. | AK11: 1.176982729 | AL11: 0.6977368481 | AM11: 0.03703177674 | AW11: n.d. | AX11: n.d. | AY11: n.d. | AZ11: n.d. | BA11: n.d. | BB11: n.d. | BC11: n.d. | BD11: =IF(ISERROR(STANDARDIZE($AW11,AVERAGE($AW:$AW),STDEV('Datos mensuales'!$AH:$AH))),"n.d.",STANDARDIZE($AW11,AVERAGE('Datos mensuales'!$AH:$AH),STDEV('Datos mensuales'!$AH:$AH))) -> n.d. | BE11: =IF(ISERROR(STANDARDIZE($AX11,AVERAGE($AX:$AX),STDEV('Datos mensuales'!$AH:$AH))),"n.d.",STANDARDIZE($AX11,AVERAGE('Datos mensuales'!$AH:$AH),STDEV('Datos mensuales'!$AH:$AH))) -> n.d. | BF11: =IF(ISERROR(STANDARDIZE($AY11,AVERAGE($AY:$AY),STDEV('Datos mensuales'!$AH:$AH))),"n.d.",STANDARDIZE($AY11,AVERAGE('Datos mensuales'!$AH:$AH),STDEV('Datos mensuales'!$AH:$AH))) -> n.d. | BG11: =IF(ISERROR(STANDARDIZE($AZ11,AVERAGE($AZ:$AZ),STDEV('Datos mensuales'!$AH:$AH))),"n.d.",STANDARDIZE($AZ11,AVERAGE('Datos mensuales'!$AH:$AH),STDEV('Datos mensuales'!$AH:$AH))) -> n.d. | BH11: =IF(ISERROR(STANDARDIZE($BA11,AVERAGE($BA:$BA),STDEV('Datos mensuales'!$AH:$AH))),"n.d.",STANDARDIZE($BA11,AVERAGE('Datos mensuales'!$AH:$AH),STDEV('Datos mensuales'!$AH:$AH))) -> n.d. | BI11: =IF(ISERROR(STANDARDIZE($BB11,AVERAGE($BB:$BB),STDEV('Datos mensuales'!$AH:$AH))),"n.d.",STANDARDIZE($BB11,AVERAGE('Datos mensuales'!$AH:$AH),STDEV('Datos mensuales'!$AH:$AH))) -> n.d. | BJ11: =IF(ISERROR(STANDARDIZE($BC11,AVERAGE($BC:$BC),STDEV('Datos mensuales'!$AH:$AH))),"n.d.",STANDARDIZE($BC11,AVERAGE('Datos mensuales'!$AH:$AH),STDEV('Datos mensuales'!$AH:$AH))) -> n.d. | BK11: n.d. | BL11: n.d. | BM11: n.d. | BN11: n.d. | BO11: n.d. | BP11: n.d. | BQ11: n.d.
B12: Ago | AH12: n.d. | AI12: n.d. | AJ12: n.d. | AK12: 1.234241181 | AL12: 0.7316829547 | AM12: 0.03394610655 | AW12: n.d. | AX12: n.d. | AY12: n.d. | AZ12: n.d. | BA12: n.d. | BB12: n.d. | BC12: n.d. | BD12: =IF(ISERROR(STANDARDIZE($AW12,AVERAGE($AW:$AW),STDEV('Datos mensuales'!$AH:$AH))),"n.d.",STANDARDIZE($AW12,AVERAGE('Datos mensuales'!$AH:$AH),STDEV('Datos mensuales'!$AH:$AH))) -> n.d. | BE12: =IF(ISERROR(STANDARDIZE($AX12,AVERAGE($AX:$AX),STDEV('Datos mensuales'!$AH:$AH))),"n.d.",STANDARDIZE($AX12,AVERAGE('Datos mensuales'!$AH:$AH),STDEV('Datos mensuales'!$AH:$AH))) -> n.d. | BF12: =IF(ISERROR(STANDARDIZE($AY12,AVERAGE($AY:$AY),STDEV('Datos mensuales'!$AH:$AH))),"n.d.",STANDARDIZE($AY12,AVERAGE('Datos mensuales'!$AH:$AH),STDEV('Datos mensuales'!$AH:$AH))) -> n.d. | BG12: =IF(ISERROR(STANDARDIZE($AZ12,AVERAGE($AZ:$AZ),STDEV('Datos mensuales'!$AH:$AH))),"n.d.",STANDARDIZE($AZ12,AVERAGE('Datos mensuales'!$AH:$AH),STDEV('Datos mensuales'!$AH:$AH))) -> n.d. | BH12: =IF(ISERROR(STANDARDIZE($BA12,AVERAGE($BA:$BA),STDEV('Datos mensuales'!$AH:$AH))),"n.d.",STANDARDIZE($BA12,AVERAGE('Datos mensuales'!$AH:$AH),STDEV('Datos mensuales'!$AH:$AH))) -> n.d. | BI12: =IF(ISERROR(STANDARDIZE($BB12,AVERAGE($BB:$BB),STDEV('Datos mensuales'!$AH:$AH))),"n.d.",STANDARDIZE($BB12,AVERAGE('Datos mensuales'!$AH:$AH),STDEV('Datos mensuales'!$AH:$AH))) -> n.d. | BJ12: =IF(ISERROR(STANDARDIZE($BC12,AVERAGE($BC:$BC),STDEV('Datos mensuales'!$AH:$AH))),"n.d.",STANDARDIZE($BC12,AVERAGE('Datos mensuales'!$AH:$AH),STDEV('Datos mensuales'!$AH:$AH))) -> n.d. | BK12: n.d. | BL12: n.d. | BM12: n.d. | BN12: n.d. | BO12: n.d. | BP12: n.d. | BQ12: n.d.
B13: Sep | AH13: n.d. | AI13: n.d. | AJ13: n.d. | AK13: 1.129755529 | AL13: 0.6697378446 | AM13: -0.06194511005 | AW13: n.d. | AX13: n.d. | AY13: n.d. | AZ13: n.d. | BA13: n.d. | BB13: n.d. | BC13: n.d. | BD13: =IF(ISERROR(STANDARDIZE($AW13,AVERAGE($AW:$AW),STDEV('Datos mensuales'!$AH:$AH))),"n.d.",STANDARDIZE($AW13,AVERAGE('Datos mensuales'!$AH:$AH),STDEV('Datos mensuales'!$AH:$AH))) -> n.d. | BE13: =IF(ISERROR(STANDARDIZE($AX13,AVERAGE($AX:$AX),STDEV('Datos mensuales'!$AH:$AH))),"n.d.",STANDARDIZE($AX13,AVERAGE('Datos mensuales'!$AH:$AH),STDEV('Datos mensuales'!$AH:$AH))) -> n.d. | BF13: =IF(ISERROR(STANDARDIZE($AY13,AVERAGE($AY:$AY),STDEV('Datos mensuales'!$AH:$AH))),"n.d.",STANDARDIZE($AY13,AVERAGE('Datos mensuales'!$AH:$AH),STDEV('Datos mensuales'!$AH:$AH))) -> n.d. | BG13: =IF(ISERROR(STANDARDIZE($AZ13,AVERAGE($AZ:$AZ),STDEV('Datos mensuales'!$AH:$AH))),"n.d.",STANDARDIZE($AZ13,AVERAGE('Datos mensuales'!$AH:$AH),STDEV('Datos mensuales'!$AH:$AH))) -> n.d. | BH13: =IF(ISERROR(STANDARDIZE($BA13,AVERAGE($BA:$BA),STDEV('Datos mensuales'!$AH:$AH))),"n.d.",STANDARDIZE($BA13,AVERAGE('Datos mensuales'!$AH:$AH),STDEV('Datos mensuales'!$AH:$AH))) -> n.d. | BI13: =IF(ISERROR(STANDARDIZE($BB13,AVERAGE($BB:$BB),STDEV('Datos mensuales'!$AH:$AH))),"n.d.",STANDARDIZE($BB13,AVERAGE('Datos mensuales'!$AH:$AH),STDEV('Datos mensuales'!$AH:$AH))) -> n.d. | BJ13: =IF(ISERROR(STANDARDIZE($BC13,AVERAGE($BC:$BC),STDEV('Datos mensuales'!$AH:$AH))),"n.d.",STANDARDIZE($BC13,AVERAGE('Datos mensuales'!$AH:$AH),STDEV('Datos mensuales'!$AH:$AH))) -> n.d. | BK13: n.d. | BL13: n.d. | BM13: n.d. | BN13: n.d. | BO13: n.d. | BP13: n.d. | BQ13: n.d.
B14: Oct | AH14: n.d. | AI14: n.d. | AJ14: n.d. | AK14: 0.7343983788 | AL14: 0.4353473641 | AM14: -0.2343904805 | AW14: n.d. | AX14: n.d. | AY14: n.d. | AZ14: n.d. | BA14: n.d. | BB14: n.d. | BC14: n.d. | BD14: =IF(ISERROR(STANDARDIZE($AW14,AVERAGE($AW:$AW),STDEV('Datos mensuales'!$AH:$AH))),"n.d.",STANDARDIZE($AW14,AVERAGE('Datos mensuales'!$AH:$AH),STDEV('Datos mensuales'!$AH:$AH))) -> n.d. | BE14: =IF(ISERROR(STANDARDIZE($AX14,AVERAGE($AX:$AX),STDEV('Datos mensuales'!$AH:$AH))),"n.d.",STANDARDIZE($AX14,AVERAGE('Datos mensuales'!$AH:$AH),STDEV('Datos mensuales'!$AH:$AH))) -> n.d. | BF14: =IF(ISERROR(STANDARDIZE($AY14,AVERAGE($AY:$AY),STDEV('Datos mensuales'!$AH:$AH))),"n.d.",STANDARDIZE($AY14,AVERAGE('Datos mensuales'!$AH:$AH),STDEV('Datos mensuales'!$AH:$AH))) -> n.d. | BG14: =IF(ISERROR(STANDARDIZE($AZ14,AVERAGE($AZ:$AZ),STDEV('Datos mensuales'!$AH:$AH))),"n.d.",STANDARDIZE($AZ14,AVERAGE('Datos mensuales'!$AH:$AH),STDEV('Datos mensuales'!$AH:$AH))) -> n.d. | BH14: =IF(ISERROR(STANDARDIZE($BA14,AVERAGE($BA:$BA),STDEV('Datos mensuales'!$AH:$AH))),"n.d.",STANDARDIZE($BA14,AVERAGE('Datos mensuales'!$AH:$AH),STDEV('Datos mensuales'!$AH:$AH))) -> n.d. | BI14: =IF(ISERROR(STANDARDIZE($BB14,AVERAGE($BB:$BB),STDEV('Datos mensuales'!$AH:$AH))),"n.d.",STANDARDIZE($BB14,AVERAGE('Datos mensuales'!$AH:$AH),STDEV('Datos mensuales'!$AH:$AH))) -> n.d. | BJ14: =IF(ISERROR(STANDARDIZE($BC14,AVERAGE($BC:$BC),STDEV('Datos mensuales'!$AH:$AH))),"n.d.",STANDARDIZE($BC14,AVERAGE('Datos mensuales'!$AH:$AH),STDEV('Datos mensuales'!$AH:$AH))) -> n.d. | BK14: n.d. | BL14: n.d. | BM14: n.d. | BN14: n.d. | BO14: n.d. | BP14: n.d. | BQ14: n.d.
B15: Nov | AH15: n.d. | AI15: n.d. | AJ15: n.d. | AK15: 0.145149426 | AL15: 0.08600665991 | AM15: -0.3493407042 | AW15: n.d. | AX15: n.d. | AY15: n.d. | AZ15: n.d. | BA15: n.d. | BB15: n.d. | BC15: n.d. | BD15: =IF(ISERROR(STANDARDIZE($AW15,AVERAGE($AW:$AW),STDEV('Datos mensuales'!$AH:$AH))),"n.d.",STANDARDIZE($AW15,AVERAGE('Datos mensuales'!$AH:$AH),STDEV('Datos mensuales'!$AH:$AH))) -> n.d. | BE15: =IF(ISERROR(STANDARDIZE($AX15,AVERAGE($AX:$AX),STDEV('Datos mensuales'!$AH:$AH))),"n.d.",STANDARDIZE($AX15,AVERAGE('Datos mensuales'!$AH:$AH),STDEV('Datos mensuales'!$AH:$AH))) -> n.d. | BF15: =IF(ISERROR(STANDARDIZE($AY15,AVERAGE($AY:$AY),STDEV('Datos mensuales'!$AH:$AH))),"n.d.",STANDARDIZE($AY15,AVERAGE('Datos mensuales'!$AH:$AH),STDEV('Datos mensuales'!$AH:$AH))) -> n.d. | BG15: =IF(ISERROR(STANDARDIZE($AZ15,AVERAGE($AZ:$AZ),STDEV('Datos mensuales'!$AH:$AH))),"n.d.",STANDARDIZE($AZ15,AVERAGE('Datos mensuales'!$AH:$AH),STDEV('Datos mensuales'!$AH:$AH))) -> n.d. | BH15: =IF(ISERROR(STANDARDIZE($BA15,AVERAGE($BA:$BA),STDEV('Datos mensuales'!$AH:$AH))),"n.d.",STANDARDIZE($BA15,AVERAGE('Datos mensuales'!$AH:$AH),STDEV('Datos mensuales'!$AH:$AH))) -> n.d. | BI15: =IF(ISERROR(STANDARDIZE($BB15,AVERAGE($BB:$BB),STDEV('Datos mensuales'!$AH:$AH))),"n.d.",STANDARDIZE($BB15,AVERAGE('Datos mensuales'!$AH:$AH),STDEV('Datos mensuales'!$AH:$AH))) -> n.d. | BJ15: =IF(ISERROR(STANDARDIZE($BC15,AVERAGE($BC:$BC),STDEV('Datos mensuales'!$AH:$AH))),"n.d.",STANDARDIZE($BC15,AVERAGE('Datos mensuales'!$AH:$AH),STDEV('Datos mensuales'!$AH:$AH))) -> n.d. | BK15: n.d. | BL15: n.d. | BM15: n.d. | BN15: n.d. | BO15: n.d. | BP15: n.d. | BQ15: n.d.
B16: Dic | AH16: n.d. | AI16: n.d. | AJ16: n.d. | AK16: -0.3871272535 | AL16: -0.2295576006 | AM16: -0.3155642605 | AW16: n.d. | AX16: n.d. | AY16: n.d. | AZ16: n.d. | BA16: n.d. | BB16: n.d. | BC16: n.d. | BD16: =IF(ISERROR(STANDARDIZE($AW16,AVERAGE($AW:$AW),STDEV('Datos mensuales'!$AH:$AH))),"n.d.",STANDARDIZE($AW16,AVERAGE('Datos mensuales'!$AH:$AH),STDEV('Datos mensuales'!$AH:$AH))) -> n.d. | BE16: =IF(ISERROR(STANDARDIZE($AX16,AVERAGE($AX:$AX),STDEV('Datos mensuales'!$AH:$AH))),"n.d.",STANDARDIZE($AX16,AVERAGE('Datos mensuales'!$AH:$AH),STDEV('Datos mensuales'!$AH:$AH))) -> n.d. | BF16: =IF(ISERROR(STANDARDIZE($AY16,AVERAGE($AY:$AY),STDEV('Datos mensuales'!$AH:$AH))),"n.d.",STANDARDIZE($AY16,AVERAGE('Datos mensuales'!$AH:$AH),STDEV('Datos mensuales'!$AH:$AH))) -> n.d. | BG16: =IF(ISERROR(STANDARDIZE($AZ16,AVERAGE($AZ:$AZ),STDEV('Datos mensuales'!$AH:$AH))),"n.d.",STANDARDIZE($AZ16,AVERAGE('Datos mensuales'!$AH:$AH),STDEV('Datos mensuales'!$AH:$AH))) -> n.d. | BH16: =IF(ISERROR(STANDARDIZE($BA16,AVERAGE($BA:$BA),STDEV('Datos mensuales'!$AH:$AH))),"n.d.",STANDARDIZE($BA16,AVERAGE('Datos mensuales'!$AH:$AH),STDEV('Datos mensuales'!$AH:$AH))) -> n.d. | BI16: =IF(ISERROR(STANDARDIZE($BB16,AVERAGE($BB:$BB),STDEV('Datos mensuales'!$AH:$AH))),"n.d.",STANDARDIZE($BB16,AVERAGE('Datos mensuales'!$AH:$AH),STDEV('Datos mensuales'!$AH:$AH))) -> n.d. | BJ16: =IF(ISERROR(STANDARDIZE($BC16,AVERAGE($BC:$BC),STDEV('Datos mensuales'!$AH:$AH))),"n.d.",STANDARDIZE($BC16,AVERAGE('Datos mensuales'!$AH:$AH),STDEV('Datos mensuales'!$AH:$AH))) -> n.d. | BK16: n.d. | BL16: n.d. | BM16: n.d. | BN16: n.d. | BO16: n.d. | BP16: n.d. | BQ16: n.d.
A17: 1991 | B17: Ene | AH17: n.d. | AI17: n.d. | AJ17: n.d. | AK17: -0.8019902453 | AL17: -0.4755122672 | AM17: -0.2459546666 | AP17: 41.60338955 | AW17: 1.321321251 | AX17: n.d. | AY17: n.d. | AZ17: n.d. | BA17: n.d. | BB17: n.d. | BC17: n.d. | BD17: =IF(ISERROR(STANDARDIZE($AW17,AVERAGE($AW:$AW),STDEV('Datos mensuales'!$AH:$AH))),"n.d.",STANDARDIZE($AW17,AVERAGE('Datos mensuales'!$AH:$AH),STDEV('Datos mensuales'!$AH:$AH))) -> 0.6252658571 | BE17: =IF(ISERROR(STANDARDIZE($AX17,AVERAGE($AX:$AX),STDEV('Datos mensuales'!$AH:$AH))),"n.d.",STANDARDIZE($AX17,AVERAGE('Datos mensuales'!$AH:$AH),STDEV('Datos mensuales'!$AH:$AH))) -> n.d. | BF17: =IF(ISERROR(STANDARDIZE($AY17,AVERAGE($AY:$AY),STDEV('Datos mensuales'!$AH:$AH))),"n.d.",STANDARDIZE($AY17,AVERAGE('Datos mensuales'!$AH:$AH),STDEV('Datos mensuales'!$AH:$AH))) -> n.d. | BG17: =IF(ISERROR(STANDARDIZE($AZ17,AVERAGE($AZ:$AZ),STDEV('Datos mensuales'!$AH:$AH))),"n.d.",STANDARDIZE($AZ17,AVERAGE('Datos mensuales'!$AH:$AH),STDEV('Datos mensuales'!$AH:$AH))) -> n.d. | BH17: =IF(ISERROR(STANDARDIZE($BA17,AVERAGE($BA:$BA),STDEV('Datos mensuales'!$AH:$AH))),"n.d.",STANDARDIZE($BA17,AVERAGE('Datos mensuales'!$AH:$AH),STDEV('Datos mensuales'!$AH:$AH))) -> n.d. | BI17: =IF(ISERROR(STANDARDIZE($BB17,AVERAGE($BB:$BB),STDEV('Datos mensuales'!$AH:$AH))),"n.d.",STANDARDIZE($BB17,AVERAGE('Datos mensuales'!$AH:$AH),STDEV('Datos mensuales'!$AH:$AH))) -> n.d. | BJ17: =IF(ISERROR(STANDARDIZE($BC17,AVERAGE($BC:$BC),STDEV('Datos mensuales'!$AH:$AH))),"n.d.",STANDARDIZE($BC17,AVERAGE('Datos mensuales'!$AH:$AH),STDEV('Datos mensuales'!$AH:$AH))) -> n.d. | BK17: n.d. | BL17: n.d. | BM17: n.d. | BN17: n.d. | BO17: n.d. | BP17: n.d. | BQ17: n.d. | BR17: =IF(OR(BD17="",BD5=""),"",IF(OR(BD17="n.d.",BD5="n.d."),"n.d.",IF(OR(AND(BD17>0,BD5>0),AND(BD17<0,BD5>0)),BD17/BD5 -1,IF(OR(AND(BD17>0,BD5<0),AND(BD17<0,BD5<0)),-(BD17/BD5 -1),"n.a.")))) -> n.d. | BS17: =IF(OR(BE17="",BE5=""),"",IF(OR(BE17="n.d.",BE5="n.d."),"n.d.",IF(OR(AND(BE17>0,BE5>0),AND(BE17<0,BE5>0)),BE17/BE5 -1,IF(OR(AND(BE17>0,BE5<0),AND(BE17<0,BE5<0)),-(BE17/BE5 -1),"n.a.")))) -> n.d. | BT17: =IF(OR(BF17="",BF5=""),"",IF(OR(BF17="n.d.",BF5="n.d."),"n.d.",IF(OR(AND(BF17>0,BF5>0),AND(BF17<0,BF5>0)),BF17/BF5 -1,IF(OR(AND(BF17>0,BF5<0),AND(BF17<0,BF5<0)),-(BF17/BF5 -1),"n.a.")))) -> n.d. | BU17: =IF(OR(BG17="",BG5=""),"",IF(OR(BG17="n.d.",BG5="n.d."),"n.d.",IF(OR(AND(BG17>0,BG5>0),AND(BG17<0,BG5>0)),BG17/BG5 -1,IF(OR(AND(BG17>0,BG5<0),AND(BG17<0,BG5<0)),-(BG17/BG5 -1),"n.a.")))) -> n.d. | BV17: =IF(OR(BH17="",BH5=""),"",IF(OR(BH17="n.d.",BH5="n.d."),"n.d.",IF(OR(AND(BH17>0,BH5>0),AND(BH17<0,BH5>0)),BH17/BH5 -1,IF(OR(AND(BH17>0,BH5<0),AND(BH17<0,BH5<0)),-(BH17/BH5 -1),"n.a.")))) -> n.d. | BW17: =IF(OR(BI17="",BI5=""),"",IF(OR(BI17="n.d.",BI5="n.d."),"n.d.",IF(OR(AND(BI17>0,BI5>0),AND(BI17<0,BI5>0)),BI17/BI5 -1,IF(OR(AND(BI17>0,BI5<0),AND(BI17<0,BI5<0)),-(BI17/BI5 -1),"n.a.")))) -> n.d. | BX17: =IF(OR(BJ17="",BJ5=""),"",IF(OR(BJ17="n.d.",BJ5="n.d."),"n.d.",IF(OR(AND(BJ17>0,BJ5>0),AND(BJ17<0,BJ5>0)),BJ17/BJ5 -1,IF(OR(AND(BJ17>0,BJ5<0),AND(BJ17<0,BJ5<0)),-(BJ17/BJ5 -1),"n.a.")))) -> n.d.
B18: Feb | AH18: n.d. | AI18: n.d. | AJ18: n.d. | AK18: -1.206008698 | AL18: -0.7150376665 | AM18: -0.2395253993 | AP18: 41.87441224 | AW18: 1.114156677 | AX18: n.d. | AY18: n.d. | AZ18: n.d. | BA18: n.d. | BB18: n.d. | BC18: n.d. | BD18: =IF(ISERROR(STANDARDIZE($AW18,AVERAGE($AW:$AW),STDEV('Datos mensuales'!$AH:$AH))),"n.d.",STANDARDIZE($AW18,AVERAGE('Datos mensuales'!$AH:$AH),STDEV('Datos mensuales'!$AH:$AH))) -> 0.5269811829 | BE18: =IF(ISERROR(STANDARDIZE($AX18,AVERAGE($AX:$AX),STDEV('Datos mensuales'!$AH:$AH))),"n.d.",STANDARDIZE($AX18,AVERAGE('Datos mensuales'!$AH:$AH),STDEV('Datos mensuales'!$AH:$AH))) -> n.d. | BF18: =IF(ISERROR(STANDARDIZE($AY18,AVERAGE($AY:$AY),STDEV('Datos mensuales'!$AH:$AH))),"n.d.",STANDARDIZE($AY18,AVERAGE('Datos mensuales'!$AH:$AH),STDEV('Datos mensuales'!$AH:$AH))) -> n.d. | BG18: =IF(ISERROR(STANDARDIZE($AZ18,AVERAGE($AZ:$AZ),STDEV('Datos mensuales'!$AH:$AH))),"n.d.",STANDARDIZE($AZ18,AVERAGE('Datos mensuales'!$AH:$AH),STDEV('Datos mensuales'!$AH:$AH))) -> n.d. | BH18: =IF(ISERROR(STANDARDIZE($BA18,AVERAGE($BA:$BA),STDEV('Datos mensuales'!$AH:$AH))),"n.d.",STANDARDIZE($BA18,AVERAGE('Datos mensuales'!$AH:$AH),STDEV('Datos mensuales'!$AH:$AH))) -> n.d. | BI18: =IF(ISERROR(STANDARDIZE($BB18,AVERAGE($BB:$BB),STDEV('Datos mensuales'!$AH:$AH))),"n.d.",STANDARDIZE($BB18,AVERAGE('Datos mensuales'!$AH:$AH),STDEV('Datos mensuales'!$AH:$AH))) -> n.d. | BJ18: =IF(ISERROR(STANDARDIZE($BC18,AVERAGE($BC:$BC),STDEV('Datos mensuales'!$AH:$AH))),"n.d.",STANDARDIZE($BC18,AVERAGE('Datos mensuales'!$AH:$AH),STDEV('Datos mensuales'!$AH:$AH))) -> n.d. | BK18: -0.09828467423 | BL18: n.d. | BM18: n.d. | BN18: n.d. | BO18: n.d. | BP18: n.d. | BQ18: n.d. | BR18: n.d. | BS18: n.d. | BT18: n.d. | BU18: n.d. | BV18: n.d. | BW18: n.d. | BX18: n.d.
B19: Mar | AH19: n.d. | AI19: n.d. | AJ19: n.d. | AK19: -1.461131092 | AL19: -0.8662889098 | AM19: -0.1512512433 | AP19: 42.14547498 | AW19: 0.8946398517 | AX19: n.d. | AY19: n.d. | AZ19: n.d. | BA19: n.d. | BB19: n.d. | BC19: n.d. | BD19: =IF(ISERROR(STANDARDIZE($AW19,AVERAGE($AW:$AW),STDEV('Datos mensuales'!$AH:$AH))),"n.d.",STANDARDIZE($AW19,AVERAGE('Datos mensuales'!$AH:$AH),STDEV('Datos mensuales'!$AH:$AH))) -> 0.4228362543 | BE19: =IF(ISERROR(STANDARDIZE($AX19,AVERAGE($AX:$AX),STDEV('Datos mensuales'!$AH:$AH))),"n.d.",STANDARDIZE($AX19,AVERAGE('Datos mensuales'!$AH:$AH),STDEV('Datos mensuales'!$AH:$AH))) -> n.d. | BF19: =IF(ISERROR(STANDARDIZE($AY19,AVERAGE($AY:$AY),STDEV('Datos mensuales'!$AH:$AH))),"n.d.",STANDARDIZE($AY19,AVERAGE('Datos mensuales'!$AH:$AH),STDEV('Datos mensuales'!$AH:$AH))) -> n.d. | BG19: =IF(ISERROR(STANDARDIZE($AZ19,AVERAGE($AZ:$AZ),STDEV('Datos mensuales'!$AH:$AH))),"n.d.",STANDARDIZE($AZ19,AVERAGE('Datos mensuales'!$AH:$AH),STDEV('Datos mensuales'!$AH:$AH))) -> n.d. | BH19: =IF(ISERROR(STANDARDIZE($BA19,AVERAGE($BA:$BA),STDEV('Datos mensuales'!$AH:$AH))),"n.d.",STANDARDIZE($BA19,AVERAGE('Datos mensuales'!$AH:$AH),STDEV('Datos mensuales'!$AH:$AH))) -> n.d. | BI19: =IF(ISERROR(STANDARDIZE($BB19,AVERAGE($BB:$BB),STDEV('Datos mensuales'!$AH:$AH))),"n.d.",STANDARDIZE($BB19,AVERAGE('Datos mensuales'!$AH:$AH),STDEV('Datos mensuales'!$AH:$AH))) -> n.d. | BJ19: =IF(ISERROR(STANDARDIZE($BC19,AVERAGE($BC:$BC),STDEV('Datos mensuales'!$AH:$AH))),"n.d.",STANDARDIZE($BC19,AVERAGE('Datos mensuales'!$AH:$AH),STDEV('Datos mensuales'!$AH:$AH))) -> n.d. | BK19: -0.1041449286 | BL19: n.d. | BM19: n.d. | BN19: n.d. | BO19: n.d. | BP19: n.d. | BQ19: n.d. | BR19: n.d. | BS19: n.d. | BT19: n.d. | BU19: n.d. | BV19: n.d. | BW19: n.d. | BX19: n.d.
B20: Abr | AH20: n.d. | AI20: n.d. | AJ20: n.d. | AK20: -1.348264096 | AL20: -0.799374857 | AM20: 0.06691405283 | AP20: 42.41663624 | AW20: 0.7625049377 | AX20: n.d. | AY20: n.d. | AZ20: n.d. | BA20: n.d. | BB20: n.d. | BC20: n.d. | BD20: =IF(ISERROR(STANDARDIZE($AW20,AVERAGE($AW:$AW),STDEV('Datos mensuales'!$AH:$AH))),"n.d.",STANDARDIZE($AW20,AVERAGE('Datos mensuales'!$AH:$AH),STDEV('Datos mensuales'!$AH:$AH))) -> 0.3601477512 | BE20: =IF(ISERROR(STANDARDIZE($AX20,AVERAGE($AX:$AX),STDEV('Datos mensuales'!$AH:$AH))),"n.d.",STANDARDIZE($AX20,AVERAGE('Datos mensuales'!$AH:$AH),STDEV('Datos mensuales'!$AH:$AH))) -> n.d. | BF20: =IF(ISERROR(STANDARDIZE($AY20,AVERAGE($AY:$AY),STDEV('Datos mensuales'!$AH:$AH))),"n.d.",STANDARDIZE($AY20,AVERAGE('Datos mensuales'!$AH:$AH),STDEV('Datos mensuales'!$AH:$AH))) -> n.d. | BG20: =IF(ISERROR(STANDARDIZE($AZ20,AVERAGE($AZ:$AZ),STDEV('Datos mensuales'!$AH:$AH))),"n.d.",STANDARDIZE($AZ20,AVERAGE('Datos mensuales'!$AH:$AH),STDEV('Datos mensuales'!$AH:$AH))) -> n.d. | BH20: =IF(ISERROR(STANDARDIZE($BA20,AVERAGE($BA:$BA),STDEV('Datos mensuales'!$AH:$AH))),"n.d.",STANDARDIZE($BA20,AVERAGE('Datos mensuales'!$AH:$AH),STDEV('Datos mensuales'!$AH:$AH))) -> n.d. | BI20: =IF(ISERROR(STANDARDIZE($BB20,AVERAGE($BB:$BB),STDEV('Datos mensuales'!$AH:$AH))),"n.d.",STANDARDIZE($BB20,AVERAGE('Datos mensuales'!$AH:$AH),STDEV('Datos mensuales'!$AH:$AH))) -> n.d. | BJ20: =IF(ISERROR(STANDARDIZE($BC20,AVERAGE($BC:$BC),STDEV('Datos mensuales'!$AH:$AH))),"n.d.",STANDARDIZE($BC20,AVERAGE('Datos mensuales'!$AH:$AH),STDEV('Datos mensuales'!$AH:$AH))) -> n.d. | BK20: -0.06268850304 | BL20: n.d. | BM20: n.d. | BN20: n.d. | BO20: n.d. | BP20: n.d. | BQ20: n.d. | BR20: n.d. | BS20: n.d. | BT20: n.d. | BU20: n.d. | BV20: n.d. | BW20: n.d. | BX20: n.d.
B21: May | AH21: n.d. | AI21: n.d. | AJ21: n.d. | AK21: -0.96690851 | AL21: -0.5732853094 | AM21: 0.2260895476 | AP21: 42.68795067 | AW21: 0.6811466617 | AX21: n.d. | AY21: n.d. | AZ21: n.d. | BA21: n.d. | BB21: n.d. | BC21: n.d. | BD21: =IF(ISERROR(STANDARDIZE($AW21,AVERAGE($AW:$AW),STDEV('Datos mensuales'!$AH:$AH))),"n.d.",STANDARDIZE($AW21,AVERAGE('Datos mensuales'!$AH:$AH),STDEV('Datos mensuales'!$AH:$AH))) -> 0.3215491071 | BE21: =IF(ISERROR(STANDARDIZE($AX21,AVERAGE($AX:$AX),STDEV('Datos mensuales'!$AH:$AH))),"n.d.",STANDARDIZE($AX21,AVERAGE('Datos mensuales'!$AH:$AH),STDEV('Datos mensuales'!$AH:$AH))) -> n.d. | BF21: =IF(ISERROR(STANDARDIZE($AY21,AVERAGE($AY:$AY),STDEV('Datos mensuales'!$AH:$AH))),"n.d.",STANDARDIZE($AY21,AVERAGE('Datos mensuales'!$AH:$AH),STDEV('Datos mensuales'!$AH:$AH))) -> n.d. | BG21: =IF(ISERROR(STANDARDIZE($AZ21,AVERAGE($AZ:$AZ),STDEV('Datos mensuales'!$AH:$AH))),"n.d.",STANDARDIZE($AZ21,AVERAGE('Datos mensuales'!$AH:$AH),STDEV('Datos mensuales'!$AH:$AH))) -> n.d. | BH21: =IF(ISERROR(STANDARDIZE($BA21,AVERAGE($BA:$BA),STDEV('Datos mensuales'!$AH:$AH))),"n.d.",STANDARDIZE($BA21,AVERAGE('Datos mensuales'!$AH:$AH),STDEV('Datos mensuales'!$AH:$AH))) -> n.d. | BI21: =IF(ISERROR(STANDARDIZE($BB21,AVERAGE($BB:$BB),STDEV('Datos mensuales'!$AH:$AH))),"n.d.",STANDARDIZE($BB21,AVERAGE('Datos mensuales'!$AH:$AH),STDEV('Datos mensuales'!$AH:$AH))) -> n.d. | BJ21: =IF(ISERROR(STANDARDIZE($BC21,AVERAGE($BC:$BC),STDEV('Datos mensuales'!$AH:$AH))),"n.d.",STANDARDIZE($BC21,AVERAGE('Datos mensuales'!$AH:$AH),STDEV('Datos mensuales'!$AH:$AH))) -> n.d. | BK21: -0.03859864417 | BL21: n.d. | BM21: n.d. | BN21: n.d. | BO21: n.d. | BP21: n.d. | BQ21: n.d. | BR21: n.d. | BS21: n.d. | BT21: n.d. | BU21: n.d. | BV21: n.d. | BW21: n.d. | BX21: n.d.
B22: Jun | AH22: n.d. | AI22: n.d. | AJ22: n.d. | AK22: -0.6060594064 | AL22: -0.3593531855 | AM22: 0.2139321239 | AP22: 42.95944396 | AW22: 0.6095800334 | AX22: n.d. | AY22: n.d. | AZ22: n.d. | BA22: n.d. | BB22: n.d. | BC22: n.d. | BD22: =IF(ISERROR(STANDARDIZE($AW22,AVERAGE($AW:$AW),STDEV('Datos mensuales'!$AH:$AH))),"n.d.",STANDARDIZE($AW22,AVERAGE('Datos mensuales'!$AH:$AH),STDEV('Datos mensuales'!$AH:$AH))) -> 0.2875958947 | BE22: =IF(ISERROR(STANDARDIZE($AX22,AVERAGE($AX:$AX),STDEV('Datos mensuales'!$AH:$AH))),"n.d.",STANDARDIZE($AX22,AVERAGE('Datos mensuales'!$AH:$AH),STDEV('Datos mensuales'!$AH:$AH))) -> n.d. | BF22: =IF(ISERROR(STANDARDIZE($AY22,AVERAGE($AY:$AY),STDEV('Datos mensuales'!$AH:$AH))),"n.d.",STANDARDIZE($AY22,AVERAGE('Datos mensuales'!$AH:$AH),STDEV('Datos mensuales'!$AH:$AH))) -> n.d. | BG22: =IF(ISERROR(STANDARDIZE($AZ22,AVERAGE($AZ:$AZ),STDEV('Datos mensuales'!$AH:$AH))),"n.d.",STANDARDIZE($AZ22,AVERAGE('Datos mensuales'!$AH:$AH),STDEV('Datos mensuales'!$AH:$AH))) -> n.d. | BH22: =IF(ISERROR(STANDARDIZE($BA22,AVERAGE($BA:$BA),STDEV('Datos mensuales'!$AH:$AH))),"n.d.",STANDARDIZE($BA22,AVERAGE('Datos mensuales'!$AH:$AH),STDEV('Datos mensuales'!$AH:$AH))) -> n.d. | BI22: =IF(ISERROR(STANDARDIZE($BB22,AVERAGE($BB:$BB),STDEV('Datos mensuales'!$AH:$AH))),"n.d.",STANDARDIZE($BB22,AVERAGE('Datos mensuales'!$AH:$AH),STDEV('Datos mensuales'!$AH:$AH))) -> n.d. | BJ22: =IF(ISERROR(STANDARDIZE($BC22,AVERAGE($BC:$BC),STDEV('Datos mensuales'!$AH:$AH))),"n.d.",STANDARDIZE($BC22,AVERAGE('Datos mensuales'!$AH:$AH),STDEV('Datos mensuales'!$AH:$AH))) -> n.d. | BK22: -0.03395321239 | BL22: n.d. | BM22: n.d. | BN22: n.d. | BO22: n.d. | BP22: n.d. | BQ22: n.d. | BR22: n.d. | BS22: n.d. | BT22: n.d. | BU22: n.d. | BV22: n.d. | BW22: n.d. | BX22: n.d.
B23: Jul | AH23: n.d. | AI23: n.d. | AJ23: n.d. | AK23: -0.4106062422 | AL23: -0.2434772969 | AM23: 0.1158758886 | AP23: 43.23108709 | AW23: 0.5553642009 | AX23: n.d. | AY23: n.d. | AZ23: n.d. | BA23: n.d. | BB23: n.d. | BC23: n.d. | BD23: =IF(ISERROR(STANDARDIZE($AW23,AVERAGE($AW:$AW),STDEV('Datos mensuales'!$AH:$AH))),"n.d.",STANDARDIZE($AW23,AVERAGE('Datos mensuales'!$AH:$AH),STDEV('Datos mensuales'!$AH:$AH))) -> 0.2618743857 | BE23: =IF(ISERROR(STANDARDIZE($AX23,AVERAGE($AX:$AX),STDEV('Datos mensuales'!$AH:$AH))),"n.d.",STANDARDIZE($AX23,AVERAGE('Datos mensuales'!$AH:$AH),STDEV('Datos mensuales'!$AH:$AH))) -> n.d. | BF23: =IF(ISERROR(STANDARDIZE($AY23,AVERAGE($AY:$AY),STDEV('Datos mensuales'!$AH:$AH))),"n.d.",STANDARDIZE($AY23,AVERAGE('Datos mensuales'!$AH:$AH),STDEV('Datos mensuales'!$AH:$AH))) -> n.d. | BG23: =IF(ISERROR(STANDARDIZE($AZ23,AVERAGE($AZ:$AZ),STDEV('Datos mensuales'!$AH:$AH))),"n.d.",STANDARDIZE($AZ23,AVERAGE('Datos mensuales'!$AH:$AH),STDEV('Datos mensuales'!$AH:$AH))) -> n.d. | BH23: =IF(ISERROR(STANDARDIZE($BA23,AVERAGE($BA:$BA),STDEV('Datos mensuales'!$AH:$AH))),"n.d.",STANDARDIZE($BA23,AVERAGE('Datos mensuales'!$AH:$AH),STDEV('Datos mensuales'!$AH:$AH))) -> n.d. | BI23: =IF(ISERROR(STANDARDIZE($BB23,AVERAGE($BB:$BB),STDEV('Datos mensuales'!$AH:$AH))),"n.d.",STANDARDIZE($BB23,AVERAGE('Datos mensuales'!$AH:$AH),STDEV('Datos mensuales'!$AH:$AH))) -> n.d. | BJ23: =IF(ISERROR(STANDARDIZE($BC23,AVERAGE($BC:$BC),STDEV('Datos mensuales'!$AH:$AH))),"n.d.",STANDARDIZE($BC23,AVERAGE('Datos mensuales'!$AH:$AH),STDEV('Datos mensuales'!$AH:$AH))) -> n.d. | BK23: -0.02572150899 | BL23: n.d. | BM23: n.d. | BN23: n.d. | BO23: n.d. | BP23: n.d. | BQ23: n.d. | BR23: n.d. | BS23: n.d. | BT23: n.d. | BU23: n.d. | BV23: n.d. | BW23: n.d. | BX23: n.d.
B24: Ago | AH24: n.d. | AI24: n.d. | AJ24: n.d. | AK24: -0.2715801486 | AL24: -0.1610546244 | AM24: 0.08242267243 | AP24: 43.50277539 | AW24: 0.6426931684 | AX24: n.d. | AY24: n.d. | AZ24: n.d. | BA24: n.d. | BB24: n.d. | BC24: n.d. | BD24: =IF(ISERROR(STANDARDIZE($AW24,AVERAGE($AW:$AW),STDEV('Datos mensuales'!$AH:$AH))),"n.d.",STANDARDIZE($AW24,AVERAGE('Datos mensuales'!$AH:$AH),STDEV('Datos mensuales'!$AH:$AH))) -> 0.3033056931 | BE24: =IF(ISERROR(STANDARDIZE($AX24,AVERAGE($AX:$AX),STDEV('Datos mensuales'!$AH:$AH))),"n.d.",STANDARDIZE($AX24,AVERAGE('Datos mensuales'!$AH:$AH),STDEV('Datos mensuales'!$AH:$AH))) -> n.d. | BF24: =IF(ISERROR(STANDARDIZE($AY24,AVERAGE($AY:$AY),STDEV('Datos mensuales'!$AH:$AH))),"n.d.",STANDARDIZE($AY24,AVERAGE('Datos mensuales'!$AH:$AH),STDEV('Datos mensuales'!$AH:$AH))) -> n.d. | BG24: =IF(ISERROR(STANDARDIZE($AZ24,AVERAGE($AZ:$AZ),STDEV('Datos mensuales'!$AH:$AH))),"n.d.",STANDARDIZE($AZ24,AVERAGE('Datos mensuales'!$AH:$AH),STDEV('Datos mensuales'!$AH:$AH))) -> n.d. | BH24: =IF(ISERROR(STANDARDIZE($BA24,AVERAGE($BA:$BA),STDEV('Datos mensuales'!$AH:$AH))),"n.d.",STANDARDIZE($BA24,AVERAGE('Datos mensuales'!$AH:$AH),STDEV('Datos mensuales'!$AH:$AH))) -> n.d. | BI24: =IF(ISERROR(STANDARDIZE($BB24,AVERAGE($BB:$BB),STDEV('Datos mensuales'!$AH:$AH))),"n.d.",STANDARDIZE($BB24,AVERAGE('Datos mensuales'!$AH:$AH),STDEV('Datos mensuales'!$AH:$AH))) -> n.d. | BJ24: =IF(ISERROR(STANDARDIZE($BC24,AVERAGE($BC:$BC),STDEV('Datos mensuales'!$AH:$AH))),"n.d.",STANDARDIZE($BC24,AVERAGE('Datos mensuales'!$AH:$AH),STDEV('Datos mensuales'!$AH:$AH))) -> n.d. | BK24: 0.04143130745 | BL24: n.d. | BM24: n.d. | BN24: n.d. | BO24: n.d. | BP24: n.d. | BQ24: n.d. | BR24: n.d. | BS24: n.d. | BT24: n.d. | BU24: n.d. | BV24: n.d. | BW24: n.d. | BX24: n.d.
B25: Sep | AH25: n.d. | AI25: n.d. | AJ25: n.d. | AK25: -0.1265098804 | AL25: -0.07504861726 | AM25: 0.08600600717 | AP25: 43.77432425 | AW25: 0.8655575868 | AX25: n.d. | AY25: n.d. | AZ25: n.d. | BA25: n.d. | BB25: n.d. | BC25: n.d. | BD25: =IF(ISERROR(STANDARDIZE($AW25,AVERAGE($AW:$AW),STDEV('Datos mensuales'!$AH:$AH))),"n.d.",STANDARDIZE($AW25,AVERAGE('Datos mensuales'!$AH:$AH),STDEV('Datos mensuales'!$AH:$AH))) -> 0.4090388135 | BE25: =IF(ISERROR(STANDARDIZE($AX25,AVERAGE($AX:$AX),STDEV('Datos mensuales'!$AH:$AH))),"n.d.",STANDARDIZE($AX25,AVERAGE('Datos mensuales'!$AH:$AH),STDEV('Datos mensuales'!$AH:$AH))) -> n.d. | BF25: =IF(ISERROR(STANDARDIZE($AY25,AVERAGE($AY:$AY),STDEV('Datos mensuales'!$AH:$AH))),"n.d.",STANDARDIZE($AY25,AVERAGE('Datos mensuales'!$AH:$AH),STDEV('Datos mensuales'!$AH:$AH))) -> n.d. | BG25: =IF(ISERROR(STANDARDIZE($AZ25,AVERAGE($AZ:$AZ),STDEV('Datos mensuales'!$AH:$AH))),"n.d.",STANDARDIZE($AZ25,AVERAGE('Datos mensuales'!$AH:$AH),STDEV('Datos mensuales'!$AH:$AH))) -> n.d. | BH25: =IF(ISERROR(STANDARDIZE($BA25,AVERAGE($BA:$BA),STDEV('Datos mensuales'!$AH:$AH))),"n.d.",STANDARDIZE($BA25,AVERAGE('Datos mensuales'!$AH:$AH),STDEV('Datos mensuales'!$AH:$AH))) -> n.d. | BI25: =IF(ISERROR(STANDARDIZE($BB25,AVERAGE($BB:$BB),STDEV('Datos mensuales'!$AH:$AH))),"n.d.",STANDARDIZE($BB25,AVERAGE('Datos mensuales'!$AH:$AH),STDEV('Datos mensuales'!$AH:$AH))) -> n.d. | BJ25: =IF(ISERROR(STANDARDIZE($BC25,AVERAGE($BC:$BC),STDEV('Datos mensuales'!$AH:$AH))),"n.d.",STANDARDIZE($BC25,AVERAGE('Datos mensuales'!$AH:$AH),STDEV('Datos mensuales'!$AH:$AH))) -> n.d. | BK25: 0.1057331203 | BL25: n.d. | BM25: n.d. | BN25: n.d. | BO25: n.d. | BP25: n.d. | BQ25: n.d. | BR25: n.d. | BS25: n.d. | BT25: n.d. | BU25: n.d. | BV25: n.d. | BW25: n.d. | BX25: n.d.
B26: Oct | AH26: n.d. | AI26: n.d. | AJ26: n.d. | AK26: -0.1467256414 | AL26: -0.08703368426 | AM26: -0.011985067 | AP26: 44.04548707 | AW26: 1.072104315 | AX26: n.d. | AY26: n.d. | AZ26: n.d. | BA26: n.d. | BB26: n.d. | BC26: n.d. | BD26: =IF(ISERROR(STANDARDIZE($AW26,AVERAGE($AW:$AW),STDEV('Datos mensuales'!$AH:$AH))),"n.d.",STANDARDIZE($AW26,AVERAGE('Datos mensuales'!$AH:$AH),STDEV('Datos mensuales'!$AH:$AH))) -> 0.5070303647 | BE26: =IF(ISERROR(STANDARDIZE($AX26,AVERAGE($AX:$AX),STDEV('Datos mensuales'!$AH:$AH))),"n.d.",STANDARDIZE($AX26,AVERAGE('Datos mensuales'!$AH:$AH),STDEV('Datos mensuales'!$AH:$AH))) -> n.d. | BF26: =IF(ISERROR(STANDARDIZE($AY26,AVERAGE($AY:$AY),STDEV('Datos mensuales'!$AH:$AH))),"n.d.",STANDARDIZE($AY26,AVERAGE('Datos mensuales'!$AH:$AH),STDEV('Datos mensuales'!$AH:$AH))) -> n.d. | BG26: =IF(ISERROR(STANDARDIZE($AZ26,AVERAGE($AZ:$AZ),STDEV('Datos mensuales'!$AH:$AH))),"n.d.",STANDARDIZE($AZ26,AVERAGE('Datos mensuales'!$AH:$AH),STDEV('Datos mensuales'!$AH:$AH))) -> n.d. | BH26: =IF(ISERROR(STANDARDIZE($BA26,AVERAGE($BA:$BA),STDEV('Datos mensuales'!$AH:$AH))),"n.d.",STANDARDIZE($BA26,AVERAGE('Datos mensuales'!$AH:$AH),STDEV('Datos mensuales'!$AH:$AH))) -> n.d. | BI26: =IF(ISERROR(STANDARDIZE($BB26,AVERAGE($BB:$BB),STDEV('Datos mensuales'!$AH:$AH))),"n.d.",STANDARDIZE($BB26,AVERAGE('Datos mensuales'!$AH:$AH),STDEV('Datos mensuales'!$AH:$AH))) -> n.d. | BJ26: =IF(ISERROR(STANDARDIZE($BC26,AVERAGE($BC:$BC),STDEV('Datos mensuales'!$AH:$AH))),"n.d.",STANDARDIZE($BC26,AVERAGE('Datos mensuales'!$AH:$AH),STDEV('Datos mensuales'!$AH:$AH))) -> n.d. | BK26: 0.09799155122 | BL26: n.d. | BM26: n.d. | BN26: n.d. | BO26: n.d. | BP26: n.d. | BQ26: n.d. | BR26: n.d. | BS26: n.d. | BT26: n.d. | BU26: n.d. | BV26: n.d. | BW26: n.d. | BX26: n.d.
B27: Nov | AH27: n.d. | AI27: n.d. | AJ27: n.d. | AK27: -0.3722631561 | AL27: -0.2207453079 | AM27: -0.1337116237 | AP27: 44.31599261 | AW27: 1.247750028 | AX27: n.d. | AY27: n.d. | AZ27: n.d. | BA27: n.d. | BB27: n.d. | BC27: n.d. | BD27: =IF(ISERROR(STANDARDIZE($AW27,AVERAGE($AW:$AW),STDEV('Datos mensuales'!$AH:$AH))),"n.d.",STANDARDIZE($AW27,AVERAGE('Datos mensuales'!$AH:$AH),STDEV('Datos mensuales'!$AH:$AH))) -> 0.590361609 | BE27: =IF(ISERROR(STANDARDIZE($AX27,AVERAGE($AX:$AX),STDEV('Datos mensuales'!$AH:$AH))),"n.d.",STANDARDIZE($AX27,AVERAGE('Datos mensuales'!$AH:$AH),STDEV('Datos mensuales'!$AH:$AH))) -> n.d. | BF27: =IF(ISERROR(STANDARDIZE($AY27,AVERAGE($AY:$AY),STDEV('Datos mensuales'!$AH:$AH))),"n.d.",STANDARDIZE($AY27,AVERAGE('Datos mensuales'!$AH:$AH),STDEV('Datos mensuales'!$AH:$AH))) -> n.d. | BG27: =IF(ISERROR(STANDARDIZE($AZ27,AVERAGE($AZ:$AZ),STDEV('Datos mensuales'!$AH:$AH))),"n.d.",STANDARDIZE($AZ27,AVERAGE('Datos mensuales'!$AH:$AH),STDEV('Datos mensuales'!$AH:$AH))) -> n.d. | BH27: =IF(ISERROR(STANDARDIZE($BA27,AVERAGE($BA:$BA),STDEV('Datos mensuales'!$AH:$AH))),"n.d.",STANDARDIZE($BA27,AVERAGE('Datos mensuales'!$AH:$AH),STDEV('Datos mensuales'!$AH:$AH))) -> n.d. | BI27: =IF(ISERROR(STANDARDIZE($BB27,AVERAGE($BB:$BB),STDEV('Datos mensuales'!$AH:$AH))),"n.d.",STANDARDIZE($BB27,AVERAGE('Datos mensuales'!$AH:$AH),STDEV('Datos mensuales'!$AH:$AH))) -> n.d. | BJ27: =IF(ISERROR(STANDARDIZE($BC27,AVERAGE($BC:$BC),STDEV('Datos mensuales'!$AH:$AH))),"n.d.",STANDARDIZE($BC27,AVERAGE('Datos mensuales'!$AH:$AH),STDEV('Datos mensuales'!$AH:$AH))) -> n.d. | BK27: 0.08333124432 | BL27: n.d. | BM27: n.d. | BN27: n.d. | BO27: n.d. | BP27: n.d. | BQ27: n.d. | BR27: n.d. | BS27: n.d. | BT27: n.d. | BU27: n.d. | BV27: n.d. | BW27: n.d. | BX27: n.d.
B28: Dic | AH28: n.d. | AI28: n.d. | AJ28: n.d. | AK28: -0.6786048615 | AL28: -0.4023623079 | AM28: -0.181617 | AP28: 44.58558944 | AW28: 1.314073912 | AX28: n.d. | AY28: n.d. | AZ28: n.d. | BA28: n.d. | BB28: n.d. | BC28: n.d. | BD28: =IF(ISERROR(STANDARDIZE($AW28,AVERAGE($AW:$AW),STDEV('Datos mensuales'!$AH:$AH))),"n.d.",STANDARDIZE($AW28,AVERAGE('Datos mensuales'!$AH:$AH),STDEV('Datos mensuales'!$AH:$AH))) -> 0.6218275169 | BE28: =IF(ISERROR(STANDARDIZE($AX28,AVERAGE($AX:$AX),STDEV('Datos mensuales'!$AH:$AH))),"n.d.",STANDARDIZE($AX28,AVERAGE('Datos mensuales'!$AH:$AH),STDEV('Datos mensuales'!$AH:$AH))) -> n.d. | BF28: =IF(ISERROR(STANDARDIZE($AY28,AVERAGE($AY:$AY),STDEV('Datos mensuales'!$AH:$AH))),"n.d.",STANDARDIZE($AY28,AVERAGE('Datos mensuales'!$AH:$AH),STDEV('Datos mensuales'!$AH:$AH))) -> n.d. | BG28: =IF(ISERROR(STANDARDIZE($AZ28,AVERAGE($AZ:$AZ),STDEV('Datos mensuales'!$AH:$AH))),"n.d.",STANDARDIZE($AZ28,AVERAGE('Datos mensuales'!$AH:$AH),STDEV('Datos mensuales'!$AH:$AH))) -> n.d. | BH28: =IF(ISERROR(STANDARDIZE($BA28,AVERAGE($BA:$BA),STDEV('Datos mensuales'!$AH:$AH))),"n.d.",STANDARDIZE($BA28,AVERAGE('Datos mensuales'!$AH:$AH),STDEV('Datos mensuales'!$AH:$AH))) -> n.d. | BI28: =IF(ISERROR(STANDARDIZE($BB28,AVERAGE($BB:$BB),STDEV('Datos mensuales'!$AH:$AH))),"n.d.",STANDARDIZE($BB28,AVERAGE('Datos mensuales'!$AH:$AH),STDEV('Datos mensuales'!$AH:$AH))) -> n.d. | BJ28: =IF(ISERROR(STANDARDIZE($BC28,AVERAGE($BC:$BC),STDEV('Datos mensuales'!$AH:$AH))),"n.d.",STANDARDIZE($BC28,AVERAGE('Datos mensuales'!$AH:$AH),STDEV('Datos mensuales'!$AH:$AH))) -> n.d. | BK28: 0.03146590794 | BL28: n.d. | BM28: n.d. | BN28: n.d. | BO28: n.d. | BP28: n.d. | BQ28: n.d. | BR28: n.d. | BS28: n.d. | BT28: n.d. | BU28: n.d. | BV28: n.d. | BW28: n.d. | BX28: n.d.
A29: 1992 | B29: Ene | C29: =IF(OR('[1]REAL IMAE(M)'!AG34="n.d."),"",'[1]REAL IMAE(M)'!AG34) -> 7.456473812 | L29: =IF(OR('[1]REAL IMAE(M)'!AN34="n.d."),"",'[1]REAL IMAE(M)'!AN34) -> 7.456473812 | AH29: n.d. | AI29: n.d. | AJ29: n.d. | AK29: -0.8695005443 | AL29: -0.5155362592 | AM29: -0.1131739513 | AP29: 44.85408053 | AW29: 1.229369641 | AX29: n.d. | AY29: n.d. | AZ29: n.d. | BA29: n.d. | BB29: n.d. | BC29: n.d. | BD29: =IF(ISERROR(STANDARDIZE($AW29,AVERAGE($AW:$AW),STDEV('Datos mensuales'!$AH:$AH))),"n.d.",STANDARDIZE($AW29,AVERAGE('Datos mensuales'!$AH:$AH),STDEV('Datos mensuales'!$AH:$AH))) -> 0.5816414387 | BE29: =IF(ISERROR(STANDARDIZE($AX29,AVERAGE($AX:$AX),STDEV('Datos mensuales'!$AH:$AH))),"n.d.",STANDARDIZE($AX29,AVERAGE('Datos mensuales'!$AH:$AH),STDEV('Datos mensuales'!$AH:$AH))) -> n.d. | BF29: =IF(ISERROR(STANDARDIZE($AY29,AVERAGE($AY:$AY),STDEV('Datos mensuales'!$AH:$AH))),"n.d.",STANDARDIZE($AY29,AVERAGE('Datos mensuales'!$AH:$AH),STDEV('Datos mensuales'!$AH:$AH))) -> n.d. | BG29: =IF(ISERROR(STANDARDIZE($AZ29,AVERAGE($AZ:$AZ),STDEV('Datos mensuales'!$AH:$AH))),"n.d.",STANDARDIZE($AZ29,AVERAGE('Datos mensuales'!$AH:$AH),STDEV('Datos mensuales'!$AH:$AH))) -> n.d. | BH29: =IF(ISERROR(STANDARDIZE($BA29,AVERAGE($BA:$BA),STDEV('Datos mensuales'!$AH:$AH))),"n.d.",STANDARDIZE($BA29,AVERAGE('Datos mensuales'!$AH:$AH),STDEV('Datos mensuales'!$AH:$AH))) -> n.d. | BI29: =IF(ISERROR(STANDARDIZE($BB29,AVERAGE($BB:$BB),STDEV('Datos mensuales'!$AH:$AH))),"n.d.",STANDARDIZE($BB29,AVERAGE('Datos mensuales'!$AH:$AH),STDEV('Datos mensuales'!$AH:$AH))) -> n.d. | BJ29: =IF(ISERROR(STANDARDIZE($BC29,AVERAGE($BC:$BC),STDEV('Datos mensuales'!$AH:$AH))),"n.d.",STANDARDIZE($BC29,AVERAGE('Datos mensuales'!$AH:$AH),STDEV('Datos mensuales'!$AH:$AH))) -> n.d. | BK29: -0.0401860782 | BL29: n.d. | BM29: n.d. | BN29: n.d. | BO29: n.d. | BP29: n.d. | BQ29: n.d. | BR29: -0.06976939152 | BS29: n.d. | BT29: n.d. | BU29: n.d. | BV29: n.d. | BW29: n.d. | BX29: n.d.
B30: Feb | C30: =IF(OR('[1]REAL IMAE(M)'!AG35="n.d."),"",'[1]REAL IMAE(M)'!AG35) -> 7.646219 | L30: =IF(OR('[1]REAL IMAE(M)'!AN35="n.d."),"",'[1]REAL IMAE(M)'!AN35) -> 7.551464107 | U30: 0.1897451874 | AH30: n.d. | AI30: n.d. | AJ30: n.d. | AK30: -0.7539062344 | AL30: -0.4470052972 | AM30: 0.06853096204 | AP30: 45.12133238 | AW30: 1.124965014 | AX30: n.d. | AY30: n.d. | AZ30: n.d. | BA30: n.d. | BB30: n.d. | BC30: n.d. | BD30: =IF(ISERROR(STANDARDIZE($AW30,AVERAGE($AW:$AW),STDEV('Datos mensuales'!$AH:$AH))),"n.d.",STANDARDIZE($AW30,AVERAGE('Datos mensuales'!$AH:$AH),STDEV('Datos mensuales'!$AH:$AH))) -> 0.5321089606 | BE30: =IF(ISERROR(STANDARDIZE($AX30,AVERAGE($AX:$AX),STDEV('Datos mensuales'!$AH:$AH))),"n.d.",STANDARDIZE($AX30,AVERAGE('Datos mensuales'!$AH:$AH),STDEV('Datos mensuales'!$AH:$AH))) -> n.d. | BF30: =IF(ISERROR(STANDARDIZE($AY30,AVERAGE($AY:$AY),STDEV('Datos mensuales'!$AH:$AH))),"n.d.",STANDARDIZE($AY30,AVERAGE('Datos mensuales'!$AH:$AH),STDEV('Datos mensuales'!$AH:$AH))) -> n.d. | BG30: =IF(ISERROR(STANDARDIZE($AZ30,AVERAGE($AZ:$AZ),STDEV('Datos mensuales'!$AH:$AH))),"n.d.",STANDARDIZE($AZ30,AVERAGE('Datos mensuales'!$AH:$AH),STDEV('Datos mensuales'!$AH:$AH))) -> n.d. | BH30: =IF(ISERROR(STANDARDIZE($BA30,AVERAGE($BA:$BA),STDEV('Datos mensuales'!$AH:$AH))),"n.d.",STANDARDIZE($BA30,AVERAGE('Datos mensuales'!$AH:$AH),STDEV('Datos mensuales'!$AH:$AH))) -> n.d. | BI30: =IF(ISERROR(STANDARDIZE($BB30,AVERAGE($BB:$BB),STDEV('Datos mensuales'!$AH:$AH))),"n.d.",STANDARDIZE($BB30,AVERAGE('Datos mensuales'!$AH:$AH),STDEV('Datos mensuales'!$AH:$AH))) -> n.d. | BJ30: =IF(ISERROR(STANDARDIZE($BC30,AVERAGE($BC:$BC),STDEV('Datos mensuales'!$AH:$AH))),"n.d.",STANDARDIZE($BC30,AVERAGE('Datos mensuales'!$AH:$AH),STDEV('Datos mensuales'!$AH:$AH))) -> n.d. | BK30: -0.04953247814 | BL30: n.d. | BM30: n.d. | BN30: n.d. | BO30: n.d. | BP30: n.d. | BQ30: n.d. | BR30: 0.009730475903 | BS30: n.d. | BT30: n.d. | BU30: n.d. | BV30: n.d. | BW30: n.d. | BX30: n.d.
B31: Mar | C31: =IF(OR('[1]REAL IMAE(M)'!AG36="n.d."),"",'[1]REAL IMAE(M)'!AG36) -> 7.983514662 | L31: =IF(OR('[1]REAL IMAE(M)'!AN36="n.d."),"",'[1]REAL IMAE(M)'!AN36) -> 7.695811931 | U31: 0.3372956619 | AH31: n.d. | AI31: n.d. | AJ31: n.d. | AK31: -0.4183384529 | AL31: -0.2480613966 | AM31: 0.1989439006 | AP31: 45.38725632 | AW31: 1.087698659 | AX31: n.d. | AY31: n.d. | AZ31: n.d. | BA31: n.d. | BB31: n.d. | BC31: n.d. | BD31: =IF(ISERROR(STANDARDIZE($AW31,AVERAGE($AW:$AW),STDEV('Datos mensuales'!$AH:$AH))),"n.d.",STANDARDIZE($AW31,AVERAGE('Datos mensuales'!$AH:$AH),STDEV('Datos mensuales'!$AH:$AH))) -> 0.5144287581 | BE31: =IF(ISERROR(STANDARDIZE($AX31,AVERAGE($AX:$AX),STDEV('Datos mensuales'!$AH:$AH))),"n.d.",STANDARDIZE($AX31,AVERAGE('Datos mensuales'!$AH:$AH),STDEV('Datos mensuales'!$AH:$AH))) -> n.d. | BF31: =IF(ISERROR(STANDARDIZE($AY31,AVERAGE($AY:$AY),STDEV('Datos mensuales'!$AH:$AH))),"n.d.",STANDARDIZE($AY31,AVERAGE('Datos mensuales'!$AH:$AH),STDEV('Datos mensuales'!$AH:$AH))) -> n.d. | BG31: =IF(ISERROR(STANDARDIZE($AZ31,AVERAGE($AZ:$AZ),STDEV('Datos mensuales'!$AH:$AH))),"n.d.",STANDARDIZE($AZ31,AVERAGE('Datos mensuales'!$AH:$AH),STDEV('Datos mensuales'!$AH:$AH))) -> n.d. | BH31: =IF(ISERROR(STANDARDIZE($BA31,AVERAGE($BA:$BA),STDEV('Datos mensuales'!$AH:$AH))),"n.d.",STANDARDIZE($BA31,AVERAGE('Datos mensuales'!$AH:$AH),STDEV('Datos mensuales'!$AH:$AH))) -> n.d. | BI31: =IF(ISERROR(STANDARDIZE($BB31,AVERAGE($BB:$BB),STDEV('Datos mensuales'!$AH:$AH))),"n.d.",STANDARDIZE($BB31,AVERAGE('Datos mensuales'!$AH:$AH),STDEV('Datos mensuales'!$AH:$AH))) -> n.d. | BJ31: =IF(ISERROR(STANDARDIZE($BC31,AVERAGE($BC:$BC),STDEV('Datos mensuales'!$AH:$AH))),"n.d.",STANDARDIZE($BC31,AVERAGE('Datos mensuales'!$AH:$AH),STDEV('Datos mensuales'!$AH:$AH))) -> n.d. | BK31: -0.01768020247 | BL31: n.d. | BM31: n.d. | BN31: n.d. | BO31: n.d. | BP31: n.d. | BQ31: n.d. | BR31: 0.2166145948 | BS31: n.d. | BT31: n.d. | BU31: n.d. | BV31: n.d. | BW31: n.d. | BX31: n.d.
B32: Abr | C32: =IF(OR('[1]REAL IMAE(M)'!AG37="n.d."),"",'[1]REAL IMAE(M)'!AG37) -> 8.271060346 | L32: =IF(OR('[1]REAL IMAE(M)'!AN37="n.d."),"",'[1]REAL IMAE(M)'!AN37) -> 7.840265726 | U32: 0.2875456844 | AH32: n.d. | AI32: n.d. | AJ32: n.d. | AK32: -0.1228003974 | AL32: -0.07284942215 | AM32: 0.1752119744 | AP32: 45.65177473 | AW32: 1.111231462 | AX32: n.d. | AY32: n.d. | AZ32: n.d. | BA32: n.d. | BB32: n.d. | BC32: n.d. | BD32: =IF(ISERROR(STANDARDIZE($AW32,AVERAGE($AW:$AW),STDEV('Datos mensuales'!$AH:$AH))),"n.d.",STANDARDIZE($AW32,AVERAGE('Datos mensuales'!$AH:$AH),STDEV('Datos mensuales'!$AH:$AH))) -> 0.5255933787 | BE32: =IF(ISERROR(STANDARDIZE($AX32,AVERAGE($AX:$AX),STDEV('Datos mensuales'!$AH:$AH))),"n.d.",STANDARDIZE($AX32,AVERAGE('Datos mensuales'!$AH:$AH),STDEV('Datos mensuales'!$AH:$AH))) -> n.d. | BF32: =IF(ISERROR(STANDARDIZE($AY32,AVERAGE($AY:$AY),STDEV('Datos mensuales'!$AH:$AH))),"n.d.",STANDARDIZE($AY32,AVERAGE('Datos mensuales'!$AH:$AH),STDEV('Datos mensuales'!$AH:$AH))) -> n.d. | BG32: =IF(ISERROR(STANDARDIZE($AZ32,AVERAGE($AZ:$AZ),STDEV('Datos mensuales'!$AH:$AH))),"n.d.",STANDARDIZE($AZ32,AVERAGE('Datos mensuales'!$AH:$AH),STDEV('Datos mensuales'!$AH:$AH))) -> n.d. | BH32: =IF(ISERROR(STANDARDIZE($BA32,AVERAGE($BA:$BA),STDEV('Datos mensuales'!$AH:$AH))),"n.d.",STANDARDIZE($BA32,AVERAGE('Datos mensuales'!$AH:$AH),STDEV('Datos mensuales'!$AH:$AH))) -> n.d. | BI32: =IF(ISERROR(STANDARDIZE($BB32,AVERAGE($BB:$BB),STDEV('Datos mensuales'!$AH:$AH))),"n.d.",STANDARDIZE($BB32,AVERAGE('Datos mensuales'!$AH:$AH),STDEV('Datos mensuales'!$AH:$AH))) -> n.d. | BJ32: =IF(ISERROR(STANDARDIZE($BC32,AVERAGE($BC:$BC),STDEV('Datos mensuales'!$AH:$AH))),"n.d.",STANDARDIZE($BC32,AVERAGE('Datos mensuales'!$AH:$AH),STDEV('Datos mensuales'!$AH:$AH))) -> n.d. | BK32: 0.01116462061 | BL32: n.d. | BM32: n.d. | BN32: n.d. | BO32: n.d. | BP32: n.d. | BQ32: n.d. | BR32: 0.4593826477 | BS32: n.d. | BT32: n.d. | BU32: n.d. | BV32: n.d. | BW32: n.d. | BX32: n.d.
B33: May | C33: =IF(OR('[1]REAL IMAE(M)'!AG38="n.d."),"",'[1]REAL IMAE(M)'!AG38) -> 8.535162524 | L33: =IF(OR('[1]REAL IMAE(M)'!AN38="n.d."),"",'[1]REAL IMAE(M)'!AN38) -> 7.980255894 | U33: 0.264102178 | AH33: n.d. | AI33: n.d. | AJ33: n.d. | AK33: 0.003458883915 | AL33: 0.002004348972 | AM33: 0.07485377112 | AP33: 45.91478932 | AW33: 1.189299093 | AX33: n.d. | AY33: n.d. | AZ33: n.d. | BA33: n.d. | BB33: n.d. | BC33: n.d. | BD33: =IF(ISERROR(STANDARDIZE($AW33,AVERAGE($AW:$AW),STDEV('Datos mensuales'!$AH:$AH))),"n.d.",STANDARDIZE($AW33,AVERAGE('Datos mensuales'!$AH:$AH),STDEV('Datos mensuales'!$AH:$AH))) -> 0.5626308489 | BE33: =IF(ISERROR(STANDARDIZE($AX33,AVERAGE($AX:$AX),STDEV('Datos mensuales'!$AH:$AH))),"n.d.",STANDARDIZE($AX33,AVERAGE('Datos mensuales'!$AH:$AH),STDEV('Datos mensuales'!$AH:$AH))) -> n.d. | BF33: =IF(ISERROR(STANDARDIZE($AY33,AVERAGE($AY:$AY),STDEV('Datos mensuales'!$AH:$AH))),"n.d.",STANDARDIZE($AY33,AVERAGE('Datos mensuales'!$AH:$AH),STDEV('Datos mensuales'!$AH:$AH))) -> n.d. | BG33: =IF(ISERROR(STANDARDIZE($AZ33,AVERAGE($AZ:$AZ),STDEV('Datos mensuales'!$AH:$AH))),"n.d.",STANDARDIZE($AZ33,AVERAGE('Datos mensuales'!$AH:$AH),STDEV('Datos mensuales'!$AH:$AH))) -> n.d. | BH33: =IF(ISERROR(STANDARDIZE($BA33,AVERAGE($BA:$BA),STDEV('Datos mensuales'!$AH:$AH))),"n.d.",STANDARDIZE($BA33,AVERAGE('Datos mensuales'!$AH:$AH),STDEV('Datos mensuales'!$AH:$AH))) -> n.d. | BI33: =IF(ISERROR(STANDARDIZE($BB33,AVERAGE($BB:$BB),STDEV('Datos mensuales'!$AH:$AH))),"n.d.",STANDARDIZE($BB33,AVERAGE('Datos mensuales'!$AH:$AH),STDEV('Datos mensuales'!$AH:$AH))) -> n.d. | BJ33: =IF(ISERROR(STANDARDIZE($BC33,AVERAGE($BC:$BC),STDEV('Datos mensuales'!$AH:$AH))),"n.d.",STANDARDIZE($BC33,AVERAGE('Datos mensuales'!$AH:$AH),STDEV('Datos mensuales'!$AH:$AH))) -> n.d. | BK33: 0.03703747016 | BL33: n.d. | BM33: n.d. | BN33: n.d. | BO33: n.d. | BP33: n.d. | BQ33: n.d. | BR33: 0.7497509293 | BS33: n.d. | BT33: n.d. | BU33: n.d. | BV33: n.d. | BW33: n.d. | BX33: n.d.
B34: Jun | C34: =IF(OR('[1]REAL IMAE(M)'!AG39="n.d."),"",'[1]REAL IMAE(M)'!AG39) -> 8.861080574 | L34: =IF(OR('[1]REAL IMAE(M)'!AN39="n.d."),"",'[1]REAL IMAE(M)'!AN39) -> 8.12855517 | U34: 0.32591805 | AH34: n.d. | AI34: n.d. | AJ34: n.d. | AK34: 0.09255237341 | AL34: 0.05482409895 | AM34: 0.05281974998 | AP34: 46.17616349 | AW34: 1.33033447 | AX34: n.d. | AY34: n.d. | AZ34: n.d. | BA34: n.d. | BB34: n.d. | BC34: n.d. | BD34: =IF(ISERROR(STANDARDIZE($AW34,AVERAGE($AW:$AW),STDEV('Datos mensuales'!$AH:$AH))),"n.d.",STANDARDIZE($AW34,AVERAGE('Datos mensuales'!$AH:$AH),STDEV('Datos mensuales'!$AH:$AH))) -> 0.6295419809 | BE34: =IF(ISERROR(STANDARDIZE($AX34,AVERAGE($AX:$AX),STDEV('Datos mensuales'!$AH:$AH))),"n.d.",STANDARDIZE($AX34,AVERAGE('Datos mensuales'!$AH:$AH),STDEV('Datos mensuales'!$AH:$AH))) -> n.d. | BF34: =IF(ISERROR(STANDARDIZE($AY34,AVERAGE($AY:$AY),STDEV('Datos mensuales'!$AH:$AH))),"n.d.",STANDARDIZE($AY34,AVERAGE('Datos mensuales'!$AH:$AH),STDEV('Datos mensuales'!$AH:$AH))) -> n.d. | BG34: =IF(ISERROR(STANDARDIZE($AZ34,AVERAGE($AZ:$AZ),STDEV('Datos mensuales'!$AH:$AH))),"n.d.",STANDARDIZE($AZ34,AVERAGE('Datos mensuales'!$AH:$AH),STDEV('Datos mensuales'!$AH:$AH))) -> n.d. | BH34: =IF(ISERROR(STANDARDIZE($BA34,AVERAGE($BA:$BA),STDEV('Datos mensuales'!$AH:$AH))),"n.d.",STANDARDIZE($BA34,AVERAGE('Datos mensuales'!$AH:$AH),STDEV('Datos mensuales'!$AH:$AH))) -> n.d. | BI34: =IF(ISERROR(STANDARDIZE($BB34,AVERAGE($BB:$BB),STDEV('Datos mensuales'!$AH:$AH))),"n.d.",STANDARDIZE($BB34,AVERAGE('Datos mensuales'!$AH:$AH),STDEV('Datos mensuales'!$AH:$AH))) -> n.d. | BJ34: =IF(ISERROR(STANDARDIZE($BC34,AVERAGE($BC:$BC),STDEV('Datos mensuales'!$AH:$AH))),"n.d.",STANDARDIZE($BC34,AVERAGE('Datos mensuales'!$AH:$AH),STDEV('Datos mensuales'!$AH:$AH))) -> n.d. | BK34: 0.06691113201 | BL34: n.d. | BM34: n.d. | BN34: n.d. | BO34: n.d. | BP34: n.d. | BQ34: n.d. | BR34: 1.188981111 | BS34: n.d. | BT34: n.d. | BU34: n.d. | BV34: n.d. | BW34: n.d. | BX34: n.d.
B35: Jul | C35: =IF(OR('[1]REAL IMAE(M)'!AG40="n.d."),"",'[1]REAL IMAE(M)'!AG40) -> 9.148521611 | L35: =IF(OR('[1]REAL IMAE(M)'!AN40="n.d."),"",'[1]REAL IMAE(M)'!AN40) -> 8.27619249 | U35: 0.2874410365 | AH35: n.d. | AI35: n.d. | AJ35: n.d. | AK35: 0.1316401464 | AL35: 0.07799758121 | AM35: 0.02317348226 | AP35: 46.43572559 | AW35: 1.474285186 | AX35: n.d. | AY35: n.d. | AZ35: n.d. | BA35: n.d. | BB35: n.d. | BC35: n.d. | BD35: =IF(ISERROR(STANDARDIZE($AW35,AVERAGE($AW:$AW),STDEV('Datos mensuales'!$AH:$AH))),"n.d.",STANDARDIZE($AW35,AVERAGE('Datos mensuales'!$AH:$AH),STDEV('Datos mensuales'!$AH:$AH))) -> 0.6978362312 | BE35: =IF(ISERROR(STANDARDIZE($AX35,AVERAGE($AX:$AX),STDEV('Datos mensuales'!$AH:$AH))),"n.d.",STANDARDIZE($AX35,AVERAGE('Datos mensuales'!$AH:$AH),STDEV('Datos mensuales'!$AH:$AH))) -> n.d. | BF35: =IF(ISERROR(STANDARDIZE($AY35,AVERAGE($AY:$AY),STDEV('Datos mensuales'!$AH:$AH))),"n.d.",STANDARDIZE($AY35,AVERAGE('Datos mensuales'!$AH:$AH),STDEV('Datos mensuales'!$AH:$AH))) -> n.d. | BG35: =IF(ISERROR(STANDARDIZE($AZ35,AVERAGE($AZ:$AZ),STDEV('Datos mensuales'!$AH:$AH))),"n.d.",STANDARDIZE($AZ35,AVERAGE('Datos mensuales'!$AH:$AH),STDEV('Datos mensuales'!$AH:$AH))) -> n.d. | BH35: =IF(ISERROR(STANDARDIZE($BA35,AVERAGE($BA:$BA),STDEV('Datos mensuales'!$AH:$AH))),"n.d.",STANDARDIZE($BA35,AVERAGE('Datos mensuales'!$AH:$AH),STDEV('Datos mensuales'!$AH:$AH))) -> n.d. | BI35: =IF(ISERROR(STANDARDIZE($BB35,AVERAGE($BB:$BB),STDEV('Datos mensuales'!$AH:$AH))),"n.d.",STANDARDIZE($BB35,AVERAGE('Datos mensuales'!$AH:$AH),STDEV('Datos mensuales'!$AH:$AH))) -> n.d. | BJ35: =IF(ISERROR(STANDARDIZE($BC35,AVERAGE($BC:$BC),STDEV('Datos mensuales'!$AH:$AH))),"n.d.",STANDARDIZE($BC35,AVERAGE('Datos mensuales'!$AH:$AH),STDEV('Datos mensuales'!$AH:$AH))) -> n.d. | BK35: 0.06829425028 | BL35: n.d. | BM35: n.d. | BN35: n.d. | BO35: n.d. | BP35: n.d. | BQ35: n.d. | BR35: 1.664774676 | BS35: n.d. | BT35: n.d. | BU35: n.d. | BV35: n.d. | BW35: n.d. | BX35: n.d.
B36: Ago | C36: =IF(OR('[1]REAL IMAE(M)'!AG41="n.d."),"",'[1]REAL IMAE(M)'!AG41) -> 8.961390817 | L36: =IF(OR('[1]REAL IMAE(M)'!AN41="n.d."),"",'[1]REAL IMAE(M)'!AN41) -> 8.36342331 | U36: -0.1871307937 | AH36: n.d. | AI36: n.d. | AJ36: n.d. | AK36: 0.0219399784 | AL36: 0.0129610058 | AM36: -0.06503657541 | AP36: 46.69329035 | AW36: 1.518395526 | AX36: n.d. | AY36: n.d. | AZ36: n.d. | BA36: n.d. | BB36: n.d. | BC36: n.d. | BD36: =IF(ISERROR(STANDARDIZE($AW36,AVERAGE($AW:$AW),STDEV('Datos mensuales'!$AH:$AH))),"n.d.",STANDARDIZE($AW36,AVERAGE('Datos mensuales'!$AH:$AH),STDEV('Datos mensuales'!$AH:$AH))) -> 0.7187634113 | BE36: =IF(ISERROR(STANDARDIZE($AX36,AVERAGE($AX:$AX),STDEV('Datos mensuales'!$AH:$AH))),"n.d.",STANDARDIZE($AX36,AVERAGE('Datos mensuales'!$AH:$AH),STDEV('Datos mensuales'!$AH:$AH))) -> n.d. | BF36: =IF(ISERROR(STANDARDIZE($AY36,AVERAGE($AY:$AY),STDEV('Datos mensuales'!$AH:$AH))),"n.d.",STANDARDIZE($AY36,AVERAGE('Datos mensuales'!$AH:$AH),STDEV('Datos mensuales'!$AH:$AH))) -> n.d. | BG36: =IF(ISERROR(STANDARDIZE($AZ36,AVERAGE($AZ:$AZ),STDEV('Datos mensuales'!$AH:$AH))),"n.d.",STANDARDIZE($AZ36,AVERAGE('Datos mensuales'!$AH:$AH),STDEV('Datos mensuales'!$AH:$AH))) -> n.d. | BH36: =IF(ISERROR(STANDARDIZE($BA36,AVERAGE($BA:$BA),STDEV('Datos mensuales'!$AH:$AH))),"n.d.",STANDARDIZE($BA36,AVERAGE('Datos mensuales'!$AH:$AH),STDEV('Datos mensuales'!$AH:$AH))) -> n.d. | BI36: =IF(ISERROR(STANDARDIZE($BB36,AVERAGE($BB:$BB),STDEV('Datos mensuales'!$AH:$AH))),"n.d.",STANDARDIZE($BB36,AVERAGE('Datos mensuales'!$AH:$AH),STDEV('Datos mensuales'!$AH:$AH))) -> n.d. | BJ36: =IF(ISERROR(STANDARDIZE($BC36,AVERAGE($BC:$BC),STDEV('Datos mensuales'!$AH:$AH))),"n.d.",STANDARDIZE($BC36,AVERAGE('Datos mensuales'!$AH:$AH),STDEV('Datos mensuales'!$AH:$AH))) -> n.d. | BK36: 0.02092718015 | BL36: n.d. | BM36: n.d. | BN36: n.d. | BO36: n.d. | BP36: n.d. | BQ36: n.d. | BR36: 1.369765644 | BS36: n.d. | BT36: n.d. | BU36: n.d. | BV36: n.d. | BW36: n.d. | BX36: n.d.
B37: Sep | C37: =IF(OR('[1]REAL IMAE(M)'!AG42="n.d."),"",'[1]REAL IMAE(M)'!AG42) -> 8.294871082 | L37: =IF(OR('[1]REAL IMAE(M)'!AN42="n.d."),"",'[1]REAL IMAE(M)'!AN42) -> 8.355611388 | U37: -0.6665197352 | AH37: n.d. | AI37: n.d. | AJ37: n.d. | AK37: 0.004943382829 | AL37: 0.002884445396 | AM37: -0.0100765604 | AP37: 46.9486846 | AW37: 1.447990201 | AX37: n.d. | AY37: n.d. | AZ37: n.d. | BA37: n.d. | BB37: n.d. | BC37: n.d. | BD37: =IF(ISERROR(STANDARDIZE($AW37,AVERAGE($AW:$AW),STDEV('Datos mensuales'!$AH:$AH))),"n.d.",STANDARDIZE($AW37,AVERAGE('Datos mensuales'!$AH:$AH),STDEV('Datos mensuales'!$AH:$AH))) -> 0.6853611541 | BE37: =IF(ISERROR(STANDARDIZE($AX37,AVERAGE($AX:$AX),STDEV('Datos mensuales'!$AH:$AH))),"n.d.",STANDARDIZE($AX37,AVERAGE('Datos mensuales'!$AH:$AH),STDEV('Datos mensuales'!$AH:$AH))) -> n.d. | BF37: =IF(ISERROR(STANDARDIZE($AY37,AVERAGE($AY:$AY),STDEV('Datos mensuales'!$AH:$AH))),"n.d.",STANDARDIZE($AY37,AVERAGE('Datos mensuales'!$AH:$AH),STDEV('Datos mensuales'!$AH:$AH))) -> n.d. | BG37: =IF(ISERROR(STANDARDIZE($AZ37,AVERAGE($AZ:$AZ),STDEV('Datos mensuales'!$AH:$AH))),"n.d.",STANDARDIZE($AZ37,AVERAGE('Datos mensuales'!$AH:$AH),STDEV('Datos mensuales'!$AH:$AH))) -> n.d. | BH37: =IF(ISERROR(STANDARDIZE($BA37,AVERAGE($BA:$BA),STDEV('Datos mensuales'!$AH:$AH))),"n.d.",STANDARDIZE($BA37,AVERAGE('Datos mensuales'!$AH:$AH),STDEV('Datos mensuales'!$AH:$AH))) -> n.d. | BI37: =IF(ISERROR(STANDARDIZE($BB37,AVERAGE($BB:$BB),STDEV('Datos mensuales'!$AH:$AH))),"n.d.",STANDARDIZE($BB37,AVERAGE('Datos mensuales'!$AH:$AH),STDEV('Datos mensuales'!$AH:$AH))) -> n.d. | BJ37: =IF(ISERROR(STANDARDIZE($BC37,AVERAGE($BC:$BC),STDEV('Datos mensuales'!$AH:$AH))),"n.d.",STANDARDIZE($BC37,AVERAGE('Datos mensuales'!$AH:$AH),STDEV('Datos mensuales'!$AH:$AH))) -> n.d. | BK37: -0.03340225721 | BL37: n.d. | BM37: n.d. | BN37: n.d. | BO37: n.d. | BP37: n.d. | BQ37: n.d. | BR37: 0.6755406371 | BS37: n.d. | BT37: n.d. | BU37: n.d. | BV37: n.d. | BW37: n.d. | BX37: n.d.
B38: Oct | C38: =IF(OR('[1]REAL IMAE(M)'!AG43="n.d."),"",'[1]REAL IMAE(M)'!AG43) -> 7.569782603 | L38: =IF(OR('[1]REAL IMAE(M)'!AN43="n.d."),"",'[1]REAL IMAE(M)'!AN43) -> 8.274514043 | U38: -0.7250884793 | AH38: n.d. | AI38: n.d. | AJ38: n.d. | AK38: 0.1446823115 | AL38: 0.08572972754 | AM38: 0.08284528214 | AP38: 47.20176131 | AW38: 1.316894295 | AX38: n.d. | AY38: n.d. | AZ38: n.d. | BA38: n.d. | BB38: n.d. | BC38: n.d. | BD38: =IF(ISERROR(STANDARDIZE($AW38,AVERAGE($AW:$AW),STDEV('Datos mensuales'!$AH:$AH))),"n.d.",STANDARDIZE($AW38,AVERAGE('Datos mensuales'!$AH:$AH),STDEV('Datos mensuales'!$AH:$AH))) -> 0.6231655857 | BE38: =IF(ISERROR(STANDARDIZE($AX38,AVERAGE($AX:$AX),STDEV('Datos mensuales'!$AH:$AH))),"n.d.",STANDARDIZE($AX38,AVERAGE('Datos mensuales'!$AH:$AH),STDEV('Datos mensuales'!$AH:$AH))) -> n.d. | BF38: =IF(ISERROR(STANDARDIZE($AY38,AVERAGE($AY:$AY),STDEV('Datos mensuales'!$AH:$AH))),"n.d.",STANDARDIZE($AY38,AVERAGE('Datos mensuales'!$AH:$AH),STDEV('Datos mensuales'!$AH:$AH))) -> n.d. | BG38: =IF(ISERROR(STANDARDIZE($AZ38,AVERAGE($AZ:$AZ),STDEV('Datos mensuales'!$AH:$AH))),"n.d.",STANDARDIZE($AZ38,AVERAGE('Datos mensuales'!$AH:$AH),STDEV('Datos mensuales'!$AH:$AH))) -> n.d. | BH38: =IF(ISERROR(STANDARDIZE($BA38,AVERAGE($BA:$BA),STDEV('Datos mensuales'!$AH:$AH))),"n.d.",STANDARDIZE($BA38,AVERAGE('Datos mensuales'!$AH:$AH),STDEV('Datos mensuales'!$AH:$AH))) -> n.d. | BI38: =IF(ISERROR(STANDARDIZE($BB38,AVERAGE($BB:$BB),STDEV('Datos mensuales'!$AH:$AH))),"n.d.",STANDARDIZE($BB38,AVERAGE('Datos mensuales'!$AH:$AH),STDEV('Datos mensuales'!$AH:$AH))) -> n.d. | BJ38: =IF(ISERROR(STANDARDIZE($BC38,AVERAGE($BC:$BC),STDEV('Datos mensuales'!$AH:$AH))),"n.d.",STANDARDIZE($BC38,AVERAGE('Datos mensuales'!$AH:$AH),STDEV('Datos mensuales'!$AH:$AH))) -> n.d. | BK38: -0.06219556844 | BL38: n.d. | BM38: n.d. | BN38: n.d. | BO38: n.d. | BP38: n.d. | BQ38: n.d. | BR38: 0.2290498343 | BS38: n.d. | BT38: n.d. | BU38: n.d. | BV38: n.d. | BW38: n.d. | BX38: n.d.
B39: Nov | C39: =IF(OR('[1]REAL IMAE(M)'!AG44="n.d."),"",'[1]REAL IMAE(M)'!AG44) -> 6.771086433 | L39: =IF(OR('[1]REAL IMAE(M)'!AN44="n.d."),"",'[1]REAL IMAE(M)'!AN44) -> 8.132692948 | U39: -0.7986961694 | AH39: n.d. | AI39: n.d. | AJ39: n.d. | AK39: 0.2473193481 | AL39: 0.146578872 | AM39: 0.06084914444 | AP39: 47.4523958 | AW39: 1.111197797 | AX39: n.d. | AY39: n.d. | AZ39: n.d. | BA39: n.d. | BB39: n.d. | BC39: n.d. | BD39: =IF(ISERROR(STANDARDIZE($AW39,AVERAGE($AW:$AW),STDEV('Datos mensuales'!$AH:$AH))),"n.d.",STANDARDIZE($AW39,AVERAGE('Datos mensuales'!$AH:$AH),STDEV('Datos mensuales'!$AH:$AH))) -> 0.5255774072 | BE39: =IF(ISERROR(STANDARDIZE($AX39,AVERAGE($AX:$AX),STDEV('Datos mensuales'!$AH:$AH))),"n.d.",STANDARDIZE($AX39,AVERAGE('Datos mensuales'!$AH:$AH),STDEV('Datos mensuales'!$AH:$AH))) -> n.d. | BF39: =IF(ISERROR(STANDARDIZE($AY39,AVERAGE($AY:$AY),STDEV('Datos mensuales'!$AH:$AH))),"n.d.",STANDARDIZE($AY39,AVERAGE('Datos mensuales'!$AH:$AH),STDEV('Datos mensuales'!$AH:$AH))) -> n.d. | BG39: =IF(ISERROR(STANDARDIZE($AZ39,AVERAGE($AZ:$AZ),STDEV('Datos mensuales'!$AH:$AH))),"n.d.",STANDARDIZE($AZ39,AVERAGE('Datos mensuales'!$AH:$AH),STDEV('Datos mensuales'!$AH:$AH))) -> n.d. | BH39: =IF(ISERROR(STANDARDIZE($BA39,AVERAGE($BA:$BA),STDEV('Datos mensuales'!$AH:$AH))),"n.d.",STANDARDIZE($BA39,AVERAGE('Datos mensuales'!$AH:$AH),STDEV('Datos mensuales'!$AH:$AH))) -> n.d. | BI39: =IF(ISERROR(STANDARDIZE($BB39,AVERAGE($BB:$BB),STDEV('Datos mensuales'!$AH:$AH))),"n.d.",STANDARDIZE($BB39,AVERAGE('Datos mensuales'!$AH:$AH),STDEV('Datos mensuales'!$AH:$AH))) -> n.d. | BJ39: =IF(ISERROR(STANDARDIZE($BC39,AVERAGE($BC:$BC),STDEV('Datos mensuales'!$AH:$AH))),"n.d.",STANDARDIZE($BC39,AVERAGE('Datos mensuales'!$AH:$AH),STDEV('Datos mensuales'!$AH:$AH))) -> n.d. | BK39: -0.09758817853 | BL39: n.d. | BM39: n.d. | BN39: n.d. | BO39: n.d. | BP39: n.d. | BQ39: n.d. | BR39: -0.1097364748 | BS39: n.d. | BT39: n.d. | BU39: n.d. | BV39: n.d. | BW39: n.d. | BX39: n.d.
B40: Dic | C40: =IF(OR('[1]REAL IMAE(M)'!AG45="n.d."),"",'[1]REAL IMAE(M)'!AG45) -> 6.316028252 | L40: =IF(OR('[1]REAL IMAE(M)'!AN45="n.d."),"",'[1]REAL IMAE(M)'!AN45) -> 7.975054795 | U40: -0.4550581816 | AH40: n.d. | AI40: n.d. | AJ40: n.d. | AK40: 0.2722886273 | AL40: 0.1613820983 | AM40: 0.0148032263 | AP40: 47.70047088 | AW40: 0.9839951075 | AX40: n.d. | AY40: n.d. | AZ40: n.d. | BA40: n.d. | BB40: n.d. | BC40: n.d. | BD40: =IF(ISERROR(STANDARDIZE($AW40,AVERAGE($AW:$AW),STDEV('Datos mensuales'!$AH:$AH))),"n.d.",STANDARDIZE($AW40,AVERAGE('Datos mensuales'!$AH:$AH),STDEV('Datos mensuales'!$AH:$AH))) -> 0.4652288896 | BE40: =IF(ISERROR(STANDARDIZE($AX40,AVERAGE($AX:$AX),STDEV('Datos mensuales'!$AH:$AH))),"n.d.",STANDARDIZE($AX40,AVERAGE('Datos mensuales'!$AH:$AH),STDEV('Datos mensuales'!$AH:$AH))) -> n.d. | BF40: =IF(ISERROR(STANDARDIZE($AY40,AVERAGE($AY:$AY),STDEV('Datos mensuales'!$AH:$AH))),"n.d.",STANDARDIZE($AY40,AVERAGE('Datos mensuales'!$AH:$AH),STDEV('Datos mensuales'!$AH:$AH))) -> n.d. | BG40: =IF(ISERROR(STANDARDIZE($AZ40,AVERAGE($AZ:$AZ),STDEV('Datos mensuales'!$AH:$AH))),"n.d.",STANDARDIZE($AZ40,AVERAGE('Datos mensuales'!$AH:$AH),STDEV('Datos mensuales'!$AH:$AH))) -> n.d. | BH40: =IF(ISERROR(STANDARDIZE($BA40,AVERAGE($BA:$BA),STDEV('Datos mensuales'!$AH:$AH))),"n.d.",STANDARDIZE($BA40,AVERAGE('Datos mensuales'!$AH:$AH),STDEV('Datos mensuales'!$AH:$AH))) -> n.d. | BI40: =IF(ISERROR(STANDARDIZE($BB40,AVERAGE($BB:$BB),STDEV('Datos mensuales'!$AH:$AH))),"n.d.",STANDARDIZE($BB40,AVERAGE('Datos mensuales'!$AH:$AH),STDEV('Datos mensuales'!$AH:$AH))) -> n.d. | BJ40: =IF(ISERROR(STANDARDIZE($BC40,AVERAGE($BC:$BC),STDEV('Datos mensuales'!$AH:$AH))),"n.d.",STANDARDIZE($BC40,AVERAGE('Datos mensuales'!$AH:$AH),STDEV('Datos mensuales'!$AH:$AH))) -> n.d. | BK40: -0.06034851757 | BL40: n.d. | BM40: n.d. | BN40: n.d. | BO40: n.d. | BP40: n.d. | BQ40: n.d. | BR40: -0.2518361171 | BS40: n.d. | BT40: n.d. | BU40: n.d. | BV40: n.d. | BW40: n.d. | BX40: n.d.
A41: 1993 | B41: Ene | C41: =IF(OR('[1]REAL IMAE(M)'!AG46="n.d."),"",'[1]REAL IMAE(M)'!AG46) -> 6.580257393 | L41: =IF(OR('[1]REAL IMAE(M)'!AN46="n.d."),"",'[1]REAL IMAE(M)'!AN46) -> 6.580257393 | U41: 0.2642291416 | AH41: n.d. | AI41: n.d. | AJ41: n.d. | AK41: 0.2952775557 | AL41: 0.1750112586 | AM41: 0.01362916031 | AP41: 47.94586295 | AW41: 1.109104546 | AX41: n.d. | AY41: n.d. | AZ41: n.d. | BA41: n.d. | BB41: n.d. | BC41: n.d. | BD41: =IF(ISERROR(STANDARDIZE($AW41,AVERAGE($AW:$AW),STDEV('Datos mensuales'!$AH:$AH))),"n.d.",STANDARDIZE($AW41,AVERAGE('Datos mensuales'!$AH:$AH),STDEV('Datos mensuales'!$AH:$AH))) -> 0.5245843102 | BE41: =IF(ISERROR(STANDARDIZE($AX41,AVERAGE($AX:$AX),STDEV('Datos mensuales'!$AH:$AH))),"n.d.",STANDARDIZE($AX41,AVERAGE('Datos mensuales'!$AH:$AH),STDEV('Datos mensuales'!$AH:$AH))) -> n.d. | BF41: =IF(ISERROR(STANDARDIZE($AY41,AVERAGE($AY:$AY),STDEV('Datos mensuales'!$AH:$AH))),"n.d.",STANDARDIZE($AY41,AVERAGE('Datos mensuales'!$AH:$AH),STDEV('Datos mensuales'!$AH:$AH))) -> n.d. | BG41: =IF(ISERROR(STANDARDIZE($AZ41,AVERAGE($AZ:$AZ),STDEV('Datos mensuales'!$AH:$AH))),"n.d.",STANDARDIZE($AZ41,AVERAGE('Datos mensuales'!$AH:$AH),STDEV('Datos mensuales'!$AH:$AH))) -> n.d. | BH41: =IF(ISERROR(STANDARDIZE($BA41,AVERAGE($BA:$BA),STDEV('Datos mensuales'!$AH:$AH))),"n.d.",STANDARDIZE($BA41,AVERAGE('Datos mensuales'!$AH:$AH),STDEV('Datos mensuales'!$AH:$AH))) -> n.d. | BI41: =IF(ISERROR(STANDARDIZE($BB41,AVERAGE($BB:$BB),STDEV('Datos mensuales'!$AH:$AH))),"n.d.",STANDARDIZE($BB41,AVERAGE('Datos mensuales'!$AH:$AH),STDEV('Datos mensuales'!$AH:$AH))) -> n.d. | BJ41: =IF(ISERROR(STANDARDIZE($BC41,AVERAGE($BC:$BC),STDEV('Datos mensuales'!$AH:$AH))),"n.d.",STANDARDIZE($BC41,AVERAGE('Datos mensuales'!$AH:$AH),STDEV('Datos mensuales'!$AH:$AH))) -> n.d. | BK41: 0.05935542065 | BL41: n.d. | BM41: n.d. | BN41: n.d. | BO41: n.d. | BP41: n.d. | BQ41: n.d. | BR41: -0.09809673918 | BS41: n.d. | BT41: n.d. | BU41: n.d. | BV41: n.d. | BW41: n.d. | BX41: n.d.
B42: Feb | C42: =IF(OR('[1]REAL IMAE(M)'!AG47="n.d."),"",'[1]REAL IMAE(M)'!AG47) -> 7.003348777 | L42: =IF(OR('[1]REAL IMAE(M)'!AN47="n.d."),"",'[1]REAL IMAE(M)'!AN47) -> 6.792252141 | U42: 0.4230913834 | AH42: n.d. | AI42: n.d. | AJ42: n.d. | AK42: 0.3035496164 | AL42: 0.1799154124 | AM42: 0.004904153809 | AP42: 48.18843728 | AW42: 1.312836824 | AX42: n.d. | AY42: n.d. | AZ42: n.d. | BA42: n.d. | BB42: n.d. | BC42: n.d. | BD42: =IF(ISERROR(STANDARDIZE($AW42,AVERAGE($AW:$AW),STDEV('Datos mensuales'!$AH:$AH))),"n.d.",STANDARDIZE($AW42,AVERAGE('Datos mensuales'!$AH:$AH),STDEV('Datos mensuales'!$AH:$AH))) -> 0.6212406076 | BE42: =IF(ISERROR(STANDARDIZE($AX42,AVERAGE($AX:$AX),STDEV('Datos mensuales'!$AH:$AH))),"n.d.",STANDARDIZE($AX42,AVERAGE('Datos mensuales'!$AH:$AH),STDEV('Datos mensuales'!$AH:$AH))) -> n.d. | BF42: =IF(ISERROR(STANDARDIZE($AY42,AVERAGE($AY:$AY),STDEV('Datos mensuales'!$AH:$AH))),"n.d.",STANDARDIZE($AY42,AVERAGE('Datos mensuales'!$AH:$AH),STDEV('Datos mensuales'!$AH:$AH))) -> n.d. | BG42: =IF(ISERROR(STANDARDIZE($AZ42,AVERAGE($AZ:$AZ),STDEV('Datos mensuales'!$AH:$AH))),"n.d.",STANDARDIZE($AZ42,AVERAGE('Datos mensuales'!$AH:$AH),STDEV('Datos mensuales'!$AH:$AH))) -> n.d. | BH42: =IF(ISERROR(STANDARDIZE($BA42,AVERAGE($BA:$BA),STDEV('Datos mensuales'!$AH:$AH))),"n.d.",STANDARDIZE($BA42,AVERAGE('Datos mensuales'!$AH:$AH),STDEV('Datos mensuales'!$AH:$AH))) -> n.d. | BI42: =IF(ISERROR(STANDARDIZE($BB42,AVERAGE($BB:$BB),STDEV('Datos mensuales'!$AH:$AH))),"n.d.",STANDARDIZE($BB42,AVERAGE('Datos mensuales'!$AH:$AH),STDEV('Datos mensuales'!$AH:$AH))) -> n.d. | BJ42: =IF(ISERROR(STANDARDIZE($BC42,AVERAGE($BC:$BC),STDEV('Datos mensuales'!$AH:$AH))),"n.d.",STANDARDIZE($BC42,AVERAGE('Datos mensuales'!$AH:$AH),STDEV('Datos mensuales'!$AH:$AH))) -> n.d. | BK42: 0.09665629741 | BL42: n.d. | BM42: n.d. | BN42: n.d. | BO42: n.d. | BP42: n.d. | BQ42: n.d. | BR42: 0.1675063824 | BS42: n.d. | BT42: n.d. | BU42: n.d. | BV42: n.d. | BW42: n.d. | BX42: n.d.
B43: Mar | C43: =IF(OR('[1]REAL IMAE(M)'!AG48="n.d."),"",'[1]REAL IMAE(M)'!AG48) -> 7.111839998 | L43: =IF(OR('[1]REAL IMAE(M)'!AN48="n.d."),"",'[1]REAL IMAE(M)'!AN48) -> 6.899311488 | U43: 0.108491222 | AH43: n.d. | AI43: n.d. | AJ43: n.d. | AK43: 0.2258910859 | AL43: 0.1338749645 | AM43: -0.04604044792 | AP43: 48.42805245 | AW43: 1.403733082 | AX43: n.d. | AY43: n.d. | AZ43: n.d. | BA43: n.d. | BB43: n.d. | BC43: n.d. | BD43: =IF(ISERROR(STANDARDIZE($AW43,AVERAGE($AW:$AW),STDEV('Datos mensuales'!$AH:$AH))),"n.d.",STANDARDIZE($AW43,AVERAGE('Datos mensuales'!$AH:$AH),STDEV('Datos mensuales'!$AH:$AH))) -> 0.6643643374 | BE43: =IF(ISERROR(STANDARDIZE($AX43,AVERAGE($AX:$AX),STDEV('Datos mensuales'!$AH:$AH))),"n.d.",STANDARDIZE($AX43,AVERAGE('Datos mensuales'!$AH:$AH),STDEV('Datos mensuales'!$AH:$AH))) -> n.d. | BF43: =IF(ISERROR(STANDARDIZE($AY43,AVERAGE($AY:$AY),STDEV('Datos mensuales'!$AH:$AH))),"n.d.",STANDARDIZE($AY43,AVERAGE('Datos mensuales'!$AH:$AH),STDEV('Datos mensuales'!$AH:$AH))) -> n.d. | BG43: =IF(ISERROR(STANDARDIZE($AZ43,AVERAGE($AZ:$AZ),STDEV('Datos mensuales'!$AH:$AH))),"n.d.",STANDARDIZE($AZ43,AVERAGE('Datos mensuales'!$AH:$AH),STDEV('Datos mensuales'!$AH:$AH))) -> n.d. | BH43: =IF(ISERROR(STANDARDIZE($BA43,AVERAGE($BA:$BA),STDEV('Datos mensuales'!$AH:$AH))),"n.d.",STANDARDIZE($BA43,AVERAGE('Datos mensuales'!$AH:$AH),STDEV('Datos mensuales'!$AH:$AH))) -> n.d. | BI43: =IF(ISERROR(STANDARDIZE($BB43,AVERAGE($BB:$BB),STDEV('Datos mensuales'!$AH:$AH))),"n.d.",STANDARDIZE($BB43,AVERAGE('Datos mensuales'!$AH:$AH),STDEV('Datos mensuales'!$AH:$AH))) -> n.d. | BJ43: =IF(ISERROR(STANDARDIZE($BC43,AVERAGE($BC:$BC),STDEV('Datos mensuales'!$AH:$AH))),"n.d.",STANDARDIZE($BC43,AVERAGE('Datos mensuales'!$AH:$AH),STDEV('Datos mensuales'!$AH:$AH))) -> n.d. | BK43: 0.0431237298 | BL43: n.d. | BM43: n.d. | BN43: n.d. | BO43: n.d. | BP43: n.d. | BQ43: n.d. | BR43: 0.2914603372 | BS43: n.d. | BT43: n.d. | BU43: n.d. | BV43: n.d. | BW43: n.d. | BX43: n.d.
B44: Abr | C44: =IF(OR('[1]REAL IMAE(M)'!AG49="n.d."),"",'[1]REAL IMAE(M)'!AG49) -> 6.995774255 | L44: =IF(OR('[1]REAL IMAE(M)'!AN49="n.d."),"",'[1]REAL IMAE(M)'!AN49) -> 6.92363155 | U44: -0.1160657431 | AH44: n.d. | AI44: n.d. | AJ44: n.d. | AK44: 0.04062694847 | AL44: 0.02403971753 | AM44: -0.1098352469 | AP44: 48.66456857 | AW44: 1.422427921 | AX44: n.d. | AY44: n.d. | AZ44: n.d. | BA44: n.d. | BB44: n.d. | BC44: n.d. | BD44: =IF(ISERROR(STANDARDIZE($AW44,AVERAGE($AW:$AW),STDEV('Datos mensuales'!$AH:$AH))),"n.d.",STANDARDIZE($AW44,AVERAGE('Datos mensuales'!$AH:$AH),STDEV('Datos mensuales'!$AH:$AH))) -> 0.6732336926 | BE44: =IF(ISERROR(STANDARDIZE($AX44,AVERAGE($AX:$AX),STDEV('Datos mensuales'!$AH:$AH))),"n.d.",STANDARDIZE($AX44,AVERAGE('Datos mensuales'!$AH:$AH),STDEV('Datos mensuales'!$AH:$AH))) -> n.d. | BF44: =IF(ISERROR(STANDARDIZE($AY44,AVERAGE($AY:$AY),STDEV('Datos mensuales'!$AH:$AH))),"n.d.",STANDARDIZE($AY44,AVERAGE('Datos mensuales'!$AH:$AH),STDEV('Datos mensuales'!$AH:$AH))) -> n.d. | BG44: =IF(ISERROR(STANDARDIZE($AZ44,AVERAGE($AZ:$AZ),STDEV('Datos mensuales'!$AH:$AH))),"n.d.",STANDARDIZE($AZ44,AVERAGE('Datos mensuales'!$AH:$AH),STDEV('Datos mensuales'!$AH:$AH))) -> n.d. | BH44: =IF(ISERROR(STANDARDIZE($BA44,AVERAGE($BA:$BA),STDEV('Datos mensuales'!$AH:$AH))),"n.d.",STANDARDIZE($BA44,AVERAGE('Datos mensuales'!$AH:$AH),STDEV('Datos mensuales'!$AH:$AH))) -> n.d. | BI44: =IF(ISERROR(STANDARDIZE($BB44,AVERAGE($BB:$BB),STDEV('Datos mensuales'!$AH:$AH))),"n.d.",STANDARDIZE($BB44,AVERAGE('Datos mensuales'!$AH:$AH),STDEV('Datos mensuales'!$AH:$AH))) -> n.d. | BJ44: =IF(ISERROR(STANDARDIZE($BC44,AVERAGE($BC:$BC),STDEV('Datos mensuales'!$AH:$AH))),"n.d.",STANDARDIZE($BC44,AVERAGE('Datos mensuales'!$AH:$AH),STDEV('Datos mensuales'!$AH:$AH))) -> n.d. | BK44: 0.008869355159 | BL44: n.d. | BM44: n.d. | BN44: n.d. | BO44: n.d. | BP44: n.d. | BQ44: n.d. | BR44: 0.2809021571 | BS44: n.d. | BT44: n.d. | BU44: n.d. | BV44: n.d. | BW44: n.d. | BX44: n.d.
B45: May | C45: =IF(OR('[1]REAL IMAE(M)'!AG50="n.d."),"",'[1]REAL IMAE(M)'!AG50) -> 6.738127583 | L45: =IF(OR('[1]REAL IMAE(M)'!AN50="n.d."),"",'[1]REAL IMAE(M)'!AN50) -> 6.886068873 | U45: -0.2576466722 | AH45: n.d. | AI45: n.d. | AJ45: n.d. | AK45: -0.2062250233 | AL45: -0.1223083434 | AM45: -0.1463480609 | AP45: 48.89785629 | AW45: 1.414637872 | AX45: n.d. | AY45: n.d. | AZ45: n.d. | BA45: n.d. | BB45: n.d. | BC45: n.d. | BD45: =IF(ISERROR(STANDARDIZE($AW45,AVERAGE($AW:$AW),STDEV('Datos mensuales'!$AH:$AH))),"n.d.",STANDARDIZE($AW45,AVERAGE('Datos mensuales'!$AH:$AH),STDEV('Datos mensuales'!$AH:$AH))) -> 0.6695378751 | BE45: =IF(ISERROR(STANDARDIZE($AX45,AVERAGE($AX:$AX),STDEV('Datos mensuales'!$AH:$AH))),"n.d.",STANDARDIZE($AX45,AVERAGE('Datos mensuales'!$AH:$AH),STDEV('Datos mensuales'!$AH:$AH))) -> n.d. | BF45: =IF(ISERROR(STANDARDIZE($AY45,AVERAGE($AY:$AY),STDEV('Datos mensuales'!$AH:$AH))),"n.d.",STANDARDIZE($AY45,AVERAGE('Datos mensuales'!$AH:$AH),STDEV('Datos mensuales'!$AH:$AH))) -> n.d. | BG45: =IF(ISERROR(STANDARDIZE($AZ45,AVERAGE($AZ:$AZ),STDEV('Datos mensuales'!$AH:$AH))),"n.d.",STANDARDIZE($AZ45,AVERAGE('Datos mensuales'!$AH:$AH),STDEV('Datos mensuales'!$AH:$AH))) -> n.d. | BH45: =IF(ISERROR(STANDARDIZE($BA45,AVERAGE($BA:$BA),STDEV('Datos mensuales'!$AH:$AH))),"n.d.",STANDARDIZE($BA45,AVERAGE('Datos mensuales'!$AH:$AH),STDEV('Datos mensuales'!$AH:$AH))) -> n.d. | BI45: =IF(ISERROR(STANDARDIZE($BB45,AVERAGE($BB:$BB),STDEV('Datos mensuales'!$AH:$AH))),"n.d.",STANDARDIZE($BB45,AVERAGE('Datos mensuales'!$AH:$AH),STDEV('Datos mensuales'!$AH:$AH))) -> n.d. | BJ45: =IF(ISERROR(STANDARDIZE($BC45,AVERAGE($BC:$BC),STDEV('Datos mensuales'!$AH:$AH))),"n.d.",STANDARDIZE($BC45,AVERAGE('Datos mensuales'!$AH:$AH),STDEV('Datos mensuales'!$AH:$AH))) -> n.d. | BK45: -0.003695817517 | BL45: n.d. | BM45: n.d. | BN45: n.d. | BO45: n.d. | BP45: n.d. | BQ45: n.d. | BR45: 0.1900127346 | BS45: n.d. | BT45: n.d. | BU45: n.d. | BV45: n.d. | BW45: n.d. | BX45: n.d.
B46: Jun | C46: =IF(OR('[1]REAL IMAE(M)'!AG51="n.d."),"",'[1]REAL IMAE(M)'!AG51) -> 6.349941417 | L46: =IF(OR('[1]REAL IMAE(M)'!AN51="n.d."),"",'[1]REAL IMAE(M)'!AN51) -> 6.795192738 | U46: -0.3881861657 | AH46: n.d. | AI46: n.d. | AJ46: n.d. | AK46: -0.3734467382 | AL46: -0.2214470035 | AM46: -0.09913866012 | AP46: 49.12780261 | AW46: 1.398218145 | AX46: n.d. | AY46: n.d. | AZ46: n.d. | BA46: n.d. | BB46: n.d. | BC46: n.d. | BD46: =IF(ISERROR(STANDARDIZE($AW46,AVERAGE($AW:$AW),STDEV('Datos mensuales'!$AH:$AH))),"n.d.",STANDARDIZE($AW46,AVERAGE('Datos mensuales'!$AH:$AH),STDEV('Datos mensuales'!$AH:$AH))) -> 0.6617478968 | BE46: =IF(ISERROR(STANDARDIZE($AX46,AVERAGE($AX:$AX),STDEV('Datos mensuales'!$AH:$AH))),"n.d.",STANDARDIZE($AX46,AVERAGE('Datos mensuales'!$AH:$AH),STDEV('Datos mensuales'!$AH:$AH))) -> n.d. | BF46: =IF(ISERROR(STANDARDIZE($AY46,AVERAGE($AY:$AY),STDEV('Datos mensuales'!$AH:$AH))),"n.d.",STANDARDIZE($AY46,AVERAGE('Datos mensuales'!$AH:$AH),STDEV('Datos mensuales'!$AH:$AH))) -> n.d. | BG46: =IF(ISERROR(STANDARDIZE($AZ46,AVERAGE($AZ:$AZ),STDEV('Datos mensuales'!$AH:$AH))),"n.d.",STANDARDIZE($AZ46,AVERAGE('Datos mensuales'!$AH:$AH),STDEV('Datos mensuales'!$AH:$AH))) -> n.d. | BH46: =IF(ISERROR(STANDARDIZE($BA46,AVERAGE($BA:$BA),STDEV('Datos mensuales'!$AH:$AH))),"n.d.",STANDARDIZE($BA46,AVERAGE('Datos mensuales'!$AH:$AH),STDEV('Datos mensuales'!$AH:$AH))) -> n.d. | BI46: =IF(ISERROR(STANDARDIZE($BB46,AVERAGE($BB:$BB),STDEV('Datos mensuales'!$AH:$AH))),"n.d.",STANDARDIZE($BB46,AVERAGE('Datos mensuales'!$AH:$AH),STDEV('Datos mensuales'!$AH:$AH))) -> n.d. | BJ46: =IF(ISERROR(STANDARDIZE($BC46,AVERAGE($BC:$BC),STDEV('Datos mensuales'!$AH:$AH))),"n.d.",STANDARDIZE($BC46,AVERAGE('Datos mensuales'!$AH:$AH),STDEV('Datos mensuales'!$AH:$AH))) -> n.d. | BK46: -0.007789978285 | BL46: n.d. | BM46: n.d. | BN46: n.d. | BO46: n.d. | BP46: n.d. | BQ46: n.d. | BR46: 0.05115769379 | BS46: n.d. | BT46: n.d. | BU46: n.d. | BV46: n.d. | BW46: n.d. | BX46: n.d.
B47: Jul | C47: =IF(OR('[1]REAL IMAE(M)'!AG52="n.d."),"",'[1]REAL IMAE(M)'!AG52) -> 6.024432028 | L47: =IF(OR('[1]REAL IMAE(M)'!AN52="n.d."),"",'[1]REAL IMAE(M)'!AN52) -> 6.682728429 | U47: -0.3255093891 | AH47: n.d. | AI47: n.d. | AJ47: n.d. | AK47: -0.4906430854 | AL47: -0.2909277455 | AM47: -0.069480742 | AP47: 49.35430856 | AW47: 1.418159083 | AX47: n.d. | AY47: n.d. | AZ47: n.d. | BA47: n.d. | BB47: n.d. | BC47: n.d. | BD47: =IF(ISERROR(STANDARDIZE($AW47,AVERAGE($AW:$AW),STDEV('Datos mensuales'!$AH:$AH))),"n.d.",STANDARDIZE($AW47,AVERAGE('Datos mensuales'!$AH:$AH),STDEV('Datos mensuales'!$AH:$AH))) -> 0.6712084362 | BE47: =IF(ISERROR(STANDARDIZE($AX47,AVERAGE($AX:$AX),STDEV('Datos mensuales'!$AH:$AH))),"n.d.",STANDARDIZE($AX47,AVERAGE('Datos mensuales'!$AH:$AH),STDEV('Datos mensuales'!$AH:$AH))) -> n.d. | BF47: =IF(ISERROR(STANDARDIZE($AY47,AVERAGE($AY:$AY),STDEV('Datos mensuales'!$AH:$AH))),"n.d.",STANDARDIZE($AY47,AVERAGE('Datos mensuales'!$AH:$AH),STDEV('Datos mensuales'!$AH:$AH))) -> n.d. | BG47: =IF(ISERROR(STANDARDIZE($AZ47,AVERAGE($AZ:$AZ),STDEV('Datos mensuales'!$AH:$AH))),"n.d.",STANDARDIZE($AZ47,AVERAGE('Datos mensuales'!$AH:$AH),STDEV('Datos mensuales'!$AH:$AH))) -> n.d. | BH47: =IF(ISERROR(STANDARDIZE($BA47,AVERAGE($BA:$BA),STDEV('Datos mensuales'!$AH:$AH))),"n.d.",STANDARDIZE($BA47,AVERAGE('Datos mensuales'!$AH:$AH),STDEV('Datos mensuales'!$AH:$AH))) -> n.d. | BI47: =IF(ISERROR(STANDARDIZE($BB47,AVERAGE($BB:$BB),STDEV('Datos mensuales'!$AH:$AH))),"n.d.",STANDARDIZE($BB47,AVERAGE('Datos mensuales'!$AH:$AH),STDEV('Datos mensuales'!$AH:$AH))) -> n.d. | BJ47: =IF(ISERROR(STANDARDIZE($BC47,AVERAGE($BC:$BC),STDEV('Datos mensuales'!$AH:$AH))),"n.d.",STANDARDIZE($BC47,AVERAGE('Datos mensuales'!$AH:$AH),STDEV('Datos mensuales'!$AH:$AH))) -> n.d. | BK47: 0.009460539384 | BL47: n.d. | BM47: n.d. | BN47: n.d. | BO47: n.d. | BP47: n.d. | BQ47: n.d. | BR47: -0.03815765621 | BS47: n.d. | BT47: n.d. | BU47: n.d. | BV47: n.d. | BW47: n.d. | BX47: n.d.
B48: Ago | C48: =IF(OR('[1]REAL IMAE(M)'!AG53="n.d."),"",'[1]REAL IMAE(M)'!AG53) -> 5.777708949 | L48: =IF(OR('[1]REAL IMAE(M)'!AN53="n.d."),"",'[1]REAL IMAE(M)'!AN53) -> 6.566876969 | U48: -0.2467230796 | AH48: n.d. | AI48: n.d. | AJ48: n.d. | AK48: -0.5914416778 | AL48: -0.3506869544 | AM48: -0.05975920887 | AP48: 49.57727811 | AW48: 1.377465158 | AX48: n.d. | AY48: n.d. | AZ48: n.d. | BA48: n.d. | BB48: n.d. | BC48: n.d. | BD48: =IF(ISERROR(STANDARDIZE($AW48,AVERAGE($AW:$AW),STDEV('Datos mensuales'!$AH:$AH))),"n.d.",STANDARDIZE($AW48,AVERAGE('Datos mensuales'!$AH:$AH),STDEV('Datos mensuales'!$AH:$AH))) -> 0.6519020991 | BE48: =IF(ISERROR(STANDARDIZE($AX48,AVERAGE($AX:$AX),STDEV('Datos mensuales'!$AH:$AH))),"n.d.",STANDARDIZE($AX48,AVERAGE('Datos mensuales'!$AH:$AH),STDEV('Datos mensuales'!$AH:$AH))) -> n.d. | BF48: =IF(ISERROR(STANDARDIZE($AY48,AVERAGE($AY:$AY),STDEV('Datos mensuales'!$AH:$AH))),"n.d.",STANDARDIZE($AY48,AVERAGE('Datos mensuales'!$AH:$AH),STDEV('Datos mensuales'!$AH:$AH))) -> n.d. | BG48: =IF(ISERROR(STANDARDIZE($AZ48,AVERAGE($AZ:$AZ),STDEV('Datos mensuales'!$AH:$AH))),"n.d.",STANDARDIZE($AZ48,AVERAGE('Datos mensuales'!$AH:$AH),STDEV('Datos mensuales'!$AH:$AH))) -> n.d. | BH48: =IF(ISERROR(STANDARDIZE($BA48,AVERAGE($BA:$BA),STDEV('Datos mensuales'!$AH:$AH))),"n.d.",STANDARDIZE($BA48,AVERAGE('Datos mensuales'!$AH:$AH),STDEV('Datos mensuales'!$AH:$AH))) -> n.d. | BI48: =IF(ISERROR(STANDARDIZE($BB48,AVERAGE($BB:$BB),STDEV('Datos mensuales'!$AH:$AH))),"n.d.",STANDARDIZE($BB48,AVERAGE('Datos mensuales'!$AH:$AH),STDEV('Datos mensuales'!$AH:$AH))) -> n.d. | BJ48: =IF(ISERROR(STANDARDIZE($BC48,AVERAGE($BC:$BC),STDEV('Datos mensuales'!$AH:$AH))),"n.d.",STANDARDIZE($BC48,AVERAGE('Datos mensuales'!$AH:$AH),STDEV('Datos mensuales'!$AH:$AH))) -> n.d. | BK48: -0.01930633707 | BL48: n.d. | BM48: n.d. | BN48: n.d. | BO48: n.d. | BP48: n.d. | BQ48: n.d. | BR48: -0.09302269867 | BS48: n.d. | BT48: n.d. | BU48: n.d. | BV48: n.d. | BW48: n.d. | BX48: n.d.
B49: Sep | C49: =IF(OR('[1]REAL IMAE(M)'!AG54="n.d."),"",'[1]REAL IMAE(M)'!AG54) -> 5.652983642 | L49: =IF(OR('[1]REAL IMAE(M)'!AN54="n.d."),"",'[1]REAL IMAE(M)'!AN54) -> 6.462791928 | U49: -0.1247253066 | AH49: n.d. | AI49: n.d. | AJ49: n.d. | AK49: -0.5574164638 | AL49: -0.3305148486 | AM49: 0.02017210576 | AP49: 49.79660869 | AW49: 1.285419424 | AX49: n.d. | AY49: n.d. | AZ49: n.d. | BA49: n.d. | BB49: n.d. | BC49: n.d. | BD49: =IF(ISERROR(STANDARDIZE($AW49,AVERAGE($AW:$AW),STDEV('Datos mensuales'!$AH:$AH))),"n.d.",STANDARDIZE($AW49,AVERAGE('Datos mensuales'!$AH:$AH),STDEV('Datos mensuales'!$AH:$AH))) -> 0.6082330253 | BE49: =IF(ISERROR(STANDARDIZE($AX49,AVERAGE($AX:$AX),STDEV('Datos mensuales'!$AH:$AH))),"n.d.",STANDARDIZE($AX49,AVERAGE('Datos mensuales'!$AH:$AH),STDEV('Datos mensuales'!$AH:$AH))) -> n.d. | BF49: =IF(ISERROR(STANDARDIZE($AY49,AVERAGE($AY:$AY),STDEV('Datos mensuales'!$AH:$AH))),"n.d.",STANDARDIZE($AY49,AVERAGE('Datos mensuales'!$AH:$AH),STDEV('Datos mensuales'!$AH:$AH))) -> n.d. | BG49: =IF(ISERROR(STANDARDIZE($AZ49,AVERAGE($AZ:$AZ),STDEV('Datos mensuales'!$AH:$AH))),"n.d.",STANDARDIZE($AZ49,AVERAGE('Datos mensuales'!$AH:$AH),STDEV('Datos mensuales'!$AH:$AH))) -> n.d. | BH49: =IF(ISERROR(STANDARDIZE($BA49,AVERAGE($BA:$BA),STDEV('Datos mensuales'!$AH:$AH))),"n.d.",STANDARDIZE($BA49,AVERAGE('Datos mensuales'!$AH:$AH),STDEV('Datos mensuales'!$AH:$AH))) -> n.d. | BI49: =IF(ISERROR(STANDARDIZE($BB49,AVERAGE($BB:$BB),STDEV('Datos mensuales'!$AH:$AH))),"n.d.",STANDARDIZE($BB49,AVERAGE('Datos mensuales'!$AH:$AH),STDEV('Datos mensuales'!$AH:$AH))) -> n.d. | BJ49: =IF(ISERROR(STANDARDIZE($BC49,AVERAGE($BC:$BC),STDEV('Datos mensuales'!$AH:$AH))),"n.d.",STANDARDIZE($BC49,AVERAGE('Datos mensuales'!$AH:$AH),STDEV('Datos mensuales'!$AH:$AH))) -> n.d. | BK49: -0.04366907384 | BL49: n.d. | BM49: n.d. | BN49: n.d. | BO49: n.d. | BP49: n.d. | BQ49: n.d. | BR49: -0.1125364757 | BS49: n.d. | BT49: n.d. | BU49: n.d. | BV49: n.d. | BW49: n.d. | BX49: n.d.
B50: Oct | C50: =IF(OR('[1]REAL IMAE(M)'!AG55="n.d."),"",'[1]REAL IMAE(M)'!AG55) -> 5.767503394 | L50: =IF(OR('[1]REAL IMAE(M)'!AN55="n.d."),"",'[1]REAL IMAE(M)'!AN55) -> 6.391505341 | U50: 0.1145197523 | AH50: n.d. | AI50: n.d. | AJ50: n.d. | AK50: -0.4179343267 | AL50: -0.2478218073 | AM50: 0.08269304131 | AP50: 50.01218886 | AW50: 1.277556589 | AX50: n.d. | AY50: n.d. | AZ50: n.d. | BA50: n.d. | BB50: n.d. | BC50: n.d. | BD50: =IF(ISERROR(STANDARDIZE($AW50,AVERAGE($AW:$AW),STDEV('Datos mensuales'!$AH:$AH))),"n.d.",STANDARDIZE($AW50,AVERAGE('Datos mensuales'!$AH:$AH),STDEV('Datos mensuales'!$AH:$AH))) -> 0.6045026764 | BE50: =IF(ISERROR(STANDARDIZE($AX50,AVERAGE($AX:$AX),STDEV('Datos mensuales'!$AH:$AH))),"n.d.",STANDARDIZE($AX50,AVERAGE('Datos mensuales'!$AH:$AH),STDEV('Datos mensuales'!$AH:$AH))) -> n.d. | BF50: =IF(ISERROR(STANDARDIZE($AY50,AVERAGE($AY:$AY),STDEV('Datos mensuales'!$AH:$AH))),"n.d.",STANDARDIZE($AY50,AVERAGE('Datos mensuales'!$AH:$AH),STDEV('Datos mensuales'!$AH:$AH))) -> n.d. | BG50: =IF(ISERROR(STANDARDIZE($AZ50,AVERAGE($AZ:$AZ),STDEV('Datos mensuales'!$AH:$AH))),"n.d.",STANDARDIZE($AZ50,AVERAGE('Datos mensuales'!$AH:$AH),STDEV('Datos mensuales'!$AH:$AH))) -> n.d. | BH50: =IF(ISERROR(STANDARDIZE($BA50,AVERAGE($BA:$BA),STDEV('Datos mensuales'!$AH:$AH))),"n.d.",STANDARDIZE($BA50,AVERAGE('Datos mensuales'!$AH:$AH),STDEV('Datos mensuales'!$AH:$AH))) -> n.d. | BI50: =IF(ISERROR(STANDARDIZE($BB50,AVERAGE($BB:$BB),STDEV('Datos mensuales'!$AH:$AH))),"n.d.",STANDARDIZE($BB50,AVERAGE('Datos mensuales'!$AH:$AH),STDEV('Datos mensuales'!$AH:$AH))) -> n.d. | BJ50: =IF(ISERROR(STANDARDIZE($BC50,AVERAGE($BC:$BC),STDEV('Datos mensuales'!$AH:$AH))),"n.d.",STANDARDIZE($BC50,AVERAGE('Datos mensuales'!$AH:$AH),STDEV('Datos mensuales'!$AH:$AH))) -> n.d. | BK50: -0.003730348913 | BL50: n.d. | BM50: n.d. | BN50: n.d. | BO50: n.d. | BP50: n.d. | BQ50: n.d. | BR50: -0.02994855582 | BS50: n.d. | BT50: n.d. | BU50: n.d. | BV50: n.d. | BW50: n.d. | BX50: n.d.
B51: Nov | C51: =IF(OR('[1]REAL IMAE(M)'!AG56="n.d."),"",'[1]REAL IMAE(M)'!AG56) -> 6.10806544 | L51: =IF(OR('[1]REAL IMAE(M)'!AN56="n.d."),"",'[1]REAL IMAE(M)'!AN56) -> 6.365104611 | U51: 0.3405620461 | AH51: n.d. | AI51: n.d. | AJ51: n.d. | AK51: -0.2749114032 | AL51: -0.1630295839 | AM51: 0.08479222336 | AP51: 50.22389912 | AW51: 1.331969903 | AX51: n.d. | AY51: n.d. | AZ51: n.d. | BA51: n.d. | BB51: n.d. | BC51: n.d. | BD51: =IF(ISERROR(STANDARDIZE($AW51,AVERAGE($AW:$AW),STDEV('Datos mensuales'!$AH:$AH))),"n.d.",STANDARDIZE($AW51,AVERAGE('Datos mensuales'!$AH:$AH),STDEV('Datos mensuales'!$AH:$AH))) -> 0.630317876 | BE51: =IF(ISERROR(STANDARDIZE($AX51,AVERAGE($AX:$AX),STDEV('Datos mensuales'!$AH:$AH))),"n.d.",STANDARDIZE($AX51,AVERAGE('Datos mensuales'!$AH:$AH),STDEV('Datos mensuales'!$AH:$AH))) -> n.d. | BF51: =IF(ISERROR(STANDARDIZE($AY51,AVERAGE($AY:$AY),STDEV('Datos mensuales'!$AH:$AH))),"n.d.",STANDARDIZE($AY51,AVERAGE('Datos mensuales'!$AH:$AH),STDEV('Datos mensuales'!$AH:$AH))) -> n.d. | BG51: =IF(ISERROR(STANDARDIZE($AZ51,AVERAGE($AZ:$AZ),STDEV('Datos mensuales'!$AH:$AH))),"n.d.",STANDARDIZE($AZ51,AVERAGE('Datos mensuales'!$AH:$AH),STDEV('Datos mensuales'!$AH:$AH))) -> n.d. | BH51: =IF(ISERROR(STANDARDIZE($BA51,AVERAGE($BA:$BA),STDEV('Datos mensuales'!$AH:$AH))),"n.d.",STANDARDIZE($BA51,AVERAGE('Datos mensuales'!$AH:$AH),STDEV('Datos mensuales'!$AH:$AH))) -> n.d. | BI51: =IF(ISERROR(STANDARDIZE($BB51,AVERAGE($BB:$BB),STDEV('Datos mensuales'!$AH:$AH))),"n.d.",STANDARDIZE($BB51,AVERAGE('Datos mensuales'!$AH:$AH),STDEV('Datos mensuales'!$AH:$AH))) -> n.d. | BJ51: =IF(ISERROR(STANDARDIZE($BC51,AVERAGE($BC:$BC),STDEV('Datos mensuales'!$AH:$AH))),"n.d.",STANDARDIZE($BC51,AVERAGE('Datos mensuales'!$AH:$AH),STDEV('Datos mensuales'!$AH:$AH))) -> n.d. | BK51: 0.02581519964 | BL51: n.d. | BM51: n.d. | BN51: n.d. | BO51: n.d. | BP51: n.d. | BQ51: n.d. | BR51: 0.1992864751 | BS51: n.d. | BT51: n.d. | BU51: n.d. | BV51: n.d. | BW51: n.d. | BX51: n.d.
B52: Dic | C52: =IF(OR('[1]REAL IMAE(M)'!AG57="n.d."),"",'[1]REAL IMAE(M)'!AG57) -> 6.235058273 | L52: =IF(OR('[1]REAL IMAE(M)'!AN57="n.d."),"",'[1]REAL IMAE(M)'!AN57) -> 6.353993435 | U52: 0.1269928323 | AH52: n.d. | AI52: n.d. | AJ52: n.d. | AK52: -0.2027830581 | AL52: -0.1202677483 | AM52: 0.04276183568 | AP52: 50.43160937 | AW52: 1.336738322 | AX52: n.d. | AY52: n.d. | AZ52: n.d. | BA52: n.d. | BB52: n.d. | BC52: n.d. | BD52: =IF(ISERROR(STANDARDIZE($AW52,AVERAGE($AW:$AW),STDEV('Datos mensuales'!$AH:$AH))),"n.d.",STANDARDIZE($AW52,AVERAGE('Datos mensuales'!$AH:$AH),STDEV('Datos mensuales'!$AH:$AH))) -> 0.6325801476 | BE52: =IF(ISERROR(STANDARDIZE($AX52,AVERAGE($AX:$AX),STDEV('Datos mensuales'!$AH:$AH))),"n.d.",STANDARDIZE($AX52,AVERAGE('Datos mensuales'!$AH:$AH),STDEV('Datos mensuales'!$AH:$AH))) -> n.d. | BF52: =IF(ISERROR(STANDARDIZE($AY52,AVERAGE($AY:$AY),STDEV('Datos mensuales'!$AH:$AH))),"n.d.",STANDARDIZE($AY52,AVERAGE('Datos mensuales'!$AH:$AH),STDEV('Datos mensuales'!$AH:$AH))) -> n.d. | BG52: =IF(ISERROR(STANDARDIZE($AZ52,AVERAGE($AZ:$AZ),STDEV('Datos mensuales'!$AH:$AH))),"n.d.",STANDARDIZE($AZ52,AVERAGE('Datos mensuales'!$AH:$AH),STDEV('Datos mensuales'!$AH:$AH))) -> n.d. | BH52: =IF(ISERROR(STANDARDIZE($BA52,AVERAGE($BA:$BA),STDEV('Datos mensuales'!$AH:$AH))),"n.d.",STANDARDIZE($BA52,AVERAGE('Datos mensuales'!$AH:$AH),STDEV('Datos mensuales'!$AH:$AH))) -> n.d. | BI52: =IF(ISERROR(STANDARDIZE($BB52,AVERAGE($BB:$BB),STDEV('Datos mensuales'!$AH:$AH))),"n.d.",STANDARDIZE($BB52,AVERAGE('Datos mensuales'!$AH:$AH),STDEV('Datos mensuales'!$AH:$AH))) -> n.d. | BJ52: =IF(ISERROR(STANDARDIZE($BC52,AVERAGE($BC:$BC),STDEV('Datos mensuales'!$AH:$AH))),"n.d.",STANDARDIZE($BC52,AVERAGE('Datos mensuales'!$AH:$AH),STDEV('Datos mensuales'!$AH:$AH))) -> n.d. | BK52: 0.002262271569 | BL52: n.d. | BM52: n.d. | BN52: n.d. | BO52: n.d. | BP52: n.d. | BQ52: n.d. | BR52: 0.3597181124 | BS52: n.d. | BT52: n.d. | BU52: n.d. | BV52: n.d. | BW52: n.d. | BX52: n.d.
A53: 1994 | B53: Ene | C53: =IF(OR('[1]REAL IMAE(M)'!AG58="n.d."),"",'[1]REAL IMAE(M)'!AG58) -> 5.813278427 | L53: =IF(OR('[1]REAL IMAE(M)'!AN58="n.d."),"",'[1]REAL IMAE(M)'!AN58) -> 5.813278427 | U53: -0.4217798463 | AH53: n.d. | AI53: n.d. | AJ53: n.d. | AK53: -0.2334068689 | AL53: -0.1384233065 | AM53: -0.0181555582 | AP53: 50.63517398 | AW53: 1.277918532 | AX53: n.d. | AY53: n.d. | AZ53: n.d. | BA53: n.d. | BB53: n.d. | BC53: n.d. | BD53: =IF(ISERROR(STANDARDIZE($AW53,AVERAGE($AW:$AW),STDEV('Datos mensuales'!$AH:$AH))),"n.d.",STANDARDIZE($AW53,AVERAGE('Datos mensuales'!$AH:$AH),STDEV('Datos mensuales'!$AH:$AH))) -> 0.6046743923 | BE53: =IF(ISERROR(STANDARDIZE($AX53,AVERAGE($AX:$AX),STDEV('Datos mensuales'!$AH:$AH))),"n.d.",STANDARDIZE($AX53,AVERAGE('Datos mensuales'!$AH:$AH),STDEV('Datos mensuales'!$AH:$AH))) -> n.d. | BF53: =IF(ISERROR(STANDARDIZE($AY53,AVERAGE($AY:$AY),STDEV('Datos mensuales'!$AH:$AH))),"n.d.",STANDARDIZE($AY53,AVERAGE('Datos mensuales'!$AH:$AH),STDEV('Datos mensuales'!$AH:$AH))) -> n.d. | BG53: =IF(ISERROR(STANDARDIZE($AZ53,AVERAGE($AZ:$AZ),STDEV('Datos mensuales'!$AH:$AH))),"n.d.",STANDARDIZE($AZ53,AVERAGE('Datos mensuales'!$AH:$AH),STDEV('Datos mensuales'!$AH:$AH))) -> n.d. | BH53: =IF(ISERROR(STANDARDIZE($BA53,AVERAGE($BA:$BA),STDEV('Datos mensuales'!$AH:$AH))),"n.d.",STANDARDIZE($BA53,AVERAGE('Datos mensuales'!$AH:$AH),STDEV('Datos mensuales'!$AH:$AH))) -> n.d. | BI53: =IF(ISERROR(STANDARDIZE($BB53,AVERAGE($BB:$BB),STDEV('Datos mensuales'!$AH:$AH))),"n.d.",STANDARDIZE($BB53,AVERAGE('Datos mensuales'!$AH:$AH),STDEV('Datos mensuales'!$AH:$AH))) -> n.d. | BJ53: =IF(ISERROR(STANDARDIZE($BC53,AVERAGE($BC:$BC),STDEV('Datos mensuales'!$AH:$AH))),"n.d.",STANDARDIZE($BC53,AVERAGE('Datos mensuales'!$AH:$AH),STDEV('Datos mensuales'!$AH:$AH))) -> n.d. | BK53: -0.02790575528 | BL53: n.d. | BM53: n.d. | BN53: n.d. | BO53: n.d. | BP53: n.d. | BQ53: n.d. | BR53: 0.1526734225 | BS53: n.d. | BT53: n.d. | BU53: n.d. | BV53: n.d. | BW53: n.d. | BX53: n.d.
B54: Feb | C54: =IF(OR('[1]REAL IMAE(M)'!AG59="n.d."),"",'[1]REAL IMAE(M)'!AG59) -> 5.46015792 | L54: =IF(OR('[1]REAL IMAE(M)'!AN59="n.d."),"",'[1]REAL IMAE(M)'!AN59) -> 5.635993634 | U54: -0.3531205069 | AH54: n.d. | AI54: n.d. | AJ54: n.d. | AK54: -0.2049368842 | AL54: -0.1215446604 | AM54: 0.01687864605 | AP54: 50.83442984 | AW54: 1.338752362 | AX54: n.d. | AY54: n.d. | AZ54: n.d. | BA54: n.d. | BB54: n.d. | BC54: n.d. | BD54: =IF(ISERROR(STANDARDIZE($AW54,AVERAGE($AW:$AW),STDEV('Datos mensuales'!$AH:$AH))),"n.d.",STANDARDIZE($AW54,AVERAGE('Datos mensuales'!$AH:$AH),STDEV('Datos mensuales'!$AH:$AH))) -> 0.6335356644 | BE54: =IF(ISERROR(STANDARDIZE($AX54,AVERAGE($AX:$AX),STDEV('Datos mensuales'!$AH:$AH))),"n.d.",STANDARDIZE($AX54,AVERAGE('Datos mensuales'!$AH:$AH),STDEV('Datos mensuales'!$AH:$AH))) -> n.d. | BF54: =IF(ISERROR(STANDARDIZE($AY54,AVERAGE($AY:$AY),STDEV('Datos mensuales'!$AH:$AH))),"n.d.",STANDARDIZE($AY54,AVERAGE('Datos mensuales'!$AH:$AH),STDEV('Datos mensuales'!$AH:$AH))) -> n.d. | BG54: =IF(ISERROR(STANDARDIZE($AZ54,AVERAGE($AZ:$AZ),STDEV('Datos mensuales'!$AH:$AH))),"n.d.",STANDARDIZE($AZ54,AVERAGE('Datos mensuales'!$AH:$AH),STDEV('Datos mensuales'!$AH:$AH))) -> n.d. | BH54: =IF(ISERROR(STANDARDIZE($BA54,AVERAGE($BA:$BA),STDEV('Datos mensuales'!$AH:$AH))),"n.d.",STANDARDIZE($BA54,AVERAGE('Datos mensuales'!$AH:$AH),STDEV('Datos mensuales'!$AH:$AH))) -> n.d. | BI54: =IF(ISERROR(STANDARDIZE($BB54,AVERAGE($BB:$BB),STDEV('Datos mensuales'!$AH:$AH))),"n.d.",STANDARDIZE($BB54,AVERAGE('Datos mensuales'!$AH:$AH),STDEV('Datos mensuales'!$AH:$AH))) -> n.d. | BJ54: =IF(ISERROR(STANDARDIZE($BC54,AVERAGE($BC:$BC),STDEV('Datos mensuales'!$AH:$AH))),"n.d.",STANDARDIZE($BC54,AVERAGE('Datos mensuales'!$AH:$AH),STDEV('Datos mensuales'!$AH:$AH))) -> n.d. | BK54: 0.02886127213 | BL54: n.d. | BM54: n.d. | BN54: n.d. | BO54: n.d. | BP54: n.d. | BQ54: n.d. | BR54: 0.01979113504 | BS54: n.d. | BT54: n.d. | BU54: n.d. | BV54: n.d. | BW54: n.d. | BX54: n.d.
B55: Mar | C55: =IF(OR('[1]REAL IMAE(M)'!AG60="n.d."),"",'[1]REAL IMAE(M)'!AG60) -> 5.472693021 | L55: =IF(OR('[1]REAL IMAE(M)'!AN60="n.d."),"",'[1]REAL IMAE(M)'!AN60) -> 5.581180491 | U55: 0.01253510134 | AH55: n.d. | AI55: n.d. | AJ55: n.d. | AK55: -0.027043684 | AL55: -0.01607932942 | AM55: 0.105465331 | AP55: 51.02920098 | AW55: 1.509566719 | AX55: n.d. | AY55: n.d. | AZ55: n.d. | BA55: n.d. | BB55: n.d. | BC55: n.d. | BD55: =IF(ISERROR(STANDARDIZE($AW55,AVERAGE($AW:$AW),STDEV('Datos mensuales'!$AH:$AH))),"n.d.",STANDARDIZE($AW55,AVERAGE('Datos mensuales'!$AH:$AH),STDEV('Datos mensuales'!$AH:$AH))) -> 0.7145747781 | BE55: =IF(ISERROR(STANDARDIZE($AX55,AVERAGE($AX:$AX),STDEV('Datos mensuales'!$AH:$AH))),"n.d.",STANDARDIZE($AX55,AVERAGE('Datos mensuales'!$AH:$AH),STDEV('Datos mensuales'!$AH:$AH))) -> n.d. | BF55: =IF(ISERROR(STANDARDIZE($AY55,AVERAGE($AY:$AY),STDEV('Datos mensuales'!$AH:$AH))),"n.d.",STANDARDIZE($AY55,AVERAGE('Datos mensuales'!$AH:$AH),STDEV('Datos mensuales'!$AH:$AH))) -> n.d. | BG55: =IF(ISERROR(STANDARDIZE($AZ55,AVERAGE($AZ:$AZ),STDEV('Datos mensuales'!$AH:$AH))),"n.d.",STANDARDIZE($AZ55,AVERAGE('Datos mensuales'!$AH:$AH),STDEV('Datos mensuales'!$AH:$AH))) -> n.d. | BH55: =IF(ISERROR(STANDARDIZE($BA55,AVERAGE($BA:$BA),STDEV('Datos mensuales'!$AH:$AH))),"n.d.",STANDARDIZE($BA55,AVERAGE('Datos mensuales'!$AH:$AH),STDEV('Datos mensuales'!$AH:$AH))) -> n.d. | BI55: =IF(ISERROR(STANDARDIZE($BB55,AVERAGE($BB:$BB),STDEV('Datos mensuales'!$AH:$AH))),"n.d.",STANDARDIZE($BB55,AVERAGE('Datos mensuales'!$AH:$AH),STDEV('Datos mensuales'!$AH:$AH))) -> n.d. | BJ55: =IF(ISERROR(STANDARDIZE($BC55,AVERAGE($BC:$BC),STDEV('Datos mensuales'!$AH:$AH))),"n.d.",STANDARDIZE($BC55,AVERAGE('Datos mensuales'!$AH:$AH),STDEV('Datos mensuales'!$AH:$AH))) -> n.d. | BK55: 0.08103911372 | BL55: n.d. | BM55: n.d. | BN55: n.d. | BO55: n.d. | BP55: n.d. | BQ55: n.d. | BR55: 0.07557666457 | BS55: n.d. | BT55: n.d. | BU55: n.d. | BV55: n.d. | BW55: n.d. | BX55: n.d.
B56: Abr | C56: =IF(OR('[1]REAL IMAE(M)'!AG61="n.d."),"",'[1]REAL IMAE(M)'!AG61) -> 5.459661118 | L56: =IF(OR('[1]REAL IMAE(M)'!AN61="n.d."),"",'[1]REAL IMAE(M)'!AN61) -> 5.55052252 | U56: -0.01303190309 | AH56: n.d. | AI56: n.d. | AJ56: n.d. | AK56: 0.1403735296 | AL56: 0.08317523356 | AM56: 0.09925456298 | AP56: 51.21930766 | AW56: 1.60186244 | AX56: n.d. | AY56: n.d. | AZ56: n.d. | BA56: n.d. | BB56: n.d. | BC56: n.d. | BD56: =IF(ISERROR(STANDARDIZE($AW56,AVERAGE($AW:$AW),STDEV('Datos mensuales'!$AH:$AH))),"n.d.",STANDARDIZE($AW56,AVERAGE('Datos mensuales'!$AH:$AH),STDEV('Datos mensuales'!$AH:$AH))) -> 0.7583624528 | BE56: =IF(ISERROR(STANDARDIZE($AX56,AVERAGE($AX:$AX),STDEV('Datos mensuales'!$AH:$AH))),"n.d.",STANDARDIZE($AX56,AVERAGE('Datos mensuales'!$AH:$AH),STDEV('Datos mensuales'!$AH:$AH))) -> n.d. | BF56: =IF(ISERROR(STANDARDIZE($AY56,AVERAGE($AY:$AY),STDEV('Datos mensuales'!$AH:$AH))),"n.d.",STANDARDIZE($AY56,AVERAGE('Datos mensuales'!$AH:$AH),STDEV('Datos mensuales'!$AH:$AH))) -> n.d. | BG56: =IF(ISERROR(STANDARDIZE($AZ56,AVERAGE($AZ:$AZ),STDEV('Datos mensuales'!$AH:$AH))),"n.d.",STANDARDIZE($AZ56,AVERAGE('Datos mensuales'!$AH:$AH),STDEV('Datos mensuales'!$AH:$AH))) -> n.d. | BH56: =IF(ISERROR(STANDARDIZE($BA56,AVERAGE($BA:$BA),STDEV('Datos mensuales'!$AH:$AH))),"n.d.",STANDARDIZE($BA56,AVERAGE('Datos mensuales'!$AH:$AH),STDEV('Datos mensuales'!$AH:$AH))) -> n.d. | BI56: =IF(ISERROR(STANDARDIZE($BB56,AVERAGE($BB:$BB),STDEV('Datos mensuales'!$AH:$AH))),"n.d.",STANDARDIZE($BB56,AVERAGE('Datos mensuales'!$AH:$AH),STDEV('Datos mensuales'!$AH:$AH))) -> n.d. | BJ56: =IF(ISERROR(STANDARDIZE($BC56,AVERAGE($BC:$BC),STDEV('Datos mensuales'!$AH:$AH))),"n.d.",STANDARDIZE($BC56,AVERAGE('Datos mensuales'!$AH:$AH),STDEV('Datos mensuales'!$AH:$AH))) -> n.d. | BK56: 0.04378767462 | BL56: n.d. | BM56: n.d. | BN56: n.d. | BO56: n.d. | BP56: n.d. | BQ56: n.d. | BR56: 0.1264475636 | BS56: n.d. | BT56: n.d. | BU56: n.d. | BV56: n.d. | BW56: n.d. | BX56: n.d.
B57: May | C57: =IF(OR('[1]REAL IMAE(M)'!AG62="n.d."),"",'[1]REAL IMAE(M)'!AG62) -> 5.424388693 | L57: =IF(OR('[1]REAL IMAE(M)'!AN62="n.d."),"",'[1]REAL IMAE(M)'!AN62) -> 5.525017047 | U57: -0.03527242519 | AH57: n.d. | AI57: n.d. | AJ57: n.d. | AK57: 0.2611986525 | AL57: 0.1548073227 | AM57: 0.07163208917 | AP57: 51.40457782 | AW57: 1.64381146 | AX57: n.d. | AY57: n.d. | AZ57: n.d. | BA57: n.d. | BB57: n.d. | BC57: n.d. | BD57: =IF(ISERROR(STANDARDIZE($AW57,AVERAGE($AW:$AW),STDEV('Datos mensuales'!$AH:$AH))),"n.d.",STANDARDIZE($AW57,AVERAGE('Datos mensuales'!$AH:$AH),STDEV('Datos mensuales'!$AH:$AH))) -> 0.7782642422 | BE57: =IF(ISERROR(STANDARDIZE($AX57,AVERAGE($AX:$AX),STDEV('Datos mensuales'!$AH:$AH))),"n.d.",STANDARDIZE($AX57,AVERAGE('Datos mensuales'!$AH:$AH),STDEV('Datos mensuales'!$AH:$AH))) -> n.d. | BF57: =IF(ISERROR(STANDARDIZE($AY57,AVERAGE($AY:$AY),STDEV('Datos mensuales'!$AH:$AH))),"n.d.",STANDARDIZE($AY57,AVERAGE('Datos mensuales'!$AH:$AH),STDEV('Datos mensuales'!$AH:$AH))) -> n.d. | BG57: =IF(ISERROR(STANDARDIZE($AZ57,AVERAGE($AZ:$AZ),STDEV('Datos mensuales'!$AH:$AH))),"n.d.",STANDARDIZE($AZ57,AVERAGE('Datos mensuales'!$AH:$AH),STDEV('Datos mensuales'!$AH:$AH))) -> n.d. | BH57: =IF(ISERROR(STANDARDIZE($BA57,AVERAGE($BA:$BA),STDEV('Datos mensuales'!$AH:$AH))),"n.d.",STANDARDIZE($BA57,AVERAGE('Datos mensuales'!$AH:$AH),STDEV('Datos mensuales'!$AH:$AH))) -> n.d. | BI57: =IF(ISERROR(STANDARDIZE($BB57,AVERAGE($BB:$BB),STDEV('Datos mensuales'!$AH:$AH))),"n.d.",STANDARDIZE($BB57,AVERAGE('Datos mensuales'!$AH:$AH),STDEV('Datos mensuales'!$AH:$AH))) -> n.d. | BJ57: =IF(ISERROR(STANDARDIZE($BC57,AVERAGE($BC:$BC),STDEV('Datos mensuales'!$AH:$AH))),"n.d.",STANDARDIZE($BC57,AVERAGE('Datos mensuales'!$AH:$AH),STDEV('Datos mensuales'!$AH:$AH))) -> n.d. | BK57: 0.01990178947 | BL57: n.d. | BM57: n.d. | BN57: n.d. | BO57: n.d. | BP57: n.d. | BQ57: n.d. | BR57: 0.1623901667 | BS57: n.d. | BT57: n.d. | BU57: n.d. | BV57: n.d. | BW57: n.d. | BX57: n.d.
B58: Jun | C58: =IF(OR('[1]REAL IMAE(M)'!AG63="n.d."),"",'[1]REAL IMAE(M)'!AG63) -> 5.390684953 | L58: =IF(OR('[1]REAL IMAE(M)'!AN63="n.d."),"",'[1]REAL IMAE(M)'!AN63) -> 5.502342055 | U58: -0.03370373917 | AH58: n.d. | AI58: n.d. | AJ58: n.d. | AK58: 0.3246848036 | AL58: 0.1924455682 | AM58: 0.03763824548 | AP58: 51.58486029 | AW58: 1.669410399 | AX58: n.d. | AY58: n.d. | AZ58: n.d. | BA58: n.d. | BB58: n.d. | BC58: n.d. | BD58: =IF(ISERROR(STANDARDIZE($AW58,AVERAGE($AW:$AW),STDEV('Datos mensuales'!$AH:$AH))),"n.d.",STANDARDIZE($AW58,AVERAGE('Datos mensuales'!$AH:$AH),STDEV('Datos mensuales'!$AH:$AH))) -> 0.7904090958 | BE58: =IF(ISERROR(STANDARDIZE($AX58,AVERAGE($AX:$AX),STDEV('Datos mensuales'!$AH:$AH))),"n.d.",STANDARDIZE($AX58,AVERAGE('Datos mensuales'!$AH:$AH),STDEV('Datos mensuales'!$AH:$AH))) -> n.d. | BF58: =IF(ISERROR(STANDARDIZE($AY58,AVERAGE($AY:$AY),STDEV('Datos mensuales'!$AH:$AH))),"n.d.",STANDARDIZE($AY58,AVERAGE('Datos mensuales'!$AH:$AH),STDEV('Datos mensuales'!$AH:$AH))) -> n.d. | BG58: =IF(ISERROR(STANDARDIZE($AZ58,AVERAGE($AZ:$AZ),STDEV('Datos mensuales'!$AH:$AH))),"n.d.",STANDARDIZE($AZ58,AVERAGE('Datos mensuales'!$AH:$AH),STDEV('Datos mensuales'!$AH:$AH))) -> n.d. | BH58: =IF(ISERROR(STANDARDIZE($BA58,AVERAGE($BA:$BA),STDEV('Datos mensuales'!$AH:$AH))),"n.d.",STANDARDIZE($BA58,AVERAGE('Datos mensuales'!$AH:$AH),STDEV('Datos mensuales'!$AH:$AH))) -> n.d. | BI58: =IF(ISERROR(STANDARDIZE($BB58,AVERAGE($BB:$BB),STDEV('Datos mensuales'!$AH:$AH))),"n.d.",STANDARDIZE($BB58,AVERAGE('Datos mensuales'!$AH:$AH),STDEV('Datos mensuales'!$AH:$AH))) -> n.d. | BJ58: =IF(ISERROR(STANDARDIZE($BC58,AVERAGE($BC:$BC),STDEV('Datos mensuales'!$AH:$AH))),"n.d.",STANDARDIZE($BC58,AVERAGE('Datos mensuales'!$AH:$AH),STDEV('Datos mensuales'!$AH:$AH))) -> n.d. | BK58: 0.01214485362 | BL58: n.d. | BM58: n.d. | BN58: n.d. | BO58: n.d. | BP58: n.d. | BQ58: n.d. | BR58: 0.1944263059 | BS58: n.d. | BT58: n.d. | BU58: n.d. | BV58: n.d. | BW58: n.d. | BX58: n.d.
B59: Jul | C59: =IF(OR('[1]REAL IMAE(M)'!AG64="n.d."),"",'[1]REAL IMAE(M)'!AG64) -> 5.267837611 | L59: =IF(OR('[1]REAL IMAE(M)'!AN64="n.d."),"",'[1]REAL IMAE(M)'!AN64) -> 5.468335858 | U59: -0.1228473426 | AH59: n.d. | AI59: n.d. | AJ59: n.d. | AK59: 0.3268527093 | AL59: 0.1937308275 | AM59: 0.001285259272 | AP59: 51.7600383 | AW59: 1.683894956 | AX59: n.d. | AY59: n.d. | AZ59: n.d. | BA59: n.d. | BB59: n.d. | BC59: n.d. | BD59: =IF(ISERROR(STANDARDIZE($AW59,AVERAGE($AW:$AW),STDEV('Datos mensuales'!$AH:$AH))),"n.d.",STANDARDIZE($AW59,AVERAGE('Datos mensuales'!$AH:$AH),STDEV('Datos mensuales'!$AH:$AH))) -> 0.7972809751 | BE59: =IF(ISERROR(STANDARDIZE($AX59,AVERAGE($AX:$AX),STDEV('Datos mensuales'!$AH:$AH))),"n.d.",STANDARDIZE($AX59,AVERAGE('Datos mensuales'!$AH:$AH),STDEV('Datos mensuales'!$AH:$AH))) -> n.d. | BF59: =IF(ISERROR(STANDARDIZE($AY59,AVERAGE($AY:$AY),STDEV('Datos mensuales'!$AH:$AH))),"n.d.",STANDARDIZE($AY59,AVERAGE('Datos mensuales'!$AH:$AH),STDEV('Datos mensuales'!$AH:$AH))) -> n.d. | BG59: =IF(ISERROR(STANDARDIZE($AZ59,AVERAGE($AZ:$AZ),STDEV('Datos mensuales'!$AH:$AH))),"n.d.",STANDARDIZE($AZ59,AVERAGE('Datos mensuales'!$AH:$AH),STDEV('Datos mensuales'!$AH:$AH))) -> n.d. | BH59: =IF(ISERROR(STANDARDIZE($BA59,AVERAGE($BA:$BA),STDEV('Datos mensuales'!$AH:$AH))),"n.d.",STANDARDIZE($BA59,AVERAGE('Datos mensuales'!$AH:$AH),STDEV('Datos mensuales'!$AH:$AH))) -> n.d. | BI59: =IF(ISERROR(STANDARDIZE($BB59,AVERAGE($BB:$BB),STDEV('Datos mensuales'!$AH:$AH))),"n.d.",STANDARDIZE($BB59,AVERAGE('Datos mensuales'!$AH:$AH),STDEV('Datos mensuales'!$AH:$AH))) -> n.d. | BJ59: =IF(ISERROR(STANDARDIZE($BC59,AVERAGE($BC:$BC),STDEV('Datos mensuales'!$AH:$AH))),"n.d.",STANDARDIZE($BC59,AVERAGE('Datos mensuales'!$AH:$AH),STDEV('Datos mensuales'!$AH:$AH))) -> n.d. | BK59: 0.006871879272 | BL59: n.d. | BM59: n.d. | BN59: n.d. | BO59: n.d. | BP59: n.d. | BQ59: n.d. | BR59: 0.187829193 | BS59: n.d. | BT59: n.d. | BU59: n.d. | BV59: n.d. | BW59: n.d. | BX59: n.d.
B60: Ago | C60: =IF(OR('[1]REAL IMAE(M)'!AG65="n.d."),"",'[1]REAL IMAE(M)'!AG65) -> 5.277529184 | L60: =IF(OR('[1]REAL IMAE(M)'!AN65="n.d."),"",'[1]REAL IMAE(M)'!AN65) -> 5.444091591 | U60: 0.009691573044 | AH60: n.d. | AI60: n.d. | AJ60: n.d. | AK60: 0.3810898313 | AL60: 0.2258857161 | AM60: 0.03215488857 | AP60: 51.93003851 | AW60: 1.719246285 | AX60: n.d. | AY60: n.d. | AZ60: n.d. | BA60: n.d. | BB60: n.d. | BC60: n.d. | BD60: =IF(ISERROR(STANDARDIZE($AW60,AVERAGE($AW:$AW),STDEV('Datos mensuales'!$AH:$AH))),"n.d.",STANDARDIZE($AW60,AVERAGE('Datos mensuales'!$AH:$AH),STDEV('Datos mensuales'!$AH:$AH))) -> 0.8140526355 | BE60: =IF(ISERROR(STANDARDIZE($AX60,AVERAGE($AX:$AX),STDEV('Datos mensuales'!$AH:$AH))),"n.d.",STANDARDIZE($AX60,AVERAGE('Datos mensuales'!$AH:$AH),STDEV('Datos mensuales'!$AH:$AH))) -> n.d. | BF60: =IF(ISERROR(STANDARDIZE($AY60,AVERAGE($AY:$AY),STDEV('Datos mensuales'!$AH:$AH))),"n.d.",STANDARDIZE($AY60,AVERAGE('Datos mensuales'!$AH:$AH),STDEV('Datos mensuales'!$AH:$AH))) -> n.d. | BG60: =IF(ISERROR(STANDARDIZE($AZ60,AVERAGE($AZ:$AZ),STDEV('Datos mensuales'!$AH:$AH))),"n.d.",STANDARDIZE($AZ60,AVERAGE('Datos mensuales'!$AH:$AH),STDEV('Datos mensuales'!$AH:$AH))) -> n.d. | BH60: =IF(ISERROR(STANDARDIZE($BA60,AVERAGE($BA:$BA),STDEV('Datos mensuales'!$AH:$AH))),"n.d.",STANDARDIZE($BA60,AVERAGE('Datos mensuales'!$AH:$AH),STDEV('Datos mensuales'!$AH:$AH))) -> n.d. | BI60: =IF(ISERROR(STANDARDIZE($BB60,AVERAGE($BB:$BB),STDEV('Datos mensuales'!$AH:$AH))),"n.d.",STANDARDIZE($BB60,AVERAGE('Datos mensuales'!$AH:$AH),STDEV('Datos mensuales'!$AH:$AH))) -> n.d. | BJ60: =IF(ISERROR(STANDARDIZE($BC60,AVERAGE($BC:$BC),STDEV('Datos mensuales'!$AH:$AH))),"n.d.",STANDARDIZE($BC60,AVERAGE('Datos mensuales'!$AH:$AH),STDEV('Datos mensuales'!$AH:$AH))) -> n.d. | BK60: 0.01677166034 | BL60: n.d. | BM60: n.d. | BN60: n.d. | BO60: n.d. | BP60: n.d. | BQ60: n.d. | BR60: 0.2487344903 | BS60: n.d. | BT60: n.d. | BU60: n.d. | BV60: n.d. | BW60: n.d. | BX60: n.d.
B61: Sep | C61: =IF(OR('[1]REAL IMAE(M)'!AG66="n.d."),"",'[1]REAL IMAE(M)'!AG66) -> 5.318584106 | L61: =IF(OR('[1]REAL IMAE(M)'!AN66="n.d."),"",'[1]REAL IMAE(M)'!AN66) -> 5.429906035 | U61: 0.04105492249 | AH61: n.d. | AI61: n.d. | AJ61: n.d. | AK61: 0.4892075181 | AL61: 0.2899841055 | AM61: 0.06409838942 | AP61: 52.09482781 | AW61: 1.723207886 | AX61: n.d. | AY61: n.d. | AZ61: n.d. | BA61: n.d. | BB61: n.d. | BC61: n.d. | BD61: =IF(ISERROR(STANDARDIZE($AW61,AVERAGE($AW:$AW),STDEV('Datos mensuales'!$AH:$AH))),"n.d.",STANDARDIZE($AW61,AVERAGE('Datos mensuales'!$AH:$AH),STDEV('Datos mensuales'!$AH:$AH))) -> 0.81593213 | BE61: =IF(ISERROR(STANDARDIZE($AX61,AVERAGE($AX:$AX),STDEV('Datos mensuales'!$AH:$AH))),"n.d.",STANDARDIZE($AX61,AVERAGE('Datos mensuales'!$AH:$AH),STDEV('Datos mensuales'!$AH:$AH))) -> n.d. | BF61: =IF(ISERROR(STANDARDIZE($AY61,AVERAGE($AY:$AY),STDEV('Datos mensuales'!$AH:$AH))),"n.d.",STANDARDIZE($AY61,AVERAGE('Datos mensuales'!$AH:$AH),STDEV('Datos mensuales'!$AH:$AH))) -> n.d. | BG61: =IF(ISERROR(STANDARDIZE($AZ61,AVERAGE($AZ:$AZ),STDEV('Datos mensuales'!$AH:$AH))),"n.d.",STANDARDIZE($AZ61,AVERAGE('Datos mensuales'!$AH:$AH),STDEV('Datos mensuales'!$AH:$AH))) -> n.d. | BH61: =IF(ISERROR(STANDARDIZE($BA61,AVERAGE($BA:$BA),STDEV('Datos mensuales'!$AH:$AH))),"n.d.",STANDARDIZE($BA61,AVERAGE('Datos mensuales'!$AH:$AH),STDEV('Datos mensuales'!$AH:$AH))) -> n.d. | BI61: =IF(ISERROR(STANDARDIZE($BB61,AVERAGE($BB:$BB),STDEV('Datos mensuales'!$AH:$AH))),"n.d.",STANDARDIZE($BB61,AVERAGE('Datos mensuales'!$AH:$AH),STDEV('Datos mensuales'!$AH:$AH))) -> n.d. | BJ61: =IF(ISERROR(STANDARDIZE($BC61,AVERAGE($BC:$BC),STDEV('Datos mensuales'!$AH:$AH))),"n.d.",STANDARDIZE($BC61,AVERAGE('Datos mensuales'!$AH:$AH),STDEV('Datos mensuales'!$AH:$AH))) -> n.d. | BK61: 0.001879494563 | BL61: n.d. | BM61: n.d. | BN61: n.d. | BO61: n.d. | BP61: n.d. | BQ61: n.d. | BR61: 0.3414794924 | BS61: n.d. | BT61: n.d. | BU61: n.d. | BV61: n.d. | BW61: n.d. | BX61: n.d.
B62: Oct | C62: =IF(OR('[1]REAL IMAE(M)'!AG67="n.d."),"",'[1]REAL IMAE(M)'!AG67) -> 5.144229582 | L62: =IF(OR('[1]REAL IMAE(M)'!AN67="n.d."),"",'[1]REAL IMAE(M)'!AN67) -> 5.400787971 | U62: -0.174354524 | AH62: n.d. | AI62: n.d. | AJ62: n.d. | AK62: 0.6667892255 | AL62: 0.3952647656 | AM62: 0.1052806601 | AP62: 52.25440162 | AW62: 1.67727232 | AX62: n.d. | AY62: n.d. | AZ62: n.d. | BA62: n.d. | BB62: n.d. | BC62: n.d. | BD62: =IF(ISERROR(STANDARDIZE($AW62,AVERAGE($AW:$AW),STDEV('Datos mensuales'!$AH:$AH))),"n.d.",STANDARDIZE($AW62,AVERAGE('Datos mensuales'!$AH:$AH),STDEV('Datos mensuales'!$AH:$AH))) -> 0.7941390112 | BE62: =IF(ISERROR(STANDARDIZE($AX62,AVERAGE($AX:$AX),STDEV('Datos mensuales'!$AH:$AH))),"n.d.",STANDARDIZE($AX62,AVERAGE('Datos mensuales'!$AH:$AH),STDEV('Datos mensuales'!$AH:$AH))) -> n.d. | BF62: =IF(ISERROR(STANDARDIZE($AY62,AVERAGE($AY:$AY),STDEV('Datos mensuales'!$AH:$AH))),"n.d.",STANDARDIZE($AY62,AVERAGE('Datos mensuales'!$AH:$AH),STDEV('Datos mensuales'!$AH:$AH))) -> n.d. | BG62: =IF(ISERROR(STANDARDIZE($AZ62,AVERAGE($AZ:$AZ),STDEV('Datos mensuales'!$AH:$AH))),"n.d.",STANDARDIZE($AZ62,AVERAGE('Datos mensuales'!$AH:$AH),STDEV('Datos mensuales'!$AH:$AH))) -> n.d. | BH62: =IF(ISERROR(STANDARDIZE($BA62,AVERAGE($BA:$BA),STDEV('Datos mensuales'!$AH:$AH))),"n.d.",STANDARDIZE($BA62,AVERAGE('Datos mensuales'!$AH:$AH),STDEV('Datos mensuales'!$AH:$AH))) -> n.d. | BI62: =IF(ISERROR(STANDARDIZE($BB62,AVERAGE($BB:$BB),STDEV('Datos mensuales'!$AH:$AH))),"n.d.",STANDARDIZE($BB62,AVERAGE('Datos mensuales'!$AH:$AH),STDEV('Datos mensuales'!$AH:$AH))) -> n.d. | BJ62: =IF(ISERROR(STANDARDIZE($BC62,AVERAGE($BC:$BC),STDEV('Datos mensuales'!$AH:$AH))),"n.d.",STANDARDIZE($BC62,AVERAGE('Datos mensuales'!$AH:$AH),STDEV('Datos mensuales'!$AH:$AH))) -> n.d. | BK62: -0.0217931188 | BL62: n.d. | BM62: n.d. | BN62: n.d. | BO62: n.d. | BP62: n.d. | BQ62: n.d. | BR62: 0.3137063611 | BS62: n.d. | BT62: n.d. | BU62: n.d. | BV62: n.d. | BW62: n.d. | BX62: n.d.
B63: Nov | C63: =IF(OR('[1]REAL IMAE(M)'!AG68="n.d."),"",'[1]REAL IMAE(M)'!AG68) -> 4.85320439 | L63: =IF(OR('[1]REAL IMAE(M)'!AN68="n.d."),"",'[1]REAL IMAE(M)'!AN68) -> 5.349907093 | U63: -0.2910251925 | AH63: n.d. | AI63: n.d. | AJ63: n.d. | AK63: 0.9350836079 | AL63: 0.5543251221 | AM63: 0.1590603565 | AP63: 52.40877651 | AW63: 1.623909714 | AX63: n.d. | AY63: n.d. | AZ63: n.d. | BA63: n.d. | BB63: n.d. | BC63: n.d. | BD63: =IF(ISERROR(STANDARDIZE($AW63,AVERAGE($AW:$AW),STDEV('Datos mensuales'!$AH:$AH))),"n.d.",STANDARDIZE($AW63,AVERAGE('Datos mensuales'!$AH:$AH),STDEV('Datos mensuales'!$AH:$AH))) -> 0.7688222969 | BE63: =IF(ISERROR(STANDARDIZE($AX63,AVERAGE($AX:$AX),STDEV('Datos mensuales'!$AH:$AH))),"n.d.",STANDARDIZE($AX63,AVERAGE('Datos mensuales'!$AH:$AH),STDEV('Datos mensuales'!$AH:$AH))) -> n.d. | BF63: =IF(ISERROR(STANDARDIZE($AY63,AVERAGE($AY:$AY),STDEV('Datos mensuales'!$AH:$AH))),"n.d.",STANDARDIZE($AY63,AVERAGE('Datos mensuales'!$AH:$AH),STDEV('Datos mensuales'!$AH:$AH))) -> n.d. | BG63: =IF(ISERROR(STANDARDIZE($AZ63,AVERAGE($AZ:$AZ),STDEV('Datos mensuales'!$AH:$AH))),"n.d.",STANDARDIZE($AZ63,AVERAGE('Datos mensuales'!$AH:$AH),STDEV('Datos mensuales'!$AH:$AH))) -> n.d. | BH63: =IF(ISERROR(STANDARDIZE($BA63,AVERAGE($BA:$BA),STDEV('Datos mensuales'!$AH:$AH))),"n.d.",STANDARDIZE($BA63,AVERAGE('Datos mensuales'!$AH:$AH),STDEV('Datos mensuales'!$AH:$AH))) -> n.d. | BI63: =IF(ISERROR(STANDARDIZE($BB63,AVERAGE($BB:$BB),STDEV('Datos mensuales'!$AH:$AH))),"n.d.",STANDARDIZE($BB63,AVERAGE('Datos mensuales'!$AH:$AH),STDEV('Datos mensuales'!$AH:$AH))) -> n.d. | BJ63: =IF(ISERROR(STANDARDIZE($BC63,AVERAGE($BC:$BC),STDEV('Datos mensuales'!$AH:$AH))),"n.d.",STANDARDIZE($BC63,AVERAGE('Datos mensuales'!$AH:$AH),STDEV('Datos mensuales'!$AH:$AH))) -> n.d. | BK63: -0.02531671435 | BL63: n.d. | BM63: n.d. | BN63: n.d. | BO63: n.d. | BP63: n.d. | BQ63: n.d. | BR63: 0.2197374153 | BS63: n.d. | BT63: n.d. | BU63: n.d. | BV63: n.d. | BW63: n.d. | BX63: n.d.
B64: Dic | C64: =IF(OR('[1]REAL IMAE(M)'!AG69="n.d."),"",'[1]REAL IMAE(M)'!AG69) -> 4.88360807 | L64: =IF(OR('[1]REAL IMAE(M)'!AN69="n.d."),"",'[1]REAL IMAE(M)'!AN69) -> 5.310111 | U64: 0.03040368006 | AH64: n.d. | AI64: n.d. | AJ64: n.d. | AK64: 1.136140463 | AL64: 0.6735232011 | AM64: 0.119198079 | AP64: 52.55799305 | AW64: 1.736350217 | AX64: n.d. | AY64: n.d. | AZ64: n.d. | BA64: n.d. | BB64: n.d. | BC64: n.d. | BD64: =IF(ISERROR(STANDARDIZE($AW64,AVERAGE($AW:$AW),STDEV('Datos mensuales'!$AH:$AH))),"n.d.",STANDARDIZE($AW64,AVERAGE('Datos mensuales'!$AH:$AH),STDEV('Datos mensuales'!$AH:$AH))) -> 0.8221672197 | BE64: =IF(ISERROR(STANDARDIZE($AX64,AVERAGE($AX:$AX),STDEV('Datos mensuales'!$AH:$AH))),"n.d.",STANDARDIZE($AX64,AVERAGE('Datos mensuales'!$AH:$AH),STDEV('Datos mensuales'!$AH:$AH))) -> n.d. | BF64: =IF(ISERROR(STANDARDIZE($AY64,AVERAGE($AY:$AY),STDEV('Datos mensuales'!$AH:$AH))),"n.d.",STANDARDIZE($AY64,AVERAGE('Datos mensuales'!$AH:$AH),STDEV('Datos mensuales'!$AH:$AH))) -> n.d. | BG64: =IF(ISERROR(STANDARDIZE($AZ64,AVERAGE($AZ:$AZ),STDEV('Datos mensuales'!$AH:$AH))),"n.d.",STANDARDIZE($AZ64,AVERAGE('Datos mensuales'!$AH:$AH),STDEV('Datos mensuales'!$AH:$AH))) -> n.d. | BH64: =IF(ISERROR(STANDARDIZE($BA64,AVERAGE($BA:$BA),STDEV('Datos mensuales'!$AH:$AH))),"n.d.",STANDARDIZE($BA64,AVERAGE('Datos mensuales'!$AH:$AH),STDEV('Datos mensuales'!$AH:$AH))) -> n.d. | BI64: =IF(ISERROR(STANDARDIZE($BB64,AVERAGE($BB:$BB),STDEV('Datos mensuales'!$AH:$AH))),"n.d.",STANDARDIZE($BB64,AVERAGE('Datos mensuales'!$AH:$AH),STDEV('Datos mensuales'!$AH:$AH))) -> n.d. | BJ64: =IF(ISERROR(STANDARDIZE($BC64,AVERAGE($BC:$BC),STDEV('Datos mensuales'!$AH:$AH))),"n.d.",STANDARDIZE($BC64,AVERAGE('Datos mensuales'!$AH:$AH),STDEV('Datos mensuales'!$AH:$AH))) -> n.d. | BK64: 0.05334492281 | BL64: n.d. | BM64: n.d. | BN64: n.d. | BO64: n.d. | BP64: n.d. | BQ64: n.d. | BR64: 0.2997044293 | BS64: n.d. | BT64: n.d. | BU64: n.d. | BV64: n.d. | BW64: n.d. | BX64: n.d.
A65: 1995 | B65: Ene | C65: =IF(OR('[1]REAL IMAE(M)'!AG70="n.d."),"",'[1]REAL IMAE(M)'!AG70) -> 5.312484512 | L65: =IF(OR('[1]REAL IMAE(M)'!AN70="n.d."),"",'[1]REAL IMAE(M)'!AN70) -> 5.312484512 | U65: 0.4288764416 | AH65: n.d. | AI65: n.d. | AJ65: n.d. | AK65: 1.074663443 | AL65: 0.6370760845 | AM65: -0.03644711656 | AP65: 52.70212804 | AW65: 2.04000277 | AX65: n.d. | AY65: n.d. | AZ65: n.d. | BA65: n.d. | BB65: n.d. | BC65: n.d. | BD65: =IF(ISERROR(STANDARDIZE($AW65,AVERAGE($AW:$AW),STDEV('Datos mensuales'!$AH:$AH))),"n.d.",STANDARDIZE($AW65,AVERAGE('Datos mensuales'!$AH:$AH),STDEV('Datos mensuales'!$AH:$AH))) -> 0.9662284931 | BE65: =IF(ISERROR(STANDARDIZE($AX65,AVERAGE($AX:$AX),STDEV('Datos mensuales'!$AH:$AH))),"n.d.",STANDARDIZE($AX65,AVERAGE('Datos mensuales'!$AH:$AH),STDEV('Datos mensuales'!$AH:$AH))) -> n.d. | BF65: =IF(ISERROR(STANDARDIZE($AY65,AVERAGE($AY:$AY),STDEV('Datos mensuales'!$AH:$AH))),"n.d.",STANDARDIZE($AY65,AVERAGE('Datos mensuales'!$AH:$AH),STDEV('Datos mensuales'!$AH:$AH))) -> n.d. | BG65: =IF(ISERROR(STANDARDIZE($AZ65,AVERAGE($AZ:$AZ),STDEV('Datos mensuales'!$AH:$AH))),"n.d.",STANDARDIZE($AZ65,AVERAGE('Datos mensuales'!$AH:$AH),STDEV('Datos mensuales'!$AH:$AH))) -> n.d. | BH65: =IF(ISERROR(STANDARDIZE($BA65,AVERAGE($BA:$BA),STDEV('Datos mensuales'!$AH:$AH))),"n.d.",STANDARDIZE($BA65,AVERAGE('Datos mensuales'!$AH:$AH),STDEV('Datos mensuales'!$AH:$AH))) -> n.d. | BI65: =IF(ISERROR(STANDARDIZE($BB65,AVERAGE($BB:$BB),STDEV('Datos mensuales'!$AH:$AH))),"n.d.",STANDARDIZE($BB65,AVERAGE('Datos mensuales'!$AH:$AH),STDEV('Datos mensuales'!$AH:$AH))) -> n.d. | BJ65: =IF(ISERROR(STANDARDIZE($BC65,AVERAGE($BC:$BC),STDEV('Datos mensuales'!$AH:$AH))),"n.d.",STANDARDIZE($BC65,AVERAGE('Datos mensuales'!$AH:$AH),STDEV('Datos mensuales'!$AH:$AH))) -> n.d. | BK65: 0.1440612735 | BL65: n.d. | BM65: n.d. | BN65: n.d. | BO65: n.d. | BP65: n.d. | BQ65: n.d. | BR65: 0.5979318878 | BS65: n.d. | BT65: n.d. | BU65: n.d. | BV65: n.d. | BW65: n.d. | BX65: n.d.
B66: Feb | C66: =IF(OR('[1]REAL IMAE(M)'!AG71="n.d."),"",'[1]REAL IMAE(M)'!AG71) -> 5.335114006 | L66: =IF(OR('[1]REAL IMAE(M)'!AN71="n.d."),"",'[1]REAL IMAE(M)'!AN71) -> 5.323826779 | U66: 0.02262949488 | AH66: n.d. | AI66: n.d. | AJ66: n.d. | AK66: 0.8193141417 | AL66: 0.4856903173 | AM66: -0.1513857673 | AP66: 52.84131394 | AW66: 2.21263669 | AX66: n.d. | AY66: n.d. | AZ66: n.d. | BA66: n.d. | BB66: n.d. | BC66: n.d. | BD66: =IF(ISERROR(STANDARDIZE($AW66,AVERAGE($AW:$AW),STDEV('Datos mensuales'!$AH:$AH))),"n.d.",STANDARDIZE($AW66,AVERAGE('Datos mensuales'!$AH:$AH),STDEV('Datos mensuales'!$AH:$AH))) -> 1.048130859 | BE66: =IF(ISERROR(STANDARDIZE($AX66,AVERAGE($AX:$AX),STDEV('Datos mensuales'!$AH:$AH))),"n.d.",STANDARDIZE($AX66,AVERAGE('Datos mensuales'!$AH:$AH),STDEV('Datos mensuales'!$AH:$AH))) -> n.d. | BF66: =IF(ISERROR(STANDARDIZE($AY66,AVERAGE($AY:$AY),STDEV('Datos mensuales'!$AH:$AH))),"n.d.",STANDARDIZE($AY66,AVERAGE('Datos mensuales'!$AH:$AH),STDEV('Datos mensuales'!$AH:$AH))) -> n.d. | BG66: =IF(ISERROR(STANDARDIZE($AZ66,AVERAGE($AZ:$AZ),STDEV('Datos mensuales'!$AH:$AH))),"n.d.",STANDARDIZE($AZ66,AVERAGE('Datos mensuales'!$AH:$AH),STDEV('Datos mensuales'!$AH:$AH))) -> n.d. | BH66: =IF(ISERROR(STANDARDIZE($BA66,AVERAGE($BA:$BA),STDEV('Datos mensuales'!$AH:$AH))),"n.d.",STANDARDIZE($BA66,AVERAGE('Datos mensuales'!$AH:$AH),STDEV('Datos mensuales'!$AH:$AH))) -> n.d. | BI66: =IF(ISERROR(STANDARDIZE($BB66,AVERAGE($BB:$BB),STDEV('Datos mensuales'!$AH:$AH))),"n.d.",STANDARDIZE($BB66,AVERAGE('Datos mensuales'!$AH:$AH),STDEV('Datos mensuales'!$AH:$AH))) -> n.d. | BJ66: =IF(ISERROR(STANDARDIZE($BC66,AVERAGE($BC:$BC),STDEV('Datos mensuales'!$AH:$AH))),"n.d.",STANDARDIZE($BC66,AVERAGE('Datos mensuales'!$AH:$AH),STDEV('Datos mensuales'!$AH:$AH))) -> n.d. | BK66: 0.08190236547 | BL66: n.d. | BM66: n.d. | BN66: n.d. | BO66: n.d. | BP66: n.d. | BQ66: n.d. | BR66: 0.6544149248 | BS66: n.d. | BT66: n.d. | BU66: n.d. | BV66: n.d. | BW66: n.d. | BX66: n.d.
B67: Mar | C67: =IF(OR('[1]REAL IMAE(M)'!AG72="n.d."),"",'[1]REAL IMAE(M)'!AG72) -> 4.831107505 | L67: =IF(OR('[1]REAL IMAE(M)'!AN72="n.d."),"",'[1]REAL IMAE(M)'!AN72) -> 5.158611593 | U67: -0.5040065011 | AH67: n.d. | AI67: n.d. | AJ67: n.d. | AK67: 0.5232044404 | AL67: 0.3101394383 | AM67: -0.1755508789 | AP67: 52.97576155 | AW67: 2.156602079 | AX67: n.d. | AY67: n.d. | AZ67: n.d. | BA67: n.d. | BB67: n.d. | BC67: n.d. | BD67: =IF(ISERROR(STANDARDIZE($AW67,AVERAGE($AW:$AW),STDEV('Datos mensuales'!$AH:$AH))),"n.d.",STANDARDIZE($AW67,AVERAGE('Datos mensuales'!$AH:$AH),STDEV('Datos mensuales'!$AH:$AH))) -> 1.02154647 | BE67: =IF(ISERROR(STANDARDIZE($AX67,AVERAGE($AX:$AX),STDEV('Datos mensuales'!$AH:$AH))),"n.d.",STANDARDIZE($AX67,AVERAGE('Datos mensuales'!$AH:$AH),STDEV('Datos mensuales'!$AH:$AH))) -> n.d. | BF67: =IF(ISERROR(STANDARDIZE($AY67,AVERAGE($AY:$AY),STDEV('Datos mensuales'!$AH:$AH))),"n.d.",STANDARDIZE($AY67,AVERAGE('Datos mensuales'!$AH:$AH),STDEV('Datos mensuales'!$AH:$AH))) -> n.d. | BG67: =IF(ISERROR(STANDARDIZE($AZ67,AVERAGE($AZ:$AZ),STDEV('Datos mensuales'!$AH:$AH))),"n.d.",STANDARDIZE($AZ67,AVERAGE('Datos mensuales'!$AH:$AH),STDEV('Datos mensuales'!$AH:$AH))) -> n.d. | BH67: =IF(ISERROR(STANDARDIZE($BA67,AVERAGE($BA:$BA),STDEV('Datos mensuales'!$AH:$AH))),"n.d.",STANDARDIZE($BA67,AVERAGE('Datos mensuales'!$AH:$AH),STDEV('Datos mensuales'!$AH:$AH))) -> n.d. | BI67: =IF(ISERROR(STANDARDIZE($BB67,AVERAGE($BB:$BB),STDEV('Datos mensuales'!$AH:$AH))),"n.d.",STANDARDIZE($BB67,AVERAGE('Datos mensuales'!$AH:$AH),STDEV('Datos mensuales'!$AH:$AH))) -> n.d. | BJ67: =IF(ISERROR(STANDARDIZE($BC67,AVERAGE($BC:$BC),STDEV('Datos mensuales'!$AH:$AH))),"n.d.",STANDARDIZE($BC67,AVERAGE('Datos mensuales'!$AH:$AH),STDEV('Datos mensuales'!$AH:$AH))) -> n.d. | BK67: -0.02658438813 | BL67: n.d. | BM67: n.d. | BN67: n.d. | BO67: n.d. | BP67: n.d. | BQ67: n.d. | BR67: 0.4295865202 | BS67: n.d. | BT67: n.d. | BU67: n.d. | BV67: n.d. | BW67: n.d. | BX67: n.d.
B68: Abr | C68: =IF(OR('[1]REAL IMAE(M)'!AG73="n.d."),"",'[1]REAL IMAE(M)'!AG73) -> 4.415031171 | L68: =IF(OR('[1]REAL IMAE(M)'!AN73="n.d."),"",'[1]REAL IMAE(M)'!AN73) -> 4.971176106 | U68: -0.4160763341 | AH68: n.d. | AI68: n.d. | AJ68: n.d. | AK68: 0.261726867 | AL68: 0.1551204787 | AM68: -0.1550189596 | AP68: 53.10577949 | AW68: 2.067685196 | AX68: n.d. | AY68: n.d. | AZ68: n.d. | BA68: n.d. | BB68: n.d. | BC68: n.d. | BD68: =IF(ISERROR(STANDARDIZE($AW68,AVERAGE($AW:$AW),STDEV('Datos mensuales'!$AH:$AH))),"n.d.",STANDARDIZE($AW68,AVERAGE('Datos mensuales'!$AH:$AH),STDEV('Datos mensuales'!$AH:$AH))) -> 0.9793618112 | BE68: =IF(ISERROR(STANDARDIZE($AX68,AVERAGE($AX:$AX),STDEV('Datos mensuales'!$AH:$AH))),"n.d.",STANDARDIZE($AX68,AVERAGE('Datos mensuales'!$AH:$AH),STDEV('Datos mensuales'!$AH:$AH))) -> n.d. | BF68: =IF(ISERROR(STANDARDIZE($AY68,AVERAGE($AY:$AY),STDEV('Datos mensuales'!$AH:$AH))),"n.d.",STANDARDIZE($AY68,AVERAGE('Datos mensuales'!$AH:$AH),STDEV('Datos mensuales'!$AH:$AH))) -> n.d. | BG68: =IF(ISERROR(STANDARDIZE($AZ68,AVERAGE($AZ:$AZ),STDEV('Datos mensuales'!$AH:$AH))),"n.d.",STANDARDIZE($AZ68,AVERAGE('Datos mensuales'!$AH:$AH),STDEV('Datos mensuales'!$AH:$AH))) -> n.d. | BH68: =IF(ISERROR(STANDARDIZE($BA68,AVERAGE($BA:$BA),STDEV('Datos mensuales'!$AH:$AH))),"n.d.",STANDARDIZE($BA68,AVERAGE('Datos mensuales'!$AH:$AH),STDEV('Datos mensuales'!$AH:$AH))) -> n.d. | BI68: =IF(ISERROR(STANDARDIZE($BB68,AVERAGE($BB:$BB),STDEV('Datos mensuales'!$AH:$AH))),"n.d.",STANDARDIZE($BB68,AVERAGE('Datos mensuales'!$AH:$AH),STDEV('Datos mensuales'!$AH:$AH))) -> n.d. | BJ68: =IF(ISERROR(STANDARDIZE($BC68,AVERAGE($BC:$BC),STDEV('Datos mensuales'!$AH:$AH))),"n.d.",STANDARDIZE($BC68,AVERAGE('Datos mensuales'!$AH:$AH),STDEV('Datos mensuales'!$AH:$AH))) -> n.d. | BK68: -0.04218465927 | BL68: n.d. | BM68: n.d. | BN68: n.d. | BO68: n.d. | BP68: n.d. | BQ68: n.d. | BR68: 0.2914165353 | BS68: n.d. | BT68: n.d. | BU68: n.d. | BV68: n.d. | BW68: n.d. | BX68: n.d.
B69: May | C69: =IF(OR('[1]REAL IMAE(M)'!AG74="n.d."),"",'[1]REAL IMAE(M)'!AG74) -> 4.112471964 | L69: =IF(OR('[1]REAL IMAE(M)'!AN74="n.d."),"",'[1]REAL IMAE(M)'!AN74) -> 4.797703451 | U69: -0.3025592068 | AC69: =IF(OR(K69="",K69="n.d.",K68="",K68="n.d."),"",K69-K68) ->  | AH69: n.d. | AI69: =IF(ISERROR(STANDARDIZE($AH69,AVERAGE($AH:$AH),STDEV($AH:$AH))),"n.d.",STANDARDIZE($AH69,AVERAGE($AH:$AH),STDEV($AH:$AH))) -> n.d. | AJ69: =IF(OR(AI69="",AI68=""),"",IF(OR(AI69="n.d.",AI68="n.d."),"n.d.",((AI69/AI68)-1))) -> n.d. | AK69: 0.1160776562 | AL69: =IF(ISERROR(STANDARDIZE($AK69,AVERAGE($AK:$AK),STDEV($AK:$AK))),"n.d.",STANDARDIZE($AK69,AVERAGE($AK:$AK),STDEV($AK:$AK))) -> 0.068771241 | AM69: -0.08634923769 | AP69: 53.23178433 | AW69: 2.015757663 | AX69: n.d. | AY69: n.d. | AZ69: n.d. | BA69: n.d. | BB69: n.d. | BC69: n.d. | BD69: =IF(ISERROR(STANDARDIZE($AW69,AVERAGE($AW:$AW),STDEV('Datos mensuales'!$AH:$AH))),"n.d.",STANDARDIZE($AW69,AVERAGE('Datos mensuales'!$AH:$AH),STDEV('Datos mensuales'!$AH:$AH))) -> 0.9547259356 | BE69: =IF(ISERROR(STANDARDIZE($AX69,AVERAGE($AX:$AX),STDEV('Datos mensuales'!$AH:$AH))),"n.d.",STANDARDIZE($AX69,AVERAGE('Datos mensuales'!$AH:$AH),STDEV('Datos mensuales'!$AH:$AH))) -> n.d. | BF69: =IF(ISERROR(STANDARDIZE($AY69,AVERAGE($AY:$AY),STDEV('Datos mensuales'!$AH:$AH))),"n.d.",STANDARDIZE($AY69,AVERAGE('Datos mensuales'!$AH:$AH),STDEV('Datos mensuales'!$AH:$AH))) -> n.d. | BG69: =IF(ISERROR(STANDARDIZE($AZ69,AVERAGE($AZ:$AZ),STDEV('Datos mensuales'!$AH:$AH))),"n.d.",STANDARDIZE($AZ69,AVERAGE('Datos mensuales'!$AH:$AH),STDEV('Datos mensuales'!$AH:$AH))) -> n.d. | BH69: =IF(ISERROR(STANDARDIZE($BA69,AVERAGE($BA:$BA),STDEV('Datos mensuales'!$AH:$AH))),"n.d.",STANDARDIZE($BA69,AVERAGE('Datos mensuales'!$AH:$AH),STDEV('Datos mensuales'!$AH:$AH))) -> n.d. | BI69: =IF(ISERROR(STANDARDIZE($BB69,AVERAGE($BB:$BB),STDEV('Datos mensuales'!$AH:$AH))),"n.d.",STANDARDIZE($BB69,AVERAGE('Datos mensuales'!$AH:$AH),STDEV('Datos mensuales'!$AH:$AH))) -> n.d. | BJ69: =IF(ISERROR(STANDARDIZE($BC69,AVERAGE($BC:$BC),STDEV('Datos mensuales'!$AH:$AH))),"n.d.",STANDARDIZE($BC69,AVERAGE('Datos mensuales'!$AH:$AH),STDEV('Datos mensuales'!$AH:$AH))) -> n.d. | BK69: -0.02463587562 | BL69: n.d. | BM69: n.d. | BN69: n.d. | BO69: n.d. | BP69: n.d. | BQ69: n.d. | BR69: 0.2267375061 | BS69: n.d. | BT69: n.d. | BU69: n.d. | BV69: n.d. | BW69: n.d. | BX69: n.d.
B70: Jun | C70: =IF(OR('[1]REAL IMAE(M)'!AG75="n.d."),"",'[1]REAL IMAE(M)'!AG75) -> 3.78812258 | L70: =IF(OR('[1]REAL IMAE(M)'!AN75="n.d."),"",'[1]REAL IMAE(M)'!AN75) -> 4.627468555 | U70: -0.3243493843 | AH70: n.d. | AI70: n.d. | AJ70: n.d. | AK70: -0.06564622661 | AL70: -0.03896513915 | AM70: =IF(OR(AL70="",AL69=""),"",IF(OR(AL70="n.d.",AL69="n.d."),"n.d.",AL70-AL69)) -> -0.1077363802 | AP70: 53.35429568 | AW70: 1.936695543 | AX70: n.d. | AY70: n.d. | AZ70: n.d. | BA70: n.d. | BB70: n.d. | BC70: n.d. | BD70: =IF(ISERROR(STANDARDIZE($AW70,AVERAGE($AW:$AW),STDEV('Datos mensuales'!$AH:$AH))),"n.d.",STANDARDIZE($AW70,AVERAGE('Datos mensuales'!$AH:$AH),STDEV('Datos mensuales'!$AH:$AH))) -> 0.9172166524 | BE70: =IF(ISERROR(STANDARDIZE($AX70,AVERAGE($AX:$AX),STDEV('Datos mensuales'!$AH:$AH))),"n.d.",STANDARDIZE($AX70,AVERAGE('Datos mensuales'!$AH:$AH),STDEV('Datos mensuales'!$AH:$AH))) -> n.d. | BF70: =IF(ISERROR(STANDARDIZE($AY70,AVERAGE($AY:$AY),STDEV('Datos mensuales'!$AH:$AH))),"n.d.",STANDARDIZE($AY70,AVERAGE('Datos mensuales'!$AH:$AH),STDEV('Datos mensuales'!$AH:$AH))) -> n.d. | BG70: =IF(ISERROR(STANDARDIZE($AZ70,AVERAGE($AZ:$AZ),STDEV('Datos mensuales'!$AH:$AH))),"n.d.",STANDARDIZE($AZ70,AVERAGE('Datos mensuales'!$AH:$AH),STDEV('Datos mensuales'!$AH:$AH))) -> n.d. | BH70: =IF(ISERROR(STANDARDIZE($BA70,AVERAGE($BA:$BA),STDEV('Datos mensuales'!$AH:$AH))),"n.d.",STANDARDIZE($BA70,AVERAGE('Datos mensuales'!$AH:$AH),STDEV('Datos mensuales'!$AH:$AH))) -> n.d. | BI70: =IF(ISERROR(STANDARDIZE($BB70,AVERAGE($BB:$BB),STDEV('Datos mensuales'!$AH:$AH))),"n.d.",STANDARDIZE($BB70,AVERAGE('Datos mensuales'!$AH:$AH),STDEV('Datos mensuales'!$AH:$AH))) -> n.d. | BJ70: =IF(ISERROR(STANDARDIZE($BC70,AVERAGE($BC:$BC),STDEV('Datos mensuales'!$AH:$AH))),"n.d.",STANDARDIZE($BC70,AVERAGE('Datos mensuales'!$AH:$AH),STDEV('Datos mensuales'!$AH:$AH))) -> n.d. | BK70: -0.03750928318 | BL70: n.d. | BM70: n.d. | BN70: n.d. | BO70: n.d. | BP70: n.d. | BQ70: n.d. | BR70: 0.1604328154 | BS70: n.d. | BT70: n.d. | BU70: n.d. | BV70: n.d. | BW70: n.d. | BX70: n.d.
B71: Jul | C71: =IF(OR('[1]REAL IMAE(M)'!AG76="n.d."),"",'[1]REAL IMAE(M)'!AG76) -> 3.394234372 | L71: =IF(OR('[1]REAL IMAE(M)'!AN76="n.d."),"",'[1]REAL IMAE(M)'!AN76) -> 4.448973515 | U71: =IF(OR(C71="",C71="n.d.",C70="",C70="n.d."),"",C71-C70) -> -0.3938882082 | V71: =IF(OR(D71="",D71="n.d.",D70="",D70="n.d."),"",D71-D70) ->  | W71: =IF(OR(E71="",E71="n.d.",E70="",E70="n.d."),"",E71-E70) ->  | X71: =IF(OR(F71="",F71="n.d.",F70="",F70="n.d."),"",F71-F70) ->  | Y71: =IF(OR(G71="",G71="n.d.",G70="",G70="n.d."),"",G71-G70) ->  | Z71: =IF(OR(H71="",H71="n.d.",H70="",H70="n.d."),"",H71-H70) ->  | AH71: n.d. | AI71: n.d. | AJ71: n.d. | AK71: -0.2119561446 | AL71: -0.1257060821 | AM71: -0.0867409429 | AP71: 53.47391846 | AW71: 1.793247978 | AX71: n.d. | AY71: n.d. | AZ71: n.d. | BA71: n.d. | BB71: n.d. | BC71: n.d. | BD71: =IF(ISERROR(STANDARDIZE($AW71,AVERAGE($AW:$AW),STDEV('Datos mensuales'!$AH:$AH))),"n.d.",STANDARDIZE($AW71,AVERAGE('Datos mensuales'!$AH:$AH),STDEV('Datos mensuales'!$AH:$AH))) -> 0.8491611108 | BE71: =IF(ISERROR(STANDARDIZE($AX71,AVERAGE($AX:$AX),STDEV('Datos mensuales'!$AH:$AH))),"n.d.",STANDARDIZE($AX71,AVERAGE('Datos mensuales'!$AH:$AH),STDEV('Datos mensuales'!$AH:$AH))) -> n.d. | BF71: =IF(ISERROR(STANDARDIZE($AY71,AVERAGE($AY:$AY),STDEV('Datos mensuales'!$AH:$AH))),"n.d.",STANDARDIZE($AY71,AVERAGE('Datos mensuales'!$AH:$AH),STDEV('Datos mensuales'!$AH:$AH))) -> n.d. | BG71: =IF(ISERROR(STANDARDIZE($AZ71,AVERAGE($AZ:$AZ),STDEV('Datos mensuales'!$AH:$AH))),"n.d.",STANDARDIZE($AZ71,AVERAGE('Datos mensuales'!$AH:$AH),STDEV('Datos mensuales'!$AH:$AH))) -> n.d. | BH71: =IF(ISERROR(STANDARDIZE($BA71,AVERAGE($BA:$BA),STDEV('Datos mensuales'!$AH:$AH))),"n.d.",STANDARDIZE($BA71,AVERAGE('Datos mensuales'!$AH:$AH),STDEV('Datos mensuales'!$AH:$AH))) -> n.d. | BI71: =IF(ISERROR(STANDARDIZE($BB71,AVERAGE($BB:$BB),STDEV('Datos mensuales'!$AH:$AH))),"n.d.",STANDARDIZE($BB71,AVERAGE('Datos mensuales'!$AH:$AH),STDEV('Datos mensuales'!$AH:$AH))) -> n.d. | BJ71: =IF(ISERROR(STANDARDIZE($BC71,AVERAGE($BC:$BC),STDEV('Datos mensuales'!$AH:$AH))),"n.d.",STANDARDIZE($BC71,AVERAGE('Datos mensuales'!$AH:$AH),STDEV('Datos mensuales'!$AH:$AH))) -> n.d. | BK71: =IF(OR(BD71="",BD70=""),"",IF(OR(BD71="n.d.",BD70="n.d."),"n.d.",BD71-BD70)) -> -0.06805554166 | BL71: =IF(OR(BE71="",BE70=""),"",IF(OR(BE71="n.d.",BE70="n.d."),"n.d.",BE71-BE70)) -> n.d. | BM71: =IF(OR(BF71="",BF70=""),"",IF(OR(BF71="n.d.",BF70="n.d."),"n.d.",BF71-BF70)) -> n.d. | BN71: =IF(OR(BG71="",BG70=""),"",IF(OR(BG71="n.d.",BG70="n.d."),"n.d.",BG71-BG70)) -> n.d. | BO71: =IF(OR(BH71="",BH70=""),"",IF(OR(BH71="n.d.",BH70="n.d."),"n.d.",BH71-BH70)) -> n.d. | BP71: =IF(OR(BI71="",BI70=""),"",IF(OR(BI71="n.d.",BI70="n.d."),"n.d.",BI71-BI70)) -> n.d. | BQ71: =IF(OR(BJ71="",BJ70=""),"",IF(OR(BJ71="n.d.",BJ70="n.d."),"n.d.",BJ71-BJ70)) -> n.d. | BR71: 0.06507133276 | BS71: n.d. | BT71: n.d. | BU71: n.d. | BV71: n.d. | BW71: n.d. | BX71: n.d.
B72: Ago | C72: =IF(OR('[1]REAL IMAE(M)'!AG77="n.d."),"",'[1]REAL IMAE(M)'!AG77) -> 2.949236445 | L72: =IF(OR('[1]REAL IMAE(M)'!AN77="n.d."),"",'[1]REAL IMAE(M)'!AN77) -> 4.258715016 | U72: -0.444997927 | AH72: n.d. | AI72: n.d. | AJ72: n.d. | AK72: -0.1225388913 | AL72: -0.07269438626 | AM72: 0.0530116958 | AP72: 53.59131633 | AW72: 1.635567637 | AX72: n.d. | AY72: n.d. | AZ72: n.d. | BA72: n.d. | BB72: n.d. | BC72: n.d. | BD72: =IF(ISERROR(STANDARDIZE($AW72,AVERAGE($AW:$AW),STDEV('Datos mensuales'!$AH:$AH))),"n.d.",STANDARDIZE($AW72,AVERAGE('Datos mensuales'!$AH:$AH),STDEV('Datos mensuales'!$AH:$AH))) -> 0.7743531419 | BE72: =IF(ISERROR(STANDARDIZE($AX72,AVERAGE($AX:$AX),STDEV('Datos mensuales'!$AH:$AH))),"n.d.",STANDARDIZE($AX72,AVERAGE('Datos mensuales'!$AH:$AH),STDEV('Datos mensuales'!$AH:$AH))) -> n.d. | BF72: =IF(ISERROR(STANDARDIZE($AY72,AVERAGE($AY:$AY),STDEV('Datos mensuales'!$AH:$AH))),"n.d.",STANDARDIZE($AY72,AVERAGE('Datos mensuales'!$AH:$AH),STDEV('Datos mensuales'!$AH:$AH))) -> n.d. | BG72: =IF(ISERROR(STANDARDIZE($AZ72,AVERAGE($AZ:$AZ),STDEV('Datos mensuales'!$AH:$AH))),"n.d.",STANDARDIZE($AZ72,AVERAGE('Datos mensuales'!$AH:$AH),STDEV('Datos mensuales'!$AH:$AH))) -> n.d. | BH72: =IF(ISERROR(STANDARDIZE($BA72,AVERAGE($BA:$BA),STDEV('Datos mensuales'!$AH:$AH))),"n.d.",STANDARDIZE($BA72,AVERAGE('Datos mensuales'!$AH:$AH),STDEV('Datos mensuales'!$AH:$AH))) -> n.d. | BI72: =IF(ISERROR(STANDARDIZE($BB72,AVERAGE($BB:$BB),STDEV('Datos mensuales'!$AH:$AH))),"n.d.",STANDARDIZE($BB72,AVERAGE('Datos mensuales'!$AH:$AH),STDEV('Datos mensuales'!$AH:$AH))) -> n.d. | BJ72: =IF(ISERROR(STANDARDIZE($BC72,AVERAGE($BC:$BC),STDEV('Datos mensuales'!$AH:$AH))),"n.d.",STANDARDIZE($BC72,AVERAGE('Datos mensuales'!$AH:$AH),STDEV('Datos mensuales'!$AH:$AH))) -> n.d. | BK72: -0.07480796883 | BL72: n.d. | BM72: n.d. | BN72: n.d. | BO72: n.d. | BP72: n.d. | BQ72: n.d. | BR72: -0.04876772313 | BS72: n.d. | BT72: n.d. | BU72: n.d. | BV72: n.d. | BW72: n.d. | BX72: n.d.
B73: Sep | C73: =IF(OR('[1]REAL IMAE(M)'!AG78="n.d."),"",'[1]REAL IMAE(M)'!AG78) -> 2.588852694 | L73: =IF(OR('[1]REAL IMAE(M)'!AN78="n.d."),"",'[1]REAL IMAE(M)'!AN78) -> 4.070177152 | U73: -0.3603837512 | AH73: n.d. | AI73: n.d. | AJ73: n.d. | AK73: -0.1191886714 | AL73: -0.07070818303 | AM73: 0.001986203233 | AP73: 53.70718461 | AW73: 1.496712159 | AX73: n.d. | AY73: n.d. | AZ73: n.d. | BA73: n.d. | BB73: n.d. | BC73: n.d. | BD73: =IF(ISERROR(STANDARDIZE($AW73,AVERAGE($AW:$AW),STDEV('Datos mensuales'!$AH:$AH))),"n.d.",STANDARDIZE($AW73,AVERAGE('Datos mensuales'!$AH:$AH),STDEV('Datos mensuales'!$AH:$AH))) -> 0.7084762152 | BE73: =IF(ISERROR(STANDARDIZE($AX73,AVERAGE($AX:$AX),STDEV('Datos mensuales'!$AH:$AH))),"n.d.",STANDARDIZE($AX73,AVERAGE('Datos mensuales'!$AH:$AH),STDEV('Datos mensuales'!$AH:$AH))) -> n.d. | BF73: =IF(ISERROR(STANDARDIZE($AY73,AVERAGE($AY:$AY),STDEV('Datos mensuales'!$AH:$AH))),"n.d.",STANDARDIZE($AY73,AVERAGE('Datos mensuales'!$AH:$AH),STDEV('Datos mensuales'!$AH:$AH))) -> n.d. | BG73: =IF(ISERROR(STANDARDIZE($AZ73,AVERAGE($AZ:$AZ),STDEV('Datos mensuales'!$AH:$AH))),"n.d.",STANDARDIZE($AZ73,AVERAGE('Datos mensuales'!$AH:$AH),STDEV('Datos mensuales'!$AH:$AH))) -> n.d. | BH73: =IF(ISERROR(STANDARDIZE($BA73,AVERAGE($BA:$BA),STDEV('Datos mensuales'!$AH:$AH))),"n.d.",STANDARDIZE($BA73,AVERAGE('Datos mensuales'!$AH:$AH),STDEV('Datos mensuales'!$AH:$AH))) -> n.d. | BI73: =IF(ISERROR(STANDARDIZE($BB73,AVERAGE($BB:$BB),STDEV('Datos mensuales'!$AH:$AH))),"n.d.",STANDARDIZE($BB73,AVERAGE('Datos mensuales'!$AH:$AH),STDEV('Datos mensuales'!$AH:$AH))) -> n.d. | BJ73: =IF(ISERROR(STANDARDIZE($BC73,AVERAGE($BC:$BC),STDEV('Datos mensuales'!$AH:$AH))),"n.d.",STANDARDIZE($BC73,AVERAGE('Datos mensuales'!$AH:$AH),STDEV('Datos mensuales'!$AH:$AH))) -> n.d. | BK73: -0.0658769267 | BL73: n.d. | BM73: n.d. | BN73: n.d. | BO73: n.d. | BP73: n.d. | BQ73: n.d. | BR73: -0.1316971239 | BS73: n.d. | BT73: n.d. | BU73: n.d. | BV73: n.d. | BW73: n.d. | BX73: n.d.
B74: Oct | C74: =IF(OR('[1]REAL IMAE(M)'!AG79="n.d."),"",'[1]REAL IMAE(M)'!AG79) -> 2.336904397 | L74: =IF(OR('[1]REAL IMAE(M)'!AN79="n.d."),"",'[1]REAL IMAE(M)'!AN79) -> 3.893940371 | U74: -0.2519482966 | AA74: =IF(OR(I74="",I74="n.d.",I73="",I73="n.d."),"",I74-I73) ->  | AB74: =IF(OR(J74="",J74="n.d.",J73="",J73="n.d."),"",J74-J73) ->  | AH74: n.d. | AI74: n.d. | AJ74: n.d. | AK74: -0.3274021416 | AL74: -0.1941491157 | AM74: -0.1234409327 | AP74: 53.82223103 | AW74: 1.383407524 | AX74: n.d. | AY74: n.d. | AZ74: n.d. | BA74: n.d. | BB74: n.d. | BC74: n.d. | BD74: =IF(ISERROR(STANDARDIZE($AW74,AVERAGE($AW:$AW),STDEV('Datos mensuales'!$AH:$AH))),"n.d.",STANDARDIZE($AW74,AVERAGE('Datos mensuales'!$AH:$AH),STDEV('Datos mensuales'!$AH:$AH))) -> 0.6547213238 | BE74: =IF(ISERROR(STANDARDIZE($AX74,AVERAGE($AX:$AX),STDEV('Datos mensuales'!$AH:$AH))),"n.d.",STANDARDIZE($AX74,AVERAGE('Datos mensuales'!$AH:$AH),STDEV('Datos mensuales'!$AH:$AH))) -> n.d. | BF74: =IF(ISERROR(STANDARDIZE($AY74,AVERAGE($AY:$AY),STDEV('Datos mensuales'!$AH:$AH))),"n.d.",STANDARDIZE($AY74,AVERAGE('Datos mensuales'!$AH:$AH),STDEV('Datos mensuales'!$AH:$AH))) -> n.d. | BG74: =IF(ISERROR(STANDARDIZE($AZ74,AVERAGE($AZ:$AZ),STDEV('Datos mensuales'!$AH:$AH))),"n.d.",STANDARDIZE($AZ74,AVERAGE('Datos mensuales'!$AH:$AH),STDEV('Datos mensuales'!$AH:$AH))) -> n.d. | BH74: =IF(ISERROR(STANDARDIZE($BA74,AVERAGE($BA:$BA),STDEV('Datos mensuales'!$AH:$AH))),"n.d.",STANDARDIZE($BA74,AVERAGE('Datos mensuales'!$AH:$AH),STDEV('Datos mensuales'!$AH:$AH))) -> n.d. | BI74: =IF(ISERROR(STANDARDIZE($BB74,AVERAGE($BB:$BB),STDEV('Datos mensuales'!$AH:$AH))),"n.d.",STANDARDIZE($BB74,AVERAGE('Datos mensuales'!$AH:$AH),STDEV('Datos mensuales'!$AH:$AH))) -> n.d. | BJ74: =IF(ISERROR(STANDARDIZE($BC74,AVERAGE($BC:$BC),STDEV('Datos mensuales'!$AH:$AH))),"n.d.",STANDARDIZE($BC74,AVERAGE('Datos mensuales'!$AH:$AH),STDEV('Datos mensuales'!$AH:$AH))) -> n.d. | BK74: -0.0537548914 | BL74: n.d. | BM74: n.d. | BN74: n.d. | BO74: n.d. | BP74: n.d. | BQ74: n.d. | BR74: -0.1755582907 | BS74: n.d. | BT74: n.d. | BU74: n.d. | BV74: n.d. | BW74: n.d. | BX74: n.d.
B75: Nov | C75: =IF(OR('[1]REAL IMAE(M)'!AG80="n.d."),"",'[1]REAL IMAE(M)'!AG80) -> 2.277785939 | L75: =IF(OR('[1]REAL IMAE(M)'!AN80="n.d."),"",'[1]REAL IMAE(M)'!AN80) -> 3.744477064 | U75: -0.05911845784 | AH75: n.d. | AI75: n.d. | AJ75: n.d. | AK75: -0.5459458666 | AL75: -0.3237144182 | AM75: -0.1295653025 | AP75: 53.9371642 | AW75: 1.385310042 | AX75: n.d. | AY75: n.d. | AZ75: n.d. | BA75: n.d. | BB75: n.d. | BC75: n.d. | BD75: =IF(ISERROR(STANDARDIZE($AW75,AVERAGE($AW:$AW),STDEV('Datos mensuales'!$AH:$AH))),"n.d.",STANDARDIZE($AW75,AVERAGE('Datos mensuales'!$AH:$AH),STDEV('Datos mensuales'!$AH:$AH))) -> 0.6556239316 | BE75: =IF(ISERROR(STANDARDIZE($AX75,AVERAGE($AX:$AX),STDEV('Datos mensuales'!$AH:$AH))),"n.d.",STANDARDIZE($AX75,AVERAGE('Datos mensuales'!$AH:$AH),STDEV('Datos mensuales'!$AH:$AH))) -> n.d. | BF75: =IF(ISERROR(STANDARDIZE($AY75,AVERAGE($AY:$AY),STDEV('Datos mensuales'!$AH:$AH))),"n.d.",STANDARDIZE($AY75,AVERAGE('Datos mensuales'!$AH:$AH),STDEV('Datos mensuales'!$AH:$AH))) -> n.d. | BG75: =IF(ISERROR(STANDARDIZE($AZ75,AVERAGE($AZ:$AZ),STDEV('Datos mensuales'!$AH:$AH))),"n.d.",STANDARDIZE($AZ75,AVERAGE('Datos mensuales'!$AH:$AH),STDEV('Datos mensuales'!$AH:$AH))) -> n.d. | BH75: =IF(ISERROR(STANDARDIZE($BA75,AVERAGE($BA:$BA),STDEV('Datos mensuales'!$AH:$AH))),"n.d.",STANDARDIZE($BA75,AVERAGE('Datos mensuales'!$AH:$AH),STDEV('Datos mensuales'!$AH:$AH))) -> n.d. | BI75: =IF(ISERROR(STANDARDIZE($BB75,AVERAGE($BB:$BB),STDEV('Datos mensuales'!$AH:$AH))),"n.d.",STANDARDIZE($BB75,AVERAGE('Datos mensuales'!$AH:$AH),STDEV('Datos mensuales'!$AH:$AH))) -> n.d. | BJ75: =IF(ISERROR(STANDARDIZE($BC75,AVERAGE($BC:$BC),STDEV('Datos mensuales'!$AH:$AH))),"n.d.",STANDARDIZE($BC75,AVERAGE('Datos mensuales'!$AH:$AH),STDEV('Datos mensuales'!$AH:$AH))) -> n.d. | BK75: 0.0009026077292 | BL75: n.d. | BM75: n.d. | BN75: n.d. | BO75: n.d. | BP75: n.d. | BQ75: n.d. | BR75: -0.1472360593 | BS75: n.d. | BT75: n.d. | BU75: n.d. | BV75: n.d. | BW75: n.d. | BX75: n.d.
B76: Dic | C76: =IF(OR('[1]REAL IMAE(M)'!AG81="n.d."),"",'[1]REAL IMAE(M)'!AG81) -> 1.942996941 | L76: =IF(OR('[1]REAL IMAE(M)'!AN81="n.d."),"",'[1]REAL IMAE(M)'!AN81) -> 3.591353174 | U76: -0.3347889981 | AH76: n.d. | AI76: n.d. | AJ76: n.d. | AK76: -0.8165338457 | AL76: -0.4841345508 | AM76: -0.1604201327 | AP76: 54.05269051 | AW76: 1.352927971 | AX76: n.d. | AY76: n.d. | AZ76: n.d. | BA76: n.d. | BB76: n.d. | BC76: n.d. | BD76: =IF(ISERROR(STANDARDIZE($AW76,AVERAGE($AW:$AW),STDEV('Datos mensuales'!$AH:$AH))),"n.d.",STANDARDIZE($AW76,AVERAGE('Datos mensuales'!$AH:$AH),STDEV('Datos mensuales'!$AH:$AH))) -> 0.6402609703 | BE76: =IF(ISERROR(STANDARDIZE($AX76,AVERAGE($AX:$AX),STDEV('Datos mensuales'!$AH:$AH))),"n.d.",STANDARDIZE($AX76,AVERAGE('Datos mensuales'!$AH:$AH),STDEV('Datos mensuales'!$AH:$AH))) -> n.d. | BF76: =IF(ISERROR(STANDARDIZE($AY76,AVERAGE($AY:$AY),STDEV('Datos mensuales'!$AH:$AH))),"n.d.",STANDARDIZE($AY76,AVERAGE('Datos mensuales'!$AH:$AH),STDEV('Datos mensuales'!$AH:$AH))) -> n.d. | BG76: =IF(ISERROR(STANDARDIZE($AZ76,AVERAGE($AZ:$AZ),STDEV('Datos mensuales'!$AH:$AH))),"n.d.",STANDARDIZE($AZ76,AVERAGE('Datos mensuales'!$AH:$AH),STDEV('Datos mensuales'!$AH:$AH))) -> n.d. | BH76: =IF(ISERROR(STANDARDIZE($BA76,AVERAGE($BA:$BA),STDEV('Datos mensuales'!$AH:$AH))),"n.d.",STANDARDIZE($BA76,AVERAGE('Datos mensuales'!$AH:$AH),STDEV('Datos mensuales'!$AH:$AH))) -> n.d. | BI76: =IF(ISERROR(STANDARDIZE($BB76,AVERAGE($BB:$BB),STDEV('Datos mensuales'!$AH:$AH))),"n.d.",STANDARDIZE($BB76,AVERAGE('Datos mensuales'!$AH:$AH),STDEV('Datos mensuales'!$AH:$AH))) -> n.d. | BJ76: =IF(ISERROR(STANDARDIZE($BC76,AVERAGE($BC:$BC),STDEV('Datos mensuales'!$AH:$AH))),"n.d.",STANDARDIZE($BC76,AVERAGE('Datos mensuales'!$AH:$AH),STDEV('Datos mensuales'!$AH:$AH))) -> n.d. | BK76: -0.0153629613 | BL76: n.d. | BM76: n.d. | BN76: n.d. | BO76: n.d. | BP76: n.d. | BQ76: n.d. | BR76: -0.221252131 | BS76: n.d. | BT76: n.d. | BU76: n.d. | BV76: n.d. | BW76: n.d. | BX76: n.d.
A77: 1996 | B77: Ene | C77: =IF(OR('[1]REAL IMAE(M)'!AG82="n.d."),"",'[1]REAL IMAE(M)'!AG82) -> 0.9433718401 | L77: =IF(OR('[1]REAL IMAE(M)'!AN82="n.d."),"",'[1]REAL IMAE(M)'!AN82) -> 0.9433718401 | U77: -0.9996251011 | AH77: n.d. | AI77: n.d. | AJ77: n.d. | AK77: -1.000256676 | AL77: -0.5930560223 | AM77: -0.1089214715 | AP77: 54.16951237 | AW77: 1.049695468 | AX77: n.d. | AY77: n.d. | AZ77: n.d. | BA77: n.d. | BB77: n.d. | BC77: n.d. | BD77: =IF(ISERROR(STANDARDIZE($AW77,AVERAGE($AW:$AW),STDEV('Datos mensuales'!$AH:$AH))),"n.d.",STANDARDIZE($AW77,AVERAGE('Datos mensuales'!$AH:$AH),STDEV('Datos mensuales'!$AH:$AH))) -> 0.4963989805 | BE77: =IF(ISERROR(STANDARDIZE($AX77,AVERAGE($AX:$AX),STDEV('Datos mensuales'!$AH:$AH))),"n.d.",STANDARDIZE($AX77,AVERAGE('Datos mensuales'!$AH:$AH),STDEV('Datos mensuales'!$AH:$AH))) -> n.d. | BF77: =IF(ISERROR(STANDARDIZE($AY77,AVERAGE($AY:$AY),STDEV('Datos mensuales'!$AH:$AH))),"n.d.",STANDARDIZE($AY77,AVERAGE('Datos mensuales'!$AH:$AH),STDEV('Datos mensuales'!$AH:$AH))) -> n.d. | BG77: =IF(ISERROR(STANDARDIZE($AZ77,AVERAGE($AZ:$AZ),STDEV('Datos mensuales'!$AH:$AH))),"n.d.",STANDARDIZE($AZ77,AVERAGE('Datos mensuales'!$AH:$AH),STDEV('Datos mensuales'!$AH:$AH))) -> n.d. | BH77: =IF(ISERROR(STANDARDIZE($BA77,AVERAGE($BA:$BA),STDEV('Datos mensuales'!$AH:$AH))),"n.d.",STANDARDIZE($BA77,AVERAGE('Datos mensuales'!$AH:$AH),STDEV('Datos mensuales'!$AH:$AH))) -> n.d. | BI77: =IF(ISERROR(STANDARDIZE($BB77,AVERAGE($BB:$BB),STDEV('Datos mensuales'!$AH:$AH))),"n.d.",STANDARDIZE($BB77,AVERAGE('Datos mensuales'!$AH:$AH),STDEV('Datos mensuales'!$AH:$AH))) -> n.d. | BJ77: =IF(ISERROR(STANDARDIZE($BC77,AVERAGE($BC:$BC),STDEV('Datos mensuales'!$AH:$AH))),"n.d.",STANDARDIZE($BC77,AVERAGE('Datos mensuales'!$AH:$AH),STDEV('Datos mensuales'!$AH:$AH))) -> n.d. | BK77: -0.1438619898 | BL77: n.d. | BM77: n.d. | BN77: n.d. | BO77: n.d. | BP77: n.d. | BQ77: n.d. | BR77: -0.4862509396 | BS77: n.d. | BT77: n.d. | BU77: n.d. | BV77: n.d. | BW77: n.d. | BX77: n.d.
B78: Feb | C78: =IF(OR('[1]REAL IMAE(M)'!AG83="n.d."),"",'[1]REAL IMAE(M)'!AG83) -> 0.123650203 | L78: =IF(OR('[1]REAL IMAE(M)'!AN83="n.d."),"",'[1]REAL IMAE(M)'!AN83) -> 0.5324701023 | U78: -0.8197216371 | AH78: n.d. | AI78: n.d. | AJ78: n.d. | AK78: -0.9739830619 | AL78: -0.5774795111 | AM78: 0.01557651126 | AP78: 54.28832368 | AW78: 0.711659403 | AX78: n.d. | AY78: n.d. | AZ78: n.d. | BA78: n.d. | BB78: n.d. | BC78: n.d. | BD78: =IF(ISERROR(STANDARDIZE($AW78,AVERAGE($AW:$AW),STDEV('Datos mensuales'!$AH:$AH))),"n.d.",STANDARDIZE($AW78,AVERAGE('Datos mensuales'!$AH:$AH),STDEV('Datos mensuales'!$AH:$AH))) -> 0.3360252059 | BE78: =IF(ISERROR(STANDARDIZE($AX78,AVERAGE($AX:$AX),STDEV('Datos mensuales'!$AH:$AH))),"n.d.",STANDARDIZE($AX78,AVERAGE('Datos mensuales'!$AH:$AH),STDEV('Datos mensuales'!$AH:$AH))) -> n.d. | BF78: =IF(ISERROR(STANDARDIZE($AY78,AVERAGE($AY:$AY),STDEV('Datos mensuales'!$AH:$AH))),"n.d.",STANDARDIZE($AY78,AVERAGE('Datos mensuales'!$AH:$AH),STDEV('Datos mensuales'!$AH:$AH))) -> n.d. | BG78: =IF(ISERROR(STANDARDIZE($AZ78,AVERAGE($AZ:$AZ),STDEV('Datos mensuales'!$AH:$AH))),"n.d.",STANDARDIZE($AZ78,AVERAGE('Datos mensuales'!$AH:$AH),STDEV('Datos mensuales'!$AH:$AH))) -> n.d. | BH78: =IF(ISERROR(STANDARDIZE($BA78,AVERAGE($BA:$BA),STDEV('Datos mensuales'!$AH:$AH))),"n.d.",STANDARDIZE($BA78,AVERAGE('Datos mensuales'!$AH:$AH),STDEV('Datos mensuales'!$AH:$AH))) -> n.d. | BI78: =IF(ISERROR(STANDARDIZE($BB78,AVERAGE($BB:$BB),STDEV('Datos mensuales'!$AH:$AH))),"n.d.",STANDARDIZE($BB78,AVERAGE('Datos mensuales'!$AH:$AH),STDEV('Datos mensuales'!$AH:$AH))) -> n.d. | BJ78: =IF(ISERROR(STANDARDIZE($BC78,AVERAGE($BC:$BC),STDEV('Datos mensuales'!$AH:$AH))),"n.d.",STANDARDIZE($BC78,AVERAGE('Datos mensuales'!$AH:$AH),STDEV('Datos mensuales'!$AH:$AH))) -> n.d. | BK78: -0.1603737746 | BL78: n.d. | BM78: n.d. | BN78: n.d. | BO78: n.d. | BP78: n.d. | BQ78: n.d. | BR78: -0.6794052927 | BS78: n.d. | BT78: n.d. | BU78: n.d. | BV78: n.d. | BW78: n.d. | BX78: n.d.
B79: Mar | C79: =IF(OR('[1]REAL IMAE(M)'!AG84="n.d."),"",'[1]REAL IMAE(M)'!AG84) -> -0.07581888315 | L79: =IF(OR('[1]REAL IMAE(M)'!AN84="n.d."),"",'[1]REAL IMAE(M)'!AN84) -> 0.3291381197 | U79: -0.1994690862 | AH79: n.d. | AI79: n.d. | AJ79: n.d. | AK79: -0.9154811868 | AL79: -0.5427962313 | AM79: 0.03468327973 | AP79: 54.40979543 | AW79: 0.5583827453 | AX79: n.d. | AY79: n.d. | AZ79: n.d. | BA79: n.d. | BB79: n.d. | BC79: n.d. | BD79: =IF(ISERROR(STANDARDIZE($AW79,AVERAGE($AW:$AW),STDEV('Datos mensuales'!$AH:$AH))),"n.d.",STANDARDIZE($AW79,AVERAGE('Datos mensuales'!$AH:$AH),STDEV('Datos mensuales'!$AH:$AH))) -> 0.2633064676 | BE79: =IF(ISERROR(STANDARDIZE($AX79,AVERAGE($AX:$AX),STDEV('Datos mensuales'!$AH:$AH))),"n.d.",STANDARDIZE($AX79,AVERAGE('Datos mensuales'!$AH:$AH),STDEV('Datos mensuales'!$AH:$AH))) -> n.d. | BF79: =IF(ISERROR(STANDARDIZE($AY79,AVERAGE($AY:$AY),STDEV('Datos mensuales'!$AH:$AH))),"n.d.",STANDARDIZE($AY79,AVERAGE('Datos mensuales'!$AH:$AH),STDEV('Datos mensuales'!$AH:$AH))) -> n.d. | BG79: =IF(ISERROR(STANDARDIZE($AZ79,AVERAGE($AZ:$AZ),STDEV('Datos mensuales'!$AH:$AH))),"n.d.",STANDARDIZE($AZ79,AVERAGE('Datos mensuales'!$AH:$AH),STDEV('Datos mensuales'!$AH:$AH))) -> n.d. | BH79: =IF(ISERROR(STANDARDIZE($BA79,AVERAGE($BA:$BA),STDEV('Datos mensuales'!$AH:$AH))),"n.d.",STANDARDIZE($BA79,AVERAGE('Datos mensuales'!$AH:$AH),STDEV('Datos mensuales'!$AH:$AH))) -> n.d. | BI79: =IF(ISERROR(STANDARDIZE($BB79,AVERAGE($BB:$BB),STDEV('Datos mensuales'!$AH:$AH))),"n.d.",STANDARDIZE($BB79,AVERAGE('Datos mensuales'!$AH:$AH),STDEV('Datos mensuales'!$AH:$AH))) -> n.d. | BJ79: =IF(ISERROR(STANDARDIZE($BC79,AVERAGE($BC:$BC),STDEV('Datos mensuales'!$AH:$AH))),"n.d.",STANDARDIZE($BC79,AVERAGE('Datos mensuales'!$AH:$AH),STDEV('Datos mensuales'!$AH:$AH))) -> n.d. | BK79: -0.07271873823 | BL79: n.d. | BM79: n.d. | BN79: n.d. | BO79: n.d. | BP79: n.d. | BQ79: n.d. | BR79: -0.7422471955 | BS79: n.d. | BT79: n.d. | BU79: n.d. | BV79: n.d. | BW79: n.d. | BX79: n.d.
B80: Abr | C80: =IF(OR('[1]REAL IMAE(M)'!AG85="n.d."),"",'[1]REAL IMAE(M)'!AG85) -> -0.11239646 | L80: =IF(OR('[1]REAL IMAE(M)'!AN85="n.d."),"",'[1]REAL IMAE(M)'!AN85) -> 0.2184294698 | U80: -0.03657757683 | AH80: n.d. | AI80: n.d. | AJ80: n.d. | AK80: -0.7649522695 | AL80: -0.4535540227 | AM80: 0.08924220861 | AP80: 54.53455433 | AW80: 0.4765779142 | AX80: n.d. | AY80: n.d. | AZ80: n.d. | BA80: n.d. | BB80: n.d. | BC80: n.d. | BD80: =IF(ISERROR(STANDARDIZE($AW80,AVERAGE($AW:$AW),STDEV('Datos mensuales'!$AH:$AH))),"n.d.",STANDARDIZE($AW80,AVERAGE('Datos mensuales'!$AH:$AH),STDEV('Datos mensuales'!$AH:$AH))) -> 0.2244959652 | BE80: =IF(ISERROR(STANDARDIZE($AX80,AVERAGE($AX:$AX),STDEV('Datos mensuales'!$AH:$AH))),"n.d.",STANDARDIZE($AX80,AVERAGE('Datos mensuales'!$AH:$AH),STDEV('Datos mensuales'!$AH:$AH))) -> n.d. | BF80: =IF(ISERROR(STANDARDIZE($AY80,AVERAGE($AY:$AY),STDEV('Datos mensuales'!$AH:$AH))),"n.d.",STANDARDIZE($AY80,AVERAGE('Datos mensuales'!$AH:$AH),STDEV('Datos mensuales'!$AH:$AH))) -> n.d. | BG80: =IF(ISERROR(STANDARDIZE($AZ80,AVERAGE($AZ:$AZ),STDEV('Datos mensuales'!$AH:$AH))),"n.d.",STANDARDIZE($AZ80,AVERAGE('Datos mensuales'!$AH:$AH),STDEV('Datos mensuales'!$AH:$AH))) -> n.d. | BH80: =IF(ISERROR(STANDARDIZE($BA80,AVERAGE($BA:$BA),STDEV('Datos mensuales'!$AH:$AH))),"n.d.",STANDARDIZE($BA80,AVERAGE('Datos mensuales'!$AH:$AH),STDEV('Datos mensuales'!$AH:$AH))) -> n.d. | BI80: =IF(ISERROR(STANDARDIZE($BB80,AVERAGE($BB:$BB),STDEV('Datos mensuales'!$AH:$AH))),"n.d.",STANDARDIZE($BB80,AVERAGE('Datos mensuales'!$AH:$AH),STDEV('Datos mensuales'!$AH:$AH))) -> n.d. | BJ80: =IF(ISERROR(STANDARDIZE($BC80,AVERAGE($BC:$BC),STDEV('Datos mensuales'!$AH:$AH))),"n.d.",STANDARDIZE($BC80,AVERAGE('Datos mensuales'!$AH:$AH),STDEV('Datos mensuales'!$AH:$AH))) -> n.d. | BK80: -0.03881050241 | BL80: n.d. | BM80: n.d. | BN80: n.d. | BO80: n.d. | BP80: n.d. | BQ80: n.d. | BR80: -0.770773209 | BS80: n.d. | BT80: n.d. | BU80: n.d. | BV80: n.d. | BW80: n.d. | BX80: n.d.
B81: May | C81: =IF(OR('[1]REAL IMAE(M)'!AG86="n.d."),"",'[1]REAL IMAE(M)'!AG86) -> -0.1198729696 | L81: =IF(OR('[1]REAL IMAE(M)'!AN86="n.d."),"",'[1]REAL IMAE(M)'!AN86) -> 0.1505335635 | U81: -0.00747650966 | AH81: n.d. | AI81: n.d. | AJ81: n.d. | AK81: -0.5641985937 | AL81: -0.3345356857 | AM81: 0.1190183371 | AP81: 54.66316177 | AW81: 0.4269526124 | AX81: n.d. | AY81: n.d. | AZ81: n.d. | BA81: n.d. | BB81: n.d. | BC81: n.d. | BD81: =IF(ISERROR(STANDARDIZE($AW81,AVERAGE($AW:$AW),STDEV('Datos mensuales'!$AH:$AH))),"n.d.",STANDARDIZE($AW81,AVERAGE('Datos mensuales'!$AH:$AH),STDEV('Datos mensuales'!$AH:$AH))) -> 0.2009523325 | BE81: =IF(ISERROR(STANDARDIZE($AX81,AVERAGE($AX:$AX),STDEV('Datos mensuales'!$AH:$AH))),"n.d.",STANDARDIZE($AX81,AVERAGE('Datos mensuales'!$AH:$AH),STDEV('Datos mensuales'!$AH:$AH))) -> n.d. | BF81: =IF(ISERROR(STANDARDIZE($AY81,AVERAGE($AY:$AY),STDEV('Datos mensuales'!$AH:$AH))),"n.d.",STANDARDIZE($AY81,AVERAGE('Datos mensuales'!$AH:$AH),STDEV('Datos mensuales'!$AH:$AH))) -> n.d. | BG81: =IF(ISERROR(STANDARDIZE($AZ81,AVERAGE($AZ:$AZ),STDEV('Datos mensuales'!$AH:$AH))),"n.d.",STANDARDIZE($AZ81,AVERAGE('Datos mensuales'!$AH:$AH),STDEV('Datos mensuales'!$AH:$AH))) -> n.d. | BH81: =IF(ISERROR(STANDARDIZE($BA81,AVERAGE($BA:$BA),STDEV('Datos mensuales'!$AH:$AH))),"n.d.",STANDARDIZE($BA81,AVERAGE('Datos mensuales'!$AH:$AH),STDEV('Datos mensuales'!$AH:$AH))) -> n.d. | BI81: =IF(ISERROR(STANDARDIZE($BB81,AVERAGE($BB:$BB),STDEV('Datos mensuales'!$AH:$AH))),"n.d.",STANDARDIZE($BB81,AVERAGE('Datos mensuales'!$AH:$AH),STDEV('Datos mensuales'!$AH:$AH))) -> n.d. | BJ81: =IF(ISERROR(STANDARDIZE($BC81,AVERAGE($BC:$BC),STDEV('Datos mensuales'!$AH:$AH))),"n.d.",STANDARDIZE($BC81,AVERAGE('Datos mensuales'!$AH:$AH),STDEV('Datos mensuales'!$AH:$AH))) -> n.d. | BK81: -0.02354363274 | BL81: n.d. | BM81: n.d. | BN81: n.d. | BO81: n.d. | BP81: n.d. | BQ81: n.d. | BR81: =IF(OR(BD81="",BD69=""),"",IF(OR(BD81="n.d.",BD69="n.d."),"n.d.",IF(OR(AND(BD81>0,BD69>0),AND(BD81<0,BD69>0)),BD81/BD69 -1,IF(OR(AND(BD81>0,BD69<0),AND(BD81<0,BD69<0)),-(BD81/BD69 -1),"n.a.")))) -> -0.7895183057 | BS81: =IF(OR(BE81="",BE69=""),"",IF(OR(BE81="n.d.",BE69="n.d."),"n.d.",IF(OR(AND(BE81>0,BE69>0),AND(BE81<0,BE69>0)),BE81/BE69 -1,IF(OR(AND(BE81>0,BE69<0),AND(BE81<0,BE69<0)),-(BE81/BE69 -1),"n.a.")))) -> n.d. | BT81: =IF(OR(BF81="",BF69=""),"",IF(OR(BF81="n.d.",BF69="n.d."),"n.d.",IF(OR(AND(BF81>0,BF69>0),AND(BF81<0,BF69>0)),BF81/BF69 -1,IF(OR(AND(BF81>0,BF69<0),AND(BF81<0,BF69<0)),-(BF81/BF69 -1),"n.a.")))) -> n.d. | BU81: =IF(OR(BG81="",BG69=""),"",IF(OR(BG81="n.d.",BG69="n.d."),"n.d.",IF(OR(AND(BG81>0,BG69>0),AND(BG81<0,BG69>0)),BG81/BG69 -1,IF(OR(AND(BG81>0,BG69<0),AND(BG81<0,BG69<0)),-(BG81/BG69 -1),"n.a.")))) -> n.d. | BV81: =IF(OR(BH81="",BH69=""),"",IF(OR(BH81="n.d.",BH69="n.d."),"n.d.",IF(OR(AND(BH81>0,BH69>0),AND(BH81<0,BH69>0)),BH81/BH69 -1,IF(OR(AND(BH81>0,BH69<0),AND(BH81<0,BH69<0)),-(BH81/BH69 -1),"n.a.")))) -> n.d. | BW81: =IF(OR(BI81="",BI69=""),"",IF(OR(BI81="n.d.",BI69="n.d."),"n.d.",IF(OR(AND(BI81>0,BI69>0),AND(BI81<0,BI69>0)),BI81/BI69 -1,IF(OR(AND(BI81>0,BI69<0),AND(BI81<0,BI69<0)),-(BI81/BI69 -1),"n.a.")))) -> n.d. | BX81: =IF(OR(BJ81="",BJ69=""),"",IF(OR(BJ81="n.d.",BJ69="n.d."),"n.d.",IF(OR(AND(BJ81>0,BJ69>0),AND(BJ81<0,BJ69>0)),BJ81/BJ69 -1,IF(OR(AND(BJ81>0,BJ69<0),AND(BJ81<0,BJ69<0)),-(BJ81/BJ69 -1),"n.a.")))) -> n.d.
B82: Jun | C82: =IF(OR('[1]REAL IMAE(M)'!AG87="n.d."),"",'[1]REAL IMAE(M)'!AG87) -> 0.03643135492 | L82: =IF(OR('[1]REAL IMAE(M)'!AN87="n.d."),"",'[1]REAL IMAE(M)'!AN87) -> 0.1314480669 | U82: 0.1563043246 | AH82: n.d. | AI82: n.d. | AJ82: n.d. | AK82: -0.5270264829 | AL82: -0.3124979183 | AM82: 0.02203776736 | AP82: 54.79609761 | AW82: 0.4425612884 | AX82: n.d. | AY82: n.d. | AZ82: n.d. | BA82: n.d. | BB82: n.d. | BC82: n.d. | BD82: =IF(ISERROR(STANDARDIZE($AW82,AVERAGE($AW:$AW),STDEV('Datos mensuales'!$AH:$AH))),"n.d.",STANDARDIZE($AW82,AVERAGE('Datos mensuales'!$AH:$AH),STDEV('Datos mensuales'!$AH:$AH))) -> 0.2083575254 | BE82: =IF(ISERROR(STANDARDIZE($AX82,AVERAGE($AX:$AX),STDEV('Datos mensuales'!$AH:$AH))),"n.d.",STANDARDIZE($AX82,AVERAGE('Datos mensuales'!$AH:$AH),STDEV('Datos mensuales'!$AH:$AH))) -> n.d. | BF82: =IF(ISERROR(STANDARDIZE($AY82,AVERAGE($AY:$AY),STDEV('Datos mensuales'!$AH:$AH))),"n.d.",STANDARDIZE($AY82,AVERAGE('Datos mensuales'!$AH:$AH),STDEV('Datos mensuales'!$AH:$AH))) -> n.d. | BG82: =IF(ISERROR(STANDARDIZE($AZ82,AVERAGE($AZ:$AZ),STDEV('Datos mensuales'!$AH:$AH))),"n.d.",STANDARDIZE($AZ82,AVERAGE('Datos mensuales'!$AH:$AH),STDEV('Datos mensuales'!$AH:$AH))) -> n.d. | BH82: =IF(ISERROR(STANDARDIZE($BA82,AVERAGE($BA:$BA),STDEV('Datos mensuales'!$AH:$AH))),"n.d.",STANDARDIZE($BA82,AVERAGE('Datos mensuales'!$AH:$AH),STDEV('Datos mensuales'!$AH:$AH))) -> n.d. | BI82: =IF(ISERROR(STANDARDIZE($BB82,AVERAGE($BB:$BB),STDEV('Datos mensuales'!$AH:$AH))),"n.d.",STANDARDIZE($BB82,AVERAGE('Datos mensuales'!$AH:$AH),STDEV('Datos mensuales'!$AH:$AH))) -> n.d. | BJ82: =IF(ISERROR(STANDARDIZE($BC82,AVERAGE($BC:$BC),STDEV('Datos mensuales'!$AH:$AH))),"n.d.",STANDARDIZE($BC82,AVERAGE('Datos mensuales'!$AH:$AH),STDEV('Datos mensuales'!$AH:$AH))) -> n.d. | BK82: 0.007405192953 | BL82: n.d. | BM82: n.d. | BN82: n.d. | BO82: n.d. | BP82: n.d. | BQ82: n.d. | BR82: -0.7728371755 | BS82: n.d. | BT82: n.d. | BU82: n.d. | BV82: n.d. | BW82: n.d. | BX82: n.d.
B83: Jul | C83: =IF(OR('[1]REAL IMAE(M)'!AG88="n.d."),"",'[1]REAL IMAE(M)'!AG88) -> 0.3167852167 | L83: =IF(OR('[1]REAL IMAE(M)'!AN88="n.d."),"",'[1]REAL IMAE(M)'!AN88) -> 0.1580023894 | U83: 0.2803538618 | AH83: n.d. | AI83: n.d. | AJ83: n.d. | AK83: -0.6226411539 | AL83: -0.3691838001 | AM83: -0.05668588178 | AP83: 54.93375607 | AW83: 0.4656477273 | AX83: n.d. | AY83: n.d. | AZ83: n.d. | BA83: n.d. | BB83: n.d. | BC83: n.d. | BD83: =IF(ISERROR(STANDARDIZE($AW83,AVERAGE($AW:$AW),STDEV('Datos mensuales'!$AH:$AH))),"n.d.",STANDARDIZE($AW83,AVERAGE('Datos mensuales'!$AH:$AH),STDEV('Datos mensuales'!$AH:$AH))) -> 0.2193103785 | BE83: =IF(ISERROR(STANDARDIZE($AX83,AVERAGE($AX:$AX),STDEV('Datos mensuales'!$AH:$AH))),"n.d.",STANDARDIZE($AX83,AVERAGE('Datos mensuales'!$AH:$AH),STDEV('Datos mensuales'!$AH:$AH))) -> n.d. | BF83: =IF(ISERROR(STANDARDIZE($AY83,AVERAGE($AY:$AY),STDEV('Datos mensuales'!$AH:$AH))),"n.d.",STANDARDIZE($AY83,AVERAGE('Datos mensuales'!$AH:$AH),STDEV('Datos mensuales'!$AH:$AH))) -> n.d. | BG83: =IF(ISERROR(STANDARDIZE($AZ83,AVERAGE($AZ:$AZ),STDEV('Datos mensuales'!$AH:$AH))),"n.d.",STANDARDIZE($AZ83,AVERAGE('Datos mensuales'!$AH:$AH),STDEV('Datos mensuales'!$AH:$AH))) -> n.d. | BH83: =IF(ISERROR(STANDARDIZE($BA83,AVERAGE($BA:$BA),STDEV('Datos mensuales'!$AH:$AH))),"n.d.",STANDARDIZE($BA83,AVERAGE('Datos mensuales'!$AH:$AH),STDEV('Datos mensuales'!$AH:$AH))) -> n.d. | BI83: =IF(ISERROR(STANDARDIZE($BB83,AVERAGE($BB:$BB),STDEV('Datos mensuales'!$AH:$AH))),"n.d.",STANDARDIZE($BB83,AVERAGE('Datos mensuales'!$AH:$AH),STDEV('Datos mensuales'!$AH:$AH))) -> n.d. | BJ83: =IF(ISERROR(STANDARDIZE($BC83,AVERAGE($BC:$BC),STDEV('Datos mensuales'!$AH:$AH))),"n.d.",STANDARDIZE($BC83,AVERAGE('Datos mensuales'!$AH:$AH),STDEV('Datos mensuales'!$AH:$AH))) -> n.d. | BK83: 0.01095285305 | BL83: n.d. | BM83: n.d. | BN83: n.d. | BO83: n.d. | BP83: n.d. | BQ83: n.d. | BR83: -0.7417328988 | BS83: n.d. | BT83: n.d. | BU83: n.d. | BV83: n.d. | BW83: n.d. | BX83: n.d.
B84: Ago | C84: =IF(OR('[1]REAL IMAE(M)'!AG89="n.d."),"",'[1]REAL IMAE(M)'!AG89) -> 0.6113994536 | L84: =IF(OR('[1]REAL IMAE(M)'!AN89="n.d."),"",'[1]REAL IMAE(M)'!AN89) -> 0.2147984748 | U84: 0.2946142369 | AH84: n.d. | AI84: n.d. | AJ84: n.d. | AK84: -0.6896695676 | AL84: -0.4089221028 | AM84: -0.03973830271 | AP84: 55.07645594 | AW84: 0.4708944275 | AX84: n.d. | AY84: n.d. | AZ84: n.d. | BA84: n.d. | BB84: n.d. | BC84: n.d. | BD84: =IF(ISERROR(STANDARDIZE($AW84,AVERAGE($AW:$AW),STDEV('Datos mensuales'!$AH:$AH))),"n.d.",STANDARDIZE($AW84,AVERAGE('Datos mensuales'!$AH:$AH),STDEV('Datos mensuales'!$AH:$AH))) -> 0.22179956 | BE84: =IF(ISERROR(STANDARDIZE($AX84,AVERAGE($AX:$AX),STDEV('Datos mensuales'!$AH:$AH))),"n.d.",STANDARDIZE($AX84,AVERAGE('Datos mensuales'!$AH:$AH),STDEV('Datos mensuales'!$AH:$AH))) -> n.d. | BF84: =IF(ISERROR(STANDARDIZE($AY84,AVERAGE($AY:$AY),STDEV('Datos mensuales'!$AH:$AH))),"n.d.",STANDARDIZE($AY84,AVERAGE('Datos mensuales'!$AH:$AH),STDEV('Datos mensuales'!$AH:$AH))) -> n.d. | BG84: =IF(ISERROR(STANDARDIZE($AZ84,AVERAGE($AZ:$AZ),STDEV('Datos mensuales'!$AH:$AH))),"n.d.",STANDARDIZE($AZ84,AVERAGE('Datos mensuales'!$AH:$AH),STDEV('Datos mensuales'!$AH:$AH))) -> n.d. | BH84: =IF(ISERROR(STANDARDIZE($BA84,AVERAGE($BA:$BA),STDEV('Datos mensuales'!$AH:$AH))),"n.d.",STANDARDIZE($BA84,AVERAGE('Datos mensuales'!$AH:$AH),STDEV('Datos mensuales'!$AH:$AH))) -> n.d. | BI84: =IF(ISERROR(STANDARDIZE($BB84,AVERAGE($BB:$BB),STDEV('Datos mensuales'!$AH:$AH))),"n.d.",STANDARDIZE($BB84,AVERAGE('Datos mensuales'!$AH:$AH),STDEV('Datos mensuales'!$AH:$AH))) -> n.d. | BJ84: =IF(ISERROR(STANDARDIZE($BC84,AVERAGE($BC:$BC),STDEV('Datos mensuales'!$AH:$AH))),"n.d.",STANDARDIZE($BC84,AVERAGE('Datos mensuales'!$AH:$AH),STDEV('Datos mensuales'!$AH:$AH))) -> n.d. | BK84: 0.002489181494 | BL84: n.d. | BM84: n.d. | BN84: n.d. | BO84: n.d. | BP84: n.d. | BQ84: n.d. | BR84: -0.7135679473 | BS84: n.d. | BT84: n.d. | BU84: n.d. | BV84: n.d. | BW84: n.d. | BX84: n.d.
B85: Sep | C85: =IF(OR('[1]REAL IMAE(M)'!AG90="n.d."),"",'[1]REAL IMAE(M)'!AG90) -> 0.9114346421 | L85: =IF(OR('[1]REAL IMAE(M)'!AN90="n.d."),"",'[1]REAL IMAE(M)'!AN90) -> 0.2923334792 | U85: 0.3000351885 | AH85: n.d. | AI85: n.d. | AJ85: n.d. | AK85: -0.7357528867 | AL85: -0.4362429475 | AM85: -0.02732084472 | AP85: 55.22445603 | AW85: 0.4867079405 | AX85: n.d. | AY85: n.d. | AZ85: n.d. | BA85: n.d. | BB85: n.d. | BC85: n.d. | BD85: =IF(ISERROR(STANDARDIZE($AW85,AVERAGE($AW:$AW),STDEV('Datos mensuales'!$AH:$AH))),"n.d.",STANDARDIZE($AW85,AVERAGE('Datos mensuales'!$AH:$AH),STDEV('Datos mensuales'!$AH:$AH))) -> 0.2293019334 | BE85: =IF(ISERROR(STANDARDIZE($AX85,AVERAGE($AX:$AX),STDEV('Datos mensuales'!$AH:$AH))),"n.d.",STANDARDIZE($AX85,AVERAGE('Datos mensuales'!$AH:$AH),STDEV('Datos mensuales'!$AH:$AH))) -> n.d. | BF85: =IF(ISERROR(STANDARDIZE($AY85,AVERAGE($AY:$AY),STDEV('Datos mensuales'!$AH:$AH))),"n.d.",STANDARDIZE($AY85,AVERAGE('Datos mensuales'!$AH:$AH),STDEV('Datos mensuales'!$AH:$AH))) -> n.d. | BG85: =IF(ISERROR(STANDARDIZE($AZ85,AVERAGE($AZ:$AZ),STDEV('Datos mensuales'!$AH:$AH))),"n.d.",STANDARDIZE($AZ85,AVERAGE('Datos mensuales'!$AH:$AH),STDEV('Datos mensuales'!$AH:$AH))) -> n.d. | BH85: =IF(ISERROR(STANDARDIZE($BA85,AVERAGE($BA:$BA),STDEV('Datos mensuales'!$AH:$AH))),"n.d.",STANDARDIZE($BA85,AVERAGE('Datos mensuales'!$AH:$AH),STDEV('Datos mensuales'!$AH:$AH))) -> n.d. | BI85: =IF(ISERROR(STANDARDIZE($BB85,AVERAGE($BB:$BB),STDEV('Datos mensuales'!$AH:$AH))),"n.d.",STANDARDIZE($BB85,AVERAGE('Datos mensuales'!$AH:$AH),STDEV('Datos mensuales'!$AH:$AH))) -> n.d. | BJ85: =IF(ISERROR(STANDARDIZE($BC85,AVERAGE($BC:$BC),STDEV('Datos mensuales'!$AH:$AH))),"n.d.",STANDARDIZE($BC85,AVERAGE('Datos mensuales'!$AH:$AH),STDEV('Datos mensuales'!$AH:$AH))) -> n.d. | BK85: 0.007502373363 | BL85: n.d. | BM85: n.d. | BN85: n.d. | BO85: n.d. | BP85: n.d. | BQ85: n.d. | BR85: -0.6763449098 | BS85: n.d. | BT85: n.d. | BU85: n.d. | BV85: n.d. | BW85: n.d. | BX85: n.d.
B86: Oct | C86: =IF(OR('[1]REAL IMAE(M)'!AG91="n.d."),"",'[1]REAL IMAE(M)'!AG91) -> 1.103207688 | L86: =IF(OR('[1]REAL IMAE(M)'!AN91="n.d."),"",'[1]REAL IMAE(M)'!AN91) -> 0.3735464102 | U86: 0.1917730457 | AH86: n.d. | AI86: n.d. | AJ86: n.d. | AK86: -0.8047895517 | AL86: -0.4771718572 | AM86: -0.04092890967 | AP86: 55.3779633 | AW86: 0.4362402951 | AX86: n.d. | AY86: n.d. | AZ86: n.d. | BA86: n.d. | BB86: n.d. | BC86: n.d. | BD86: =IF(ISERROR(STANDARDIZE($AW86,AVERAGE($AW:$AW),STDEV('Datos mensuales'!$AH:$AH))),"n.d.",STANDARDIZE($AW86,AVERAGE('Datos mensuales'!$AH:$AH),STDEV('Datos mensuales'!$AH:$AH))) -> 0.2053586692 | BE86: =IF(ISERROR(STANDARDIZE($AX86,AVERAGE($AX:$AX),STDEV('Datos mensuales'!$AH:$AH))),"n.d.",STANDARDIZE($AX86,AVERAGE('Datos mensuales'!$AH:$AH),STDEV('Datos mensuales'!$AH:$AH))) -> n.d. | BF86: =IF(ISERROR(STANDARDIZE($AY86,AVERAGE($AY:$AY),STDEV('Datos mensuales'!$AH:$AH))),"n.d.",STANDARDIZE($AY86,AVERAGE('Datos mensuales'!$AH:$AH),STDEV('Datos mensuales'!$AH:$AH))) -> n.d. | BG86: =IF(ISERROR(STANDARDIZE($AZ86,AVERAGE($AZ:$AZ),STDEV('Datos mensuales'!$AH:$AH))),"n.d.",STANDARDIZE($AZ86,AVERAGE('Datos mensuales'!$AH:$AH),STDEV('Datos mensuales'!$AH:$AH))) -> n.d. | BH86: =IF(ISERROR(STANDARDIZE($BA86,AVERAGE($BA:$BA),STDEV('Datos mensuales'!$AH:$AH))),"n.d.",STANDARDIZE($BA86,AVERAGE('Datos mensuales'!$AH:$AH),STDEV('Datos mensuales'!$AH:$AH))) -> n.d. | BI86: =IF(ISERROR(STANDARDIZE($BB86,AVERAGE($BB:$BB),STDEV('Datos mensuales'!$AH:$AH))),"n.d.",STANDARDIZE($BB86,AVERAGE('Datos mensuales'!$AH:$AH),STDEV('Datos mensuales'!$AH:$AH))) -> n.d. | BJ86: =IF(ISERROR(STANDARDIZE($BC86,AVERAGE($BC:$BC),STDEV('Datos mensuales'!$AH:$AH))),"n.d.",STANDARDIZE($BC86,AVERAGE('Datos mensuales'!$AH:$AH),STDEV('Datos mensuales'!$AH:$AH))) -> n.d. | BK86: -0.02394326412 | BL86: n.d. | BM86: n.d. | BN86: n.d. | BO86: n.d. | BP86: n.d. | BQ86: n.d. | BR86: -0.6863418652 | BS86: n.d. | BT86: n.d. | BU86: n.d. | BV86: n.d. | BW86: n.d. | BX86: n.d.
B87: Nov | C87: =IF(OR('[1]REAL IMAE(M)'!AG92="n.d."),"",'[1]REAL IMAE(M)'!AG92) -> 0.9945152122 | L87: =IF(OR('[1]REAL IMAE(M)'!AN92="n.d."),"",'[1]REAL IMAE(M)'!AN92) -> 0.4301622355 | U87: -0.1086924756 | AH87: n.d. | AI87: n.d. | AJ87: n.d. | AK87: -0.779359901 | AL87: -0.4620956962 | AM87: 0.01507616098 | AP87: 55.53713165 | AW87: 0.279029467 | AX87: n.d. | AY87: n.d. | AZ87: n.d. | BA87: n.d. | BB87: n.d. | BC87: n.d. | BD87: =IF(ISERROR(STANDARDIZE($AW87,AVERAGE($AW:$AW),STDEV('Datos mensuales'!$AH:$AH))),"n.d.",STANDARDIZE($AW87,AVERAGE('Datos mensuales'!$AH:$AH),STDEV('Datos mensuales'!$AH:$AH))) -> 0.1307734504 | BE87: =IF(ISERROR(STANDARDIZE($AX87,AVERAGE($AX:$AX),STDEV('Datos mensuales'!$AH:$AH))),"n.d.",STANDARDIZE($AX87,AVERAGE('Datos mensuales'!$AH:$AH),STDEV('Datos mensuales'!$AH:$AH))) -> n.d. | BF87: =IF(ISERROR(STANDARDIZE($AY87,AVERAGE($AY:$AY),STDEV('Datos mensuales'!$AH:$AH))),"n.d.",STANDARDIZE($AY87,AVERAGE('Datos mensuales'!$AH:$AH),STDEV('Datos mensuales'!$AH:$AH))) -> n.d. | BG87: =IF(ISERROR(STANDARDIZE($AZ87,AVERAGE($AZ:$AZ),STDEV('Datos mensuales'!$AH:$AH))),"n.d.",STANDARDIZE($AZ87,AVERAGE('Datos mensuales'!$AH:$AH),STDEV('Datos mensuales'!$AH:$AH))) -> n.d. | BH87: =IF(ISERROR(STANDARDIZE($BA87,AVERAGE($BA:$BA),STDEV('Datos mensuales'!$AH:$AH))),"n.d.",STANDARDIZE($BA87,AVERAGE('Datos mensuales'!$AH:$AH),STDEV('Datos mensuales'!$AH:$AH))) -> n.d. | BI87: =IF(ISERROR(STANDARDIZE($BB87,AVERAGE($BB:$BB),STDEV('Datos mensuales'!$AH:$AH))),"n.d.",STANDARDIZE($BB87,AVERAGE('Datos mensuales'!$AH:$AH),STDEV('Datos mensuales'!$AH:$AH))) -> n.d. | BJ87: =IF(ISERROR(STANDARDIZE($BC87,AVERAGE($BC:$BC),STDEV('Datos mensuales'!$AH:$AH))),"n.d.",STANDARDIZE($BC87,AVERAGE('Datos mensuales'!$AH:$AH),STDEV('Datos mensuales'!$AH:$AH))) -> n.d. | BK87: -0.07458521878 | BL87: n.d. | BM87: n.d. | BN87: n.d. | BO87: n.d. | BP87: n.d. | BQ87: n.d. | BR87: -0.8005358802 | BS87: n.d. | BT87: n.d. | BU87: n.d. | BV87: n.d. | BW87: n.d. | BX87: n.d.
B88: Dic | C88: =IF(OR('[1]REAL IMAE(M)'!AG93="n.d."),"",'[1]REAL IMAE(M)'!AG93) -> 0.9681366958 | L88: =IF(OR('[1]REAL IMAE(M)'!AN93="n.d."),"",'[1]REAL IMAE(M)'!AN93) -> 0.4751618744 | U88: -0.02637851641 | AH88: n.d. | AI88: n.d. | AJ88: n.d. | AK88: -0.7212244829 | AL88: -0.4276296733 | AM88: 0.03446602289 | AP88: 55.70205329 | AW88: 0.1349702265 | AX88: n.d. | AY88: n.d. | AZ88: n.d. | BA88: n.d. | BB88: n.d. | BC88: n.d. | BD88: =IF(ISERROR(STANDARDIZE($AW88,AVERAGE($AW:$AW),STDEV('Datos mensuales'!$AH:$AH))),"n.d.",STANDARDIZE($AW88,AVERAGE('Datos mensuales'!$AH:$AH),STDEV('Datos mensuales'!$AH:$AH))) -> 0.06242771302 | BE88: =IF(ISERROR(STANDARDIZE($AX88,AVERAGE($AX:$AX),STDEV('Datos mensuales'!$AH:$AH))),"n.d.",STANDARDIZE($AX88,AVERAGE('Datos mensuales'!$AH:$AH),STDEV('Datos mensuales'!$AH:$AH))) -> n.d. | BF88: =IF(ISERROR(STANDARDIZE($AY88,AVERAGE($AY:$AY),STDEV('Datos mensuales'!$AH:$AH))),"n.d.",STANDARDIZE($AY88,AVERAGE('Datos mensuales'!$AH:$AH),STDEV('Datos mensuales'!$AH:$AH))) -> n.d. | BG88: =IF(ISERROR(STANDARDIZE($AZ88,AVERAGE($AZ:$AZ),STDEV('Datos mensuales'!$AH:$AH))),"n.d.",STANDARDIZE($AZ88,AVERAGE('Datos mensuales'!$AH:$AH),STDEV('Datos mensuales'!$AH:$AH))) -> n.d. | BH88: =IF(ISERROR(STANDARDIZE($BA88,AVERAGE($BA:$BA),STDEV('Datos mensuales'!$AH:$AH))),"n.d.",STANDARDIZE($BA88,AVERAGE('Datos mensuales'!$AH:$AH),STDEV('Datos mensuales'!$AH:$AH))) -> n.d. | BI88: =IF(ISERROR(STANDARDIZE($BB88,AVERAGE($BB:$BB),STDEV('Datos mensuales'!$AH:$AH))),"n.d.",STANDARDIZE($BB88,AVERAGE('Datos mensuales'!$AH:$AH),STDEV('Datos mensuales'!$AH:$AH))) -> n.d. | BJ88: =IF(ISERROR(STANDARDIZE($BC88,AVERAGE($BC:$BC),STDEV('Datos mensuales'!$AH:$AH))),"n.d.",STANDARDIZE($BC88,AVERAGE('Datos mensuales'!$AH:$AH),STDEV('Datos mensuales'!$AH:$AH))) -> n.d. | BK88: -0.06834573743 | BL88: n.d. | BM88: n.d. | BN88: n.d. | BO88: n.d. | BP88: n.d. | BQ88: n.d. | BR88: -0.902496457 | BS88: n.d. | BT88: n.d. | BU88: n.d. | BV88: n.d. | BW88: n.d. | BX88: n.d.
A89: 1997 | B89: Ene | C89: =IF(OR('[1]REAL IMAE(M)'!AG94="n.d."),"",'[1]REAL IMAE(M)'!AG94) -> 1.605935575 | L89: =IF(OR('[1]REAL IMAE(M)'!AN94="n.d."),"",'[1]REAL IMAE(M)'!AN94) -> 1.605935575 | U89: 0.6377988794 | AH89: n.d. | AI89: n.d. | AJ89: n.d. | AK89: -0.6506360172 | AL89: -0.3857807668 | AM89: 0.04184890651 | AP89: 55.87274703 | AW89: 0.1626304954 | AX89: n.d. | AY89: n.d. | AZ89: n.d. | BA89: n.d. | BB89: n.d. | BC89: n.d. | BD89: =IF(ISERROR(STANDARDIZE($AW89,AVERAGE($AW:$AW),STDEV('Datos mensuales'!$AH:$AH))),"n.d.",STANDARDIZE($AW89,AVERAGE('Datos mensuales'!$AH:$AH),STDEV('Datos mensuales'!$AH:$AH))) -> 0.0755505191 | BE89: =IF(ISERROR(STANDARDIZE($AX89,AVERAGE($AX:$AX),STDEV('Datos mensuales'!$AH:$AH))),"n.d.",STANDARDIZE($AX89,AVERAGE('Datos mensuales'!$AH:$AH),STDEV('Datos mensuales'!$AH:$AH))) -> n.d. | BF89: =IF(ISERROR(STANDARDIZE($AY89,AVERAGE($AY:$AY),STDEV('Datos mensuales'!$AH:$AH))),"n.d.",STANDARDIZE($AY89,AVERAGE('Datos mensuales'!$AH:$AH),STDEV('Datos mensuales'!$AH:$AH))) -> n.d. | BG89: =IF(ISERROR(STANDARDIZE($AZ89,AVERAGE($AZ:$AZ),STDEV('Datos mensuales'!$AH:$AH))),"n.d.",STANDARDIZE($AZ89,AVERAGE('Datos mensuales'!$AH:$AH),STDEV('Datos mensuales'!$AH:$AH))) -> n.d. | BH89: =IF(ISERROR(STANDARDIZE($BA89,AVERAGE($BA:$BA),STDEV('Datos mensuales'!$AH:$AH))),"n.d.",STANDARDIZE($BA89,AVERAGE('Datos mensuales'!$AH:$AH),STDEV('Datos mensuales'!$AH:$AH))) -> n.d. | BI89: =IF(ISERROR(STANDARDIZE($BB89,AVERAGE($BB:$BB),STDEV('Datos mensuales'!$AH:$AH))),"n.d.",STANDARDIZE($BB89,AVERAGE('Datos mensuales'!$AH:$AH),STDEV('Datos mensuales'!$AH:$AH))) -> n.d. | BJ89: =IF(ISERROR(STANDARDIZE($BC89,AVERAGE($BC:$BC),STDEV('Datos mensuales'!$AH:$AH))),"n.d.",STANDARDIZE($BC89,AVERAGE('Datos mensuales'!$AH:$AH),STDEV('Datos mensuales'!$AH:$AH))) -> n.d. | BK89: 0.01312280608 | BL89: n.d. | BM89: n.d. | BN89: n.d. | BO89: n.d. | BP89: n.d. | BQ89: n.d. | BR89: -0.8478028319 | BS89: n.d. | BT89: n.d. | BU89: n.d. | BV89: n.d. | BW89: n.d. | BX89: n.d.
B90: Feb | C90: =IF(OR('[1]REAL IMAE(M)'!AG95="n.d."),"",'[1]REAL IMAE(M)'!AG95) -> 2.503643291 | L90: =IF(OR('[1]REAL IMAE(M)'!AN95="n.d."),"",'[1]REAL IMAE(M)'!AN95) -> 2.054099462 | U90: 0.8977077154 | AH90: n.d. | AI90: n.d. | AJ90: n.d. | AK90: -0.4931283743 | AL90: -0.2924011679 | AM90: 0.09337959894 | AP90: 56.04915029 | AW90: 0.3207765784 | AX90: n.d. | AY90: n.d. | AZ90: n.d. | BA90: n.d. | BB90: n.d. | BC90: n.d. | BD90: =IF(ISERROR(STANDARDIZE($AW90,AVERAGE($AW:$AW),STDEV('Datos mensuales'!$AH:$AH))),"n.d.",STANDARDIZE($AW90,AVERAGE('Datos mensuales'!$AH:$AH),STDEV('Datos mensuales'!$AH:$AH))) -> 0.150579449 | BE90: =IF(ISERROR(STANDARDIZE($AX90,AVERAGE($AX:$AX),STDEV('Datos mensuales'!$AH:$AH))),"n.d.",STANDARDIZE($AX90,AVERAGE('Datos mensuales'!$AH:$AH),STDEV('Datos mensuales'!$AH:$AH))) -> n.d. | BF90: =IF(ISERROR(STANDARDIZE($AY90,AVERAGE($AY:$AY),STDEV('Datos mensuales'!$AH:$AH))),"n.d.",STANDARDIZE($AY90,AVERAGE('Datos mensuales'!$AH:$AH),STDEV('Datos mensuales'!$AH:$AH))) -> n.d. | BG90: =IF(ISERROR(STANDARDIZE($AZ90,AVERAGE($AZ:$AZ),STDEV('Datos mensuales'!$AH:$AH))),"n.d.",STANDARDIZE($AZ90,AVERAGE('Datos mensuales'!$AH:$AH),STDEV('Datos mensuales'!$AH:$AH))) -> n.d. | BH90: =IF(ISERROR(STANDARDIZE($BA90,AVERAGE($BA:$BA),STDEV('Datos mensuales'!$AH:$AH))),"n.d.",STANDARDIZE($BA90,AVERAGE('Datos mensuales'!$AH:$AH),STDEV('Datos mensuales'!$AH:$AH))) -> n.d. | BI90: =IF(ISERROR(STANDARDIZE($BB90,AVERAGE($BB:$BB),STDEV('Datos mensuales'!$AH:$AH))),"n.d.",STANDARDIZE($BB90,AVERAGE('Datos mensuales'!$AH:$AH),STDEV('Datos mensuales'!$AH:$AH))) -> n.d. | BJ90: =IF(ISERROR(STANDARDIZE($BC90,AVERAGE($BC:$BC),STDEV('Datos mensuales'!$AH:$AH))),"n.d.",STANDARDIZE($BC90,AVERAGE('Datos mensuales'!$AH:$AH),STDEV('Datos mensuales'!$AH:$AH))) -> n.d. | BK90: 0.0750289299 | BL90: n.d. | BM90: n.d. | BN90: n.d. | BO90: n.d. | BP90: n.d. | BQ90: n.d. | BR90: -0.5518804948 | BS90: n.d. | BT90: n.d. | BU90: n.d. | BV90: n.d. | BW90: n.d. | BX90: n.d.
B91: Mar | C91: =IF(OR('[1]REAL IMAE(M)'!AG96="n.d."),"",'[1]REAL IMAE(M)'!AG96) -> 3.119241116 | L91: =IF(OR('[1]REAL IMAE(M)'!AN96="n.d."),"",'[1]REAL IMAE(M)'!AN96) -> 2.40870591 | U91: 0.6155978258 | AH91: n.d. | AI91: n.d. | AJ91: n.d. | AK91: -0.4328534099 | AL91: -0.2566666987 | AM91: 0.03573446913 | AP91: 56.23111696 | AW91: 0.472055434 | AX91: n.d. | AY91: n.d. | AZ91: n.d. | BA91: n.d. | BB91: n.d. | BC91: n.d. | BD91: =IF(ISERROR(STANDARDIZE($AW91,AVERAGE($AW:$AW),STDEV('Datos mensuales'!$AH:$AH))),"n.d.",STANDARDIZE($AW91,AVERAGE('Datos mensuales'!$AH:$AH),STDEV('Datos mensuales'!$AH:$AH))) -> 0.222350374 | BE91: =IF(ISERROR(STANDARDIZE($AX91,AVERAGE($AX:$AX),STDEV('Datos mensuales'!$AH:$AH))),"n.d.",STANDARDIZE($AX91,AVERAGE('Datos mensuales'!$AH:$AH),STDEV('Datos mensuales'!$AH:$AH))) -> n.d. | BF91: =IF(ISERROR(STANDARDIZE($AY91,AVERAGE($AY:$AY),STDEV('Datos mensuales'!$AH:$AH))),"n.d.",STANDARDIZE($AY91,AVERAGE('Datos mensuales'!$AH:$AH),STDEV('Datos mensuales'!$AH:$AH))) -> n.d. | BG91: =IF(ISERROR(STANDARDIZE($AZ91,AVERAGE($AZ:$AZ),STDEV('Datos mensuales'!$AH:$AH))),"n.d.",STANDARDIZE($AZ91,AVERAGE('Datos mensuales'!$AH:$AH),STDEV('Datos mensuales'!$AH:$AH))) -> n.d. | BH91: =IF(ISERROR(STANDARDIZE($BA91,AVERAGE($BA:$BA),STDEV('Datos mensuales'!$AH:$AH))),"n.d.",STANDARDIZE($BA91,AVERAGE('Datos mensuales'!$AH:$AH),STDEV('Datos mensuales'!$AH:$AH))) -> n.d. | BI91: =IF(ISERROR(STANDARDIZE($BB91,AVERAGE($BB:$BB),STDEV('Datos mensuales'!$AH:$AH))),"n.d.",STANDARDIZE($BB91,AVERAGE('Datos mensuales'!$AH:$AH),STDEV('Datos mensuales'!$AH:$AH))) -> n.d. | BJ91: =IF(ISERROR(STANDARDIZE($BC91,AVERAGE($BC:$BC),STDEV('Datos mensuales'!$AH:$AH))),"n.d.",STANDARDIZE($BC91,AVERAGE('Datos mensuales'!$AH:$AH),STDEV('Datos mensuales'!$AH:$AH))) -> n.d. | BK91: 0.07177092497 | BL91: n.d. | BM91: n.d. | BN91: n.d. | BO91: n.d. | BP91: n.d. | BQ91: n.d. | BR91: -0.1555453386 | BS91: n.d. | BT91: n.d. | BU91: n.d. | BV91: n.d. | BW91: n.d. | BX91: n.d.
B92: Abr | C92: =IF(OR('[1]REAL IMAE(M)'!AG97="n.d."),"",'[1]REAL IMAE(M)'!AG97) -> 3.624528574 | L92: =IF(OR('[1]REAL IMAE(M)'!AN97="n.d."),"",'[1]REAL IMAE(M)'!AN97) -> 2.712550192 | U92: 0.5052874578 | AH92: n.d. | AI92: n.d. | AJ92: n.d. | AK92: -0.520018651 | AL92: -0.3083432721 | AM92: -0.05167657334 | AP92: 56.4184232 | AW92: 0.6187687497 | AX92: n.d. | AY92: n.d. | AZ92: n.d. | BA92: n.d. | BB92: n.d. | BC92: n.d. | BD92: =IF(ISERROR(STANDARDIZE($AW92,AVERAGE($AW:$AW),STDEV('Datos mensuales'!$AH:$AH))),"n.d.",STANDARDIZE($AW92,AVERAGE('Datos mensuales'!$AH:$AH),STDEV('Datos mensuales'!$AH:$AH))) -> 0.291955279 | BE92: =IF(ISERROR(STANDARDIZE($AX92,AVERAGE($AX:$AX),STDEV('Datos mensuales'!$AH:$AH))),"n.d.",STANDARDIZE($AX92,AVERAGE('Datos mensuales'!$AH:$AH),STDEV('Datos mensuales'!$AH:$AH))) -> n.d. | BF92: =IF(ISERROR(STANDARDIZE($AY92,AVERAGE($AY:$AY),STDEV('Datos mensuales'!$AH:$AH))),"n.d.",STANDARDIZE($AY92,AVERAGE('Datos mensuales'!$AH:$AH),STDEV('Datos mensuales'!$AH:$AH))) -> n.d. | BG92: =IF(ISERROR(STANDARDIZE($AZ92,AVERAGE($AZ:$AZ),STDEV('Datos mensuales'!$AH:$AH))),"n.d.",STANDARDIZE($AZ92,AVERAGE('Datos mensuales'!$AH:$AH),STDEV('Datos mensuales'!$AH:$AH))) -> n.d. | BH92: =IF(ISERROR(STANDARDIZE($BA92,AVERAGE($BA:$BA),STDEV('Datos mensuales'!$AH:$AH))),"n.d.",STANDARDIZE($BA92,AVERAGE('Datos mensuales'!$AH:$AH),STDEV('Datos mensuales'!$AH:$AH))) -> n.d. | BI92: =IF(ISERROR(STANDARDIZE($BB92,AVERAGE($BB:$BB),STDEV('Datos mensuales'!$AH:$AH))),"n.d.",STANDARDIZE($BB92,AVERAGE('Datos mensuales'!$AH:$AH),STDEV('Datos mensuales'!$AH:$AH))) -> n.d. | BJ92: =IF(ISERROR(STANDARDIZE($BC92,AVERAGE($BC:$BC),STDEV('Datos mensuales'!$AH:$AH))),"n.d.",STANDARDIZE($BC92,AVERAGE('Datos mensuales'!$AH:$AH),STDEV('Datos mensuales'!$AH:$AH))) -> n.d. | BK92: 0.06960490501 | BL92: n.d. | BM92: n.d. | BN92: n.d. | BO92: n.d. | BP92: n.d. | BQ92: n.d. | BR92: 0.3004923215 | BS92: n.d. | BT92: n.d. | BU92: n.d. | BV92: n.d. | BW92: n.d. | BX92: n.d.
B93: May | C93: =IF(OR('[1]REAL IMAE(M)'!AG98="n.d."),"",'[1]REAL IMAE(M)'!AG98) -> 4.058764837 | L93: =IF(OR('[1]REAL IMAE(M)'!AN98="n.d."),"",'[1]REAL IMAE(M)'!AN98) -> 2.982000442 | U93: 0.4342362629 | AH93: n.d. | AI93: n.d. | AJ93: n.d. | AK93: -0.582922879 | AL93: -0.34563652 | AM93: -0.03729324795 | AP93: 56.61077776 | AW93: 0.7417997117 | AX93: n.d. | AY93: n.d. | AZ93: n.d. | BA93: n.d. | BB93: n.d. | BC93: n.d. | BD93: =IF(ISERROR(STANDARDIZE($AW93,AVERAGE($AW:$AW),STDEV('Datos mensuales'!$AH:$AH))),"n.d.",STANDARDIZE($AW93,AVERAGE('Datos mensuales'!$AH:$AH),STDEV('Datos mensuales'!$AH:$AH))) -> 0.3503246123 | BE93: =IF(ISERROR(STANDARDIZE($AX93,AVERAGE($AX:$AX),STDEV('Datos mensuales'!$AH:$AH))),"n.d.",STANDARDIZE($AX93,AVERAGE('Datos mensuales'!$AH:$AH),STDEV('Datos mensuales'!$AH:$AH))) -> n.d. | BF93: =IF(ISERROR(STANDARDIZE($AY93,AVERAGE($AY:$AY),STDEV('Datos mensuales'!$AH:$AH))),"n.d.",STANDARDIZE($AY93,AVERAGE('Datos mensuales'!$AH:$AH),STDEV('Datos mensuales'!$AH:$AH))) -> n.d. | BG93: =IF(ISERROR(STANDARDIZE($AZ93,AVERAGE($AZ:$AZ),STDEV('Datos mensuales'!$AH:$AH))),"n.d.",STANDARDIZE($AZ93,AVERAGE('Datos mensuales'!$AH:$AH),STDEV('Datos mensuales'!$AH:$AH))) -> n.d. | BH93: =IF(ISERROR(STANDARDIZE($BA93,AVERAGE($BA:$BA),STDEV('Datos mensuales'!$AH:$AH))),"n.d.",STANDARDIZE($BA93,AVERAGE('Datos mensuales'!$AH:$AH),STDEV('Datos mensuales'!$AH:$AH))) -> n.d. | BI93: =IF(ISERROR(STANDARDIZE($BB93,AVERAGE($BB:$BB),STDEV('Datos mensuales'!$AH:$AH))),"n.d.",STANDARDIZE($BB93,AVERAGE('Datos mensuales'!$AH:$AH),STDEV('Datos mensuales'!$AH:$AH))) -> n.d. | BJ93: =IF(ISERROR(STANDARDIZE($BC93,AVERAGE($BC:$BC),STDEV('Datos mensuales'!$AH:$AH))),"n.d.",STANDARDIZE($BC93,AVERAGE('Datos mensuales'!$AH:$AH),STDEV('Datos mensuales'!$AH:$AH))) -> n.d. | BK93: 0.05836933326 | BL93: n.d. | BM93: n.d. | BN93: n.d. | BO93: n.d. | BP93: n.d. | BQ93: n.d. | BR93: 0.7433219505 | BS93: n.d. | BT93: n.d. | BU93: n.d. | BV93: n.d. | BW93: n.d. | BX93: n.d.
B94: Jun | C94: =IF(OR('[1]REAL IMAE(M)'!AG99="n.d."),"",'[1]REAL IMAE(M)'!AG99) -> 4.381067496 | L94: =IF(OR('[1]REAL IMAE(M)'!AN99="n.d."),"",'[1]REAL IMAE(M)'!AN99) -> 3.215795667 | U94: 0.3223026592 | AH94: n.d. | AI94: n.d. | AJ94: n.d. | AK94: -0.524335072 | AL94: -0.310902295 | AM94: 0.03473422506 | AP94: 56.80783253 | AW94: 0.8547685009 | AX94: n.d. | AY94: n.d. | AZ94: n.d. | BA94: n.d. | BB94: n.d. | BC94: n.d. | BD94: =IF(ISERROR(STANDARDIZE($AW94,AVERAGE($AW:$AW),STDEV('Datos mensuales'!$AH:$AH))),"n.d.",STANDARDIZE($AW94,AVERAGE('Datos mensuales'!$AH:$AH),STDEV('Datos mensuales'!$AH:$AH))) -> 0.403920169 | BE94: =IF(ISERROR(STANDARDIZE($AX94,AVERAGE($AX:$AX),STDEV('Datos mensuales'!$AH:$AH))),"n.d.",STANDARDIZE($AX94,AVERAGE('Datos mensuales'!$AH:$AH),STDEV('Datos mensuales'!$AH:$AH))) -> n.d. | BF94: =IF(ISERROR(STANDARDIZE($AY94,AVERAGE($AY:$AY),STDEV('Datos mensuales'!$AH:$AH))),"n.d.",STANDARDIZE($AY94,AVERAGE('Datos mensuales'!$AH:$AH),STDEV('Datos mensuales'!$AH:$AH))) -> n.d. | BG94: =IF(ISERROR(STANDARDIZE($AZ94,AVERAGE($AZ:$AZ),STDEV('Datos mensuales'!$AH:$AH))),"n.d.",STANDARDIZE($AZ94,AVERAGE('Datos mensuales'!$AH:$AH),STDEV('Datos mensuales'!$AH:$AH))) -> n.d. | BH94: =IF(ISERROR(STANDARDIZE($BA94,AVERAGE($BA:$BA),STDEV('Datos mensuales'!$AH:$AH))),"n.d.",STANDARDIZE($BA94,AVERAGE('Datos mensuales'!$AH:$AH),STDEV('Datos mensuales'!$AH:$AH))) -> n.d. | BI94: =IF(ISERROR(STANDARDIZE($BB94,AVERAGE($BB:$BB),STDEV('Datos mensuales'!$AH:$AH))),"n.d.",STANDARDIZE($BB94,AVERAGE('Datos mensuales'!$AH:$AH),STDEV('Datos mensuales'!$AH:$AH))) -> n.d. | BJ94: =IF(ISERROR(STANDARDIZE($BC94,AVERAGE($BC:$BC),STDEV('Datos mensuales'!$AH:$AH))),"n.d.",STANDARDIZE($BC94,AVERAGE('Datos mensuales'!$AH:$AH),STDEV('Datos mensuales'!$AH:$AH))) -> n.d. | BK94: 0.05359555677 | BL94: n.d. | BM94: n.d. | BN94: n.d. | BO94: n.d. | BP94: n.d. | BQ94: n.d. | BR94: 0.9385916979 | BS94: n.d. | BT94: n.d. | BU94: n.d. | BV94: n.d. | BW94: n.d. | BX94: n.d.
B95: Jul | C95: =IF(OR('[1]REAL IMAE(M)'!AG100="n.d."),"",'[1]REAL IMAE(M)'!AG100) -> 4.740339294 | L95: =IF(OR('[1]REAL IMAE(M)'!AN100="n.d."),"",'[1]REAL IMAE(M)'!AN100) -> 3.434572109 | U95: 0.3592717973 | AH95: n.d. | AI95: n.d. | AJ95: n.d. | AK95: -0.3089733567 | AL95: -0.183223471 | AM95: 0.1276788239 | AP95: 57.00919075 | AW95: 1.006711224 | AX95: n.d. | AY95: n.d. | AZ95: n.d. | BA95: n.d. | BB95: n.d. | BC95: n.d. | BD95: =IF(ISERROR(STANDARDIZE($AW95,AVERAGE($AW:$AW),STDEV('Datos mensuales'!$AH:$AH))),"n.d.",STANDARDIZE($AW95,AVERAGE('Datos mensuales'!$AH:$AH),STDEV('Datos mensuales'!$AH:$AH))) -> 0.4760060511 | BE95: =IF(ISERROR(STANDARDIZE($AX95,AVERAGE($AX:$AX),STDEV('Datos mensuales'!$AH:$AH))),"n.d.",STANDARDIZE($AX95,AVERAGE('Datos mensuales'!$AH:$AH),STDEV('Datos mensuales'!$AH:$AH))) -> n.d. | BF95: =IF(ISERROR(STANDARDIZE($AY95,AVERAGE($AY:$AY),STDEV('Datos mensuales'!$AH:$AH))),"n.d.",STANDARDIZE($AY95,AVERAGE('Datos mensuales'!$AH:$AH),STDEV('Datos mensuales'!$AH:$AH))) -> n.d. | BG95: =IF(ISERROR(STANDARDIZE($AZ95,AVERAGE($AZ:$AZ),STDEV('Datos mensuales'!$AH:$AH))),"n.d.",STANDARDIZE($AZ95,AVERAGE('Datos mensuales'!$AH:$AH),STDEV('Datos mensuales'!$AH:$AH))) -> n.d. | BH95: =IF(ISERROR(STANDARDIZE($BA95,AVERAGE($BA:$BA),STDEV('Datos mensuales'!$AH:$AH))),"n.d.",STANDARDIZE($BA95,AVERAGE('Datos mensuales'!$AH:$AH),STDEV('Datos mensuales'!$AH:$AH))) -> n.d. | BI95: =IF(ISERROR(STANDARDIZE($BB95,AVERAGE($BB:$BB),STDEV('Datos mensuales'!$AH:$AH))),"n.d.",STANDARDIZE($BB95,AVERAGE('Datos mensuales'!$AH:$AH),STDEV('Datos mensuales'!$AH:$AH))) -> n.d. | BJ95: =IF(ISERROR(STANDARDIZE($BC95,AVERAGE($BC:$BC),STDEV('Datos mensuales'!$AH:$AH))),"n.d.",STANDARDIZE($BC95,AVERAGE('Datos mensuales'!$AH:$AH),STDEV('Datos mensuales'!$AH:$AH))) -> n.d. | BK95: 0.07208588208 | BL95: n.d. | BM95: n.d. | BN95: n.d. | BO95: n.d. | BP95: n.d. | BQ95: n.d. | BR95: 1.17046751 | BS95: n.d. | BT95: n.d. | BU95: n.d. | BV95: n.d. | BW95: n.d. | BX95: n.d.
B96: Ago | C96: =IF(OR('[1]REAL IMAE(M)'!AG101="n.d."),"",'[1]REAL IMAE(M)'!AG101) -> 5.17620608 | L96: =IF(OR('[1]REAL IMAE(M)'!AN101="n.d."),"",'[1]REAL IMAE(M)'!AN101) -> 3.653606303 | U96: 0.4358667865 | AH96: n.d. | AI96: n.d. | AJ96: n.d. | AK96: 0.0279633301 | AL96: 0.01653199547 | AM96: 0.1997554665 | AP96: 57.21441204 | AW96: 1.199583335 | AX96: n.d. | AY96: n.d. | AZ96: n.d. | BA96: n.d. | BB96: n.d. | BC96: n.d. | BD96: =IF(ISERROR(STANDARDIZE($AW96,AVERAGE($AW:$AW),STDEV('Datos mensuales'!$AH:$AH))),"n.d.",STANDARDIZE($AW96,AVERAGE('Datos mensuales'!$AH:$AH),STDEV('Datos mensuales'!$AH:$AH))) -> 0.5675099814 | BE96: =IF(ISERROR(STANDARDIZE($AX96,AVERAGE($AX:$AX),STDEV('Datos mensuales'!$AH:$AH))),"n.d.",STANDARDIZE($AX96,AVERAGE('Datos mensuales'!$AH:$AH),STDEV('Datos mensuales'!$AH:$AH))) -> n.d. | BF96: =IF(ISERROR(STANDARDIZE($AY96,AVERAGE($AY:$AY),STDEV('Datos mensuales'!$AH:$AH))),"n.d.",STANDARDIZE($AY96,AVERAGE('Datos mensuales'!$AH:$AH),STDEV('Datos mensuales'!$AH:$AH))) -> n.d. | BG96: =IF(ISERROR(STANDARDIZE($AZ96,AVERAGE($AZ:$AZ),STDEV('Datos mensuales'!$AH:$AH))),"n.d.",STANDARDIZE($AZ96,AVERAGE('Datos mensuales'!$AH:$AH),STDEV('Datos mensuales'!$AH:$AH))) -> n.d. | BH96: =IF(ISERROR(STANDARDIZE($BA96,AVERAGE($BA:$BA),STDEV('Datos mensuales'!$AH:$AH))),"n.d.",STANDARDIZE($BA96,AVERAGE('Datos mensuales'!$AH:$AH),STDEV('Datos mensuales'!$AH:$AH))) -> n.d. | BI96: =IF(ISERROR(STANDARDIZE($BB96,AVERAGE($BB:$BB),STDEV('Datos mensuales'!$AH:$AH))),"n.d.",STANDARDIZE($BB96,AVERAGE('Datos mensuales'!$AH:$AH),STDEV('Datos mensuales'!$AH:$AH))) -> n.d. | BJ96: =IF(ISERROR(STANDARDIZE($BC96,AVERAGE($BC:$BC),STDEV('Datos mensuales'!$AH:$AH))),"n.d.",STANDARDIZE($BC96,AVERAGE('Datos mensuales'!$AH:$AH),STDEV('Datos mensuales'!$AH:$AH))) -> n.d. | BK96: 0.09150393031 | BL96: n.d. | BM96: n.d. | BN96: n.d. | BO96: n.d. | BP96: n.d. | BQ96: n.d. | BR96: 1.558661439 | BS96: n.d. | BT96: n.d. | BU96: n.d. | BV96: n.d. | BW96: n.d. | BX96: n.d.
B97: Sep | C97: =IF(OR('[1]REAL IMAE(M)'!AG102="n.d."),"",'[1]REAL IMAE(M)'!AG102) -> 5.645856631 | L97: =IF(OR('[1]REAL IMAE(M)'!AN102="n.d."),"",'[1]REAL IMAE(M)'!AN102) -> 3.876710813 | U97: 0.4696505508 | AH97: n.d. | AI97: n.d. | AJ97: n.d. | AK97: 0.4122743487 | AL97: 0.2443736934 | AM97: 0.2278416979 | AP97: 57.4230207 | AW97: 1.438065322 | AX97: n.d. | AY97: n.d. | AZ97: n.d. | BA97: n.d. | BB97: n.d. | BC97: n.d. | BD97: =IF(ISERROR(STANDARDIZE($AW97,AVERAGE($AW:$AW),STDEV('Datos mensuales'!$AH:$AH))),"n.d.",STANDARDIZE($AW97,AVERAGE('Datos mensuales'!$AH:$AH),STDEV('Datos mensuales'!$AH:$AH))) -> 0.6806525136 | BE97: =IF(ISERROR(STANDARDIZE($AX97,AVERAGE($AX:$AX),STDEV('Datos mensuales'!$AH:$AH))),"n.d.",STANDARDIZE($AX97,AVERAGE('Datos mensuales'!$AH:$AH),STDEV('Datos mensuales'!$AH:$AH))) -> n.d. | BF97: =IF(ISERROR(STANDARDIZE($AY97,AVERAGE($AY:$AY),STDEV('Datos mensuales'!$AH:$AH))),"n.d.",STANDARDIZE($AY97,AVERAGE('Datos mensuales'!$AH:$AH),STDEV('Datos mensuales'!$AH:$AH))) -> n.d. | BG97: =IF(ISERROR(STANDARDIZE($AZ97,AVERAGE($AZ:$AZ),STDEV('Datos mensuales'!$AH:$AH))),"n.d.",STANDARDIZE($AZ97,AVERAGE('Datos mensuales'!$AH:$AH),STDEV('Datos mensuales'!$AH:$AH))) -> n.d. | BH97: =IF(ISERROR(STANDARDIZE($BA97,AVERAGE($BA:$BA),STDEV('Datos mensuales'!$AH:$AH))),"n.d.",STANDARDIZE($BA97,AVERAGE('Datos mensuales'!$AH:$AH),STDEV('Datos mensuales'!$AH:$AH))) -> n.d. | BI97: =IF(ISERROR(STANDARDIZE($BB97,AVERAGE($BB:$BB),STDEV('Datos mensuales'!$AH:$AH))),"n.d.",STANDARDIZE($BB97,AVERAGE('Datos mensuales'!$AH:$AH),STDEV('Datos mensuales'!$AH:$AH))) -> n.d. | BJ97: =IF(ISERROR(STANDARDIZE($BC97,AVERAGE($BC:$BC),STDEV('Datos mensuales'!$AH:$AH))),"n.d.",STANDARDIZE($BC97,AVERAGE('Datos mensuales'!$AH:$AH),STDEV('Datos mensuales'!$AH:$AH))) -> n.d. | BK97: 0.1131425322 | BL97: n.d. | BM97: n.d. | BN97: n.d. | BO97: n.d. | BP97: n.d. | BQ97: n.d. | BR97: 1.968367967 | BS97: n.d. | BT97: n.d. | BU97: n.d. | BV97: n.d. | BW97: n.d. | BX97: n.d.
B98: Oct | C98: =IF(OR('[1]REAL IMAE(M)'!AG103="n.d."),"",'[1]REAL IMAE(M)'!AG103) -> 6.23613678 | L98: =IF(OR('[1]REAL IMAE(M)'!AN103="n.d."),"",'[1]REAL IMAE(M)'!AN103) -> 4.11473644 | U98: 0.5902801494 | AH98: n.d. | AI98: n.d. | AJ98: n.d. | AK98: 0.7354515643 | AL98: 0.4359717531 | AM98: 0.1915980598 | AP98: 57.63452192 | AW98: 1.703649637 | AX98: n.d. | AY98: n.d. | AZ98: n.d. | BA98: n.d. | BB98: n.d. | BC98: n.d. | BD98: =IF(ISERROR(STANDARDIZE($AW98,AVERAGE($AW:$AW),STDEV('Datos mensuales'!$AH:$AH))),"n.d.",STANDARDIZE($AW98,AVERAGE('Datos mensuales'!$AH:$AH),STDEV('Datos mensuales'!$AH:$AH))) -> 0.806653149 | BE98: =IF(ISERROR(STANDARDIZE($AX98,AVERAGE($AX:$AX),STDEV('Datos mensuales'!$AH:$AH))),"n.d.",STANDARDIZE($AX98,AVERAGE('Datos mensuales'!$AH:$AH),STDEV('Datos mensuales'!$AH:$AH))) -> n.d. | BF98: =IF(ISERROR(STANDARDIZE($AY98,AVERAGE($AY:$AY),STDEV('Datos mensuales'!$AH:$AH))),"n.d.",STANDARDIZE($AY98,AVERAGE('Datos mensuales'!$AH:$AH),STDEV('Datos mensuales'!$AH:$AH))) -> n.d. | BG98: =IF(ISERROR(STANDARDIZE($AZ98,AVERAGE($AZ:$AZ),STDEV('Datos mensuales'!$AH:$AH))),"n.d.",STANDARDIZE($AZ98,AVERAGE('Datos mensuales'!$AH:$AH),STDEV('Datos mensuales'!$AH:$AH))) -> n.d. | BH98: =IF(ISERROR(STANDARDIZE($BA98,AVERAGE($BA:$BA),STDEV('Datos mensuales'!$AH:$AH))),"n.d.",STANDARDIZE($BA98,AVERAGE('Datos mensuales'!$AH:$AH),STDEV('Datos mensuales'!$AH:$AH))) -> n.d. | BI98: =IF(ISERROR(STANDARDIZE($BB98,AVERAGE($BB:$BB),STDEV('Datos mensuales'!$AH:$AH))),"n.d.",STANDARDIZE($BB98,AVERAGE('Datos mensuales'!$AH:$AH),STDEV('Datos mensuales'!$AH:$AH))) -> n.d. | BJ98: =IF(ISERROR(STANDARDIZE($BC98,AVERAGE($BC:$BC),STDEV('Datos mensuales'!$AH:$AH))),"n.d.",STANDARDIZE($BC98,AVERAGE('Datos mensuales'!$AH:$AH),STDEV('Datos mensuales'!$AH:$AH))) -> n.d. | BK98: 0.1260006354 | BL98: n.d. | BM98: n.d. | BN98: n.d. | BO98: n.d. | BP98: n.d. | BQ98: n.d. | BR98: 2.928020921 | BS98: n.d. | BT98: n.d. | BU98: n.d. | BV98: n.d. | BW98: n.d. | BX98: n.d.
B99: Nov | C99: =IF(OR('[1]REAL IMAE(M)'!AG104="n.d."),"",'[1]REAL IMAE(M)'!AG104) -> 6.992632813 | L99: =IF(OR('[1]REAL IMAE(M)'!AN104="n.d."),"",'[1]REAL IMAE(M)'!AN104) -> 4.378598432 | U99: 0.7564960325 | AH99: n.d. | AI99: n.d. | AJ99: n.d. | AK99: 0.9199295535 | AL99: 0.5453409262 | AM99: 0.109369173 | AP99: 57.84842559 | AW99: 1.992093071 | AX99: n.d. | AY99: n.d. | AZ99: n.d. | BA99: n.d. | BB99: n.d. | BC99: n.d. | BD99: =IF(ISERROR(STANDARDIZE($AW99,AVERAGE($AW:$AW),STDEV('Datos mensuales'!$AH:$AH))),"n.d.",STANDARDIZE($AW99,AVERAGE('Datos mensuales'!$AH:$AH),STDEV('Datos mensuales'!$AH:$AH))) -> 0.9434987904 | BE99: =IF(ISERROR(STANDARDIZE($AX99,AVERAGE($AX:$AX),STDEV('Datos mensuales'!$AH:$AH))),"n.d.",STANDARDIZE($AX99,AVERAGE('Datos mensuales'!$AH:$AH),STDEV('Datos mensuales'!$AH:$AH))) -> n.d. | BF99: =IF(ISERROR(STANDARDIZE($AY99,AVERAGE($AY:$AY),STDEV('Datos mensuales'!$AH:$AH))),"n.d.",STANDARDIZE($AY99,AVERAGE('Datos mensuales'!$AH:$AH),STDEV('Datos mensuales'!$AH:$AH))) -> n.d. | BG99: =IF(ISERROR(STANDARDIZE($AZ99,AVERAGE($AZ:$AZ),STDEV('Datos mensuales'!$AH:$AH))),"n.d.",STANDARDIZE($AZ99,AVERAGE('Datos mensuales'!$AH:$AH),STDEV('Datos mensuales'!$AH:$AH))) -> n.d. | BH99: =IF(ISERROR(STANDARDIZE($BA99,AVERAGE($BA:$BA),STDEV('Datos mensuales'!$AH:$AH))),"n.d.",STANDARDIZE($BA99,AVERAGE('Datos mensuales'!$AH:$AH),STDEV('Datos mensuales'!$AH:$AH))) -> n.d. | BI99: =IF(ISERROR(STANDARDIZE($BB99,AVERAGE($BB:$BB),STDEV('Datos mensuales'!$AH:$AH))),"n.d.",STANDARDIZE($BB99,AVERAGE('Datos mensuales'!$AH:$AH),STDEV('Datos mensuales'!$AH:$AH))) -> n.d. | BJ99: =IF(ISERROR(STANDARDIZE($BC99,AVERAGE($BC:$BC),STDEV('Datos mensuales'!$AH:$AH))),"n.d.",STANDARDIZE($BC99,AVERAGE('Datos mensuales'!$AH:$AH),STDEV('Datos mensuales'!$AH:$AH))) -> n.d. | BK99: 0.1368456414 | BL99: n.d. | BM99: n.d. | BN99: n.d. | BO99: n.d. | BP99: n.d. | BQ99: n.d. | BR99: 6.214757944 | BS99: n.d. | BT99: n.d. | BU99: n.d. | BV99: n.d. | BW99: n.d. | BX99: n.d.
B100: Dic | C100: =IF(OR('[1]REAL IMAE(M)'!AG105="n.d."),"",'[1]REAL IMAE(M)'!AG105) -> 7.684983526 | L100: =IF(OR('[1]REAL IMAE(M)'!AN105="n.d."),"",'[1]REAL IMAE(M)'!AN105) -> 4.656522675 | U100: 0.6923507131 | AH100: n.d. | AI100: n.d. | AJ100: n.d. | AK100: 0.9720732954 | AL100: 0.5762547385 | AM100: 0.03091381228 | AP100: 58.06426834 | AW100: 2.265850305 | AX100: n.d. | AY100: n.d. | AZ100: n.d. | BA100: n.d. | BB100: n.d. | BC100: n.d. | BD100: =IF(ISERROR(STANDARDIZE($AW100,AVERAGE($AW:$AW),STDEV('Datos mensuales'!$AH:$AH))),"n.d.",STANDARDIZE($AW100,AVERAGE('Datos mensuales'!$AH:$AH),STDEV('Datos mensuales'!$AH:$AH))) -> 1.073376888 | BE100: =IF(ISERROR(STANDARDIZE($AX100,AVERAGE($AX:$AX),STDEV('Datos mensuales'!$AH:$AH))),"n.d.",STANDARDIZE($AX100,AVERAGE('Datos mensuales'!$AH:$AH),STDEV('Datos mensuales'!$AH:$AH))) -> n.d. | BF100: =IF(ISERROR(STANDARDIZE($AY100,AVERAGE($AY:$AY),STDEV('Datos mensuales'!$AH:$AH))),"n.d.",STANDARDIZE($AY100,AVERAGE('Datos mensuales'!$AH:$AH),STDEV('Datos mensuales'!$AH:$AH))) -> n.d. | BG100: =IF(ISERROR(STANDARDIZE($AZ100,AVERAGE($AZ:$AZ),STDEV('Datos mensuales'!$AH:$AH))),"n.d.",STANDARDIZE($AZ100,AVERAGE('Datos mensuales'!$AH:$AH),STDEV('Datos mensuales'!$AH:$AH))) -> n.d. | BH100: =IF(ISERROR(STANDARDIZE($BA100,AVERAGE($BA:$BA),STDEV('Datos mensuales'!$AH:$AH))),"n.d.",STANDARDIZE($BA100,AVERAGE('Datos mensuales'!$AH:$AH),STDEV('Datos mensuales'!$AH:$AH))) -> n.d. | BI100: =IF(ISERROR(STANDARDIZE($BB100,AVERAGE($BB:$BB),STDEV('Datos mensuales'!$AH:$AH))),"n.d.",STANDARDIZE($BB100,AVERAGE('Datos mensuales'!$AH:$AH),STDEV('Datos mensuales'!$AH:$AH))) -> n.d. | BJ100: =IF(ISERROR(STANDARDIZE($BC100,AVERAGE($BC:$BC),STDEV('Datos mensuales'!$AH:$AH))),"n.d.",STANDARDIZE($BC100,AVERAGE('Datos mensuales'!$AH:$AH),STDEV('Datos mensuales'!$AH:$AH))) -> n.d. | BK100: 0.1298780973 | BL100: n.d. | BM100: n.d. | BN100: n.d. | BO100: n.d. | BP100: n.d. | BQ100: n.d. | BR100: 16.19391654 | BS100: n.d. | BT100: n.d. | BU100: n.d. | BV100: n.d. | BW100: n.d. | BX100: n.d.
A101: 1998 | B101: Ene | C101: =IF(OR('[1]REAL IMAE(M)'!AG106="n.d."),"",'[1]REAL IMAE(M)'!AG106) -> 7.745639581 | L101: =IF(OR('[1]REAL IMAE(M)'!AN106="n.d."),"",'[1]REAL IMAE(M)'!AN106) -> 7.745639581 | U101: 0.06065605479 | AH101: n.d. | AI101: n.d. | AJ101: n.d. | AK101: 0.8893542573 | AL101: 0.5272141302 | AM101: -0.0490406082 | AP101: 58.28163135 | AV101: 104.11 | AW101: 2.297560278 | AX101: n.d. | AY101: n.d. | AZ101: n.d. | BA101: n.d. | BB101: n.d. | BC101: 0 | BD101: =IF(ISERROR(STANDARDIZE($AW101,AVERAGE($AW:$AW),STDEV('Datos mensuales'!$AH:$AH))),"n.d.",STANDARDIZE($AW101,AVERAGE('Datos mensuales'!$AH:$AH),STDEV('Datos mensuales'!$AH:$AH))) -> 1.088420987 | BE101: =IF(ISERROR(STANDARDIZE($AX101,AVERAGE($AX:$AX),STDEV('Datos mensuales'!$AH:$AH))),"n.d.",STANDARDIZE($AX101,AVERAGE('Datos mensuales'!$AH:$AH),STDEV('Datos mensuales'!$AH:$AH))) -> n.d. | BF101: =IF(ISERROR(STANDARDIZE($AY101,AVERAGE($AY:$AY),STDEV('Datos mensuales'!$AH:$AH))),"n.d.",STANDARDIZE($AY101,AVERAGE('Datos mensuales'!$AH:$AH),STDEV('Datos mensuales'!$AH:$AH))) -> n.d. | BG101: =IF(ISERROR(STANDARDIZE($AZ101,AVERAGE($AZ:$AZ),STDEV('Datos mensuales'!$AH:$AH))),"n.d.",STANDARDIZE($AZ101,AVERAGE('Datos mensuales'!$AH:$AH),STDEV('Datos mensuales'!$AH:$AH))) -> n.d. | BH101: =IF(ISERROR(STANDARDIZE($BA101,AVERAGE($BA:$BA),STDEV('Datos mensuales'!$AH:$AH))),"n.d.",STANDARDIZE($BA101,AVERAGE('Datos mensuales'!$AH:$AH),STDEV('Datos mensuales'!$AH:$AH))) -> n.d. | BI101: =IF(ISERROR(STANDARDIZE($BB101,AVERAGE($BB:$BB),STDEV('Datos mensuales'!$AH:$AH))),"n.d.",STANDARDIZE($BB101,AVERAGE('Datos mensuales'!$AH:$AH),STDEV('Datos mensuales'!$AH:$AH))) -> n.d. | BJ101: =IF(ISERROR(STANDARDIZE($BC101,AVERAGE($BC:$BC),STDEV('Datos mensuales'!$AH:$AH))),"n.d.",STANDARDIZE($BC101,AVERAGE('Datos mensuales'!$AH:$AH),STDEV('Datos mensuales'!$AH:$AH))) -> -0.001605941645 | BK101: 0.0150440992 | BL101: n.d. | BM101: n.d. | BN101: n.d. | BO101: n.d. | BP101: n.d. | BQ101: n.d. | BR101: 13.40653221 | BS101: n.d. | BT101: n.d. | BU101: n.d. | BV101: n.d. | BW101: n.d. | BX101: n.d.
B102: Feb | C102: =IF(OR('[1]REAL IMAE(M)'!AG107="n.d."),"",'[1]REAL IMAE(M)'!AG107) -> 7.121874261 | L102: =IF(OR('[1]REAL IMAE(M)'!AN107="n.d."),"",'[1]REAL IMAE(M)'!AN107) -> 7.432864624 | U102: -0.62376532 | AH102: n.d. | AI102: n.d. | AJ102: n.d. | AK102: 0.6789783345 | AL102: 0.4024911712 | AM102: -0.1247229591 | AP102: 58.50014901 | AV102: 104.34 | AW102: 2.013405983 | AX102: n.d. | AY102: n.d. | AZ102: n.d. | BA102: n.d. | BB102: n.d. | BC102: 0 | BD102: =IF(ISERROR(STANDARDIZE($AW102,AVERAGE($AW:$AW),STDEV('Datos mensuales'!$AH:$AH))),"n.d.",STANDARDIZE($AW102,AVERAGE('Datos mensuales'!$AH:$AH),STDEV('Datos mensuales'!$AH:$AH))) -> 0.9536102326 | BE102: =IF(ISERROR(STANDARDIZE($AX102,AVERAGE($AX:$AX),STDEV('Datos mensuales'!$AH:$AH))),"n.d.",STANDARDIZE($AX102,AVERAGE('Datos mensuales'!$AH:$AH),STDEV('Datos mensuales'!$AH:$AH))) -> n.d. | BF102: =IF(ISERROR(STANDARDIZE($AY102,AVERAGE($AY:$AY),STDEV('Datos mensuales'!$AH:$AH))),"n.d.",STANDARDIZE($AY102,AVERAGE('Datos mensuales'!$AH:$AH),STDEV('Datos mensuales'!$AH:$AH))) -> n.d. | BG102: =IF(ISERROR(STANDARDIZE($AZ102,AVERAGE($AZ:$AZ),STDEV('Datos mensuales'!$AH:$AH))),"n.d.",STANDARDIZE($AZ102,AVERAGE('Datos mensuales'!$AH:$AH),STDEV('Datos mensuales'!$AH:$AH))) -> n.d. | BH102: =IF(ISERROR(STANDARDIZE($BA102,AVERAGE($BA:$BA),STDEV('Datos mensuales'!$AH:$AH))),"n.d.",STANDARDIZE($BA102,AVERAGE('Datos mensuales'!$AH:$AH),STDEV('Datos mensuales'!$AH:$AH))) -> n.d. | BI102: =IF(ISERROR(STANDARDIZE($BB102,AVERAGE($BB:$BB),STDEV('Datos mensuales'!$AH:$AH))),"n.d.",STANDARDIZE($BB102,AVERAGE('Datos mensuales'!$AH:$AH),STDEV('Datos mensuales'!$AH:$AH))) -> n.d. | BJ102: =IF(ISERROR(STANDARDIZE($BC102,AVERAGE($BC:$BC),STDEV('Datos mensuales'!$AH:$AH))),"n.d.",STANDARDIZE($BC102,AVERAGE('Datos mensuales'!$AH:$AH),STDEV('Datos mensuales'!$AH:$AH))) -> -0.001605941645 | BK102: -0.1348107543 | BL102: n.d. | BM102: n.d. | BN102: n.d. | BO102: n.d. | BP102: n.d. | BQ102: 0 | BR102: 5.332937456 | BS102: n.d. | BT102: n.d. | BU102: n.d. | BV102: n.d. | BW102: n.d. | BX102: n.d.
B103: Mar | C103: =IF(OR('[1]REAL IMAE(M)'!AG108="n.d."),"",'[1]REAL IMAE(M)'!AG108) -> 6.535447559 | L103: =IF(OR('[1]REAL IMAE(M)'!AN108="n.d."),"",'[1]REAL IMAE(M)'!AN108) -> 7.132024047 | U103: -0.5864267013 | AH103: n.d. | AI103: n.d. | AJ103: n.d. | AK103: 0.4580968954 | AL103: 0.2715399372 | AM103: -0.130951234 | AP103: 58.71950625 | AV103: 104.3 | AW103: 1.752659859 | AX103: n.d. | AY103: n.d. | AZ103: n.d. | BA103: n.d. | BB103: n.d. | BC103: 0 | BD103: =IF(ISERROR(STANDARDIZE($AW103,AVERAGE($AW:$AW),STDEV('Datos mensuales'!$AH:$AH))),"n.d.",STANDARDIZE($AW103,AVERAGE('Datos mensuales'!$AH:$AH),STDEV('Datos mensuales'!$AH:$AH))) -> 0.8299049707 | BE103: =IF(ISERROR(STANDARDIZE($AX103,AVERAGE($AX:$AX),STDEV('Datos mensuales'!$AH:$AH))),"n.d.",STANDARDIZE($AX103,AVERAGE('Datos mensuales'!$AH:$AH),STDEV('Datos mensuales'!$AH:$AH))) -> n.d. | BF103: =IF(ISERROR(STANDARDIZE($AY103,AVERAGE($AY:$AY),STDEV('Datos mensuales'!$AH:$AH))),"n.d.",STANDARDIZE($AY103,AVERAGE('Datos mensuales'!$AH:$AH),STDEV('Datos mensuales'!$AH:$AH))) -> n.d. | BG103: =IF(ISERROR(STANDARDIZE($AZ103,AVERAGE($AZ:$AZ),STDEV('Datos mensuales'!$AH:$AH))),"n.d.",STANDARDIZE($AZ103,AVERAGE('Datos mensuales'!$AH:$AH),STDEV('Datos mensuales'!$AH:$AH))) -> n.d. | BH103: =IF(ISERROR(STANDARDIZE($BA103,AVERAGE($BA:$BA),STDEV('Datos mensuales'!$AH:$AH))),"n.d.",STANDARDIZE($BA103,AVERAGE('Datos mensuales'!$AH:$AH),STDEV('Datos mensuales'!$AH:$AH))) -> n.d. | BI103: =IF(ISERROR(STANDARDIZE($BB103,AVERAGE($BB:$BB),STDEV('Datos mensuales'!$AH:$AH))),"n.d.",STANDARDIZE($BB103,AVERAGE('Datos mensuales'!$AH:$AH),STDEV('Datos mensuales'!$AH:$AH))) -> n.d. | BJ103: =IF(ISERROR(STANDARDIZE($BC103,AVERAGE($BC:$BC),STDEV('Datos mensuales'!$AH:$AH))),"n.d.",STANDARDIZE($BC103,AVERAGE('Datos mensuales'!$AH:$AH),STDEV('Datos mensuales'!$AH:$AH))) -> -0.001605941645 | BK103: -0.1237052619 | BL103: n.d. | BM103: n.d. | BN103: n.d. | BO103: n.d. | BP103: n.d. | BQ103: 0 | BR103: 2.732419946 | BS103: n.d. | BT103: n.d. | BU103: n.d. | BV103: n.d. | BW103: n.d. | BX103: n.d.
B104: Abr | C104: =IF(OR('[1]REAL IMAE(M)'!AG109="n.d."),"",'[1]REAL IMAE(M)'!AG109) -> 6.110822494 | L104: =IF(OR('[1]REAL IMAE(M)'!AN109="n.d."),"",'[1]REAL IMAE(M)'!AN109) -> 6.874551247 | U104: -0.4246250656 | AH104: n.d. | AI104: n.d. | AJ104: n.d. | AK104: 0.3218671939 | AL104: 0.190775127 | AM104: -0.08076481019 | AP104: 58.93942691 | AV104: 104.07 | AW104: 1.608169071 | AX104: n.d. | AY104: n.d. | AZ104: n.d. | BA104: n.d. | BB104: n.d. | BC104: 0 | BD104: =IF(ISERROR(STANDARDIZE($AW104,AVERAGE($AW:$AW),STDEV('Datos mensuales'!$AH:$AH))),"n.d.",STANDARDIZE($AW104,AVERAGE('Datos mensuales'!$AH:$AH),STDEV('Datos mensuales'!$AH:$AH))) -> 0.7613544948 | BE104: =IF(ISERROR(STANDARDIZE($AX104,AVERAGE($AX:$AX),STDEV('Datos mensuales'!$AH:$AH))),"n.d.",STANDARDIZE($AX104,AVERAGE('Datos mensuales'!$AH:$AH),STDEV('Datos mensuales'!$AH:$AH))) -> n.d. | BF104: =IF(ISERROR(STANDARDIZE($AY104,AVERAGE($AY:$AY),STDEV('Datos mensuales'!$AH:$AH))),"n.d.",STANDARDIZE($AY104,AVERAGE('Datos mensuales'!$AH:$AH),STDEV('Datos mensuales'!$AH:$AH))) -> n.d. | BG104: =IF(ISERROR(STANDARDIZE($AZ104,AVERAGE($AZ:$AZ),STDEV('Datos mensuales'!$AH:$AH))),"n.d.",STANDARDIZE($AZ104,AVERAGE('Datos mensuales'!$AH:$AH),STDEV('Datos mensuales'!$AH:$AH))) -> n.d. | BH104: =IF(ISERROR(STANDARDIZE($BA104,AVERAGE($BA:$BA),STDEV('Datos mensuales'!$AH:$AH))),"n.d.",STANDARDIZE($BA104,AVERAGE('Datos mensuales'!$AH:$AH),STDEV('Datos mensuales'!$AH:$AH))) -> n.d. | BI104: =IF(ISERROR(STANDARDIZE($BB104,AVERAGE($BB:$BB),STDEV('Datos mensuales'!$AH:$AH))),"n.d.",STANDARDIZE($BB104,AVERAGE('Datos mensuales'!$AH:$AH),STDEV('Datos mensuales'!$AH:$AH))) -> n.d. | BJ104: =IF(ISERROR(STANDARDIZE($BC104,AVERAGE($BC:$BC),STDEV('Datos mensuales'!$AH:$AH))),"n.d.",STANDARDIZE($BC104,AVERAGE('Datos mensuales'!$AH:$AH),STDEV('Datos mensuales'!$AH:$AH))) -> -0.001605941645 | BK104: -0.06855047588 | BL104: n.d. | BM104: n.d. | BN104: n.d. | BO104: n.d. | BP104: n.d. | BQ104: 0 | BR104: 1.607777799 | BS104: n.d. | BT104: n.d. | BU104: n.d. | BV104: n.d. | BW104: n.d. | BX104: n.d.
B105: May | C105: =IF(OR('[1]REAL IMAE(M)'!AG110="n.d."),"",'[1]REAL IMAE(M)'!AG110) -> 5.627549579 | L105: =IF(OR('[1]REAL IMAE(M)'!AN110="n.d."),"",'[1]REAL IMAE(M)'!AN110) -> 6.622349172 | U105: -0.483272915 | AH105: n.d. | AI105: n.d. | AJ105: n.d. | AK105: 0.09680318869 | AL105: 0.05734422698 | AM105: -0.1334309 | AP105: 59.15965429 | AV105: 103.73 | AW105: 1.418112541 | AX105: n.d. | AY105: n.d. | AZ105: n.d. | BA105: n.d. | BB105: n.d. | BC105: 0 | BD105: =IF(ISERROR(STANDARDIZE($AW105,AVERAGE($AW:$AW),STDEV('Datos mensuales'!$AH:$AH))),"n.d.",STANDARDIZE($AW105,AVERAGE('Datos mensuales'!$AH:$AH),STDEV('Datos mensuales'!$AH:$AH))) -> 0.6711863554 | BE105: =IF(ISERROR(STANDARDIZE($AX105,AVERAGE($AX:$AX),STDEV('Datos mensuales'!$AH:$AH))),"n.d.",STANDARDIZE($AX105,AVERAGE('Datos mensuales'!$AH:$AH),STDEV('Datos mensuales'!$AH:$AH))) -> n.d. | BF105: =IF(ISERROR(STANDARDIZE($AY105,AVERAGE($AY:$AY),STDEV('Datos mensuales'!$AH:$AH))),"n.d.",STANDARDIZE($AY105,AVERAGE('Datos mensuales'!$AH:$AH),STDEV('Datos mensuales'!$AH:$AH))) -> n.d. | BG105: =IF(ISERROR(STANDARDIZE($AZ105,AVERAGE($AZ:$AZ),STDEV('Datos mensuales'!$AH:$AH))),"n.d.",STANDARDIZE($AZ105,AVERAGE('Datos mensuales'!$AH:$AH),STDEV('Datos mensuales'!$AH:$AH))) -> n.d. | BH105: =IF(ISERROR(STANDARDIZE($BA105,AVERAGE($BA:$BA),STDEV('Datos mensuales'!$AH:$AH))),"n.d.",STANDARDIZE($BA105,AVERAGE('Datos mensuales'!$AH:$AH),STDEV('Datos mensuales'!$AH:$AH))) -> n.d. | BI105: =IF(ISERROR(STANDARDIZE($BB105,AVERAGE($BB:$BB),STDEV('Datos mensuales'!$AH:$AH))),"n.d.",STANDARDIZE($BB105,AVERAGE('Datos mensuales'!$AH:$AH),STDEV('Datos mensuales'!$AH:$AH))) -> n.d. | BJ105: =IF(ISERROR(STANDARDIZE($BC105,AVERAGE($BC:$BC),STDEV('Datos mensuales'!$AH:$AH))),"n.d.",STANDARDIZE($BC105,AVERAGE('Datos mensuales'!$AH:$AH),STDEV('Datos mensuales'!$AH:$AH))) -> -0.001605941645 | BK105: -0.09016813942 | BL105: n.d. | BM105: n.d. | BN105: n.d. | BO105: n.d. | BP105: n.d. | BQ105: 0 | BR105: 0.9158983752 | BS105: n.d. | BT105: n.d. | BU105: n.d. | BV105: n.d. | BW105: n.d. | BX105: n.d.
B106: Jun | C106: =IF(OR('[1]REAL IMAE(M)'!AG111="n.d."),"",'[1]REAL IMAE(M)'!AG111) -> 5.170761503 | L106: =IF(OR('[1]REAL IMAE(M)'!AN111="n.d."),"",'[1]REAL IMAE(M)'!AN111) -> 6.377038779 | U106: -0.4567880761 | AH106: n.d. | AI106: n.d. | AJ106: n.d. | AK106: -0.3362613131 | AL106: -0.1994013426 | AM106: -0.2567455696 | AP106: 59.37993243 | AV106: 103.47 | AW106: 1.244041499 | AX106: n.d. | AY106: n.d. | AZ106: n.d. | BA106: n.d. | BB106: n.d. | BC106: 0 | BD106: =IF(ISERROR(STANDARDIZE($AW106,AVERAGE($AW:$AW),STDEV('Datos mensuales'!$AH:$AH))),"n.d.",STANDARDIZE($AW106,AVERAGE('Datos mensuales'!$AH:$AH),STDEV('Datos mensuales'!$AH:$AH))) -> 0.5886021792 | BE106: =IF(ISERROR(STANDARDIZE($AX106,AVERAGE($AX:$AX),STDEV('Datos mensuales'!$AH:$AH))),"n.d.",STANDARDIZE($AX106,AVERAGE('Datos mensuales'!$AH:$AH),STDEV('Datos mensuales'!$AH:$AH))) -> n.d. | BF106: =IF(ISERROR(STANDARDIZE($AY106,AVERAGE($AY:$AY),STDEV('Datos mensuales'!$AH:$AH))),"n.d.",STANDARDIZE($AY106,AVERAGE('Datos mensuales'!$AH:$AH),STDEV('Datos mensuales'!$AH:$AH))) -> n.d. | BG106: =IF(ISERROR(STANDARDIZE($AZ106,AVERAGE($AZ:$AZ),STDEV('Datos mensuales'!$AH:$AH))),"n.d.",STANDARDIZE($AZ106,AVERAGE('Datos mensuales'!$AH:$AH),STDEV('Datos mensuales'!$AH:$AH))) -> n.d. | BH106: =IF(ISERROR(STANDARDIZE($BA106,AVERAGE($BA:$BA),STDEV('Datos mensuales'!$AH:$AH))),"n.d.",STANDARDIZE($BA106,AVERAGE('Datos mensuales'!$AH:$AH),STDEV('Datos mensuales'!$AH:$AH))) -> n.d. | BI106: =IF(ISERROR(STANDARDIZE($BB106,AVERAGE($BB:$BB),STDEV('Datos mensuales'!$AH:$AH))),"n.d.",STANDARDIZE($BB106,AVERAGE('Datos mensuales'!$AH:$AH),STDEV('Datos mensuales'!$AH:$AH))) -> n.d. | BJ106: =IF(ISERROR(STANDARDIZE($BC106,AVERAGE($BC:$BC),STDEV('Datos mensuales'!$AH:$AH))),"n.d.",STANDARDIZE($BC106,AVERAGE('Datos mensuales'!$AH:$AH),STDEV('Datos mensuales'!$AH:$AH))) -> -0.001605941645 | BK106: -0.08258417619 | BL106: n.d. | BM106: n.d. | BN106: n.d. | BO106: n.d. | BP106: n.d. | BQ106: 0 | BR106: 0.4572240368 | BS106: n.d. | BT106: n.d. | BU106: n.d. | BV106: n.d. | BW106: n.d. | BX106: n.d.
B107: Jul | C107: =IF(OR('[1]REAL IMAE(M)'!AG112="n.d."),"",'[1]REAL IMAE(M)'!AG112) -> 4.823005565 | L107: =IF(OR('[1]REAL IMAE(M)'!AN112="n.d."),"",'[1]REAL IMAE(M)'!AN112) -> 6.15121522 | U107: -0.3477559382 | AH107: n.d. | AI107: n.d. | AJ107: n.d. | AK107: -0.5014008132 | AL107: -0.2973055459 | AM107: -0.0979042033 | AP107: 59.59999012 | AV107: 103.54 | AW107: 1.190246839 | AX107: n.d. | AY107: n.d. | AZ107: n.d. | BA107: n.d. | BB107: n.d. | BC107: 0 | BD107: =IF(ISERROR(STANDARDIZE($AW107,AVERAGE($AW:$AW),STDEV('Datos mensuales'!$AH:$AH))),"n.d.",STANDARDIZE($AW107,AVERAGE('Datos mensuales'!$AH:$AH),STDEV('Datos mensuales'!$AH:$AH))) -> 0.5630804863 | BE107: =IF(ISERROR(STANDARDIZE($AX107,AVERAGE($AX:$AX),STDEV('Datos mensuales'!$AH:$AH))),"n.d.",STANDARDIZE($AX107,AVERAGE('Datos mensuales'!$AH:$AH),STDEV('Datos mensuales'!$AH:$AH))) -> n.d. | BF107: =IF(ISERROR(STANDARDIZE($AY107,AVERAGE($AY:$AY),STDEV('Datos mensuales'!$AH:$AH))),"n.d.",STANDARDIZE($AY107,AVERAGE('Datos mensuales'!$AH:$AH),STDEV('Datos mensuales'!$AH:$AH))) -> n.d. | BG107: =IF(ISERROR(STANDARDIZE($AZ107,AVERAGE($AZ:$AZ),STDEV('Datos mensuales'!$AH:$AH))),"n.d.",STANDARDIZE($AZ107,AVERAGE('Datos mensuales'!$AH:$AH),STDEV('Datos mensuales'!$AH:$AH))) -> n.d. | BH107: =IF(ISERROR(STANDARDIZE($BA107,AVERAGE($BA:$BA),STDEV('Datos mensuales'!$AH:$AH))),"n.d.",STANDARDIZE($BA107,AVERAGE('Datos mensuales'!$AH:$AH),STDEV('Datos mensuales'!$AH:$AH))) -> n.d. | BI107: =IF(ISERROR(STANDARDIZE($BB107,AVERAGE($BB:$BB),STDEV('Datos mensuales'!$AH:$AH))),"n.d.",STANDARDIZE($BB107,AVERAGE('Datos mensuales'!$AH:$AH),STDEV('Datos mensuales'!$AH:$AH))) -> n.d. | BJ107: =IF(ISERROR(STANDARDIZE($BC107,AVERAGE($BC:$BC),STDEV('Datos mensuales'!$AH:$AH))),"n.d.",STANDARDIZE($BC107,AVERAGE('Datos mensuales'!$AH:$AH),STDEV('Datos mensuales'!$AH:$AH))) -> -0.001605941645 | BK107: -0.02552169294 | BL107: n.d. | BM107: n.d. | BN107: n.d. | BO107: n.d. | BP107: n.d. | BQ107: 0 | BR107: 0.1829271602 | BS107: n.d. | BT107: n.d. | BU107: n.d. | BV107: n.d. | BW107: n.d. | BX107: n.d.
B108: Ago | C108: =IF(OR('[1]REAL IMAE(M)'!AG113="n.d."),"",'[1]REAL IMAE(M)'!AG113) -> 4.557136158 | L108: =IF(OR('[1]REAL IMAE(M)'!AN113="n.d."),"",'[1]REAL IMAE(M)'!AN113) -> 5.947793194 | U108: -0.2658694062 | AH108: n.d. | AI108: n.d. | AJ108: n.d. | AK108: -0.2394376706 | AL108: -0.1419987129 | AM108: 0.155306833 | AP108: 59.81953323 | AV108: 103.98 | AW108: 1.238896956 | AX108: n.d. | AY108: n.d. | AZ108: n.d. | BA108: n.d. | BB108: n.d. | BC108: 0 | BD108: =IF(ISERROR(STANDARDIZE($AW108,AVERAGE($AW:$AW),STDEV('Datos mensuales'!$AH:$AH))),"n.d.",STANDARDIZE($AW108,AVERAGE('Datos mensuales'!$AH:$AH),STDEV('Datos mensuales'!$AH:$AH))) -> 0.586161464 | BE108: =IF(ISERROR(STANDARDIZE($AX108,AVERAGE($AX:$AX),STDEV('Datos mensuales'!$AH:$AH))),"n.d.",STANDARDIZE($AX108,AVERAGE('Datos mensuales'!$AH:$AH),STDEV('Datos mensuales'!$AH:$AH))) -> n.d. | BF108: =IF(ISERROR(STANDARDIZE($AY108,AVERAGE($AY:$AY),STDEV('Datos mensuales'!$AH:$AH))),"n.d.",STANDARDIZE($AY108,AVERAGE('Datos mensuales'!$AH:$AH),STDEV('Datos mensuales'!$AH:$AH))) -> n.d. | BG108: =IF(ISERROR(STANDARDIZE($AZ108,AVERAGE($AZ:$AZ),STDEV('Datos mensuales'!$AH:$AH))),"n.d.",STANDARDIZE($AZ108,AVERAGE('Datos mensuales'!$AH:$AH),STDEV('Datos mensuales'!$AH:$AH))) -> n.d. | BH108: =IF(ISERROR(STANDARDIZE($BA108,AVERAGE($BA:$BA),STDEV('Datos mensuales'!$AH:$AH))),"n.d.",STANDARDIZE($BA108,AVERAGE('Datos mensuales'!$AH:$AH),STDEV('Datos mensuales'!$AH:$AH))) -> n.d. | BI108: =IF(ISERROR(STANDARDIZE($BB108,AVERAGE($BB:$BB),STDEV('Datos mensuales'!$AH:$AH))),"n.d.",STANDARDIZE($BB108,AVERAGE('Datos mensuales'!$AH:$AH),STDEV('Datos mensuales'!$AH:$AH))) -> n.d. | BJ108: =IF(ISERROR(STANDARDIZE($BC108,AVERAGE($BC:$BC),STDEV('Datos mensuales'!$AH:$AH))),"n.d.",STANDARDIZE($BC108,AVERAGE('Datos mensuales'!$AH:$AH),STDEV('Datos mensuales'!$AH:$AH))) -> -0.001605941645 | BK108: 0.02308097776 | BL108: n.d. | BM108: n.d. | BN108: n.d. | BO108: n.d. | BP108: n.d. | BQ108: 0 | BR108: 0.03286547064 | BS108: n.d. | BT108: n.d. | BU108: n.d. | BV108: n.d. | BW108: n.d. | BX108: n.d.
B109: Sep | C109: =IF(OR('[1]REAL IMAE(M)'!AG114="n.d."),"",'[1]REAL IMAE(M)'!AG114) -> 4.243736388 | L109: =IF(OR('[1]REAL IMAE(M)'!AN114="n.d."),"",'[1]REAL IMAE(M)'!AN114) -> 5.753712298 | U109: -0.3133997704 | AH109: n.d. | AI109: n.d. | AJ109: n.d. | AK109: -0.04540381008 | AL109: -0.02696426922 | AM109: 0.1150344437 | AP109: 60.03824751 | AV109: 104.65 | AW109: 1.300193574 | AX109: n.d. | AY109: n.d. | AZ109: n.d. | BA109: n.d. | BB109: n.d. | BC109: 0 | BD109: =IF(ISERROR(STANDARDIZE($AW109,AVERAGE($AW:$AW),STDEV('Datos mensuales'!$AH:$AH))),"n.d.",STANDARDIZE($AW109,AVERAGE('Datos mensuales'!$AH:$AH),STDEV('Datos mensuales'!$AH:$AH))) -> 0.6152422958 | BE109: =IF(ISERROR(STANDARDIZE($AX109,AVERAGE($AX:$AX),STDEV('Datos mensuales'!$AH:$AH))),"n.d.",STANDARDIZE($AX109,AVERAGE('Datos mensuales'!$AH:$AH),STDEV('Datos mensuales'!$AH:$AH))) -> n.d. | BF109: =IF(ISERROR(STANDARDIZE($AY109,AVERAGE($AY:$AY),STDEV('Datos mensuales'!$AH:$AH))),"n.d.",STANDARDIZE($AY109,AVERAGE('Datos mensuales'!$AH:$AH),STDEV('Datos mensuales'!$AH:$AH))) -> n.d. | BG109: =IF(ISERROR(STANDARDIZE($AZ109,AVERAGE($AZ:$AZ),STDEV('Datos mensuales'!$AH:$AH))),"n.d.",STANDARDIZE($AZ109,AVERAGE('Datos mensuales'!$AH:$AH),STDEV('Datos mensuales'!$AH:$AH))) -> n.d. | BH109: =IF(ISERROR(STANDARDIZE($BA109,AVERAGE($BA:$BA),STDEV('Datos mensuales'!$AH:$AH))),"n.d.",STANDARDIZE($BA109,AVERAGE('Datos mensuales'!$AH:$AH),STDEV('Datos mensuales'!$AH:$AH))) -> n.d. | BI109: =IF(ISERROR(STANDARDIZE($BB109,AVERAGE($BB:$BB),STDEV('Datos mensuales'!$AH:$AH))),"n.d.",STANDARDIZE($BB109,AVERAGE('Datos mensuales'!$AH:$AH),STDEV('Datos mensuales'!$AH:$AH))) -> n.d. | BJ109: =IF(ISERROR(STANDARDIZE($BC109,AVERAGE($BC:$BC),STDEV('Datos mensuales'!$AH:$AH))),"n.d.",STANDARDIZE($BC109,AVERAGE('Datos mensuales'!$AH:$AH),STDEV('Datos mensuales'!$AH:$AH))) -> -0.001605941645 | BK109: 0.02908083173 | BL109: n.d. | BM109: n.d. | BN109: n.d. | BO109: n.d. | BP109: n.d. | BQ109: 0 | BR109: -0.096099282 | BS109: n.d. | BT109: n.d. | BU109: n.d. | BV109: n.d. | BW109: n.d. | BX109: n.d.
B110: Oct | C110: =IF(OR('[1]REAL IMAE(M)'!AG115="n.d."),"",'[1]REAL IMAE(M)'!AG115) -> 3.899130016 | L110: =IF(OR('[1]REAL IMAE(M)'!AN115="n.d."),"",'[1]REAL IMAE(M)'!AN115) -> 5.562804559 | U110: -0.3446063716 | AH110: n.d. | AI110: n.d. | AJ110: n.d. | AK110: -0.04407001945 | AL110: -0.02617352134 | AM110: 0.0007907478758 | AP110: 60.25580829 | AV110: 105.47 | AW110: 1.36330508 | AX110: n.d. | AY110: n.d. | AZ110: n.d. | BA110: n.d. | BB110: n.d. | BC110: 0 | BD110: =IF(ISERROR(STANDARDIZE($AW110,AVERAGE($AW:$AW),STDEV('Datos mensuales'!$AH:$AH))),"n.d.",STANDARDIZE($AW110,AVERAGE('Datos mensuales'!$AH:$AH),STDEV('Datos mensuales'!$AH:$AH))) -> 0.6451841614 | BE110: =IF(ISERROR(STANDARDIZE($AX110,AVERAGE($AX:$AX),STDEV('Datos mensuales'!$AH:$AH))),"n.d.",STANDARDIZE($AX110,AVERAGE('Datos mensuales'!$AH:$AH),STDEV('Datos mensuales'!$AH:$AH))) -> n.d. | BF110: =IF(ISERROR(STANDARDIZE($AY110,AVERAGE($AY:$AY),STDEV('Datos mensuales'!$AH:$AH))),"n.d.",STANDARDIZE($AY110,AVERAGE('Datos mensuales'!$AH:$AH),STDEV('Datos mensuales'!$AH:$AH))) -> n.d. | BG110: =IF(ISERROR(STANDARDIZE($AZ110,AVERAGE($AZ:$AZ),STDEV('Datos mensuales'!$AH:$AH))),"n.d.",STANDARDIZE($AZ110,AVERAGE('Datos mensuales'!$AH:$AH),STDEV('Datos mensuales'!$AH:$AH))) -> n.d. | BH110: =IF(ISERROR(STANDARDIZE($BA110,AVERAGE($BA:$BA),STDEV('Datos mensuales'!$AH:$AH))),"n.d.",STANDARDIZE($BA110,AVERAGE('Datos mensuales'!$AH:$AH),STDEV('Datos mensuales'!$AH:$AH))) -> n.d. | BI110: =IF(ISERROR(STANDARDIZE($BB110,AVERAGE($BB:$BB),STDEV('Datos mensuales'!$AH:$AH))),"n.d.",STANDARDIZE($BB110,AVERAGE('Datos mensuales'!$AH:$AH),STDEV('Datos mensuales'!$AH:$AH))) -> n.d. | BJ110: =IF(ISERROR(STANDARDIZE($BC110,AVERAGE($BC:$BC),STDEV('Datos mensuales'!$AH:$AH))),"n.d.",STANDARDIZE($BC110,AVERAGE('Datos mensuales'!$AH:$AH),STDEV('Datos mensuales'!$AH:$AH))) -> -0.001605941645 | BK110: 0.02994186558 | BL110: n.d. | BM110: n.d. | BN110: n.d. | BO110: n.d. | BP110: n.d. | BQ110: 0 | BR110: -0.2001715208 | BS110: n.d. | BT110: n.d. | BU110: n.d. | BV110: n.d. | BW110: n.d. | BX110: n.d.
B111: Nov | C111: =IF(OR('[1]REAL IMAE(M)'!AG116="n.d."),"",'[1]REAL IMAE(M)'!AG116) -> 3.492043577 | L111: =IF(OR('[1]REAL IMAE(M)'!AN116="n.d."),"",'[1]REAL IMAE(M)'!AN116) -> 5.368190561 | U111: -0.4070864392 | AH111: n.d. | AI111: n.d. | AJ111: n.d. | AK111: -0.1200230485 | AL111: -0.07120284984 | AM111: -0.0450293285 | AP111: 60.47189245 | AV111: 106.34 | AW111: 1.391687061 | AX111: n.d. | AY111: n.d. | AZ111: n.d. | BA111: n.d. | BB111: n.d. | BC111: 0 | BD111: =IF(ISERROR(STANDARDIZE($AW111,AVERAGE($AW:$AW),STDEV('Datos mensuales'!$AH:$AH))),"n.d.",STANDARDIZE($AW111,AVERAGE('Datos mensuales'!$AH:$AH),STDEV('Datos mensuales'!$AH:$AH))) -> 0.6586493681 | BE111: =IF(ISERROR(STANDARDIZE($AX111,AVERAGE($AX:$AX),STDEV('Datos mensuales'!$AH:$AH))),"n.d.",STANDARDIZE($AX111,AVERAGE('Datos mensuales'!$AH:$AH),STDEV('Datos mensuales'!$AH:$AH))) -> n.d. | BF111: =IF(ISERROR(STANDARDIZE($AY111,AVERAGE($AY:$AY),STDEV('Datos mensuales'!$AH:$AH))),"n.d.",STANDARDIZE($AY111,AVERAGE('Datos mensuales'!$AH:$AH),STDEV('Datos mensuales'!$AH:$AH))) -> n.d. | BG111: =IF(ISERROR(STANDARDIZE($AZ111,AVERAGE($AZ:$AZ),STDEV('Datos mensuales'!$AH:$AH))),"n.d.",STANDARDIZE($AZ111,AVERAGE('Datos mensuales'!$AH:$AH),STDEV('Datos mensuales'!$AH:$AH))) -> n.d. | BH111: =IF(ISERROR(STANDARDIZE($BA111,AVERAGE($BA:$BA),STDEV('Datos mensuales'!$AH:$AH))),"n.d.",STANDARDIZE($BA111,AVERAGE('Datos mensuales'!$AH:$AH),STDEV('Datos mensuales'!$AH:$AH))) -> n.d. | BI111: =IF(ISERROR(STANDARDIZE($BB111,AVERAGE($BB:$BB),STDEV('Datos mensuales'!$AH:$AH))),"n.d.",STANDARDIZE($BB111,AVERAGE('Datos mensuales'!$AH:$AH),STDEV('Datos mensuales'!$AH:$AH))) -> n.d. | BJ111: =IF(ISERROR(STANDARDIZE($BC111,AVERAGE($BC:$BC),STDEV('Datos mensuales'!$AH:$AH))),"n.d.",STANDARDIZE($BC111,AVERAGE('Datos mensuales'!$AH:$AH),STDEV('Datos mensuales'!$AH:$AH))) -> -0.001605941645 | BK111: 0.01346520675 | BL111: n.d. | BM111: n.d. | BN111: n.d. | BO111: n.d. | BP111: n.d. | BQ111: 0 | BR111: -0.3019075649 | BS111: n.d. | BT111: n.d. | BU111: n.d. | BV111: n.d. | BW111: n.d. | BX111: n.d.
B112: Dic | C112: =IF(OR('[1]REAL IMAE(M)'!AG117="n.d."),"",'[1]REAL IMAE(M)'!AG117) -> 2.947966475 | L112: =IF(OR('[1]REAL IMAE(M)'!AN117="n.d."),"",'[1]REAL IMAE(M)'!AN117) -> 5.158867335 | U112: -0.5440771022 | AH112: n.d. | AI112: n.d. | AJ112: n.d. | AK112: -0.1678133079 | AL112: -0.09953566705 | AM112: -0.02833281722 | AP112: 60.68618825 | AV112: 107.13 | AW112: 1.291913264 | AX112: n.d. | AY112: n.d. | AZ112: n.d. | BA112: n.d. | BB112: n.d. | BC112: 0 | BD112: =IF(ISERROR(STANDARDIZE($AW112,AVERAGE($AW:$AW),STDEV('Datos mensuales'!$AH:$AH))),"n.d.",STANDARDIZE($AW112,AVERAGE('Datos mensuales'!$AH:$AH),STDEV('Datos mensuales'!$AH:$AH))) -> 0.6113138847 | BE112: =IF(ISERROR(STANDARDIZE($AX112,AVERAGE($AX:$AX),STDEV('Datos mensuales'!$AH:$AH))),"n.d.",STANDARDIZE($AX112,AVERAGE('Datos mensuales'!$AH:$AH),STDEV('Datos mensuales'!$AH:$AH))) -> n.d. | BF112: =IF(ISERROR(STANDARDIZE($AY112,AVERAGE($AY:$AY),STDEV('Datos mensuales'!$AH:$AH))),"n.d.",STANDARDIZE($AY112,AVERAGE('Datos mensuales'!$AH:$AH),STDEV('Datos mensuales'!$AH:$AH))) -> n.d. | BG112: =IF(ISERROR(STANDARDIZE($AZ112,AVERAGE($AZ:$AZ),STDEV('Datos mensuales'!$AH:$AH))),"n.d.",STANDARDIZE($AZ112,AVERAGE('Datos mensuales'!$AH:$AH),STDEV('Datos mensuales'!$AH:$AH))) -> n.d. | BH112: =IF(ISERROR(STANDARDIZE($BA112,AVERAGE($BA:$BA),STDEV('Datos mensuales'!$AH:$AH))),"n.d.",STANDARDIZE($BA112,AVERAGE('Datos mensuales'!$AH:$AH),STDEV('Datos mensuales'!$AH:$AH))) -> n.d. | BI112: =IF(ISERROR(STANDARDIZE($BB112,AVERAGE($BB:$BB),STDEV('Datos mensuales'!$AH:$AH))),"n.d.",STANDARDIZE($BB112,AVERAGE('Datos mensuales'!$AH:$AH),STDEV('Datos mensuales'!$AH:$AH))) -> n.d. | BJ112: =IF(ISERROR(STANDARDIZE($BC112,AVERAGE($BC:$BC),STDEV('Datos mensuales'!$AH:$AH))),"n.d.",STANDARDIZE($BC112,AVERAGE('Datos mensuales'!$AH:$AH),STDEV('Datos mensuales'!$AH:$AH))) -> -0.001605941645 | BK112: -0.04733548342 | BL112: n.d. | BM112: n.d. | BN112: n.d. | BO112: n.d. | BP112: n.d. | BQ112: 0 | BR112: -0.430476013 | BS112: n.d. | BT112: n.d. | BU112: n.d. | BV112: n.d. | BW112: n.d. | BX112: n.d.
A113: 1999 | B113: Ene | C113: =IF(OR('[1]REAL IMAE(M)'!AG118="n.d."),"",'[1]REAL IMAE(M)'!AG118) -> 2.735060339 | I113: =+'[1]REAL IMAE(M)'!AM118 -> 12.25626741 | L113: =IF(OR('[1]REAL IMAE(M)'!AN118="n.d."),"",'[1]REAL IMAE(M)'!AN118) -> 2.735060339 | R113: =IF(OR('[1]REAL IMAE(M)'!AT118="n.d."),"",'[1]REAL IMAE(M)'!AT118) -> 12.25626741 | U113: -0.2129061357 | AH113: n.d. | AI113: n.d. | AJ113: n.d. | AK113: -0.1168450383 | AL113: -0.06931874238 | AM113: 0.03021692467 | AP113: 60.89840048 | AV113: 116.87 | AW113: 1.186738636 | AX113: n.d. | AY113: n.d. | AZ113: n.d. | BA113: n.d. | BB113: n.d. | BC113: 0 | BD113: =IF(ISERROR(STANDARDIZE($AW113,AVERAGE($AW:$AW),STDEV('Datos mensuales'!$AH:$AH))),"n.d.",STANDARDIZE($AW113,AVERAGE('Datos mensuales'!$AH:$AH),STDEV('Datos mensuales'!$AH:$AH))) -> 0.5614160964 | BE113: =IF(ISERROR(STANDARDIZE($AX113,AVERAGE($AX:$AX),STDEV('Datos mensuales'!$AH:$AH))),"n.d.",STANDARDIZE($AX113,AVERAGE('Datos mensuales'!$AH:$AH),STDEV('Datos mensuales'!$AH:$AH))) -> n.d. | BF113: =IF(ISERROR(STANDARDIZE($AY113,AVERAGE($AY:$AY),STDEV('Datos mensuales'!$AH:$AH))),"n.d.",STANDARDIZE($AY113,AVERAGE('Datos mensuales'!$AH:$AH),STDEV('Datos mensuales'!$AH:$AH))) -> n.d. | BG113: =IF(ISERROR(STANDARDIZE($AZ113,AVERAGE($AZ:$AZ),STDEV('Datos mensuales'!$AH:$AH))),"n.d.",STANDARDIZE($AZ113,AVERAGE('Datos mensuales'!$AH:$AH),STDEV('Datos mensuales'!$AH:$AH))) -> n.d. | BH113: =IF(ISERROR(STANDARDIZE($BA113,AVERAGE($BA:$BA),STDEV('Datos mensuales'!$AH:$AH))),"n.d.",STANDARDIZE($BA113,AVERAGE('Datos mensuales'!$AH:$AH),STDEV('Datos mensuales'!$AH:$AH))) -> n.d. | BI113: =IF(ISERROR(STANDARDIZE($BB113,AVERAGE($BB:$BB),STDEV('Datos mensuales'!$AH:$AH))),"n.d.",STANDARDIZE($BB113,AVERAGE('Datos mensuales'!$AH:$AH),STDEV('Datos mensuales'!$AH:$AH))) -> n.d. | BJ113: =IF(ISERROR(STANDARDIZE($BC113,AVERAGE($BC:$BC),STDEV('Datos mensuales'!$AH:$AH))),"n.d.",STANDARDIZE($BC113,AVERAGE('Datos mensuales'!$AH:$AH),STDEV('Datos mensuales'!$AH:$AH))) -> -0.001605941645 | BK113: -0.04989778824 | BL113: n.d. | BM113: n.d. | BN113: n.d. | BO113: n.d. | BP113: n.d. | BQ113: 0 | BR113: -0.4841921433 | BS113: n.d. | BT113: n.d. | BU113: n.d. | BV113: n.d. | BW113: n.d. | BX113: 0
B114: Feb | C114: =IF(OR('[1]REAL IMAE(M)'!AG119="n.d."),"",'[1]REAL IMAE(M)'!AG119) -> 3.142451672 | I114: =+'[1]REAL IMAE(M)'!AM119 -> 12.47843588 | L114: =IF(OR('[1]REAL IMAE(M)'!AN119="n.d."),"",'[1]REAL IMAE(M)'!AN119) -> 2.938747446 | R114: =IF(OR('[1]REAL IMAE(M)'!AT119="n.d."),"",'[1]REAL IMAE(M)'!AT119) -> 12.36747421 | U114: 0.4073913329 | AA114: =IF(OR(I114="",I114="n.d.",I113="",I113="n.d."),"",I114-I113) -> 0.2221684732 | AH114: n.d. | AI114: n.d. | AJ114: n.d. | AK114: -0.03064711454 | AL114: -0.0182156505 | AM114: 0.05110309188 | AP114: 61.10824881 | AV114: 117.36 | AW114: 1.217499771 | AX114: n.d. | AY114: n.d. | AZ114: n.d. | BA114: n.d. | BB114: n.d. | BC114: 0 | BD114: =IF(ISERROR(STANDARDIZE($AW114,AVERAGE($AW:$AW),STDEV('Datos mensuales'!$AH:$AH))),"n.d.",STANDARDIZE($AW114,AVERAGE('Datos mensuales'!$AH:$AH),STDEV('Datos mensuales'!$AH:$AH))) -> 0.57601004 | BE114: =IF(ISERROR(STANDARDIZE($AX114,AVERAGE($AX:$AX),STDEV('Datos mensuales'!$AH:$AH))),"n.d.",STANDARDIZE($AX114,AVERAGE('Datos mensuales'!$AH:$AH),STDEV('Datos mensuales'!$AH:$AH))) -> n.d. | BF114: =IF(ISERROR(STANDARDIZE($AY114,AVERAGE($AY:$AY),STDEV('Datos mensuales'!$AH:$AH))),"n.d.",STANDARDIZE($AY114,AVERAGE('Datos mensuales'!$AH:$AH),STDEV('Datos mensuales'!$AH:$AH))) -> n.d. | BG114: =IF(ISERROR(STANDARDIZE($AZ114,AVERAGE($AZ:$AZ),STDEV('Datos mensuales'!$AH:$AH))),"n.d.",STANDARDIZE($AZ114,AVERAGE('Datos mensuales'!$AH:$AH),STDEV('Datos mensuales'!$AH:$AH))) -> n.d. | BH114: =IF(ISERROR(STANDARDIZE($BA114,AVERAGE($BA:$BA),STDEV('Datos mensuales'!$AH:$AH))),"n.d.",STANDARDIZE($BA114,AVERAGE('Datos mensuales'!$AH:$AH),STDEV('Datos mensuales'!$AH:$AH))) -> n.d. | BI114: =IF(ISERROR(STANDARDIZE($BB114,AVERAGE($BB:$BB),STDEV('Datos mensuales'!$AH:$AH))),"n.d.",STANDARDIZE($BB114,AVERAGE('Datos mensuales'!$AH:$AH),STDEV('Datos mensuales'!$AH:$AH))) -> n.d. | BJ114: =IF(ISERROR(STANDARDIZE($BC114,AVERAGE($BC:$BC),STDEV('Datos mensuales'!$AH:$AH))),"n.d.",STANDARDIZE($BC114,AVERAGE('Datos mensuales'!$AH:$AH),STDEV('Datos mensuales'!$AH:$AH))) -> -0.001605941645 | BK114: 0.01459394354 | BL114: n.d. | BM114: n.d. | BN114: n.d. | BO114: n.d. | BP114: n.d. | BQ114: 0 | BR114: -0.3959691074 | BS114: n.d. | BT114: n.d. | BU114: n.d. | BV114: n.d. | BW114: n.d. | BX114: 0
B115: Mar | C115: =IF(OR('[1]REAL IMAE(M)'!AG120="n.d."),"",'[1]REAL IMAE(M)'!AG120) -> 3.574854033 | I115: =+'[1]REAL IMAE(M)'!AM120 -> 12.9050815 | L115: =IF(OR('[1]REAL IMAE(M)'!AN120="n.d."),"",'[1]REAL IMAE(M)'!AN120) -> 3.150801611 | R115: =IF(OR('[1]REAL IMAE(M)'!AT120="n.d."),"",'[1]REAL IMAE(M)'!AT120) -> 12.54676259 | U115: 0.4324023611 | AA115: 0.426645613 | AH115: n.d. | AI115: n.d. | AJ115: n.d. | AK115: 0.0007437093983 | AL115: 0.000394637197 | AM115: 0.0186102877 | AP115: 61.31546548 | AV115: 117.76 | AW115: 1.293823638 | AX115: n.d. | AY115: n.d. | AZ115: n.d. | BA115: n.d. | BB115: n.d. | BC115: 0 | BD115: =IF(ISERROR(STANDARDIZE($AW115,AVERAGE($AW:$AW),STDEV('Datos mensuales'!$AH:$AH))),"n.d.",STANDARDIZE($AW115,AVERAGE('Datos mensuales'!$AH:$AH),STDEV('Datos mensuales'!$AH:$AH))) -> 0.6122202197 | BE115: =IF(ISERROR(STANDARDIZE($AX115,AVERAGE($AX:$AX),STDEV('Datos mensuales'!$AH:$AH))),"n.d.",STANDARDIZE($AX115,AVERAGE('Datos mensuales'!$AH:$AH),STDEV('Datos mensuales'!$AH:$AH))) -> n.d. | BF115: =IF(ISERROR(STANDARDIZE($AY115,AVERAGE($AY:$AY),STDEV('Datos mensuales'!$AH:$AH))),"n.d.",STANDARDIZE($AY115,AVERAGE('Datos mensuales'!$AH:$AH),STDEV('Datos mensuales'!$AH:$AH))) -> n.d. | BG115: =IF(ISERROR(STANDARDIZE($AZ115,AVERAGE($AZ:$AZ),STDEV('Datos mensuales'!$AH:$AH))),"n.d.",STANDARDIZE($AZ115,AVERAGE('Datos mensuales'!$AH:$AH),STDEV('Datos mensuales'!$AH:$AH))) -> n.d. | BH115: =IF(ISERROR(STANDARDIZE($BA115,AVERAGE($BA:$BA),STDEV('Datos mensuales'!$AH:$AH))),"n.d.",STANDARDIZE($BA115,AVERAGE('Datos mensuales'!$AH:$AH),STDEV('Datos mensuales'!$AH:$AH))) -> n.d. | BI115: =IF(ISERROR(STANDARDIZE($BB115,AVERAGE($BB:$BB),STDEV('Datos mensuales'!$AH:$AH))),"n.d.",STANDARDIZE($BB115,AVERAGE('Datos mensuales'!$AH:$AH),STDEV('Datos mensuales'!$AH:$AH))) -> n.d. | BJ115: =IF(ISERROR(STANDARDIZE($BC115,AVERAGE($BC:$BC),STDEV('Datos mensuales'!$AH:$AH))),"n.d.",STANDARDIZE($BC115,AVERAGE('Datos mensuales'!$AH:$AH),STDEV('Datos mensuales'!$AH:$AH))) -> -0.001605941645 | BK115: 0.03621017972 | BL115: n.d. | BM115: n.d. | BN115: n.d. | BO115: n.d. | BP115: n.d. | BQ115: 0 | BR115: -0.262300816 | BS115: n.d. | BT115: n.d. | BU115: n.d. | BV115: n.d. | BW115: n.d. | BX115: 0
B116: Abr | C116: =IF(OR('[1]REAL IMAE(M)'!AG121="n.d."),"",'[1]REAL IMAE(M)'!AG121) -> 3.818507822 | I116: =+'[1]REAL IMAE(M)'!AM121 -> 13.51013741 | L116: =IF(OR('[1]REAL IMAE(M)'!AN121="n.d."),"",'[1]REAL IMAE(M)'!AN121) -> 3.317945569 | R116: =IF(OR('[1]REAL IMAE(M)'!AT121="n.d."),"",'[1]REAL IMAE(M)'!AT121) -> 12.78729428 | U116: 0.2436537884 | AA116: 0.6050559118 | AH116: n.d. | AI116: n.d. | AJ116: n.d. | AK116: 0.0102375501 | AL116: 0.006023132555 | AM116: 0.005628495358 | AP116: 61.51979608 | AV116: 118.13 | AW116: 1.349391272 | AX116: n.d. | AY116: n.d. | AZ116: n.d. | BA116: n.d. | BB116: n.d. | BC116: 0 | BD116: =IF(ISERROR(STANDARDIZE($AW116,AVERAGE($AW:$AW),STDEV('Datos mensuales'!$AH:$AH))),"n.d.",STANDARDIZE($AW116,AVERAGE('Datos mensuales'!$AH:$AH),STDEV('Datos mensuales'!$AH:$AH))) -> 0.6385830614 | BE116: =IF(ISERROR(STANDARDIZE($AX116,AVERAGE($AX:$AX),STDEV('Datos mensuales'!$AH:$AH))),"n.d.",STANDARDIZE($AX116,AVERAGE('Datos mensuales'!$AH:$AH),STDEV('Datos mensuales'!$AH:$AH))) -> n.d. | BF116: =IF(ISERROR(STANDARDIZE($AY116,AVERAGE($AY:$AY),STDEV('Datos mensuales'!$AH:$AH))),"n.d.",STANDARDIZE($AY116,AVERAGE('Datos mensuales'!$AH:$AH),STDEV('Datos mensuales'!$AH:$AH))) -> n.d. | BG116: =IF(ISERROR(STANDARDIZE($AZ116,AVERAGE($AZ:$AZ),STDEV('Datos mensuales'!$AH:$AH))),"n.d.",STANDARDIZE($AZ116,AVERAGE('Datos mensuales'!$AH:$AH),STDEV('Datos mensuales'!$AH:$AH))) -> n.d. | BH116: =IF(ISERROR(STANDARDIZE($BA116,AVERAGE($BA:$BA),STDEV('Datos mensuales'!$AH:$AH))),"n.d.",STANDARDIZE($BA116,AVERAGE('Datos mensuales'!$AH:$AH),STDEV('Datos mensuales'!$AH:$AH))) -> n.d. | BI116: =IF(ISERROR(STANDARDIZE($BB116,AVERAGE($BB:$BB),STDEV('Datos mensuales'!$AH:$AH))),"n.d.",STANDARDIZE($BB116,AVERAGE('Datos mensuales'!$AH:$AH),STDEV('Datos mensuales'!$AH:$AH))) -> n.d. | BJ116: =IF(ISERROR(STANDARDIZE($BC116,AVERAGE($BC:$BC),STDEV('Datos mensuales'!$AH:$AH))),"n.d.",STANDARDIZE($BC116,AVERAGE('Datos mensuales'!$AH:$AH),STDEV('Datos mensuales'!$AH:$AH))) -> -0.001605941645 | BK116: 0.02636284174 | BL116: n.d. | BM116: n.d. | BN116: n.d. | BO116: n.d. | BP116: n.d. | BQ116: 0 | BR116: -0.1612539681 | BS116: n.d. | BT116: n.d. | BU116: n.d. | BV116: n.d. | BW116: n.d. | BX116: 0
B117: May | C117: =IF(OR('[1]REAL IMAE(M)'!AG122="n.d."),"",'[1]REAL IMAE(M)'!AG122) -> 4.152030692 | I117: =+'[1]REAL IMAE(M)'!AM122 -> 14.22924901 | L117: =IF(OR('[1]REAL IMAE(M)'!AN122="n.d."),"",'[1]REAL IMAE(M)'!AN122) -> 3.485062693 | R117: =IF(OR('[1]REAL IMAE(M)'!AT122="n.d."),"",'[1]REAL IMAE(M)'!AT122) -> 13.0746326 | U117: 0.3335228701 | AA117: 0.7191116043 | AH117: n.d. | AI117: n.d. | AJ117: n.d. | AK117: 0.02862076469 | AL117: 0.01692176055 | AM117: 0.01089862799 | AP117: 61.72100662 | AV117: 118.49 | AW117: 1.418109985 | AX117: n.d. | AY117: n.d. | AZ117: n.d. | BA117: n.d. | BB117: n.d. | BC117: 0 | BD117: =IF(ISERROR(STANDARDIZE($AW117,AVERAGE($AW:$AW),STDEV('Datos mensuales'!$AH:$AH))),"n.d.",STANDARDIZE($AW117,AVERAGE('Datos mensuales'!$AH:$AH),STDEV('Datos mensuales'!$AH:$AH))) -> 0.6711851429 | BE117: =IF(ISERROR(STANDARDIZE($AX117,AVERAGE($AX:$AX),STDEV('Datos mensuales'!$AH:$AH))),"n.d.",STANDARDIZE($AX117,AVERAGE('Datos mensuales'!$AH:$AH),STDEV('Datos mensuales'!$AH:$AH))) -> n.d. | BF117: =IF(ISERROR(STANDARDIZE($AY117,AVERAGE($AY:$AY),STDEV('Datos mensuales'!$AH:$AH))),"n.d.",STANDARDIZE($AY117,AVERAGE('Datos mensuales'!$AH:$AH),STDEV('Datos mensuales'!$AH:$AH))) -> n.d. | BG117: =IF(ISERROR(STANDARDIZE($AZ117,AVERAGE($AZ:$AZ),STDEV('Datos mensuales'!$AH:$AH))),"n.d.",STANDARDIZE($AZ117,AVERAGE('Datos mensuales'!$AH:$AH),STDEV('Datos mensuales'!$AH:$AH))) -> n.d. | BH117: =IF(ISERROR(STANDARDIZE($BA117,AVERAGE($BA:$BA),STDEV('Datos mensuales'!$AH:$AH))),"n.d.",STANDARDIZE($BA117,AVERAGE('Datos mensuales'!$AH:$AH),STDEV('Datos mensuales'!$AH:$AH))) -> n.d. | BI117: =IF(ISERROR(STANDARDIZE($BB117,AVERAGE($BB:$BB),STDEV('Datos mensuales'!$AH:$AH))),"n.d.",STANDARDIZE($BB117,AVERAGE('Datos mensuales'!$AH:$AH),STDEV('Datos mensuales'!$AH:$AH))) -> n.d. | BJ117: =IF(ISERROR(STANDARDIZE($BC117,AVERAGE($BC:$BC),STDEV('Datos mensuales'!$AH:$AH))),"n.d.",STANDARDIZE($BC117,AVERAGE('Datos mensuales'!$AH:$AH),STDEV('Datos mensuales'!$AH:$AH))) -> -0.001605941645 | BK117: 0.03260208144 | BL117: n.d. | BM117: n.d. | BN117: n.d. | BO117: n.d. | BP117: n.d. | BQ117: 0 | BR117: -1.806554083e-06 | BS117: n.d. | BT117: n.d. | BU117: n.d. | BV117: n.d. | BW117: n.d. | BX117: 0
B118: Jun | C118: =IF(OR('[1]REAL IMAE(M)'!AG123="n.d."),"",'[1]REAL IMAE(M)'!AG123) -> 4.407905545 | I118: =+'[1]REAL IMAE(M)'!AM123 -> 14.73857157 | L118: =IF(OR('[1]REAL IMAE(M)'!AN123="n.d."),"",'[1]REAL IMAE(M)'!AN123) -> 3.63924962 | R118: =IF(OR('[1]REAL IMAE(M)'!AT123="n.d."),"",'[1]REAL IMAE(M)'!AT123) -> 13.35053364 | U118: 0.2558748538 | AA118: 0.5093225548 | AH118: n.d. | AI118: n.d. | AJ118: n.d. | AK118: 0.03503620821 | AL118: 0.02072520483 | AM118: 0.00380344428 | AP118: 61.91889372 | AV118: 118.72 | AW118: 1.449646547 | AX118: n.d. | AY118: n.d. | AZ118: n.d. | BA118: n.d. | BB118: n.d. | BC118: 0 | BD118: =IF(ISERROR(STANDARDIZE($AW118,AVERAGE($AW:$AW),STDEV('Datos mensuales'!$AH:$AH))),"n.d.",STANDARDIZE($AW118,AVERAGE('Datos mensuales'!$AH:$AH),STDEV('Datos mensuales'!$AH:$AH))) -> 0.6861469709 | BE118: =IF(ISERROR(STANDARDIZE($AX118,AVERAGE($AX:$AX),STDEV('Datos mensuales'!$AH:$AH))),"n.d.",STANDARDIZE($AX118,AVERAGE('Datos mensuales'!$AH:$AH),STDEV('Datos mensuales'!$AH:$AH))) -> n.d. | BF118: =IF(ISERROR(STANDARDIZE($AY118,AVERAGE($AY:$AY),STDEV('Datos mensuales'!$AH:$AH))),"n.d.",STANDARDIZE($AY118,AVERAGE('Datos mensuales'!$AH:$AH),STDEV('Datos mensuales'!$AH:$AH))) -> n.d. | BG118: =IF(ISERROR(STANDARDIZE($AZ118,AVERAGE($AZ:$AZ),STDEV('Datos mensuales'!$AH:$AH))),"n.d.",STANDARDIZE($AZ118,AVERAGE('Datos mensuales'!$AH:$AH),STDEV('Datos mensuales'!$AH:$AH))) -> n.d. | BH118: =IF(ISERROR(STANDARDIZE($BA118,AVERAGE($BA:$BA),STDEV('Datos mensuales'!$AH:$AH))),"n.d.",STANDARDIZE($BA118,AVERAGE('Datos mensuales'!$AH:$AH),STDEV('Datos mensuales'!$AH:$AH))) -> n.d. | BI118: =IF(ISERROR(STANDARDIZE($BB118,AVERAGE($BB:$BB),STDEV('Datos mensuales'!$AH:$AH))),"n.d.",STANDARDIZE($BB118,AVERAGE('Datos mensuales'!$AH:$AH),STDEV('Datos mensuales'!$AH:$AH))) -> n.d. | BJ118: =IF(ISERROR(STANDARDIZE($BC118,AVERAGE($BC:$BC),STDEV('Datos mensuales'!$AH:$AH))),"n.d.",STANDARDIZE($BC118,AVERAGE('Datos mensuales'!$AH:$AH),STDEV('Datos mensuales'!$AH:$AH))) -> -0.001605941645 | BK118: 0.01496182799 | BL118: n.d. | BM118: n.d. | BN118: n.d. | BO118: n.d. | BP118: n.d. | BQ118: 0 | BR118: 0.1657227837 | BS118: n.d. | BT118: n.d. | BU118: n.d. | BV118: n.d. | BW118: n.d. | BX118: 0
B119: Jul | C119: =IF(OR('[1]REAL IMAE(M)'!AG124="n.d."),"",'[1]REAL IMAE(M)'!AG124) -> 4.410572967 | I119: =+'[1]REAL IMAE(M)'!AM124 -> 14.7382654 | L119: =IF(OR('[1]REAL IMAE(M)'!AN124="n.d."),"",'[1]REAL IMAE(M)'!AN124) -> 3.749931637 | R119: =IF(OR('[1]REAL IMAE(M)'!AT124="n.d."),"",'[1]REAL IMAE(M)'!AT124) -> 13.54802353 | U119: 0.00266742159 | AA119: -0.0003061619632 | AH119: n.d. | AI119: n.d. | AJ119: n.d. | AK119: 0.1088917775 | AL119: 0.06451103843 | AM119: 0.04378583361 | AP119: 62.1132914 | AV119: 118.8 | AW119: 1.421134019 | AX119: n.d. | AY119: n.d. | AZ119: n.d. | BA119: n.d. | BB119: n.d. | BC119: 0 | BD119: =IF(ISERROR(STANDARDIZE($AW119,AVERAGE($AW:$AW),STDEV('Datos mensuales'!$AH:$AH))),"n.d.",STANDARDIZE($AW119,AVERAGE('Datos mensuales'!$AH:$AH),STDEV('Datos mensuales'!$AH:$AH))) -> 0.6726198293 | BE119: =IF(ISERROR(STANDARDIZE($AX119,AVERAGE($AX:$AX),STDEV('Datos mensuales'!$AH:$AH))),"n.d.",STANDARDIZE($AX119,AVERAGE('Datos mensuales'!$AH:$AH),STDEV('Datos mensuales'!$AH:$AH))) -> n.d. | BF119: =IF(ISERROR(STANDARDIZE($AY119,AVERAGE($AY:$AY),STDEV('Datos mensuales'!$AH:$AH))),"n.d.",STANDARDIZE($AY119,AVERAGE('Datos mensuales'!$AH:$AH),STDEV('Datos mensuales'!$AH:$AH))) -> n.d. | BG119: =IF(ISERROR(STANDARDIZE($AZ119,AVERAGE($AZ:$AZ),STDEV('Datos mensuales'!$AH:$AH))),"n.d.",STANDARDIZE($AZ119,AVERAGE('Datos mensuales'!$AH:$AH),STDEV('Datos mensuales'!$AH:$AH))) -> n.d. | BH119: =IF(ISERROR(STANDARDIZE($BA119,AVERAGE($BA:$BA),STDEV('Datos mensuales'!$AH:$AH))),"n.d.",STANDARDIZE($BA119,AVERAGE('Datos mensuales'!$AH:$AH),STDEV('Datos mensuales'!$AH:$AH))) -> n.d. | BI119: =IF(ISERROR(STANDARDIZE($BB119,AVERAGE($BB:$BB),STDEV('Datos mensuales'!$AH:$AH))),"n.d.",STANDARDIZE($BB119,AVERAGE('Datos mensuales'!$AH:$AH),STDEV('Datos mensuales'!$AH:$AH))) -> n.d. | BJ119: =IF(ISERROR(STANDARDIZE($BC119,AVERAGE($BC:$BC),STDEV('Datos mensuales'!$AH:$AH))),"n.d.",STANDARDIZE($BC119,AVERAGE('Datos mensuales'!$AH:$AH),STDEV('Datos mensuales'!$AH:$AH))) -> -0.001605941645 | BK119: -0.01352714161 | BL119: n.d. | BM119: n.d. | BN119: n.d. | BO119: n.d. | BP119: n.d. | BQ119: 0 | BR119: 0.1945358535 | BS119: n.d. | BT119: n.d. | BU119: n.d. | BV119: n.d. | BW119: n.d. | BX119: 0
B120: Ago | C120: =IF(OR('[1]REAL IMAE(M)'!AG125="n.d."),"",'[1]REAL IMAE(M)'!AG125) -> 4.267942207 | I120: =+'[1]REAL IMAE(M)'!AM125 -> 14.18542027 | L120: =IF(OR('[1]REAL IMAE(M)'!AN125="n.d."),"",'[1]REAL IMAE(M)'!AN125) -> 3.815167814 | R120: =IF(OR('[1]REAL IMAE(M)'!AT125="n.d."),"",'[1]REAL IMAE(M)'!AT125) -> 13.62772687 | U120: -0.1426307599 | AA120: -0.5528451315 | AH120: n.d. | AI120: n.d. | AJ120: n.d. | AK120: 0.1338164859 | AL120: 0.07928784054 | AM120: 0.0147768021 | AP120: 62.30407057 | AV120: 118.73 | AW120: 1.39354111 | AX120: n.d. | AY120: n.d. | AZ120: n.d. | BA120: n.d. | BB120: n.d. | BC120: 0 | BD120: =IF(ISERROR(STANDARDIZE($AW120,AVERAGE($AW:$AW),STDEV('Datos mensuales'!$AH:$AH))),"n.d.",STANDARDIZE($AW120,AVERAGE('Datos mensuales'!$AH:$AH),STDEV('Datos mensuales'!$AH:$AH))) -> 0.6595289806 | BE120: =IF(ISERROR(STANDARDIZE($AX120,AVERAGE($AX:$AX),STDEV('Datos mensuales'!$AH:$AH))),"n.d.",STANDARDIZE($AX120,AVERAGE('Datos mensuales'!$AH:$AH),STDEV('Datos mensuales'!$AH:$AH))) -> n.d. | BF120: =IF(ISERROR(STANDARDIZE($AY120,AVERAGE($AY:$AY),STDEV('Datos mensuales'!$AH:$AH))),"n.d.",STANDARDIZE($AY120,AVERAGE('Datos mensuales'!$AH:$AH),STDEV('Datos mensuales'!$AH:$AH))) -> n.d. | BG120: =IF(ISERROR(STANDARDIZE($AZ120,AVERAGE($AZ:$AZ),STDEV('Datos mensuales'!$AH:$AH))),"n.d.",STANDARDIZE($AZ120,AVERAGE('Datos mensuales'!$AH:$AH),STDEV('Datos mensuales'!$AH:$AH))) -> n.d. | BH120: =IF(ISERROR(STANDARDIZE($BA120,AVERAGE($BA:$BA),STDEV('Datos mensuales'!$AH:$AH))),"n.d.",STANDARDIZE($BA120,AVERAGE('Datos mensuales'!$AH:$AH),STDEV('Datos mensuales'!$AH:$AH))) -> n.d. | BI120: =IF(ISERROR(STANDARDIZE($BB120,AVERAGE($BB:$BB),STDEV('Datos mensuales'!$AH:$AH))),"n.d.",STANDARDIZE($BB120,AVERAGE('Datos mensuales'!$AH:$AH),STDEV('Datos mensuales'!$AH:$AH))) -> n.d. | BJ120: =IF(ISERROR(STANDARDIZE($BC120,AVERAGE($BC:$BC),STDEV('Datos mensuales'!$AH:$AH))),"n.d.",STANDARDIZE($BC120,AVERAGE('Datos mensuales'!$AH:$AH),STDEV('Datos mensuales'!$AH:$AH))) -> -0.001605941645 | BK120: -0.0130908487 | BL120: n.d. | BM120: n.d. | BN120: n.d. | BO120: n.d. | BP120: n.d. | BQ120: 0 | BR120: 0.1251660524 | BS120: n.d. | BT120: n.d. | BU120: n.d. | BV120: n.d. | BW120: n.d. | BX120: 0
B121: Sep | C121: =IF(OR('[1]REAL IMAE(M)'!AG126="n.d."),"",'[1]REAL IMAE(M)'!AG126) -> 4.144137573 | I121: =+'[1]REAL IMAE(M)'!AM126 -> 13.34925944 | L121: =IF(OR('[1]REAL IMAE(M)'!AN126="n.d."),"",'[1]REAL IMAE(M)'!AN126) -> 3.852100343 | R121: =IF(OR('[1]REAL IMAE(M)'!AT126="n.d."),"",'[1]REAL IMAE(M)'!AT126) -> 13.59659898 | U121: -0.1238046341 | AA121: -0.8361608369 | AH121: n.d. | AI121: n.d. | AJ121: n.d. | AK121: 0.1914593786 | AL121: 0.113461866 | AM121: 0.0341740255 | AP121: 62.49113247 | AV121: 118.62 | AW121: 1.398826961 | AX121: n.d. | AY121: n.d. | AZ121: n.d. | BA121: n.d. | BB121: n.d. | BC121: 0 | BD121: =IF(ISERROR(STANDARDIZE($AW121,AVERAGE($AW:$AW),STDEV('Datos mensuales'!$AH:$AH))),"n.d.",STANDARDIZE($AW121,AVERAGE('Datos mensuales'!$AH:$AH),STDEV('Datos mensuales'!$AH:$AH))) -> 0.6620367364 | BE121: =IF(ISERROR(STANDARDIZE($AX121,AVERAGE($AX:$AX),STDEV('Datos mensuales'!$AH:$AH))),"n.d.",STANDARDIZE($AX121,AVERAGE('Datos mensuales'!$AH:$AH),STDEV('Datos mensuales'!$AH:$AH))) -> n.d. | BF121: =IF(ISERROR(STANDARDIZE($AY121,AVERAGE($AY:$AY),STDEV('Datos mensuales'!$AH:$AH))),"n.d.",STANDARDIZE($AY121,AVERAGE('Datos mensuales'!$AH:$AH),STDEV('Datos mensuales'!$AH:$AH))) -> n.d. | BG121: =IF(ISERROR(STANDARDIZE($AZ121,AVERAGE($AZ:$AZ),STDEV('Datos mensuales'!$AH:$AH))),"n.d.",STANDARDIZE($AZ121,AVERAGE('Datos mensuales'!$AH:$AH),STDEV('Datos mensuales'!$AH:$AH))) -> n.d. | BH121: =IF(ISERROR(STANDARDIZE($BA121,AVERAGE($BA:$BA),STDEV('Datos mensuales'!$AH:$AH))),"n.d.",STANDARDIZE($BA121,AVERAGE('Datos mensuales'!$AH:$AH),STDEV('Datos mensuales'!$AH:$AH))) -> n.d. | BI121: =IF(ISERROR(STANDARDIZE($BB121,AVERAGE($BB:$BB),STDEV('Datos mensuales'!$AH:$AH))),"n.d.",STANDARDIZE($BB121,AVERAGE('Datos mensuales'!$AH:$AH),STDEV('Datos mensuales'!$AH:$AH))) -> n.d. | BJ121: =IF(ISERROR(STANDARDIZE($BC121,AVERAGE($BC:$BC),STDEV('Datos mensuales'!$AH:$AH))),"n.d.",STANDARDIZE($BC121,AVERAGE('Datos mensuales'!$AH:$AH),STDEV('Datos mensuales'!$AH:$AH))) -> -0.001605941645 | BK121: 0.002507755876 | BL121: n.d. | BM121: n.d. | BN121: n.d. | BO121: n.d. | BP121: n.d. | BQ121: 0 | BR121: 0.07605855608 | BS121: n.d. | BT121: n.d. | BU121: n.d. | BV121: n.d. | BW121: n.d. | BX121: 0
B122: Oct | C122: =IF(OR('[1]REAL IMAE(M)'!AG127="n.d."),"",'[1]REAL IMAE(M)'!AG127) -> 4.086262547 | I122: =+'[1]REAL IMAE(M)'!AM127 -> 12.45851901 | L122: =IF(OR('[1]REAL IMAE(M)'!AN127="n.d."),"",'[1]REAL IMAE(M)'!AN127) -> 3.875824742 | R122: =IF(OR('[1]REAL IMAE(M)'!AT127="n.d."),"",'[1]REAL IMAE(M)'!AT127) -> 13.48136628 | U122: -0.05787502615 | AA122: -0.8907404261 | AH122: n.d. | AI122: n.d. | AJ122: n.d. | AK122: 0.5611736014 | AL122: 0.332649743 | AM122: 0.219187877 | AP122: 62.67440097 | AV122: 118.61 | AW122: 1.463681061 | AX122: n.d. | AY122: n.d. | AZ122: n.d. | BA122: n.d. | BB122: n.d. | BC122: 0 | BD122: =IF(ISERROR(STANDARDIZE($AW122,AVERAGE($AW:$AW),STDEV('Datos mensuales'!$AH:$AH))),"n.d.",STANDARDIZE($AW122,AVERAGE('Datos mensuales'!$AH:$AH),STDEV('Datos mensuales'!$AH:$AH))) -> 0.6928053371 | BE122: =IF(ISERROR(STANDARDIZE($AX122,AVERAGE($AX:$AX),STDEV('Datos mensuales'!$AH:$AH))),"n.d.",STANDARDIZE($AX122,AVERAGE('Datos mensuales'!$AH:$AH),STDEV('Datos mensuales'!$AH:$AH))) -> n.d. | BF122: =IF(ISERROR(STANDARDIZE($AY122,AVERAGE($AY:$AY),STDEV('Datos mensuales'!$AH:$AH))),"n.d.",STANDARDIZE($AY122,AVERAGE('Datos mensuales'!$AH:$AH),STDEV('Datos mensuales'!$AH:$AH))) -> n.d. | BG122: =IF(ISERROR(STANDARDIZE($AZ122,AVERAGE($AZ:$AZ),STDEV('Datos mensuales'!$AH:$AH))),"n.d.",STANDARDIZE($AZ122,AVERAGE('Datos mensuales'!$AH:$AH),STDEV('Datos mensuales'!$AH:$AH))) -> n.d. | BH122: =IF(ISERROR(STANDARDIZE($BA122,AVERAGE($BA:$BA),STDEV('Datos mensuales'!$AH:$AH))),"n.d.",STANDARDIZE($BA122,AVERAGE('Datos mensuales'!$AH:$AH),STDEV('Datos mensuales'!$AH:$AH))) -> n.d. | BI122: =IF(ISERROR(STANDARDIZE($BB122,AVERAGE($BB:$BB),STDEV('Datos mensuales'!$AH:$AH))),"n.d.",STANDARDIZE($BB122,AVERAGE('Datos mensuales'!$AH:$AH),STDEV('Datos mensuales'!$AH:$AH))) -> n.d. | BJ122: =IF(ISERROR(STANDARDIZE($BC122,AVERAGE($BC:$BC),STDEV('Datos mensuales'!$AH:$AH))),"n.d.",STANDARDIZE($BC122,AVERAGE('Datos mensuales'!$AH:$AH),STDEV('Datos mensuales'!$AH:$AH))) -> -0.001605941645 | BK122: 0.0307686007 | BL122: n.d. | BM122: n.d. | BN122: n.d. | BO122: n.d. | BP122: n.d. | BQ122: 0 | BR122: 0.07381020588 | BS122: n.d. | BT122: n.d. | BU122: n.d. | BV122: n.d. | BW122: n.d. | BX122: 0
B123: Nov | C123: =IF(OR('[1]REAL IMAE(M)'!AG128="n.d."),"",'[1]REAL IMAE(M)'!AG128) -> 4.064123484 | I123: =+'[1]REAL IMAE(M)'!AM128 -> 11.63249953 | L123: =IF(OR('[1]REAL IMAE(M)'!AN128="n.d."),"",'[1]REAL IMAE(M)'!AN128) -> 3.89320631 | R123: =IF(OR('[1]REAL IMAE(M)'!AT128="n.d."),"",'[1]REAL IMAE(M)'!AT128) -> 13.31010453 | U123: -0.02213906308 | AA123: -0.8260194803 | AH123: n.d. | AI123: n.d. | AJ123: n.d. | AK123: 1.063518521 | AL123: 0.6304687331 | AM123: 0.2978189901 | AP123: 62.85381862 | AV123: 118.71 | AW123: 1.531880134 | AX123: n.d. | AY123: n.d. | AZ123: n.d. | BA123: n.d. | BB123: n.d. | BC123: 0 | BD123: =IF(ISERROR(STANDARDIZE($AW123,AVERAGE($AW:$AW),STDEV('Datos mensuales'!$AH:$AH))),"n.d.",STANDARDIZE($AW123,AVERAGE('Datos mensuales'!$AH:$AH),STDEV('Datos mensuales'!$AH:$AH))) -> 0.7251608873 | BE123: =IF(ISERROR(STANDARDIZE($AX123,AVERAGE($AX:$AX),STDEV('Datos mensuales'!$AH:$AH))),"n.d.",STANDARDIZE($AX123,AVERAGE('Datos mensuales'!$AH:$AH),STDEV('Datos mensuales'!$AH:$AH))) -> n.d. | BF123: =IF(ISERROR(STANDARDIZE($AY123,AVERAGE($AY:$AY),STDEV('Datos mensuales'!$AH:$AH))),"n.d.",STANDARDIZE($AY123,AVERAGE('Datos mensuales'!$AH:$AH),STDEV('Datos mensuales'!$AH:$AH))) -> n.d. | BG123: =IF(ISERROR(STANDARDIZE($AZ123,AVERAGE($AZ:$AZ),STDEV('Datos mensuales'!$AH:$AH))),"n.d.",STANDARDIZE($AZ123,AVERAGE('Datos mensuales'!$AH:$AH),STDEV('Datos mensuales'!$AH:$AH))) -> n.d. | BH123: =IF(ISERROR(STANDARDIZE($BA123,AVERAGE($BA:$BA),STDEV('Datos mensuales'!$AH:$AH))),"n.d.",STANDARDIZE($BA123,AVERAGE('Datos mensuales'!$AH:$AH),STDEV('Datos mensuales'!$AH:$AH))) -> n.d. | BI123: =IF(ISERROR(STANDARDIZE($BB123,AVERAGE($BB:$BB),STDEV('Datos mensuales'!$AH:$AH))),"n.d.",STANDARDIZE($BB123,AVERAGE('Datos mensuales'!$AH:$AH),STDEV('Datos mensuales'!$AH:$AH))) -> n.d. | BJ123: =IF(ISERROR(STANDARDIZE($BC123,AVERAGE($BC:$BC),STDEV('Datos mensuales'!$AH:$AH))),"n.d.",STANDARDIZE($BC123,AVERAGE('Datos mensuales'!$AH:$AH),STDEV('Datos mensuales'!$AH:$AH))) -> -0.001605941645 | BK123: 0.0323555502 | BL123: n.d. | BM123: n.d. | BN123: n.d. | BO123: n.d. | BP123: n.d. | BQ123: 0 | BR123: 0.1009816793 | BS123: n.d. | BT123: n.d. | BU123: n.d. | BV123: n.d. | BW123: n.d. | BX123: 0
B124: Dic | C124: =IF(OR('[1]REAL IMAE(M)'!AG129="n.d."),"",'[1]REAL IMAE(M)'!AG129) -> 4.118557039 | I124: =+'[1]REAL IMAE(M)'!AM129 -> 10.98665173 | L124: =IF(OR('[1]REAL IMAE(M)'!AN129="n.d."),"",'[1]REAL IMAE(M)'!AN129) -> 3.912286939 | R124: =IF(OR('[1]REAL IMAE(M)'!AT129="n.d."),"",'[1]REAL IMAE(M)'!AT129) -> 13.11178922 | U124: 0.05443355558 | AA124: -0.6458477983 | AH124: n.d. | AI124: n.d. | AJ124: n.d. | AK124: 1.381440228 | AL124: 0.8189510247 | AM124: 0.1884822916 | AP124: 63.02935056 | AV124: 118.9 | AW124: 1.531805538 | AX124: n.d. | AY124: n.d. | AZ124: n.d. | BA124: n.d. | BB124: n.d. | BC124: 0 | BD124: =IF(ISERROR(STANDARDIZE($AW124,AVERAGE($AW:$AW),STDEV('Datos mensuales'!$AH:$AH))),"n.d.",STANDARDIZE($AW124,AVERAGE('Datos mensuales'!$AH:$AH),STDEV('Datos mensuales'!$AH:$AH))) -> 0.7251254966 | BE124: =IF(ISERROR(STANDARDIZE($AX124,AVERAGE($AX:$AX),STDEV('Datos mensuales'!$AH:$AH))),"n.d.",STANDARDIZE($AX124,AVERAGE('Datos mensuales'!$AH:$AH),STDEV('Datos mensuales'!$AH:$AH))) -> n.d. | BF124: =IF(ISERROR(STANDARDIZE($AY124,AVERAGE($AY:$AY),STDEV('Datos mensuales'!$AH:$AH))),"n.d.",STANDARDIZE($AY124,AVERAGE('Datos mensuales'!$AH:$AH),STDEV('Datos mensuales'!$AH:$AH))) -> n.d. | BG124: =IF(ISERROR(STANDARDIZE($AZ124,AVERAGE($AZ:$AZ),STDEV('Datos mensuales'!$AH:$AH))),"n.d.",STANDARDIZE($AZ124,AVERAGE('Datos mensuales'!$AH:$AH),STDEV('Datos mensuales'!$AH:$AH))) -> n.d. | BH124: =IF(ISERROR(STANDARDIZE($BA124,AVERAGE($BA:$BA),STDEV('Datos mensuales'!$AH:$AH))),"n.d.",STANDARDIZE($BA124,AVERAGE('Datos mensuales'!$AH:$AH),STDEV('Datos mensuales'!$AH:$AH))) -> n.d. | BI124: =IF(ISERROR(STANDARDIZE($BB124,AVERAGE($BB:$BB),STDEV('Datos mensuales'!$AH:$AH))),"n.d.",STANDARDIZE($BB124,AVERAGE('Datos mensuales'!$AH:$AH),STDEV('Datos mensuales'!$AH:$AH))) -> n.d. | BJ124: =IF(ISERROR(STANDARDIZE($BC124,AVERAGE($BC:$BC),STDEV('Datos mensuales'!$AH:$AH))),"n.d.",STANDARDIZE($BC124,AVERAGE('Datos mensuales'!$AH:$AH),STDEV('Datos mensuales'!$AH:$AH))) -> -0.001605941645 | BK124: -3.539071947e-05 | BL124: n.d. | BM124: n.d. | BN124: n.d. | BO124: n.d. | BP124: n.d. | BQ124: 0 | BR124: 0.1861754081 | BS124: n.d. | BT124: n.d. | BU124: n.d. | BV124: n.d. | BW124: n.d. | BX124: 0
A125: 2000 | B125: Ene | C125: =IF(OR('[1]REAL IMAE(M)'!AG130="n.d."),"",'[1]REAL IMAE(M)'!AG130) -> 4.109025687 | I125: =+'[1]REAL IMAE(M)'!AM130 -> 2.002224694 | L125: =IF(OR('[1]REAL IMAE(M)'!AN130="n.d."),"",'[1]REAL IMAE(M)'!AN130) -> 4.109025687 | R125: =IF(OR('[1]REAL IMAE(M)'!AT130="n.d."),"",'[1]REAL IMAE(M)'!AT130) -> 2.002224694 | U125: -0.009531352791 | AA125: -8.984427037 | AH125: n.d. | AI125: n.d. | AJ125: n.d. | AK125: 1.492721883 | AL125: 0.8849251963 | AM125: 0.06597417161 | AP125: 63.20099503 | AS125: 98.01376921 | AV125: 119.21 | AW125: 1.481374208 | AX125: n.d. | AY125: n.d. | AZ125: 2.621833892 | BA125: n.d. | BB125: n.d. | BC125: 0 | BD125: =IF(ISERROR(STANDARDIZE($AW125,AVERAGE($AW:$AW),STDEV('Datos mensuales'!$AH:$AH))),"n.d.",STANDARDIZE($AW125,AVERAGE('Datos mensuales'!$AH:$AH),STDEV('Datos mensuales'!$AH:$AH))) -> 0.7011994616 | BE125: =IF(ISERROR(STANDARDIZE($AX125,AVERAGE($AX:$AX),STDEV('Datos mensuales'!$AH:$AH))),"n.d.",STANDARDIZE($AX125,AVERAGE('Datos mensuales'!$AH:$AH),STDEV('Datos mensuales'!$AH:$AH))) -> n.d. | BF125: =IF(ISERROR(STANDARDIZE($AY125,AVERAGE($AY:$AY),STDEV('Datos mensuales'!$AH:$AH))),"n.d.",STANDARDIZE($AY125,AVERAGE('Datos mensuales'!$AH:$AH),STDEV('Datos mensuales'!$AH:$AH))) -> n.d. | BG125: =IF(ISERROR(STANDARDIZE($AZ125,AVERAGE($AZ:$AZ),STDEV('Datos mensuales'!$AH:$AH))),"n.d.",STANDARDIZE($AZ125,AVERAGE('Datos mensuales'!$AH:$AH),STDEV('Datos mensuales'!$AH:$AH))) -> 1.242265469 | BH125: =IF(ISERROR(STANDARDIZE($BA125,AVERAGE($BA:$BA),STDEV('Datos mensuales'!$AH:$AH))),"n.d.",STANDARDIZE($BA125,AVERAGE('Datos mensuales'!$AH:$AH),STDEV('Datos mensuales'!$AH:$AH))) -> n.d. | BI125: =IF(ISERROR(STANDARDIZE($BB125,AVERAGE($BB:$BB),STDEV('Datos mensuales'!$AH:$AH))),"n.d.",STANDARDIZE($BB125,AVERAGE('Datos mensuales'!$AH:$AH),STDEV('Datos mensuales'!$AH:$AH))) -> n.d. | BJ125: =IF(ISERROR(STANDARDIZE($BC125,AVERAGE($BC:$BC),STDEV('Datos mensuales'!$AH:$AH))),"n.d.",STANDARDIZE($BC125,AVERAGE('Datos mensuales'!$AH:$AH),STDEV('Datos mensuales'!$AH:$AH))) -> -0.001605941645 | BK125: -0.02392603501 | BL125: n.d. | BM125: n.d. | BN125: n.d. | BO125: n.d. | BP125: n.d. | BQ125: 0 | BR125: 0.2489835366 | BS125: n.d. | BT125: n.d. | BU125: n.d. | BV125: n.d. | BW125: n.d. | BX125: 0
B126: Feb | C126: =IF(OR('[1]REAL IMAE(M)'!AG131="n.d."),"",'[1]REAL IMAE(M)'!AG131) -> 3.896893083 | I126: =+'[1]REAL IMAE(M)'!AM131 -> 1.840490798 | L126: =IF(OR('[1]REAL IMAE(M)'!AN131="n.d."),"",'[1]REAL IMAE(M)'!AN131) -> 4.002753958 | R126: =IF(OR('[1]REAL IMAE(M)'!AT131="n.d."),"",'[1]REAL IMAE(M)'!AT131) -> 1.921188575 | U126: -0.2121326035 | AA126: -0.1617338966 | AH126: n.d. | AI126: n.d. | AJ126: n.d. | AK126: 1.636532411 | AL126: 0.9701843574 | AM126: 0.08525916104 | AP126: 63.36879821 | AS126: 98.37071218 | AV126: 119.52 | AW126: 1.42437959 | AX126: n.d. | AY126: n.d. | AZ126: 2.131136026 | BA126: n.d. | BB126: n.d. | BC126: 0 | BD126: =IF(ISERROR(STANDARDIZE($AW126,AVERAGE($AW:$AW),STDEV('Datos mensuales'!$AH:$AH))),"n.d.",STANDARDIZE($AW126,AVERAGE('Datos mensuales'!$AH:$AH),STDEV('Datos mensuales'!$AH:$AH))) -> 0.674159619 | BE126: =IF(ISERROR(STANDARDIZE($AX126,AVERAGE($AX:$AX),STDEV('Datos mensuales'!$AH:$AH))),"n.d.",STANDARDIZE($AX126,AVERAGE('Datos mensuales'!$AH:$AH),STDEV('Datos mensuales'!$AH:$AH))) -> n.d. | BF126: =IF(ISERROR(STANDARDIZE($AY126,AVERAGE($AY:$AY),STDEV('Datos mensuales'!$AH:$AH))),"n.d.",STANDARDIZE($AY126,AVERAGE('Datos mensuales'!$AH:$AH),STDEV('Datos mensuales'!$AH:$AH))) -> n.d. | BG126: =IF(ISERROR(STANDARDIZE($AZ126,AVERAGE($AZ:$AZ),STDEV('Datos mensuales'!$AH:$AH))),"n.d.",STANDARDIZE($AZ126,AVERAGE('Datos mensuales'!$AH:$AH),STDEV('Datos mensuales'!$AH:$AH))) -> 1.009464662 | BH126: =IF(ISERROR(STANDARDIZE($BA126,AVERAGE($BA:$BA),STDEV('Datos mensuales'!$AH:$AH))),"n.d.",STANDARDIZE($BA126,AVERAGE('Datos mensuales'!$AH:$AH),STDEV('Datos mensuales'!$AH:$AH))) -> n.d. | BI126: =IF(ISERROR(STANDARDIZE($BB126,AVERAGE($BB:$BB),STDEV('Datos mensuales'!$AH:$AH))),"n.d.",STANDARDIZE($BB126,AVERAGE('Datos mensuales'!$AH:$AH),STDEV('Datos mensuales'!$AH:$AH))) -> n.d. | BJ126: =IF(ISERROR(STANDARDIZE($BC126,AVERAGE($BC:$BC),STDEV('Datos mensuales'!$AH:$AH))),"n.d.",STANDARDIZE($BC126,AVERAGE('Datos mensuales'!$AH:$AH),STDEV('Datos mensuales'!$AH:$AH))) -> -0.001605941645 | BK126: -0.0270398426 | BL126: n.d. | BM126: n.d. | BN126: -0.2328008074 | BO126: n.d. | BP126: n.d. | BQ126: 0 | BR126: 0.1703956046 | BS126: n.d. | BT126: n.d. | BU126: n.d. | BV126: n.d. | BW126: n.d. | BX126: 0
B127: Mar | C127: =IF(OR('[1]REAL IMAE(M)'!AG132="n.d."),"",'[1]REAL IMAE(M)'!AG132) -> 3.63029354 | I127: =+'[1]REAL IMAE(M)'!AM132 -> 1.647418478 | L127: =IF(OR('[1]REAL IMAE(M)'!AN132="n.d."),"",'[1]REAL IMAE(M)'!AN132) -> 3.878079134 | R127: =IF(OR('[1]REAL IMAE(M)'!AT132="n.d."),"",'[1]REAL IMAE(M)'!AT132) -> 1.829597432 | U127: -0.2665995433 | AA127: -0.1930723193 | AH127: n.d. | AI127: n.d. | AJ127: n.d. | AK127: 1.911371512 | AL127: 1.1331248 | AM127: 0.1629404423 | AP127: 63.53286941 | AS127: 98.72783267 | AV127: 119.7 | AW127: 1.370397484 | AX127: n.d. | AY127: n.d. | AZ127: 1.655255068 | BA127: n.d. | BB127: n.d. | BC127: 0 | BD127: =IF(ISERROR(STANDARDIZE($AW127,AVERAGE($AW:$AW),STDEV('Datos mensuales'!$AH:$AH))),"n.d.",STANDARDIZE($AW127,AVERAGE('Datos mensuales'!$AH:$AH),STDEV('Datos mensuales'!$AH:$AH))) -> 0.6485489965 | BE127: =IF(ISERROR(STANDARDIZE($AX127,AVERAGE($AX:$AX),STDEV('Datos mensuales'!$AH:$AH))),"n.d.",STANDARDIZE($AX127,AVERAGE('Datos mensuales'!$AH:$AH),STDEV('Datos mensuales'!$AH:$AH))) -> n.d. | BF127: =IF(ISERROR(STANDARDIZE($AY127,AVERAGE($AY:$AY),STDEV('Datos mensuales'!$AH:$AH))),"n.d.",STANDARDIZE($AY127,AVERAGE('Datos mensuales'!$AH:$AH),STDEV('Datos mensuales'!$AH:$AH))) -> n.d. | BG127: =IF(ISERROR(STANDARDIZE($AZ127,AVERAGE($AZ:$AZ),STDEV('Datos mensuales'!$AH:$AH))),"n.d.",STANDARDIZE($AZ127,AVERAGE('Datos mensuales'!$AH:$AH),STDEV('Datos mensuales'!$AH:$AH))) -> 0.7836934104 | BH127: =IF(ISERROR(STANDARDIZE($BA127,AVERAGE($BA:$BA),STDEV('Datos mensuales'!$AH:$AH))),"n.d.",STANDARDIZE($BA127,AVERAGE('Datos mensuales'!$AH:$AH),STDEV('Datos mensuales'!$AH:$AH))) -> n.d. | BI127: =IF(ISERROR(STANDARDIZE($BB127,AVERAGE($BB:$BB),STDEV('Datos mensuales'!$AH:$AH))),"n.d.",STANDARDIZE($BB127,AVERAGE('Datos mensuales'!$AH:$AH),STDEV('Datos mensuales'!$AH:$AH))) -> n.d. | BJ127: =IF(ISERROR(STANDARDIZE($BC127,AVERAGE($BC:$BC),STDEV('Datos mensuales'!$AH:$AH))),"n.d.",STANDARDIZE($BC127,AVERAGE('Datos mensuales'!$AH:$AH),STDEV('Datos mensuales'!$AH:$AH))) -> -0.001605941645 | BK127: -0.02561062256 | BL127: n.d. | BM127: n.d. | BN127: -0.2257712514 | BO127: n.d. | BP127: n.d. | BQ127: 0 | BR127: 0.05933939388 | BS127: n.d. | BT127: n.d. | BU127: n.d. | BV127: n.d. | BW127: n.d. | BX127: 0
B128: Abr | C128: =IF(OR('[1]REAL IMAE(M)'!AG133="n.d."),"",'[1]REAL IMAE(M)'!AG133) -> 3.363548367 | I128: =+'[1]REAL IMAE(M)'!AM133 -> 1.379835774 | L128: =IF(OR('[1]REAL IMAE(M)'!AN133="n.d."),"",'[1]REAL IMAE(M)'!AN133) -> 3.74865489 | R128: =IF(OR('[1]REAL IMAE(M)'!AT133="n.d."),"",'[1]REAL IMAE(M)'!AT133) -> 1.716583 | U128: -0.266745173 | AA128: -0.2675827041 | AH128: n.d. | AI128: n.d. | AJ128: n.d. | AK128: 2.214068879 | AL128: 1.312581226 | AM128: 0.1794564264 | AP128: 63.69338815 | AS128: 99.08545258 | AV128: 119.76 | AW128: 1.292479168 | AX128: n.d. | AY128: n.d. | AZ128: 1.194296854 | BA128: n.d. | BB128: n.d. | BC128: 0 | BD128: =IF(ISERROR(STANDARDIZE($AW128,AVERAGE($AW:$AW),STDEV('Datos mensuales'!$AH:$AH))),"n.d.",STANDARDIZE($AW128,AVERAGE('Datos mensuales'!$AH:$AH),STDEV('Datos mensuales'!$AH:$AH))) -> 0.6115823655 | BE128: =IF(ISERROR(STANDARDIZE($AX128,AVERAGE($AX:$AX),STDEV('Datos mensuales'!$AH:$AH))),"n.d.",STANDARDIZE($AX128,AVERAGE('Datos mensuales'!$AH:$AH),STDEV('Datos mensuales'!$AH:$AH))) -> n.d. | BF128: =IF(ISERROR(STANDARDIZE($AY128,AVERAGE($AY:$AY),STDEV('Datos mensuales'!$AH:$AH))),"n.d.",STANDARDIZE($AY128,AVERAGE('Datos mensuales'!$AH:$AH),STDEV('Datos mensuales'!$AH:$AH))) -> n.d. | BG128: =IF(ISERROR(STANDARDIZE($AZ128,AVERAGE($AZ:$AZ),STDEV('Datos mensuales'!$AH:$AH))),"n.d.",STANDARDIZE($AZ128,AVERAGE('Datos mensuales'!$AH:$AH),STDEV('Datos mensuales'!$AH:$AH))) -> 0.5650019266 | BH128: =IF(ISERROR(STANDARDIZE($BA128,AVERAGE($BA:$BA),STDEV('Datos mensuales'!$AH:$AH))),"n.d.",STANDARDIZE($BA128,AVERAGE('Datos mensuales'!$AH:$AH),STDEV('Datos mensuales'!$AH:$AH))) -> n.d. | BI128: =IF(ISERROR(STANDARDIZE($BB128,AVERAGE($BB:$BB),STDEV('Datos mensuales'!$AH:$AH))),"n.d.",STANDARDIZE($BB128,AVERAGE('Datos mensuales'!$AH:$AH),STDEV('Datos mensuales'!$AH:$AH))) -> n.d. | BJ128: =IF(ISERROR(STANDARDIZE($BC128,AVERAGE($BC:$BC),STDEV('Datos mensuales'!$AH:$AH))),"n.d.",STANDARDIZE($BC128,AVERAGE('Datos mensuales'!$AH:$AH),STDEV('Datos mensuales'!$AH:$AH))) -> -0.001605941645 | BK128: -0.03696663098 | BL128: n.d. | BM128: n.d. | BN128: -0.2186914838 | BO128: n.d. | BP128: n.d. | BQ128: 0 | BR128: -0.04228219881 | BS128: n.d. | BT128: n.d. | BU128: n.d. | BV128: n.d. | BW128: n.d. | BX128: 0
B129: May | C129: =IF(OR('[1]REAL IMAE(M)'!AG134="n.d."),"",'[1]REAL IMAE(M)'!AG134) -> 3.087757809 | I129: =+'[1]REAL IMAE(M)'!AM134 -> 1.164655245 | L129: =IF(OR('[1]REAL IMAE(M)'!AN134="n.d."),"",'[1]REAL IMAE(M)'!AN134) -> 3.615384249 | R129: =IF(OR('[1]REAL IMAE(M)'!AT134="n.d."),"",'[1]REAL IMAE(M)'!AT134) -> 1.605477311 | U129: -0.2757905582 | AA129: -0.215180529 | AH129: n.d. | AI129: n.d. | AJ129: n.d. | AK129: 2.420749998 | AL129: 1.435113693 | AM129: 0.1225324669 | AP129: 63.85060531 | AS129: 99.44400579 | AV129: 119.87 | AW129: 1.22811869 | AX129: n.d. | AY129: n.d. | AZ129: -0.01534547684 | BA129: n.d. | BB129: n.d. | BC129: 0 | BD129: =IF(ISERROR(STANDARDIZE($AW129,AVERAGE($AW:$AW),STDEV('Datos mensuales'!$AH:$AH))),"n.d.",STANDARDIZE($AW129,AVERAGE('Datos mensuales'!$AH:$AH),STDEV('Datos mensuales'!$AH:$AH))) -> 0.5810479528 | BE129: =IF(ISERROR(STANDARDIZE($AX129,AVERAGE($AX:$AX),STDEV('Datos mensuales'!$AH:$AH))),"n.d.",STANDARDIZE($AX129,AVERAGE('Datos mensuales'!$AH:$AH),STDEV('Datos mensuales'!$AH:$AH))) -> n.d. | BF129: =IF(ISERROR(STANDARDIZE($AY129,AVERAGE($AY:$AY),STDEV('Datos mensuales'!$AH:$AH))),"n.d.",STANDARDIZE($AY129,AVERAGE('Datos mensuales'!$AH:$AH),STDEV('Datos mensuales'!$AH:$AH))) -> n.d. | BG129: =IF(ISERROR(STANDARDIZE($AZ129,AVERAGE($AZ:$AZ),STDEV('Datos mensuales'!$AH:$AH))),"n.d.",STANDARDIZE($AZ129,AVERAGE('Datos mensuales'!$AH:$AH),STDEV('Datos mensuales'!$AH:$AH))) -> -0.008886265538 | BH129: =IF(ISERROR(STANDARDIZE($BA129,AVERAGE($BA:$BA),STDEV('Datos mensuales'!$AH:$AH))),"n.d.",STANDARDIZE($BA129,AVERAGE('Datos mensuales'!$AH:$AH),STDEV('Datos mensuales'!$AH:$AH))) -> n.d. | BI129: =IF(ISERROR(STANDARDIZE($BB129,AVERAGE($BB:$BB),STDEV('Datos mensuales'!$AH:$AH))),"n.d.",STANDARDIZE($BB129,AVERAGE('Datos mensuales'!$AH:$AH),STDEV('Datos mensuales'!$AH:$AH))) -> n.d. | BJ129: =IF(ISERROR(STANDARDIZE($BC129,AVERAGE($BC:$BC),STDEV('Datos mensuales'!$AH:$AH))),"n.d.",STANDARDIZE($BC129,AVERAGE('Datos mensuales'!$AH:$AH),STDEV('Datos mensuales'!$AH:$AH))) -> -0.001605941645 | BK129: -0.03053441265 | BL129: n.d. | BM129: n.d. | BN129: -0.5738881921 | BO129: n.d. | BP129: n.d. | BQ129: 0 | BR129: -0.1342955681 | BS129: n.d. | BT129: n.d. | BU129: n.d. | BV129: n.d. | BW129: n.d. | BX129: 0
B130: Jun | C130: =IF(OR('[1]REAL IMAE(M)'!AG135="n.d."),"",'[1]REAL IMAE(M)'!AG135) -> 2.877482308 | I130: =+'[1]REAL IMAE(M)'!AM135 -> 1.238207547 | L130: =IF(OR('[1]REAL IMAE(M)'!AN135="n.d."),"",'[1]REAL IMAE(M)'!AN135) -> 3.491182539 | R130: =IF(OR('[1]REAL IMAE(M)'!AT135="n.d."),"",'[1]REAL IMAE(M)'!AT135) -> 1.543833854 | U130: -0.2102755007 | AA130: 0.073552302 | AH130: n.d. | AI130: n.d. | AJ130: n.d. | AK130: 2.406241054 | AL130: 1.426511955 | AM130: -0.008601737739 | AP130: 64.00483609 | AS130: 99.80400634 | AV130: 120.19 | AW130: 1.175697893 | AX130: n.d. | AY130: n.d. | AZ130: -0.3306537647 | BA130: n.d. | BB130: n.d. | BC130: 0 | BD130: =IF(ISERROR(STANDARDIZE($AW130,AVERAGE($AW:$AW),STDEV('Datos mensuales'!$AH:$AH))),"n.d.",STANDARDIZE($AW130,AVERAGE('Datos mensuales'!$AH:$AH),STDEV('Datos mensuales'!$AH:$AH))) -> 0.5561780586 | BE130: =IF(ISERROR(STANDARDIZE($AX130,AVERAGE($AX:$AX),STDEV('Datos mensuales'!$AH:$AH))),"n.d.",STANDARDIZE($AX130,AVERAGE('Datos mensuales'!$AH:$AH),STDEV('Datos mensuales'!$AH:$AH))) -> n.d. | BF130: =IF(ISERROR(STANDARDIZE($AY130,AVERAGE($AY:$AY),STDEV('Datos mensuales'!$AH:$AH))),"n.d.",STANDARDIZE($AY130,AVERAGE('Datos mensuales'!$AH:$AH),STDEV('Datos mensuales'!$AH:$AH))) -> n.d. | BG130: =IF(ISERROR(STANDARDIZE($AZ130,AVERAGE($AZ:$AZ),STDEV('Datos mensuales'!$AH:$AH))),"n.d.",STANDARDIZE($AZ130,AVERAGE('Datos mensuales'!$AH:$AH),STDEV('Datos mensuales'!$AH:$AH))) -> -0.1584773461 | BH130: =IF(ISERROR(STANDARDIZE($BA130,AVERAGE($BA:$BA),STDEV('Datos mensuales'!$AH:$AH))),"n.d.",STANDARDIZE($BA130,AVERAGE('Datos mensuales'!$AH:$AH),STDEV('Datos mensuales'!$AH:$AH))) -> n.d. | BI130: =IF(ISERROR(STANDARDIZE($BB130,AVERAGE($BB:$BB),STDEV('Datos mensuales'!$AH:$AH))),"n.d.",STANDARDIZE($BB130,AVERAGE('Datos mensuales'!$AH:$AH),STDEV('Datos mensuales'!$AH:$AH))) -> n.d. | BJ130: =IF(ISERROR(STANDARDIZE($BC130,AVERAGE($BC:$BC),STDEV('Datos mensuales'!$AH:$AH))),"n.d.",STANDARDIZE($BC130,AVERAGE('Datos mensuales'!$AH:$AH),STDEV('Datos mensuales'!$AH:$AH))) -> -0.001605941645 | BK130: -0.02486989423 | BL130: n.d. | BM130: n.d. | BN130: -0.1495910805 | BO130: n.d. | BP130: n.d. | BQ130: 0 | BR130: -0.1894184742 | BS130: n.d. | BT130: n.d. | BU130: n.d. | BV130: n.d. | BW130: n.d. | BX130: 0
B131: Jul | C131: =IF(OR('[1]REAL IMAE(M)'!AG136="n.d."),"",'[1]REAL IMAE(M)'!AG136) -> 2.72333308 | I131: =+'[1]REAL IMAE(M)'!AM136 -> 1.675084175 | L131: =IF(OR('[1]REAL IMAE(M)'!AN136="n.d."),"",'[1]REAL IMAE(M)'!AN136) -> 3.380297403 | R131: =IF(OR('[1]REAL IMAE(M)'!AT136="n.d."),"",'[1]REAL IMAE(M)'!AT136) -> 1.562708048 | U131: -0.1541492282 | AA131: 0.4368766279 | AH131: n.d. | AI131: n.d. | AJ131: n.d. | AK131: 2.232068379 | AL131: 1.323252366 | AM131: -0.1032595893 | AP131: 64.15644496 | AS131: 100.1659659 | AV131: 120.79 | AW131: 1.099570432 | AX131: n.d. | AY131: n.d. | AZ131: -0.504233057 | BA131: n.d. | BB131: n.d. | BC131: 0 | BD131: =IF(ISERROR(STANDARDIZE($AW131,AVERAGE($AW:$AW),STDEV('Datos mensuales'!$AH:$AH))),"n.d.",STANDARDIZE($AW131,AVERAGE('Datos mensuales'!$AH:$AH),STDEV('Datos mensuales'!$AH:$AH))) -> 0.5200610598 | BE131: =IF(ISERROR(STANDARDIZE($AX131,AVERAGE($AX:$AX),STDEV('Datos mensuales'!$AH:$AH))),"n.d.",STANDARDIZE($AX131,AVERAGE('Datos mensuales'!$AH:$AH),STDEV('Datos mensuales'!$AH:$AH))) -> n.d. | BF131: =IF(ISERROR(STANDARDIZE($AY131,AVERAGE($AY:$AY),STDEV('Datos mensuales'!$AH:$AH))),"n.d.",STANDARDIZE($AY131,AVERAGE('Datos mensuales'!$AH:$AH),STDEV('Datos mensuales'!$AH:$AH))) -> n.d. | BG131: =IF(ISERROR(STANDARDIZE($AZ131,AVERAGE($AZ:$AZ),STDEV('Datos mensuales'!$AH:$AH))),"n.d.",STANDARDIZE($AZ131,AVERAGE('Datos mensuales'!$AH:$AH),STDEV('Datos mensuales'!$AH:$AH))) -> -0.2408282226 | BH131: =IF(ISERROR(STANDARDIZE($BA131,AVERAGE($BA:$BA),STDEV('Datos mensuales'!$AH:$AH))),"n.d.",STANDARDIZE($BA131,AVERAGE('Datos mensuales'!$AH:$AH),STDEV('Datos mensuales'!$AH:$AH))) -> n.d. | BI131: =IF(ISERROR(STANDARDIZE($BB131,AVERAGE($BB:$BB),STDEV('Datos mensuales'!$AH:$AH))),"n.d.",STANDARDIZE($BB131,AVERAGE('Datos mensuales'!$AH:$AH),STDEV('Datos mensuales'!$AH:$AH))) -> n.d. | BJ131: =IF(ISERROR(STANDARDIZE($BC131,AVERAGE($BC:$BC),STDEV('Datos mensuales'!$AH:$AH))),"n.d.",STANDARDIZE($BC131,AVERAGE('Datos mensuales'!$AH:$AH),STDEV('Datos mensuales'!$AH:$AH))) -> -0.001605941645 | BK131: -0.03611699878 | BL131: n.d. | BM131: n.d. | BN131: -0.08235087652 | BO131: n.d. | BP131: n.d. | BQ131: 0 | BR131: -0.2268127742 | BS131: n.d. | BT131: n.d. | BU131: n.d. | BV131: n.d. | BW131: n.d. | BX131: 0
B132: Ago | C132: =IF(OR('[1]REAL IMAE(M)'!AG137="n.d."),"",'[1]REAL IMAE(M)'!AG137) -> 2.54052178 | I132: =+'[1]REAL IMAE(M)'!AM137 -> 2.40882675 | L132: =IF(OR('[1]REAL IMAE(M)'!AN137="n.d."),"",'[1]REAL IMAE(M)'!AN137) -> 3.274078176 | R132: =IF(OR('[1]REAL IMAE(M)'!AT137="n.d."),"",'[1]REAL IMAE(M)'!AT137) -> 1.669030333 | U132: -0.1828112998 | AA132: 0.7337425747 | AH132: n.d. | AI132: n.d. | AJ132: n.d. | AK132: 2.123121607 | AL132: 1.258662447 | AM132: -0.06458991865 | AP132: 64.30582314 | AS132: 100.530373 | AV132: 121.59 | AW132: 0.9955294893 | AX132: n.d. | AY132: n.d. | AZ132: -0.5340948091 | BA132: n.d. | BB132: n.d. | BC132: 0 | BD132: =IF(ISERROR(STANDARDIZE($AW132,AVERAGE($AW:$AW),STDEV('Datos mensuales'!$AH:$AH))),"n.d.",STANDARDIZE($AW132,AVERAGE('Datos mensuales'!$AH:$AH),STDEV('Datos mensuales'!$AH:$AH))) -> 0.4707011233 | BE132: =IF(ISERROR(STANDARDIZE($AX132,AVERAGE($AX:$AX),STDEV('Datos mensuales'!$AH:$AH))),"n.d.",STANDARDIZE($AX132,AVERAGE('Datos mensuales'!$AH:$AH),STDEV('Datos mensuales'!$AH:$AH))) -> n.d. | BF132: =IF(ISERROR(STANDARDIZE($AY132,AVERAGE($AY:$AY),STDEV('Datos mensuales'!$AH:$AH))),"n.d.",STANDARDIZE($AY132,AVERAGE('Datos mensuales'!$AH:$AH),STDEV('Datos mensuales'!$AH:$AH))) -> n.d. | BG132: =IF(ISERROR(STANDARDIZE($AZ132,AVERAGE($AZ:$AZ),STDEV('Datos mensuales'!$AH:$AH))),"n.d.",STANDARDIZE($AZ132,AVERAGE('Datos mensuales'!$AH:$AH),STDEV('Datos mensuales'!$AH:$AH))) -> -0.2549954739 | BH132: =IF(ISERROR(STANDARDIZE($BA132,AVERAGE($BA:$BA),STDEV('Datos mensuales'!$AH:$AH))),"n.d.",STANDARDIZE($BA132,AVERAGE('Datos mensuales'!$AH:$AH),STDEV('Datos mensuales'!$AH:$AH))) -> n.d. | BI132: =IF(ISERROR(STANDARDIZE($BB132,AVERAGE($BB:$BB),STDEV('Datos mensuales'!$AH:$AH))),"n.d.",STANDARDIZE($BB132,AVERAGE('Datos mensuales'!$AH:$AH),STDEV('Datos mensuales'!$AH:$AH))) -> n.d. | BJ132: =IF(ISERROR(STANDARDIZE($BC132,AVERAGE($BC:$BC),STDEV('Datos mensuales'!$AH:$AH))),"n.d.",STANDARDIZE($BC132,AVERAGE('Datos mensuales'!$AH:$AH),STDEV('Datos mensuales'!$AH:$AH))) -> -0.001605941645 | BK132: -0.0493599365 | BL132: n.d. | BM132: n.d. | BN132: -0.01416725135 | BO132: n.d. | BP132: n.d. | BQ132: 0 | BR132: -0.2863071416 | BS132: n.d. | BT132: n.d. | BU132: n.d. | BV132: n.d. | BW132: n.d. | BX132: 0
B133: Sep | C133: =IF(OR('[1]REAL IMAE(M)'!AG138="n.d."),"",'[1]REAL IMAE(M)'!AG138) -> 2.309637106 | I133: =+'[1]REAL IMAE(M)'!AM138 -> 3.127634463 | L133: =IF(OR('[1]REAL IMAE(M)'!AN138="n.d."),"",'[1]REAL IMAE(M)'!AN138) -> 3.165498558 | R133: =IF(OR('[1]REAL IMAE(M)'!AT138="n.d."),"",'[1]REAL IMAE(M)'!AT138) -> 1.83172227 | U133: -0.2308846735 | AA133: 0.7188077132 | AC133: =IF(OR(K133="",K133="n.d.",K132="",K132="n.d."),"",K133-K132) ->  | AH133: n.d. | AI133: =IF(ISERROR(STANDARDIZE($AH133,AVERAGE($AH:$AH),STDEV($AH:$AH))),"n.d.",STANDARDIZE($AH133,AVERAGE($AH:$AH),STDEV($AH:$AH))) -> n.d. | AJ133: =IF(OR(AI133="",AI132=""),"",IF(OR(AI133="n.d.",AI132="n.d."),"n.d.",((AI133/AI132)-1))) -> n.d. | AK133: 2.098975884 | AL133: =IF(ISERROR(STANDARDIZE($AK133,AVERAGE($AK:$AK),STDEV($AK:$AK))),"n.d.",STANDARDIZE($AK133,AVERAGE($AK:$AK),STDEV($AK:$AK))) -> 1.244347472 | AM133: -0.01431497506 | AP133: 64.45336002 | AS133: 100.8976837 | AV133: 122.33 | AW133: 0.8764719904 | AX133: n.d. | AY133: n.d. | AZ133: -0.4375740084 | BA133: n.d. | BB133: n.d. | BC133: 0 | BD133: =IF(ISERROR(STANDARDIZE($AW133,AVERAGE($AW:$AW),STDEV('Datos mensuales'!$AH:$AH))),"n.d.",STANDARDIZE($AW133,AVERAGE('Datos mensuales'!$AH:$AH),STDEV('Datos mensuales'!$AH:$AH))) -> 0.4142169121 | BE133: =IF(ISERROR(STANDARDIZE($AX133,AVERAGE($AX:$AX),STDEV('Datos mensuales'!$AH:$AH))),"n.d.",STANDARDIZE($AX133,AVERAGE('Datos mensuales'!$AH:$AH),STDEV('Datos mensuales'!$AH:$AH))) -> n.d. | BF133: =IF(ISERROR(STANDARDIZE($AY133,AVERAGE($AY:$AY),STDEV('Datos mensuales'!$AH:$AH))),"n.d.",STANDARDIZE($AY133,AVERAGE('Datos mensuales'!$AH:$AH),STDEV('Datos mensuales'!$AH:$AH))) -> n.d. | BG133: =IF(ISERROR(STANDARDIZE($AZ133,AVERAGE($AZ:$AZ),STDEV('Datos mensuales'!$AH:$AH))),"n.d.",STANDARDIZE($AZ133,AVERAGE('Datos mensuales'!$AH:$AH),STDEV('Datos mensuales'!$AH:$AH))) -> -0.2092033035 | BH133: =IF(ISERROR(STANDARDIZE($BA133,AVERAGE($BA:$BA),STDEV('Datos mensuales'!$AH:$AH))),"n.d.",STANDARDIZE($BA133,AVERAGE('Datos mensuales'!$AH:$AH),STDEV('Datos mensuales'!$AH:$AH))) -> n.d. | BI133: =IF(ISERROR(STANDARDIZE($BB133,AVERAGE($BB:$BB),STDEV('Datos mensuales'!$AH:$AH))),"n.d.",STANDARDIZE($BB133,AVERAGE('Datos mensuales'!$AH:$AH),STDEV('Datos mensuales'!$AH:$AH))) -> n.d. | BJ133: =IF(ISERROR(STANDARDIZE($BC133,AVERAGE($BC:$BC),STDEV('Datos mensuales'!$AH:$AH))),"n.d.",STANDARDIZE($BC133,AVERAGE('Datos mensuales'!$AH:$AH),STDEV('Datos mensuales'!$AH:$AH))) -> -0.001605941645 | BK133: -0.05648421116 | BL133: n.d. | BM133: n.d. | BN133: 0.04579217048 | BO133: n.d. | BP133: n.d. | BQ133: 0 | BR133: -0.374329415 | BS133: n.d. | BT133: n.d. | BU133: n.d. | BV133: n.d. | BW133: n.d. | BX133: 0
B134: Oct | C134: =IF(OR('[1]REAL IMAE(M)'!AG139="n.d."),"",'[1]REAL IMAE(M)'!AG139) -> 2.114942469 | I134: =+'[1]REAL IMAE(M)'!AM139 -> 3.498861816 | L134: =IF(OR('[1]REAL IMAE(M)'!AN139="n.d."),"",'[1]REAL IMAE(M)'!AN139) -> 3.058844694 | R134: =IF(OR('[1]REAL IMAE(M)'!AT139="n.d."),"",'[1]REAL IMAE(M)'!AT139) -> 1.999001768 | U134: -0.1946946377 | AA134: 0.371227353 | AH134: n.d. | AI134: n.d. | AJ134: n.d. | AK134: 2.034703504 | AL134: 1.206243105 | AM134: =IF(OR(AL134="",AL133=""),"",IF(OR(AL134="n.d.",AL133="n.d."),"n.d.",AL134-AL133)) -> -0.03810436693 | AP134: 64.59941888 | AS134: 101.2683243 | AV134: 122.76 | AW134: 0.8397192407 | AX134: n.d. | AY134: n.d. | AZ134: -0.2270877593 | BA134: n.d. | BB134: n.d. | BC134: 0 | BD134: =IF(ISERROR(STANDARDIZE($AW134,AVERAGE($AW:$AW),STDEV('Datos mensuales'!$AH:$AH))),"n.d.",STANDARDIZE($AW134,AVERAGE('Datos mensuales'!$AH:$AH),STDEV('Datos mensuales'!$AH:$AH))) -> 0.3967803786 | BE134: =IF(ISERROR(STANDARDIZE($AX134,AVERAGE($AX:$AX),STDEV('Datos mensuales'!$AH:$AH))),"n.d.",STANDARDIZE($AX134,AVERAGE('Datos mensuales'!$AH:$AH),STDEV('Datos mensuales'!$AH:$AH))) -> n.d. | BF134: =IF(ISERROR(STANDARDIZE($AY134,AVERAGE($AY:$AY),STDEV('Datos mensuales'!$AH:$AH))),"n.d.",STANDARDIZE($AY134,AVERAGE('Datos mensuales'!$AH:$AH),STDEV('Datos mensuales'!$AH:$AH))) -> n.d. | BG134: =IF(ISERROR(STANDARDIZE($AZ134,AVERAGE($AZ:$AZ),STDEV('Datos mensuales'!$AH:$AH))),"n.d.",STANDARDIZE($AZ134,AVERAGE('Datos mensuales'!$AH:$AH),STDEV('Datos mensuales'!$AH:$AH))) -> -0.1093427332 | BH134: =IF(ISERROR(STANDARDIZE($BA134,AVERAGE($BA:$BA),STDEV('Datos mensuales'!$AH:$AH))),"n.d.",STANDARDIZE($BA134,AVERAGE('Datos mensuales'!$AH:$AH),STDEV('Datos mensuales'!$AH:$AH))) -> n.d. | BI134: =IF(ISERROR(STANDARDIZE($BB134,AVERAGE($BB:$BB),STDEV('Datos mensuales'!$AH:$AH))),"n.d.",STANDARDIZE($BB134,AVERAGE('Datos mensuales'!$AH:$AH),STDEV('Datos mensuales'!$AH:$AH))) -> n.d. | BJ134: =IF(ISERROR(STANDARDIZE($BC134,AVERAGE($BC:$BC),STDEV('Datos mensuales'!$AH:$AH))),"n.d.",STANDARDIZE($BC134,AVERAGE('Datos mensuales'!$AH:$AH),STDEV('Datos mensuales'!$AH:$AH))) -> -0.001605941645 | BK134: -0.01743653354 | BL134: n.d. | BM134: n.d. | BN134: 0.09986057023 | BO134: n.d. | BP134: n.d. | BQ134: 0 | BR134: -0.427284466 | BS134: n.d. | BT134: n.d. | BU134: n.d. | BV134: n.d. | BW134: n.d. | BX134: 0
B135: Nov | C135: =IF(OR('[1]REAL IMAE(M)'!AG140="n.d."),"",'[1]REAL IMAE(M)'!AG140) -> 2.092162895 | I135: =+'[1]REAL IMAE(M)'!AM140 -> 3.428523292 | L135: =IF(OR('[1]REAL IMAE(M)'!AN140="n.d."),"",'[1]REAL IMAE(M)'!AN140) -> 2.96946498 | R135: =IF(OR('[1]REAL IMAE(M)'!AT140="n.d."),"",'[1]REAL IMAE(M)'!AT140) -> 2.129458795 | U135: =IF(OR(C135="",C135="n.d.",C134="",C134="n.d."),"",C135-C134) -> -0.02277957353 | V135: =IF(OR(D135="",D135="n.d.",D134="",D134="n.d."),"",D135-D134) ->  | W135: =IF(OR(E135="",E135="n.d.",E134="",E134="n.d."),"",E135-E134) ->  | X135: =IF(OR(F135="",F135="n.d.",F134="",F134="n.d."),"",F135-F134) ->  | Y135: =IF(OR(G135="",G135="n.d.",G134="",G134="n.d."),"",G135-G134) ->  | Z135: =IF(OR(H135="",H135="n.d.",H134="",H134="n.d."),"",H135-H134) ->  | AA135: -0.07033852398 | AH135: n.d. | AI135: n.d. | AJ135: n.d. | AK135: 1.888331446 | AL135: 1.119465322 | AM135: -0.08677778339 | AP135: 64.74432458 | AS135: 101.6427024 | AV135: 122.78 | AW135: 0.9394708534 | AX135: n.d. | AY135: n.d. | AZ135: 0.09808809963 | BA135: n.d. | BB135: n.d. | BC135: 0 | BD135: =IF(ISERROR(STANDARDIZE($AW135,AVERAGE($AW:$AW),STDEV('Datos mensuales'!$AH:$AH))),"n.d.",STANDARDIZE($AW135,AVERAGE('Datos mensuales'!$AH:$AH),STDEV('Datos mensuales'!$AH:$AH))) -> 0.4441053368 | BE135: =IF(ISERROR(STANDARDIZE($AX135,AVERAGE($AX:$AX),STDEV('Datos mensuales'!$AH:$AH))),"n.d.",STANDARDIZE($AX135,AVERAGE('Datos mensuales'!$AH:$AH),STDEV('Datos mensuales'!$AH:$AH))) -> n.d. | BF135: =IF(ISERROR(STANDARDIZE($AY135,AVERAGE($AY:$AY),STDEV('Datos mensuales'!$AH:$AH))),"n.d.",STANDARDIZE($AY135,AVERAGE('Datos mensuales'!$AH:$AH),STDEV('Datos mensuales'!$AH:$AH))) -> n.d. | BG135: =IF(ISERROR(STANDARDIZE($AZ135,AVERAGE($AZ:$AZ),STDEV('Datos mensuales'!$AH:$AH))),"n.d.",STANDARDIZE($AZ135,AVERAGE('Datos mensuales'!$AH:$AH),STDEV('Datos mensuales'!$AH:$AH))) -> 0.04492979932 | BH135: =IF(ISERROR(STANDARDIZE($BA135,AVERAGE($BA:$BA),STDEV('Datos mensuales'!$AH:$AH))),"n.d.",STANDARDIZE($BA135,AVERAGE('Datos mensuales'!$AH:$AH),STDEV('Datos mensuales'!$AH:$AH))) -> n.d. | BI135: =IF(ISERROR(STANDARDIZE($BB135,AVERAGE($BB:$BB),STDEV('Datos mensuales'!$AH:$AH))),"n.d.",STANDARDIZE($BB135,AVERAGE('Datos mensuales'!$AH:$AH),STDEV('Datos mensuales'!$AH:$AH))) -> n.d. | BJ135: =IF(ISERROR(STANDARDIZE($BC135,AVERAGE($BC:$BC),STDEV('Datos mensuales'!$AH:$AH))),"n.d.",STANDARDIZE($BC135,AVERAGE('Datos mensuales'!$AH:$AH),STDEV('Datos mensuales'!$AH:$AH))) -> -0.001605941645 | BK135: =IF(OR(BD135="",BD134=""),"",IF(OR(BD135="n.d.",BD134="n.d."),"n.d.",BD135-BD134)) -> 0.04732495816 | BL135: =IF(OR(BE135="",BE134=""),"",IF(OR(BE135="n.d.",BE134="n.d."),"n.d.",BE135-BE134)) -> n.d. | BM135: =IF(OR(BF135="",BF134=""),"",IF(OR(BF135="n.d.",BF134="n.d."),"n.d.",BF135-BF134)) -> n.d. | BN135: =IF(OR(BG135="",BG134=""),"",IF(OR(BG135="n.d.",BG134="n.d."),"n.d.",BG135-BG134)) -> 0.1542725325 | BO135: =IF(OR(BH135="",BH134=""),"",IF(OR(BH135="n.d.",BH134="n.d."),"n.d.",BH135-BH134)) -> n.d. | BP135: =IF(OR(BI135="",BI134=""),"",IF(OR(BI135="n.d.",BI134="n.d."),"n.d.",BI135-BI134)) -> n.d. | BQ135: =IF(OR(BJ135="",BJ134=""),"",IF(OR(BJ135="n.d.",BJ134="n.d."),"n.d.",BJ135-BJ134)) -> 0 | BR135: -0.3875768198 | BS135: n.d. | BT135: n.d. | BU135: n.d. | BV135: n.d. | BW135: n.d. | BX135: 0
B136: Dic | C136: =IF(OR('[1]REAL IMAE(M)'!AG141="n.d."),"",'[1]REAL IMAE(M)'!AG141) -> 2.229125316 | I136: =+'[1]REAL IMAE(M)'!AM141 -> 3.036164844 | L136: =IF(OR('[1]REAL IMAE(M)'!AN141="n.d."),"",'[1]REAL IMAE(M)'!AN141) -> 2.906655388 | R136: =IF(OR('[1]REAL IMAE(M)'!AT141="n.d."),"",'[1]REAL IMAE(M)'!AT141) -> 2.205395506 | U136: 0.1369624206 | AA136: -0.3923584476 | AH136: n.d. | AI136: n.d. | AJ136: n.d. | AK136: 1.586266876 | AL136: 0.9403840545 | AM136: -0.1790812674 | AP136: 64.88836451 | AS136: 102.0212133 | AV136: 122.51 | AW136: 1.095438501 | AX136: n.d. | AY136: n.d. | AZ136: 0.4677071865 | BA136: n.d. | BB136: n.d. | BC136: 0 | BD136: =IF(ISERROR(STANDARDIZE($AW136,AVERAGE($AW:$AW),STDEV('Datos mensuales'!$AH:$AH))),"n.d.",STANDARDIZE($AW136,AVERAGE('Datos mensuales'!$AH:$AH),STDEV('Datos mensuales'!$AH:$AH))) -> 0.5181007561 | BE136: =IF(ISERROR(STANDARDIZE($AX136,AVERAGE($AX:$AX),STDEV('Datos mensuales'!$AH:$AH))),"n.d.",STANDARDIZE($AX136,AVERAGE('Datos mensuales'!$AH:$AH),STDEV('Datos mensuales'!$AH:$AH))) -> n.d. | BF136: =IF(ISERROR(STANDARDIZE($AY136,AVERAGE($AY:$AY),STDEV('Datos mensuales'!$AH:$AH))),"n.d.",STANDARDIZE($AY136,AVERAGE('Datos mensuales'!$AH:$AH),STDEV('Datos mensuales'!$AH:$AH))) -> n.d. | BG136: =IF(ISERROR(STANDARDIZE($AZ136,AVERAGE($AZ:$AZ),STDEV('Datos mensuales'!$AH:$AH))),"n.d.",STANDARDIZE($AZ136,AVERAGE('Datos mensuales'!$AH:$AH),STDEV('Datos mensuales'!$AH:$AH))) -> 0.2202874436 | BH136: =IF(ISERROR(STANDARDIZE($BA136,AVERAGE($BA:$BA),STDEV('Datos mensuales'!$AH:$AH))),"n.d.",STANDARDIZE($BA136,AVERAGE('Datos mensuales'!$AH:$AH),STDEV('Datos mensuales'!$AH:$AH))) -> n.d. | BI136: =IF(ISERROR(STANDARDIZE($BB136,AVERAGE($BB:$BB),STDEV('Datos mensuales'!$AH:$AH))),"n.d.",STANDARDIZE($BB136,AVERAGE('Datos mensuales'!$AH:$AH),STDEV('Datos mensuales'!$AH:$AH))) -> n.d. | BJ136: =IF(ISERROR(STANDARDIZE($BC136,AVERAGE($BC:$BC),STDEV('Datos mensuales'!$AH:$AH))),"n.d.",STANDARDIZE($BC136,AVERAGE('Datos mensuales'!$AH:$AH),STDEV('Datos mensuales'!$AH:$AH))) -> -0.001605941645 | BK136: 0.07399541932 | BL136: n.d. | BM136: n.d. | BN136: 0.1753576443 | BO136: n.d. | BP136: n.d. | BQ136: 0 | BR136: -0.2855019462 | BS136: n.d. | BT136: n.d. | BU136: n.d. | BV136: n.d. | BW136: n.d. | BX136: 0
A137: 2001 | B137: Ene | C137: =IF(OR('[1]REAL IMAE(M)'!AG142="n.d."),"",'[1]REAL IMAE(M)'!AG142) -> 2.320420476 | F137: =+'[1]REAL IMAE(M)'!AJ142 -> 2.765448227 | I137: =+'[1]REAL IMAE(M)'!AM142 -> 2.533344518 | L137: =IF(OR('[1]REAL IMAE(M)'!AN142="n.d."),"",'[1]REAL IMAE(M)'!AN142) -> 2.320420476 | O137: =+'[1]REAL IMAE(M)'!AQ142 -> 2.765448227 | R137: =IF(OR('[1]REAL IMAE(M)'!AT142="n.d."),"",'[1]REAL IMAE(M)'!AT142) -> 2.533344518 | U137: 0.09129515982 | AA137: -0.5028203263 | AH137: n.d. | AI137: n.d. | AJ137: n.d. | AK137: 1.129798309 | AL137: 0.6697632072 | AM137: -0.2706208472 | AP137: 65.03180008 | AS137: 102.4042639 | AV137: 122.23 | AW137: 1.162308522 | AX137: n.d. | AY137: n.d. | AZ137: 1.04042068 | BA137: n.d. | BB137: n.d. | BC137: 0 | BD137: =IF(ISERROR(STANDARDIZE($AW137,AVERAGE($AW:$AW),STDEV('Datos mensuales'!$AH:$AH))),"n.d.",STANDARDIZE($AW137,AVERAGE('Datos mensuales'!$AH:$AH),STDEV('Datos mensuales'!$AH:$AH))) -> 0.5498257662 | BE137: =IF(ISERROR(STANDARDIZE($AX137,AVERAGE($AX:$AX),STDEV('Datos mensuales'!$AH:$AH))),"n.d.",STANDARDIZE($AX137,AVERAGE('Datos mensuales'!$AH:$AH),STDEV('Datos mensuales'!$AH:$AH))) -> n.d. | BF137: =IF(ISERROR(STANDARDIZE($AY137,AVERAGE($AY:$AY),STDEV('Datos mensuales'!$AH:$AH))),"n.d.",STANDARDIZE($AY137,AVERAGE('Datos mensuales'!$AH:$AH),STDEV('Datos mensuales'!$AH:$AH))) -> n.d. | BG137: =IF(ISERROR(STANDARDIZE($AZ137,AVERAGE($AZ:$AZ),STDEV('Datos mensuales'!$AH:$AH))),"n.d.",STANDARDIZE($AZ137,AVERAGE('Datos mensuales'!$AH:$AH),STDEV('Datos mensuales'!$AH:$AH))) -> 0.4919987611 | BH137: =IF(ISERROR(STANDARDIZE($BA137,AVERAGE($BA:$BA),STDEV('Datos mensuales'!$AH:$AH))),"n.d.",STANDARDIZE($BA137,AVERAGE('Datos mensuales'!$AH:$AH),STDEV('Datos mensuales'!$AH:$AH))) -> n.d. | BI137: =IF(ISERROR(STANDARDIZE($BB137,AVERAGE($BB:$BB),STDEV('Datos mensuales'!$AH:$AH))),"n.d.",STANDARDIZE($BB137,AVERAGE('Datos mensuales'!$AH:$AH),STDEV('Datos mensuales'!$AH:$AH))) -> n.d. | BJ137: =IF(ISERROR(STANDARDIZE($BC137,AVERAGE($BC:$BC),STDEV('Datos mensuales'!$AH:$AH))),"n.d.",STANDARDIZE($BC137,AVERAGE('Datos mensuales'!$AH:$AH),STDEV('Datos mensuales'!$AH:$AH))) -> -0.001605941645 | BK137: 0.03172501016 | BL137: n.d. | BM137: n.d. | BN137: 0.2717113175 | BO137: n.d. | BP137: n.d. | BQ137: 0 | BR137: -0.2158782253 | BS137: n.d. | BT137: n.d. | BU137: -0.6039503847 | BV137: n.d. | BW137: n.d. | BX137: 0
B138: Feb | C138: =IF(OR('[1]REAL IMAE(M)'!AG143="n.d."),"",'[1]REAL IMAE(M)'!AG143) -> 2.273317283 | F138: =+'[1]REAL IMAE(M)'!AJ143 -> 3.863068111 | I138: =+'[1]REAL IMAE(M)'!AM143 -> 2.225568942 | L138: =IF(OR('[1]REAL IMAE(M)'!AN143="n.d."),"",'[1]REAL IMAE(M)'!AN143) -> 2.296847284 | O138: =+'[1]REAL IMAE(M)'!AQ143 -> 3.313309505 | R138: =IF(OR('[1]REAL IMAE(M)'!AT143="n.d."),"",'[1]REAL IMAE(M)'!AT143) -> 2.379256901 | U138: -0.0471031925 | X138: 1.097619884 | AA138: =IF(OR(I138="",I138="n.d.",I137="",I137="n.d."),"",I138-I137) -> -0.3077755756 | AB138: =IF(OR(J138="",J138="n.d.",J137="",J137="n.d."),"",J138-J137) ->  | AH138: n.d. | AI138: n.d. | AJ138: n.d. | AK138: 0.6621600203 | AL138: 0.3925203062 | AM138: -0.277242901 | AP138: 65.17488447 | AS138: 102.7922971 | AV138: 122.18 | AW138: 1.100845493 | AX138: n.d. | AY138: n.d. | AZ138: 1.413949126 | BA138: n.d. | BB138: n.d. | BC138: 0 | BD138: =IF(ISERROR(STANDARDIZE($AW138,AVERAGE($AW:$AW),STDEV('Datos mensuales'!$AH:$AH))),"n.d.",STANDARDIZE($AW138,AVERAGE('Datos mensuales'!$AH:$AH),STDEV('Datos mensuales'!$AH:$AH))) -> 0.5206659841 | BE138: =IF(ISERROR(STANDARDIZE($AX138,AVERAGE($AX:$AX),STDEV('Datos mensuales'!$AH:$AH))),"n.d.",STANDARDIZE($AX138,AVERAGE('Datos mensuales'!$AH:$AH),STDEV('Datos mensuales'!$AH:$AH))) -> n.d. | BF138: =IF(ISERROR(STANDARDIZE($AY138,AVERAGE($AY:$AY),STDEV('Datos mensuales'!$AH:$AH))),"n.d.",STANDARDIZE($AY138,AVERAGE('Datos mensuales'!$AH:$AH),STDEV('Datos mensuales'!$AH:$AH))) -> n.d. | BG138: =IF(ISERROR(STANDARDIZE($AZ138,AVERAGE($AZ:$AZ),STDEV('Datos mensuales'!$AH:$AH))),"n.d.",STANDARDIZE($AZ138,AVERAGE('Datos mensuales'!$AH:$AH),STDEV('Datos mensuales'!$AH:$AH))) -> 0.6692111149 | BH138: =IF(ISERROR(STANDARDIZE($BA138,AVERAGE($BA:$BA),STDEV('Datos mensuales'!$AH:$AH))),"n.d.",STANDARDIZE($BA138,AVERAGE('Datos mensuales'!$AH:$AH),STDEV('Datos mensuales'!$AH:$AH))) -> n.d. | BI138: =IF(ISERROR(STANDARDIZE($BB138,AVERAGE($BB:$BB),STDEV('Datos mensuales'!$AH:$AH))),"n.d.",STANDARDIZE($BB138,AVERAGE('Datos mensuales'!$AH:$AH),STDEV('Datos mensuales'!$AH:$AH))) -> n.d. | BJ138: =IF(ISERROR(STANDARDIZE($BC138,AVERAGE($BC:$BC),STDEV('Datos mensuales'!$AH:$AH))),"n.d.",STANDARDIZE($BC138,AVERAGE('Datos mensuales'!$AH:$AH),STDEV('Datos mensuales'!$AH:$AH))) -> -0.001605941645 | BK138: -0.02915978214 | BL138: n.d. | BM138: n.d. | BN138: 0.1772123538 | BO138: n.d. | BP138: n.d. | BQ138: 0 | BR138: -0.2276814431 | BS138: n.d. | BT138: n.d. | BU138: -0.3370633562 | BV138: n.d. | BW138: n.d. | BX138: 0
B139: Mar | C139: =IF(OR('[1]REAL IMAE(M)'!AG144="n.d."),"",'[1]REAL IMAE(M)'!AG144) -> 2.170198897 | F139: =+'[1]REAL IMAE(M)'!AJ144 -> 4.746722846 | I139: =+'[1]REAL IMAE(M)'!AM144 -> 2.372598162 | L139: =IF(OR('[1]REAL IMAE(M)'!AN144="n.d."),"",'[1]REAL IMAE(M)'!AN144) -> 2.254555002 | O139: =+'[1]REAL IMAE(M)'!AQ144 -> 3.789414489 | R139: =IF(OR('[1]REAL IMAE(M)'!AT144="n.d."),"",'[1]REAL IMAE(M)'!AT144) -> 2.377033172 | U139: -0.103118386 | X139: 0.8836547353 | AA139: 0.1470292196 | AH139: n.d. | AI139: n.d. | AJ139: n.d. | AK139: 0.3019525452 | AL139: 0.1789685766 | AM139: -0.2135517296 | AP139: 65.31787976 | AS139: 103.1858243 | AV139: 122.54 | AW139: 0.9847634376 | AX139: n.d. | AY139: n.d. | AZ139: 1.446151871 | BA139: n.d. | BB139: n.d. | BC139: 0 | BD139: =IF(ISERROR(STANDARDIZE($AW139,AVERAGE($AW:$AW),STDEV('Datos mensuales'!$AH:$AH))),"n.d.",STANDARDIZE($AW139,AVERAGE('Datos mensuales'!$AH:$AH),STDEV('Datos mensuales'!$AH:$AH))) -> 0.4655934069 | BE139: =IF(ISERROR(STANDARDIZE($AX139,AVERAGE($AX:$AX),STDEV('Datos mensuales'!$AH:$AH))),"n.d.",STANDARDIZE($AX139,AVERAGE('Datos mensuales'!$AH:$AH),STDEV('Datos mensuales'!$AH:$AH))) -> n.d. | BF139: =IF(ISERROR(STANDARDIZE($AY139,AVERAGE($AY:$AY),STDEV('Datos mensuales'!$AH:$AH))),"n.d.",STANDARDIZE($AY139,AVERAGE('Datos mensuales'!$AH:$AH),STDEV('Datos mensuales'!$AH:$AH))) -> n.d. | BG139: =IF(ISERROR(STANDARDIZE($AZ139,AVERAGE($AZ:$AZ),STDEV('Datos mensuales'!$AH:$AH))),"n.d.",STANDARDIZE($AZ139,AVERAGE('Datos mensuales'!$AH:$AH),STDEV('Datos mensuales'!$AH:$AH))) -> 0.6844889989 | BH139: =IF(ISERROR(STANDARDIZE($BA139,AVERAGE($BA:$BA),STDEV('Datos mensuales'!$AH:$AH))),"n.d.",STANDARDIZE($BA139,AVERAGE('Datos mensuales'!$AH:$AH),STDEV('Datos mensuales'!$AH:$AH))) -> n.d. | BI139: =IF(ISERROR(STANDARDIZE($BB139,AVERAGE($BB:$BB),STDEV('Datos mensuales'!$AH:$AH))),"n.d.",STANDARDIZE($BB139,AVERAGE('Datos mensuales'!$AH:$AH),STDEV('Datos mensuales'!$AH:$AH))) -> n.d. | BJ139: =IF(ISERROR(STANDARDIZE($BC139,AVERAGE($BC:$BC),STDEV('Datos mensuales'!$AH:$AH))),"n.d.",STANDARDIZE($BC139,AVERAGE('Datos mensuales'!$AH:$AH),STDEV('Datos mensuales'!$AH:$AH))) -> -0.001605941645 | BK139: -0.05507257719 | BL139: n.d. | BM139: n.d. | BN139: 0.01527788393 | BO139: n.d. | BP139: n.d. | BQ139: 0 | BR139: -0.282099873 | BS139: n.d. | BT139: n.d. | BU139: -0.1265857416 | BV139: n.d. | BW139: n.d. | BX139: 0
B140: Abr | C140: =IF(OR('[1]REAL IMAE(M)'!AG145="n.d."),"",'[1]REAL IMAE(M)'!AG145) -> 2.125792495 | F140: =+'[1]REAL IMAE(M)'!AJ145 -> 4.94837973 | I140: =+'[1]REAL IMAE(M)'!AM145 -> 2.905811623 | L140: =IF(OR('[1]REAL IMAE(M)'!AN145="n.d."),"",'[1]REAL IMAE(M)'!AN145) -> 2.222286512 | O140: =+'[1]REAL IMAE(M)'!AQ145 -> 4.078330935 | R140: =IF(OR('[1]REAL IMAE(M)'!AT145="n.d."),"",'[1]REAL IMAE(M)'!AT145) -> 2.509462766 | U140: -0.04440640204 | X140: 0.2016568833 | AA140: 0.5332134612 | AH140: n.d. | AI140: n.d. | AJ140: n.d. | AK140: -0.02754297779 | AL140: -0.01637533953 | AM140: -0.1953439162 | AP140: 65.46106507 | AS140: 103.5854407 | AV140: 123.24 | AW140: 0.8871829398 | AX140: n.d. | AY140: n.d. | AZ140: 1.189525107 | BA140: n.d. | BB140: n.d. | BC140: 0 | BD140: =IF(ISERROR(STANDARDIZE($AW140,AVERAGE($AW:$AW),STDEV('Datos mensuales'!$AH:$AH))),"n.d.",STANDARDIZE($AW140,AVERAGE('Datos mensuales'!$AH:$AH),STDEV('Datos mensuales'!$AH:$AH))) -> 0.4192984865 | BE140: =IF(ISERROR(STANDARDIZE($AX140,AVERAGE($AX:$AX),STDEV('Datos mensuales'!$AH:$AH))),"n.d.",STANDARDIZE($AX140,AVERAGE('Datos mensuales'!$AH:$AH),STDEV('Datos mensuales'!$AH:$AH))) -> n.d. | BF140: =IF(ISERROR(STANDARDIZE($AY140,AVERAGE($AY:$AY),STDEV('Datos mensuales'!$AH:$AH))),"n.d.",STANDARDIZE($AY140,AVERAGE('Datos mensuales'!$AH:$AH),STDEV('Datos mensuales'!$AH:$AH))) -> n.d. | BG140: =IF(ISERROR(STANDARDIZE($AZ140,AVERAGE($AZ:$AZ),STDEV('Datos mensuales'!$AH:$AH))),"n.d.",STANDARDIZE($AZ140,AVERAGE('Datos mensuales'!$AH:$AH),STDEV('Datos mensuales'!$AH:$AH))) -> 0.5627380761 | BH140: =IF(ISERROR(STANDARDIZE($BA140,AVERAGE($BA:$BA),STDEV('Datos mensuales'!$AH:$AH))),"n.d.",STANDARDIZE($BA140,AVERAGE('Datos mensuales'!$AH:$AH),STDEV('Datos mensuales'!$AH:$AH))) -> n.d. | BI140: =IF(ISERROR(STANDARDIZE($BB140,AVERAGE($BB:$BB),STDEV('Datos mensuales'!$AH:$AH))),"n.d.",STANDARDIZE($BB140,AVERAGE('Datos mensuales'!$AH:$AH),STDEV('Datos mensuales'!$AH:$AH))) -> n.d. | BJ140: =IF(ISERROR(STANDARDIZE($BC140,AVERAGE($BC:$BC),STDEV('Datos mensuales'!$AH:$AH))),"n.d.",STANDARDIZE($BC140,AVERAGE('Datos mensuales'!$AH:$AH),STDEV('Datos mensuales'!$AH:$AH))) -> -0.001605941645 | BK140: -0.04629492045 | BL140: n.d. | BM140: n.d. | BN140: -0.1217509228 | BO140: n.d. | BP140: n.d. | BQ140: 0 | BR140: -0.314403897 | BS140: n.d. | BT140: n.d. | BU140: -0.004006801434 | BV140: n.d. | BW140: n.d. | BX140: 0
B141: May | C141: =IF(OR('[1]REAL IMAE(M)'!AG146="n.d."),"",'[1]REAL IMAE(M)'!AG146) -> 2.183471821 | F141: =+'[1]REAL IMAE(M)'!AJ146 -> 5.164005671 | I141: =+'[1]REAL IMAE(M)'!AM146 -> 3.42037207 | L141: =IF(OR('[1]REAL IMAE(M)'!AN146="n.d."),"",'[1]REAL IMAE(M)'!AN146) -> 2.214499342 | O141: =+'[1]REAL IMAE(M)'!AQ146 -> 4.294406815 | R141: =IF(OR('[1]REAL IMAE(M)'!AT146="n.d."),"",'[1]REAL IMAE(M)'!AT146) -> 2.692037588 | U141: 0.05767932617 | X141: 0.2156259412 | AA141: 0.5145604465 | AH141: n.d. | AI141: n.d. | AJ141: n.d. | AK141: -0.4616875465 | AL141: -0.273761235 | AM141: -0.2573858955 | AP141: 65.60473284 | AS141: 103.9918272 | AV141: 123.97 | AW141: 0.87989606 | AX141: n.d. | AY141: n.d. | AZ141: 0.6524405839 | BA141: n.d. | BB141: n.d. | BC141: 0 | BD141: =IF(ISERROR(STANDARDIZE($AW141,AVERAGE($AW:$AW),STDEV('Datos mensuales'!$AH:$AH))),"n.d.",STANDARDIZE($AW141,AVERAGE('Datos mensuales'!$AH:$AH),STDEV('Datos mensuales'!$AH:$AH))) -> 0.4158413866 | BE141: =IF(ISERROR(STANDARDIZE($AX141,AVERAGE($AX:$AX),STDEV('Datos mensuales'!$AH:$AH))),"n.d.",STANDARDIZE($AX141,AVERAGE('Datos mensuales'!$AH:$AH),STDEV('Datos mensuales'!$AH:$AH))) -> n.d. | BF141: =IF(ISERROR(STANDARDIZE($AY141,AVERAGE($AY:$AY),STDEV('Datos mensuales'!$AH:$AH))),"n.d.",STANDARDIZE($AY141,AVERAGE('Datos mensuales'!$AH:$AH),STDEV('Datos mensuales'!$AH:$AH))) -> n.d. | BG141: =IF(ISERROR(STANDARDIZE($AZ141,AVERAGE($AZ:$AZ),STDEV('Datos mensuales'!$AH:$AH))),"n.d.",STANDARDIZE($AZ141,AVERAGE('Datos mensuales'!$AH:$AH),STDEV('Datos mensuales'!$AH:$AH))) -> 0.3079301399 | BH141: =IF(ISERROR(STANDARDIZE($BA141,AVERAGE($BA:$BA),STDEV('Datos mensuales'!$AH:$AH))),"n.d.",STANDARDIZE($BA141,AVERAGE('Datos mensuales'!$AH:$AH),STDEV('Datos mensuales'!$AH:$AH))) -> n.d. | BI141: =IF(ISERROR(STANDARDIZE($BB141,AVERAGE($BB:$BB),STDEV('Datos mensuales'!$AH:$AH))),"n.d.",STANDARDIZE($BB141,AVERAGE('Datos mensuales'!$AH:$AH),STDEV('Datos mensuales'!$AH:$AH))) -> n.d. | BJ141: =IF(ISERROR(STANDARDIZE($BC141,AVERAGE($BC:$BC),STDEV('Datos mensuales'!$AH:$AH))),"n.d.",STANDARDIZE($BC141,AVERAGE('Datos mensuales'!$AH:$AH),STDEV('Datos mensuales'!$AH:$AH))) -> -0.001605941645 | BK141: -0.003457099809 | BL141: n.d. | BM141: n.d. | BN141: -0.2548079361 | BO141: n.d. | BP141: n.d. | BQ141: 0 | BR141: -0.2843251841 | BS141: n.d. | BT141: n.d. | BU141: 35.65236759 | BV141: n.d. | BW141: n.d. | BX141: 0
B142: Jun | C142: =IF(OR('[1]REAL IMAE(M)'!AG147="n.d."),"",'[1]REAL IMAE(M)'!AG147) -> 2.259778595 | F142: =+'[1]REAL IMAE(M)'!AJ147 -> 5.038515282 | I142: =+'[1]REAL IMAE(M)'!AM147 -> 3.644229969 | L142: =IF(OR('[1]REAL IMAE(M)'!AN147="n.d."),"",'[1]REAL IMAE(M)'!AN147) -> 2.222075433 | O142: =+'[1]REAL IMAE(M)'!AQ147 -> 4.417747699 | R142: =IF(OR('[1]REAL IMAE(M)'!AT147="n.d."),"",'[1]REAL IMAE(M)'!AT147) -> 2.851374869 | U142: 0.07630677405 | X142: -0.1254903888 | AA142: 0.2238578995 | AH142: n.d. | AI142: n.d. | AJ142: n.d. | AK142: -0.9654676472 | AL142: -0.572431083 | AM142: -0.2986698479 | AP142: 65.74917753 | AS142: 104.4057353 | AV142: 124.57 | AW142: 0.8959760498 | AX142: n.d. | AY142: n.d. | AZ142: -0.06791312902 | BA142: n.d. | BB142: n.d. | BC142: 0 | BD142: =IF(ISERROR(STANDARDIZE($AW142,AVERAGE($AW:$AW),STDEV('Datos mensuales'!$AH:$AH))),"n.d.",STANDARDIZE($AW142,AVERAGE('Datos mensuales'!$AH:$AH),STDEV('Datos mensuales'!$AH:$AH))) -> 0.423470184 | BE142: =IF(ISERROR(STANDARDIZE($AX142,AVERAGE($AX:$AX),STDEV('Datos mensuales'!$AH:$AH))),"n.d.",STANDARDIZE($AX142,AVERAGE('Datos mensuales'!$AH:$AH),STDEV('Datos mensuales'!$AH:$AH))) -> n.d. | BF142: =IF(ISERROR(STANDARDIZE($AY142,AVERAGE($AY:$AY),STDEV('Datos mensuales'!$AH:$AH))),"n.d.",STANDARDIZE($AY142,AVERAGE('Datos mensuales'!$AH:$AH),STDEV('Datos mensuales'!$AH:$AH))) -> n.d. | BG142: =IF(ISERROR(STANDARDIZE($AZ142,AVERAGE($AZ:$AZ),STDEV('Datos mensuales'!$AH:$AH))),"n.d.",STANDARDIZE($AZ142,AVERAGE('Datos mensuales'!$AH:$AH),STDEV('Datos mensuales'!$AH:$AH))) -> -0.03382583164 | BH142: =IF(ISERROR(STANDARDIZE($BA142,AVERAGE($BA:$BA),STDEV('Datos mensuales'!$AH:$AH))),"n.d.",STANDARDIZE($BA142,AVERAGE('Datos mensuales'!$AH:$AH),STDEV('Datos mensuales'!$AH:$AH))) -> n.d. | BI142: =IF(ISERROR(STANDARDIZE($BB142,AVERAGE($BB:$BB),STDEV('Datos mensuales'!$AH:$AH))),"n.d.",STANDARDIZE($BB142,AVERAGE('Datos mensuales'!$AH:$AH),STDEV('Datos mensuales'!$AH:$AH))) -> n.d. | BJ142: =IF(ISERROR(STANDARDIZE($BC142,AVERAGE($BC:$BC),STDEV('Datos mensuales'!$AH:$AH))),"n.d.",STANDARDIZE($BC142,AVERAGE('Datos mensuales'!$AH:$AH),STDEV('Datos mensuales'!$AH:$AH))) -> -0.001605941645 | BK142: 0.007628797396 | BL142: n.d. | BM142: n.d. | BN142: -0.3417559716 | BO142: n.d. | BP142: n.d. | BQ142: 0 | BR142: -0.238606814 | BS142: n.d. | BT142: n.d. | BU142: 0.7865573062 | BV142: n.d. | BW142: n.d. | BX142: 0
B143: Jul | C143: =IF(OR('[1]REAL IMAE(M)'!AG148="n.d."),"",'[1]REAL IMAE(M)'!AG148) -> 2.379038106 | F143: =+'[1]REAL IMAE(M)'!AJ148 -> 4.681455516 | I143: =+'[1]REAL IMAE(M)'!AM148 -> 3.369484229 | L143: =IF(OR('[1]REAL IMAE(M)'!AN148="n.d."),"",'[1]REAL IMAE(M)'!AN148) -> 2.244598367 | O143: =+'[1]REAL IMAE(M)'!AQ148 -> 4.455264371 | R143: =IF(OR('[1]REAL IMAE(M)'!AT148="n.d."),"",'[1]REAL IMAE(M)'!AT148) -> 2.925963005 | U143: 0.1192595106 | X143: -0.357059766 | AA143: -0.2747457404 | AH143: n.d. | AI143: n.d. | AJ143: n.d. | AK143: -1.361605181 | AL143: -0.8072842199 | AM143: -0.2348531369 | AP143: 65.89468563 | AS143: 104.827953 | AV143: 124.86 | AW143: 0.9215358182 | AX143: n.d. | AY143: n.d. | AZ143: -0.7831410022 | BA143: n.d. | BB143: n.d. | BC143: 0 | BD143: =IF(ISERROR(STANDARDIZE($AW143,AVERAGE($AW:$AW),STDEV('Datos mensuales'!$AH:$AH))),"n.d.",STANDARDIZE($AW143,AVERAGE('Datos mensuales'!$AH:$AH),STDEV('Datos mensuales'!$AH:$AH))) -> 0.4355964539 | BE143: =IF(ISERROR(STANDARDIZE($AX143,AVERAGE($AX:$AX),STDEV('Datos mensuales'!$AH:$AH))),"n.d.",STANDARDIZE($AX143,AVERAGE('Datos mensuales'!$AH:$AH),STDEV('Datos mensuales'!$AH:$AH))) -> n.d. | BF143: =IF(ISERROR(STANDARDIZE($AY143,AVERAGE($AY:$AY),STDEV('Datos mensuales'!$AH:$AH))),"n.d.",STANDARDIZE($AY143,AVERAGE('Datos mensuales'!$AH:$AH),STDEV('Datos mensuales'!$AH:$AH))) -> n.d. | BG143: =IF(ISERROR(STANDARDIZE($AZ143,AVERAGE($AZ:$AZ),STDEV('Datos mensuales'!$AH:$AH))),"n.d.",STANDARDIZE($AZ143,AVERAGE('Datos mensuales'!$AH:$AH),STDEV('Datos mensuales'!$AH:$AH))) -> -0.3731499613 | BH143: =IF(ISERROR(STANDARDIZE($BA143,AVERAGE($BA:$BA),STDEV('Datos mensuales'!$AH:$AH))),"n.d.",STANDARDIZE($BA143,AVERAGE('Datos mensuales'!$AH:$AH),STDEV('Datos mensuales'!$AH:$AH))) -> n.d. | BI143: =IF(ISERROR(STANDARDIZE($BB143,AVERAGE($BB:$BB),STDEV('Datos mensuales'!$AH:$AH))),"n.d.",STANDARDIZE($BB143,AVERAGE('Datos mensuales'!$AH:$AH),STDEV('Datos mensuales'!$AH:$AH))) -> n.d. | BJ143: =IF(ISERROR(STANDARDIZE($BC143,AVERAGE($BC:$BC),STDEV('Datos mensuales'!$AH:$AH))),"n.d.",STANDARDIZE($BC143,AVERAGE('Datos mensuales'!$AH:$AH),STDEV('Datos mensuales'!$AH:$AH))) -> -0.001605941645 | BK143: 0.01212626984 | BL143: n.d. | BM143: n.d. | BN143: -0.3393241297 | BO143: n.d. | BP143: n.d. | BQ143: 0 | BR143: -0.1624128635 | BS143: n.d. | BT143: n.d. | BU143: -0.549444485 | BV143: n.d. | BW143: n.d. | BX143: 0
B144: Ago | C144: =IF(OR('[1]REAL IMAE(M)'!AG149="n.d."),"",'[1]REAL IMAE(M)'!AG149) -> 2.609996725 | F144: =+'[1]REAL IMAE(M)'!AJ149 -> 4.2809758 | I144: =+'[1]REAL IMAE(M)'!AM149 -> 2.672917181 | L144: =IF(OR('[1]REAL IMAE(M)'!AN149="n.d."),"",'[1]REAL IMAE(M)'!AN149) -> 2.290487585 | O144: =+'[1]REAL IMAE(M)'!AQ149 -> 4.433500073 | R144: =IF(OR('[1]REAL IMAE(M)'!AT149="n.d."),"",'[1]REAL IMAE(M)'!AT149) -> 2.893934189 | U144: 0.2309586193 | X144: -0.4004797166 | AA144: -0.6965670481 | AH144: n.d. | AI144: n.d. | AJ144: n.d. | AK144: -1.644908445 | AL144: -0.9752427058 | AM144: -0.1679584859 | AP144: 66.04153536 | AS144: 105.2592597 | AV144: 124.84 | AW144: 1.004177361 | AX144: n.d. | AY144: n.d. | AZ144: -1.336139495 | BA144: n.d. | BB144: n.d. | BC144: 0 | BD144: =IF(ISERROR(STANDARDIZE($AW144,AVERAGE($AW:$AW),STDEV('Datos mensuales'!$AH:$AH))),"n.d.",STANDARDIZE($AW144,AVERAGE('Datos mensuales'!$AH:$AH),STDEV('Datos mensuales'!$AH:$AH))) -> 0.4748039156 | BE144: =IF(ISERROR(STANDARDIZE($AX144,AVERAGE($AX:$AX),STDEV('Datos mensuales'!$AH:$AH))),"n.d.",STANDARDIZE($AX144,AVERAGE('Datos mensuales'!$AH:$AH),STDEV('Datos mensuales'!$AH:$AH))) -> n.d. | BF144: =IF(ISERROR(STANDARDIZE($AY144,AVERAGE($AY:$AY),STDEV('Datos mensuales'!$AH:$AH))),"n.d.",STANDARDIZE($AY144,AVERAGE('Datos mensuales'!$AH:$AH),STDEV('Datos mensuales'!$AH:$AH))) -> n.d. | BG144: =IF(ISERROR(STANDARDIZE($AZ144,AVERAGE($AZ:$AZ),STDEV('Datos mensuales'!$AH:$AH))),"n.d.",STANDARDIZE($AZ144,AVERAGE('Datos mensuales'!$AH:$AH),STDEV('Datos mensuales'!$AH:$AH))) -> -0.6355079304 | BH144: =IF(ISERROR(STANDARDIZE($BA144,AVERAGE($BA:$BA),STDEV('Datos mensuales'!$AH:$AH))),"n.d.",STANDARDIZE($BA144,AVERAGE('Datos mensuales'!$AH:$AH),STDEV('Datos mensuales'!$AH:$AH))) -> n.d. | BI144: =IF(ISERROR(STANDARDIZE($BB144,AVERAGE($BB:$BB),STDEV('Datos mensuales'!$AH:$AH))),"n.d.",STANDARDIZE($BB144,AVERAGE('Datos mensuales'!$AH:$AH),STDEV('Datos mensuales'!$AH:$AH))) -> n.d. | BJ144: =IF(ISERROR(STANDARDIZE($BC144,AVERAGE($BC:$BC),STDEV('Datos mensuales'!$AH:$AH))),"n.d.",STANDARDIZE($BC144,AVERAGE('Datos mensuales'!$AH:$AH),STDEV('Datos mensuales'!$AH:$AH))) -> -0.001605941645 | BK144: 0.03920746173 | BL144: n.d. | BM144: n.d. | BN144: -0.2623579691 | BO144: n.d. | BP144: n.d. | BQ144: 0 | BR144: 0.008716342702 | BS144: n.d. | BT144: n.d. | BU144: -1.492232198 | BV144: n.d. | BW144: n.d. | BX144: 0
B145: Sep | C145: =IF(OR('[1]REAL IMAE(M)'!AG150="n.d."),"",'[1]REAL IMAE(M)'!AG150) -> 2.776258072 | F145: =+'[1]REAL IMAE(M)'!AJ150 -> 4.0042166 | I145: =+'[1]REAL IMAE(M)'!AM150 -> 1.904684051 | L145: =IF(OR('[1]REAL IMAE(M)'!AN150="n.d."),"",'[1]REAL IMAE(M)'!AN150) -> 2.344723354 | O145: =+'[1]REAL IMAE(M)'!AQ150 -> 4.385647418 | R145: =IF(OR('[1]REAL IMAE(M)'!AT150="n.d."),"",'[1]REAL IMAE(M)'!AT150) -> 2.782189555 | U145: 0.1662613463 | X145: -0.2767592 | AA145: -0.7682331294 | AH145: n.d. | AI145: n.d. | AJ145: n.d. | AK145: -1.954106959 | AL145: -1.158553386 | AM145: -0.1833106806 | AP145: 66.19000321 | AS145: 105.7003807 | AV145: 124.66 | AW145: 1.016954017 | AX145: n.d. | AY145: n.d. | AZ145: -1.653443595 | BA145: n.d. | BB145: n.d. | BC145: 0 | BD145: =IF(ISERROR(STANDARDIZE($AW145,AVERAGE($AW:$AW),STDEV('Datos mensuales'!$AH:$AH))),"n.d.",STANDARDIZE($AW145,AVERAGE('Datos mensuales'!$AH:$AH),STDEV('Datos mensuales'!$AH:$AH))) -> 0.480865519 | BE145: =IF(ISERROR(STANDARDIZE($AX145,AVERAGE($AX:$AX),STDEV('Datos mensuales'!$AH:$AH))),"n.d.",STANDARDIZE($AX145,AVERAGE('Datos mensuales'!$AH:$AH),STDEV('Datos mensuales'!$AH:$AH))) -> n.d. | BF145: =IF(ISERROR(STANDARDIZE($AY145,AVERAGE($AY:$AY),STDEV('Datos mensuales'!$AH:$AH))),"n.d.",STANDARDIZE($AY145,AVERAGE('Datos mensuales'!$AH:$AH),STDEV('Datos mensuales'!$AH:$AH))) -> n.d. | BG145: =IF(ISERROR(STANDARDIZE($AZ145,AVERAGE($AZ:$AZ),STDEV('Datos mensuales'!$AH:$AH))),"n.d.",STANDARDIZE($AZ145,AVERAGE('Datos mensuales'!$AH:$AH),STDEV('Datos mensuales'!$AH:$AH))) -> -0.78604588 | BH145: =IF(ISERROR(STANDARDIZE($BA145,AVERAGE($BA:$BA),STDEV('Datos mensuales'!$AH:$AH))),"n.d.",STANDARDIZE($BA145,AVERAGE('Datos mensuales'!$AH:$AH),STDEV('Datos mensuales'!$AH:$AH))) -> n.d. | BI145: =IF(ISERROR(STANDARDIZE($BB145,AVERAGE($BB:$BB),STDEV('Datos mensuales'!$AH:$AH))),"n.d.",STANDARDIZE($BB145,AVERAGE('Datos mensuales'!$AH:$AH),STDEV('Datos mensuales'!$AH:$AH))) -> n.d. | BJ145: =IF(ISERROR(STANDARDIZE($BC145,AVERAGE($BC:$BC),STDEV('Datos mensuales'!$AH:$AH))),"n.d.",STANDARDIZE($BC145,AVERAGE('Datos mensuales'!$AH:$AH),STDEV('Datos mensuales'!$AH:$AH))) -> -0.001605941645 | BK145: 0.006061603384 | BL145: n.d. | BM145: n.d. | BN145: -0.1505379496 | BO145: n.d. | BP145: n.d. | BQ145: 0 | BR145: =IF(OR(BD145="",BD133=""),"",IF(OR(BD145="n.d.",BD133="n.d."),"n.d.",IF(OR(AND(BD145>0,BD133>0),AND(BD145<0,BD133>0)),BD145/BD133 -1,IF(OR(AND(BD145>0,BD133<0),AND(BD145<0,BD133<0)),-(BD145/BD133 -1),"n.a.")))) -> 0.1609026693 | BS145: =IF(OR(BE145="",BE133=""),"",IF(OR(BE145="n.d.",BE133="n.d."),"n.d.",IF(OR(AND(BE145>0,BE133>0),AND(BE145<0,BE133>0)),BE145/BE133 -1,IF(OR(AND(BE145>0,BE133<0),AND(BE145<0,BE133<0)),-(BE145/BE133 -1),"n.a.")))) -> n.d. | BT145: =IF(OR(BF145="",BF133=""),"",IF(OR(BF145="n.d.",BF133="n.d."),"n.d.",IF(OR(AND(BF145>0,BF133>0),AND(BF145<0,BF133>0)),BF145/BF133 -1,IF(OR(AND(BF145>0,BF133<0),AND(BF145<0,BF133<0)),-(BF145/BF133 -1),"n.a.")))) -> n.d. | BU145: =IF(OR(BG145="",BG133=""),"",IF(OR(BG145="n.d.",BG133="n.d."),"n.d.",IF(OR(AND(BG145>0,BG133>0),AND(BG145<0,BG133>0)),BG145/BG133 -1,IF(OR(AND(BG145>0,BG133<0),AND(BG145<0,BG133<0)),-(BG145/BG133 -1),"n.a.")))) -> -2.757330152 | BV145: =IF(OR(BH145="",BH133=""),"",IF(OR(BH145="n.d.",BH133="n.d."),"n.d.",IF(OR(AND(BH145>0,BH133>0),AND(BH145<0,BH133>0)),BH145/BH133 -1,IF(OR(AND(BH145>0,BH133<0),AND(BH145<0,BH133<0)),-(BH145/BH133 -1),"n.a.")))) -> n.d. | BW145: =IF(OR(BI145="",BI133=""),"",IF(OR(BI145="n.d.",BI133="n.d."),"n.d.",IF(OR(AND(BI145>0,BI133>0),AND(BI145<0,BI133>0)),BI145/BI133 -1,IF(OR(AND(BI145>0,BI133<0),AND(BI145<0,BI133<0)),-(BI145/BI133 -1),"n.a.")))) -> n.d. | BX145: =IF(OR(BJ145="",BJ133=""),"",IF(OR(BJ145="n.d.",BJ133="n.d."),"n.d.",IF(OR(AND(BJ145>0,BJ133>0),AND(BJ145<0,BJ133>0)),BJ145/BJ133 -1,IF(OR(AND(BJ145>0,BJ133<0),AND(BJ145<0,BJ133<0)),-(BJ145/BJ133 -1),"n.a.")))) -> 0
